Workbook

Sheet COVER
C2: Cover
C4: NAVIGATION
C6: COMMENTS
C9: Bonneville Power Administration
C10: 6P Energy Conservation Standards Savings Model
C11: WALK-IN COOLERS AND FREEZERS
C13: Product Description
C14: DOE defines a “walk-in cooler and walk-in freezer” as an enclosed storage space refrigerated to temperatures, respectively, above, and at or below 32 degrees Farenheit that can be walked into, and has a total chilled storage area of less than 3,000 square feet; however, the terms do not include products designed and marketed exclusively for medical, scientific, or research purposes. (Source: 10CFR431.302)
C16: Standard Compliance Year
C17: 2017 (Source: DOE Walk-In Coolers and Freezers 2014 Final Rule, Feder Register Notice, page 32050, "Dates" section, http://www.regulations.gov/#!documentDetail;D=EERE-2008-BT-STD-0015-0141)
C19: Major changes from previous rulemaking (2009 effective standard)
C20: EISA 2009 specifies prescriptive requirements for WICFs. The new standards that are effective in 2017 specify equations for maximum energy consumption for doors and Annual Walk-In Energy Factor (AWEF) for refrigeration systems. (Source: 10CFR431.306)
C22: 6P Baseline
C23: The product was not modeled in the 6P.
C25: Prepared By:
C26: Navigant Consulting | D26: Cadeo Group
C27: One Market Street | Spear Street Tower, Suite 1200 | D27: 840 First Street, Suite 300
C28: San Francisco, CA 94105 | D28: Washington, DC 20002

Sheet Definitions
C2: Definitions
C4: NAVIGATION
C6: COMMENTS
C9: Average Megawatt (aMW) | D9: The average number of megawatts over a specified time period
C10: Adjustment to 6P Baseline | D10: Adjustment to reconcile the 6P projected energy consumption and the modeled consumption calculated using best available data.
C11: Department of Energy Aggregate Lifecycle Savings | D11: Sum of 'Total First Year Savings'. This accounts for the cumulative savings in accordance with DOE Carbon Accounting Practices.
C12: Department of Energy Notice of Proposed Rulemaking (DOE NOPR) | D12: Federal Register notice detailing analyses conducted by the DOE to establish proposed energy conservation standards.
C13: Efficiency Level (EL) | D13: The discrete efficiency ratings of a product. Each efficiency level is associated with a different UEC.
C14: Efficiency Level Distribution | D14: The mix of various equipment efficiencies shipped in a given year.
C15: Incremental Savings | D15: Savings due to the higher standards for units installed in a particular year. First year savings are highest following the standards compliance year while the stock turns over, after which first year savings are only attributed to shipments associated with new construction.
C16: Governmental Regulatory Impact Model (GRIM) | D16: The industry cash flow model used by DOE to assess impacts on manufacturers due to proposed energy conservation standards
C17: Installed Unit Energy Consumption (Installed UEC) | D17: The average annual unit energy consumption of all installed units in a given year.
C18: Market Unit Energy Consumption (Market UEC) | D18: The average annual unit energy consumption of units shipped in a given year.
C19: National Impact Analysis (NIA) | D19: The energy impact analysis used by DOE to calculate energy savings associated with each standard.
C20: Pre-case | D20: The case representing 6P baseline assumptions where energy consumption due to the product accounts for shipment and shipment UEC by year, without the affect of standards announced following the development of the 6P.
C21: Post-case | D21: The case in which standards are implemented. If the 6P already captured the analyzed standard, the post-case will be the same as the pre-case.
C22: Product Class | D22: Product classificiation determined by product configuration, size, application, location, and other attributes that contribute to consumer utility. DOE is allowed to establish different standards for each product class.
C23: Product Class Distribution | D23: Market share/mix of each product class shipped in a given year.
C24: Product Lifetime | D24: The average time a given class of products stays in the field as part of the installed stock. Some products will last longer (delaying replacement) whereas others will fail and be retired earlier (accelerating replacement), but the lifetime represents the market average.
C25: Shipments | D25: Sales of products. This may be presented by product class, efficiency distribution, or delineated by other metrics. Shipments may be attributed to new construction and/or replacements and retrofits.
C26: Sixth Power Plan (6P) | D26: The Pacific Northwest Resource Plan published by the Northwest Power Conservation Council. The 6P timeframe is from 2010-2015.
C27: Sixth Power Plan Baseline (6P Baseline) | D27: The 6P assumes equipment efficiency and shipment units in the region. When available, the 6P assumptions are the baseline for each standard impact analysis.
C28: Standard Compliance Year | D28: The year when the appliance standard goes into effect.
C29: Stock | D29: All units installed in previous years which remain in operation.
C30: Technical Support Document (TSD) | D30: TSDs are published by the DOE as companion documents to Federal Register notices (e.g., ANOPRs/preliminary analyses and NOPRs). The TSDs include technical detail that supports the notices. The final rule TSD includes the discussion of the Manufacturer Impact Analysis (MIA) and National Impact Analysis (NIA).
C31: Cumulative Savings | D31: The sum of first year savings from 2010 through 2034
C32: Trial Standard Level (TSL) | D32: A proposed efficiency standard evaluated by DOE during the NOPR and Final Rule phase analyses. A TSL may specify different standard efficiency levels for each product class included in the rulemaking.

Sheet Comments
C2: Comments
C4: NAVIGATION
C7: Tab | D7: Comment
C8: Example | D8: Please use this space to document your comments as you review the model. We look forward to receiving your feedback. Thank you.

Sheet Navigation
C2: NAVIGATION
C4: COMMENTS
C7: INFORMATION TABS | E7: INPUT TABS | G7: UEC CALCULATIONS | I7: RESULTS | K7: CHARTS
C9: COVER | E9: PRODUCT CLASSES
C11: DEFINITIONS | E11: EFFICIENCY LEVELS | G11: UEC DEVELOPMENT
C13: COMMENTS
C15: NAVIGATION | E15: CONSTANTS AND MENUS
C17: CENTRAL COMMERCIAL MODEL (EXTERNAL) | E17: PRODUCT CLASS DISTRIBUTION | G17: UEC | I17: RESULTS | K17: CHARTS
E19: EFFICIENCY DISTRIBUTION
I20: SUMMARY RESULTS
E21: SHIPMENTS AND STOCK - COMPONENT
E23: SHIPMENTS AND STOCK - SYSTEM
E25: 6P UEC DEVELOPMENT

Sheet Product Classes
C2: Selection of Product Classes for Model
C4: NAVIGATION
C6: COMMENTS
E9: Components
E10: Type | F10: All Product Classes | G10: 2014 DOE FR PCs 1 | H10: DOE Representative PCs 1 | I10: 6th Plan PCs | K10: Model PCs | L10: Rationale
E11: Panels | F11: Structural Panel, Medium Temperature | G11: SP.M | H11: SP.M | I11: N/A | K11: SP.M | L11: Aligns with DOE FR assumptions
F12: Structural Panel, Low Temperature | G12: SP.L | H12: SP.L | I12: N/A | K12: SP.L | L12: Aligns with DOE FR assumptions
F13: Floor Panel, Low Temperature | G13: FP.L | H13: FP.L | I13: N/A | K13: FP.L | L13: Aligns with DOE FR assumptions
E14: Non-Display Doors | F14: Passage Door, Medium Temperature | G14: PD.M | H14: PD.M | I14: N/A | K14: PD.M | L14: Aligns with DOE FR assumptions
F15: Passage Door, Low Temperature | G15: PD.L | H15: PD.L | I15: N/A | K15: PD.L | L15: Aligns with DOE FR assumptions
F16: Freight Door, Medium Temperature | G16: FD.M | H16: FD.M | I16: N/A | K16: FD.M | L16: Aligns with DOE FR assumptions
F17: Freight Door, Low Temperature | G17: FD.L | H17: FD.L | I17: N/A | K17: FD.L | L17: Aligns with DOE FR assumptions
E18: Display Doors | F18: Display Door, Medium Temperature | G18: DD.M | H18: DD.M | I18: N/A | K18: DD.M | L18: Aligns with DOE FR assumptions
F19: Display Door, Low Temperature | G19: DD.L | H19: DD.L | I19: N/A | K19: DD.L | L19: Aligns with DOE FR assumptions
E21: Selection rationale | F21: The DOE 2014 Final Rule used these product classes, therefore the same product classes are used in this analysis
E23: Sources | F23: 1. DOE Walk-In Coolers and Freezers 2014 Final Rule, Technical Support Document: Final Rule National Impact Analysis (NIA) - Components, 'Simulation Inputs' tab, cells G5:G13, http://www.regulations.gov/#!documentDetail;D=EERE-2008-BT-STD-0015-0134
C27: Systems
C29: Condensing Type | D29: Operating Temperature | E29: Condenser Location | F29: Size (Btu/h) | G29: 2014 DOE FR PCs 1 | H29: DOE Representative PCs 1 | I29: 6th Plan PCs | K29: Model PCs | L29: Rationale
C30: Dedicated | D30: Low | E30: Indoor | F30: <9000 | G30: DC.L.I. <9000 | H30: DC.L.I.006 | I30: N/A | K30: =H30 -> DC.L.I.006 | L30: Used in GRIM model
C31: Dedicated | D31: Low | E31: Indoor | F31: >9000 | G31: DC.L.I. >9000 | H31: DC.L.I.009 | I31: N/A | K31: =H31 -> DC.L.I.009 | L31: Used in GRIM model
C32: Dedicated | D32: Low | E32: Indoor | F32: >9000 | H32: DC.L.I.054 | I32: N/A
C33: Dedicated | D33: Low | E33: Outdoor | F33: <9000 | G33: DC.L.O. <9000 | H33: DC.L.O.006 | I33: N/A | K33: =H33 -> DC.L.O.006 | L33: Used in GRIM model
C34: Dedicated | D34: Low | E34: Outdoor | F34: >9000 | G34: DC.L.O. >9000 | H34: DC.L.O.009 | I34: N/A | K34: DC.L.O.009 | L34: Used in GRIM model
C35: Dedicated | D35: Low | E35: Outdoor | F35: >9000 | H35: DC.L.O.054 | I35: N/A
C36: Dedicated | D36: Low | E36: Outdoor | F36: >9000 | H36: DC.L.O.072 | I36: N/A
C37: Dedicated | D37: Medium | E37: Indoor | F37: <9000 | G37: DC.M.I. <9000 | H37: DC.M.I.006 | I37: N/A | K37: DC.M.I.006 | L37: Used in GRIM model
C38: Dedicated | D38: Medium | E38: Indoor | F38: >9000 | G38: DC.M.I. >9000 | H38: DC.M.I.018 | I38: N/A | K38: DC.M.I.018 | L38: Used in GRIM model
C39: Dedicated | D39: Medium | E39: Indoor | F39: >9000 | H39: DC.M.I.054 | I39: N/A
C40: Dedicated | D40: Medium | E40: Indoor | F40: >9000 | H40: DC.M.I.096 | I40: N/A
C41: Dedicated | D41: Medium | E41: Outdoor | F41: <9000 | G41: DC.M.O. <9000 | H41: DC.M.O.006 | I41: N/A | K41: DC.M.O.006 | L41: Used in GRIM model
C42: Dedicated | D42: Medium | E42: Outdoor | F42: >9000 | G42: DC.M.O. >9000 | H42: DC.M.O.018 | I42: N/A | K42: DC.M.O.018 | L42: Used in GRIM model
C43: Dedicated | D43: Medium | E43: Outdoor | F43: >9000 | H43: DC.M.O.054 | I43: N/A
C44: Dedicated | D44: Medium | E44: Outdoor | F44: >9000 | H44: DC.M.O.096 | I44: N/A
C45: Multiplex | D45: Low | E45: N/A | F45: N/A | G45: MC.L | H45: MC.L.004 | I45: N/A
C46: Multiplex | D46: Low | E46: N/A | F46: N/A | H46: MC.L.009 | I46: N/A | K46: MC.L.009 | L46: Used in GRIM model
C47: Multiplex | D47: Low | E47: N/A | F47: N/A | H47: MC.L.018 | I47: N/A
C48: Multiplex | D48: Low | E48: N/A | F48: N/A | H48: MC.L.040 | I48: N/A
C49: Multiplex | D49: Medium | E49: N/A | F49: N/A | G49: MC.M | H49: MC.M.004 | I49: N/A
C50: Multiplex | D50: Medium | E50: N/A | F50: N/A | H50: MC.M.009 | I50: N/A | K50: MC.M.009 | L50: Used in GRIM model
C51: Multiplex | D51: Medium | E51: N/A | F51: N/A | H51: MC.M.024 | I51: N/A
C53: Selection rationale | D53: The DOE 2014 Final Rule used 10 product classes with several representative units for each product class. For this analysis, only the representative units used in the GRIM model were used.
C55: Sources | D55: DOE Walk-In Coolers and Freezers 2014 Final Rule, Technical Support Document: Final Rule National Impact Analysis (NIA) - Systems, 'Simulation Inputs' tab, cells G5:G26, http://www.regulations.gov/#!documentDetail;D=EERE-2008-BT-STD-0015-0135
D56: DOE Walk-In Coolers and Freezers 2014 Final Rule, Technical Support Document: 2014-04 Final Rule Government Regulatory Impact Model (GRIM), 'Assumptions (INPUT)' tab, cells A7:A16, http://www.regulations.gov/#!documentDetail;D=EERE-2008-BT-STD-0015-0142

Sheet Efficiency Levels
C2: Efficiency Levels and Standards for Each Product Class
C4: NAVIGATION
C6: COMMENTS
B8: COMPONENTS | I8: SYSTEMS
C11: ='Product Classes'!K11 -> SP.M | D11: =OFFSET('Product Classes'!$F$10,MATCH(C11,'Product Classes'!$K$11:$K$16,0),0) -> Structural Panel, Medium Temperature | J11: ='Product Classes'!K30 -> DC.L.I.006 | K11: =CONCATENATE('Product Classes'!C30," ",'Product Classes'!D30," ",'Product Classes'!E30," ",'Product Classes'!F30) -> Dedicated Low Indoor <9000
C13: Model ELs | D13: Energy Level (kWh/year)1,2 | E13: Compliance Year3 | F13: Model Efficiency Levels | J13: Model ELs | K13: Energy Level (kWh/year)1,2 | L13: Compliance Year3 | M13: Model Efficiency Levels
C14: EL0 | D14: 1.801721841 | F14: DOE NOPR Pre-EISA | J14: EL0 | K14: 15952.31922 | M14: DOE NOPR Pre-EISA
C15: EL1 | D15: 1.607823938 | F15: DOE NOPR EISA | J15: EL1 | K15: 12280.33426 | M15: DOE NOPR EISA
C16: EL2 | D16: 1.324743675 | E16: 2009, 2017 | F16: DOE 2014 Final Rule Baseline | J16: EL2 | K16: 10273.01808 | L16: 2009 | M16: DOE 2014 Final Rule Baseline
C17: EL3 | D17: 1.159150715 | F17: DOE 2014 Final Rule EL1 | J17: EL3 | K17: 8809.301232 | M17: DOE 2014 Final Rule EL1
C18: EL4 | D18: 0.9273205722 | F18: DOE 2014 Final Rule EL2 | J18: EL4 | K18: 8344.69551 | M18: DOE 2014 Final Rule EL2
C19: EL5 | D19: 0.7727671435 | F19: DOE 2014 Final Rule EL3 | J19: EL5 | K19: 8041.139143 | M19: DOE 2014 Final Rule EL3
C20: EL6 | D20: 0.4121424765 | F20: DOE 2014 Final Rule EL4 | J20: EL6 | K20: 7648.858288 | M20: DOE 2014 Final Rule EL4
J21: EL7 | K21: 7562.933302 | M21: DOE 2014 Final Rule EL5
J22: EL8 | K22: 7064.464815 | L22: 2017 | M22: DOE 2014 Final Rule EL6
C24: Sources | D24: 1. DOE Walk-In Coolers and Freezers 2014 Final Rule, Technical Support Document: Final Rule National Impact Analysis (NIA) - Components, 'LCC Inputs' tab, cells C5:G5, http://www.regulations.gov/#!documentDetail;D=EERE-2008-BT-STD-0015-0134 | J24: Sources | K24: 1. DOE Walk-In Coolers and Freezers 2014 Final Rule, Technical Support Document: Final Rule National Impact Analysis (NIA) - Systems, 'LCC Inputs' tab, cells C5:I5, http://www.regulations.gov/#!documentDetail;D=EERE-2008-BT-STD-0015-0135
D25: 2. Pre-EISA and EISA values calculated from shipment weighted average by size from 2013 NOPR NIA Components Model. Refrigeration System TSL 5 values were selected since the criteria for TSL 5 in the NOPR matched the criteria for TSL 2, which was the TSL selected in the final rule. DOE Walk-In Coolers and Freezers 2013 NOPR, Technical Support Document: 2013-08-22 NOPR Component National Impact Analysis Model, 'Shipment-Stock Inputs' tab, cells D5:D7, 'INPUT_LCC' tab, cells CW11:CW12, CW35:CW36, CW59:CW60, http://www.regulations.gov/#!documentDetail;D=EERE-2008-BT-STD-0015-0127 | K25: 2. DOE Walk-In Coolers and Freezers 2013 NOPR, Technical Support Document: 2013-08-22 NOPR National Impact Analysis - Refrigeration Systems, 'INPUT_LCC' tab, cells J112:J113, http://www.regulations.gov/#!documentDetail;D=EERE-2008-BT-STD-0015-0126
D26: 3. EISA standards were effective in 2009 (10CFR431.306). Assumed EISA standards were equivalent to baseline standard in 2014 Final Rule. In the 2014 Final Rule, TSL 2 was the final selected TSL. (DOE Walk-In Coolers and Freezers 2014 Final Rule, Feder Register Notice, page 32117, "Benefits and Burdens of Trial Standard Levels Considered for Walk-in Coolers and Walk-In Freezers" section, http://www.regulations.gov/#!documentDetail;D=EERE-2008-BT-STD-0015-0141) TSL Mapping used to determine EL for each product class at TSL 2. (DOE Walk-In Coolers and Freezers 2014 Final Rule, Technical Support Document: Final Rule National Impact Analysis (NIA) - Components, 'TSL Mapping' tab, cells C6:K6, http://www.regulations.gov/#!documentDetail;D=EERE-2008-BT-STD-0015-0134)
C30: ='Product Classes'!K12 -> SP.L | D30: =OFFSET('Product Classes'!$F$10,MATCH(C30,'Product Classes'!$K$11:$K$16,0),0) -> Structural Panel, Low Temperature | J30: ='Product Classes'!K31 -> DC.L.I.009 | K30: =CONCATENATE('Product Classes'!C31," ",'Product Classes'!D31," ",'Product Classes'!E31," ",'Product Classes'!F31) -> Dedicated Low Indoor >9000
C32: Model ELs | D32: Energy Level (kWh/year)1,2 | E32: Compliance Year3 | F32: Model Efficiency Levels | J32: Model ELs | K32: Energy Level (kWh/year)1,2 | L32: Compliance Year3 | M32: Model Efficiency Levels
C33: EL0 | D33: 6.907461111 | F33: DOE NOPR Pre-EISA | J33: EL0 | K33: 20094.23982 | M33: DOE NOPR Pre-EISA
C34: EL1 | D34: 6.158704629 | F34: DOE NOPR EISA | J34: EL1 | K34: 16422.18145 | M34: DOE NOPR EISA
C35: EL2 | D35: 5.593414766 | E35: 2009, 2017 | F35: DOE 2014 Final Rule Baseline | J35: EL2 | K35: 14690.0016 | L35: 2009 | M35: DOE 2014 Final Rule Baseline
C36: EL3 | D36: 4.474731813 | F36: DOE 2014 Final Rule EL1 | J36: EL3 | K36: 13937.94033 | M36: DOE 2014 Final Rule EL1
C37: EL4 | D37: 3.728943177 | F37: DOE 2014 Final Rule EL2 | J37: EL4 | K37: 13481.88376 | M37: DOE 2014 Final Rule EL2
C38: EL5 | D38: 1.988769695 | F38: DOE 2014 Final Rule EL3 | J38: EL5 | K38: 11815.04532 | M38: DOE 2014 Final Rule EL3
C39: EL6 | D39: 1.988769695 | F39: DOE 2014 Final Rule EL4 | J39: EL6 | K39: 11500.35485 | M39: DOE 2014 Final Rule EL4
J40: EL7 | K40: 11078.18516 | L40: 2017 | M40: DOE 2014 Final Rule EL5
C42: Sources | D42: 1. DOE Walk-In Coolers and Freezers 2014 Final Rule, Technical Support Document: Final Rule National Impact Analysis (NIA) - Components, 'LCC Inputs' tab, cells C6:G6, http://www.regulations.gov/#!documentDetail;D=EERE-2008-BT-STD-0015-0134 | J42: Sources | K42: 1. DOE Walk-In Coolers and Freezers 2014 Final Rule, Technical Support Document: Final Rule National Impact Analysis (NIA) - Systems, 'LCC Inputs' tab, cells C6:H6, http://www.regulations.gov/#!documentDetail;D=EERE-2008-BT-STD-0015-0135
D43: 2. Pre-EISA and EISA values calculated from shipment weighted average by size from 2013 NOPR NIA Components Model. Refrigeration System TSL 5 values were selected since the criteria for TSL 5 in the NOPR matched the criteria for TSL 2, which was the TSL selected in the final rule. DOE Walk-In Coolers and Freezers 2013 NOPR, Technical Support Document: 2013-08-22 NOPR Component National Impact Analysis Model, 'Shipment-Stock Inputs' tab, cells D9:D11, 'INPUT_LCC' tab, cells DG11:DG12, DG35:DG36, DG59:DG60, http://www.regulations.gov/#!documentDetail;D=EERE-2008-BT-STD-0015-0127 | K43: 2. DOE Walk-In Coolers and Freezers 2013 NOPR, Technical Support Document: 2013-08-22 NOPR National Impact Analysis - Refrigeration Systems, 'INPUT_LCC' tab, cells J137:J138, http://www.regulations.gov/#!documentDetail;D=EERE-2008-BT-STD-0015-0126
D44: 3. EISA standards were effective in 2009 (10CFR431.306). Assumed EISA standards were equivalent to baseline standard in 2014 Final Rule. In the 2014 Final Rule, TSL 2 was the final selected TSL. (DOE Walk-In Coolers and Freezers 2014 Final Rule, Feder Register Notice, page 32117, "Benefits and Burdens of Trial Standard Levels Considered for Walk-in Coolers and Walk-In Freezers" section, http://www.regulations.gov/#!documentDetail;D=EERE-2008-BT-STD-0015-0141) TSL Mapping used to determine EL for each product class at TSL 2. (DOE Walk-In Coolers and Freezers 2014 Final Rule, Technical Support Document: Final Rule National Impact Analysis (NIA) - Components, 'TSL Mapping' tab, cells C6:K6, http://www.regulations.gov/#!documentDetail;D=EERE-2008-BT-STD-0015-0134)
C48: ='Product Classes'!K13 -> FP.L | D48: =OFFSET('Product Classes'!$F$10,MATCH(C48,'Product Classes'!$K$11:$K$16,0),0) -> Floor Panel, Low Temperature | J48: ='Product Classes'!K33 -> DC.L.O.006 | K48: =CONCATENATE('Product Classes'!C33," ",'Product Classes'!D33," ",'Product Classes'!E33," ",'Product Classes'!F33) -> Dedicated Low Outdoor <9000
C50: Model ELs | D50: Energy Level (kWh/year)1,2 | E50: Compliance Year3 | F50: Model Efficiency Levels | J50: Model ELs | K50: Energy Level (kWh/year)1,2 | L50: Compliance Year3 | M50: Model Efficiency Levels
C51: EL0 | D51: 5.526223416 | F51: DOE NOPR Pre-EISA | J51: EL0 | K51: 13403.33859 | M51: DOE NOPR Pre-EISA
C52: EL1 | D52: 4.907259963 | F52: DOE NOPR EISA | J52: EL1 | K52: 10457.46627 | M52: DOE NOPR EISA
C53: EL2 | D53: 4.888362484 | E53: 2009, 2017 | F53: DOE 2014 Final Rule Baseline | J53: EL2 | K53: 7804.500034 | L53: 2009 | M53: DOE 2014 Final Rule Baseline
C54: EL3 | D54: 4.277317174 | F54: DOE 2014 Final Rule EL1 | J54: EL3 | K54: 6264.419233 | M54: DOE 2014 Final Rule EL1
C55: EL4 | D55: 3.421853739 | F55: DOE 2014 Final Rule EL2 | J55: EL4 | K55: 5563.747419 | M55: DOE 2014 Final Rule EL2
C56: EL5 | D56: 2.851544783 | F56: DOE 2014 Final Rule EL3 | J56: EL5 | K56: 5411.845507 | M56: DOE 2014 Final Rule EL3
C57: EL6 | D57: 1.520823884 | F57: DOE 2014 Final Rule EL4 | J57: EL6 | K57: 5199.570451 | M57: DOE 2014 Final Rule EL4
J58: EL7 | K58: 4898.195629 | L58: 2017 | M58: DOE 2014 Final Rule EL5
C60: Sources | D60: 1. DOE Walk-In Coolers and Freezers 2014 Final Rule, Technical Support Document: Final Rule National Impact Analysis (NIA) - Components, 'LCC Inputs' tab, cells C7:G7, http://www.regulations.gov/#!documentDetail;D=EERE-2008-BT-STD-0015-0134 | J60: Sources | K60: 1. DOE Walk-In Coolers and Freezers 2014 Final Rule, Technical Support Document: Final Rule National Impact Analysis (NIA) - Systems, 'LCC Inputs' tab, cells C8:H8, http://www.regulations.gov/#!documentDetail;D=EERE-2008-BT-STD-0015-0135
D61: 2. Pre-EISA and EISA values calculated from shipment weighted average by size from 2013 NOPR NIA Components Model. Refrigeration System TSL 5 values were selected since the criteria for TSL 5 in the NOPR matched the criteria for TSL 2, which was the TSL selected in the final rule. DOE Walk-In Coolers and Freezers 2013 NOPR, Technical Support Document: 2013-08-22 NOPR Component National Impact Analysis Model, 'Shipment-Stock Inputs' tab, cell D13, 'INPUT_LCC' tab, cells DG108:109, http://www.regulations.gov/#!documentDetail;D=EERE-2008-BT-STD-0015-0127 | K61: 2. DOE Walk-In Coolers and Freezers 2013 NOPR, Technical Support Document: 2013-08-22 NOPR National Impact Analysis - Refrigeration Systems, 'INPUT_LCC' tab, cells U112:U113, http://www.regulations.gov/#!documentDetail;D=EERE-2008-BT-STD-0015-0126
D62: 3. EISA standards were effective in 2009 (10CFR431.306). Assumed EISA standards were equivalent to baseline standard in 2014 Final Rule. In the 2014 Final Rule, TSL 2 was the final selected TSL. (DOE Walk-In Coolers and Freezers 2014 Final Rule, Feder Register Notice, page 32117, "Benefits and Burdens of Trial Standard Levels Considered for Walk-in Coolers and Walk-In Freezers" section, http://www.regulations.gov/#!documentDetail;D=EERE-2008-BT-STD-0015-0141) TSL Mapping used to determine EL for each product class at TSL 2. (DOE Walk-In Coolers and Freezers 2014 Final Rule, Technical Support Document: Final Rule National Impact Analysis (NIA) - Components, 'TSL Mapping' tab, cells C6:K6, http://www.regulations.gov/#!documentDetail;D=EERE-2008-BT-STD-0015-0134)
C66: ='Product Classes'!K14 -> PD.M | D66: =OFFSET('Product Classes'!$F$10,MATCH(C66,'Product Classes'!$K$11:$K$16,0),0) -> Passage Door, Medium Temperature | J66: ='Product Classes'!K34 -> DC.L.O.009 | K66: =CONCATENATE('Product Classes'!C34," ",'Product Classes'!D34," ",'Product Classes'!E34," ",'Product Classes'!F34) -> Dedicated Low Outdoor >9000
C68: Model ELs | D68: Energy Level (kWh/year)1,2 | E68: Compliance Year3 | F68: Model Efficiency Levels | J68: Model ELs | K68: Energy Level (kWh/year)1,2 | L68: Compliance Year3 | M68: Model Efficiency Levels
C69: EL0* | D69: 181.2615229 | F69: DOE NOPR Pre-EISA | J69: EL0 | K69: 16967.80754 | M69: DOE NOPR Pre-EISA
C70: EL1* | D70: 188.263376 | F70: DOE NOPR EISA | J70: EL1 | K70: 13920.63112 | M70: DOE NOPR EISA
C71: EL2 | D71: 1317.037082 | E71: 2009, 2017 | F71: DOE 2014 Final Rule Baseline | J71: EL2 | K71: 11146.08987 | L71: 2009 | M71: DOE 2014 Final Rule Baseline
C72: EL3 | D72: 1305.38652 | F72: DOE 2014 Final Rule EL1 | J72: EL3 | K72: 9418.87011 | M72: DOE 2014 Final Rule EL1
C73: EL4 | D73: 1270.912344 | F73: DOE 2014 Final Rule EL2 | J73: EL4 | K73: 9042.126375 | M73: DOE 2014 Final Rule EL2
C74: EL5 | D74: 1264.282977 | F74: DOE 2014 Final Rule EL3 | J74: EL5 | K74: 8506.799591 | M74: DOE 2014 Final Rule EL3
C75: EL6 | D75: 1250.902215 | F75: DOE 2014 Final Rule EL4 | J75: EL6 | K75: 8019.018914 | M75: DOE 2014 Final Rule EL4
C76: EL7 | D76: 1241.336351 | F76: DOE 2014 Final Rule EL5 | J76: EL7 | K76: 7672.830458 | M76: DOE 2014 Final Rule EL5
C77: EL8 | D77: 1234.96157 | F77: DOE 2014 Final Rule EL6 | J77: EL8 | K77: 7627.951915 | M77: DOE 2014 Final Rule EL6
C78: EL9 | D78: 1224.855363 | F78: DOE 2014 Final Rule EL7 | J78: EL9 | K78: 7511.217399 | M78: DOE 2014 Final Rule EL7
C79: EL10 | D79: 1206.862263 | F79: DOE 2014 Final Rule EL8 | J79: EL10 | K79: 7068.15657 | M79: DOE 2014 Final Rule EL8
C80: EL11 | D80: 1192.723647 | F80: DOE 2014 Final Rule EL9 | J80: EL11 | K80: 7032.306539 | L80: 2017 | M80: DOE 2014 Final Rule EL9
D81: *See UEC Development tab Information box for discussion of these values being lower than at the other levels.
C83: Sources | D83: 1. DOE Walk-In Coolers and Freezers 2014 Final Rule, Technical Support Document: Final Rule National Impact Analysis (NIA) - Components, 'LCC Inputs' tab, cells C10:L10, http://www.regulations.gov/#!documentDetail;D=EERE-2008-BT-STD-0015-0134 | J83: Sources | K83: 1. DOE Walk-In Coolers and Freezers 2014 Final Rule, Technical Support Document: Final Rule National Impact Analysis (NIA) - Systems, 'LCC Inputs' tab, cells C9:L9, http://www.regulations.gov/#!documentDetail;D=EERE-2008-BT-STD-0015-0135
D84: 2. Pre-EISA and EISA values calculated from shipment weighted average by size from 2013 NOPR NIA Components Model. Refrigeration System TSL 5 values were selected since the criteria for TSL 5 in the NOPR matched the criteria for TSL 2, which was the TSL selected in the final rule. DOE Walk-In Coolers and Freezers 2013 NOPR, Technical Support Document: 2013-08-22 NOPR Component National Impact Analysis Model, 'Shipment-Stock Inputs' tab, cells D25:D27, 'INPUT_LCC' tab, cells CW230:CW231, CW254:CW255, CW278:CW279, http://www.regulations.gov/#!documentDetail;D=EERE-2008-BT-STD-0015-0127 | K84: 2. DOE Walk-In Coolers and Freezers 2013 NOPR, Technical Support Document: 2013-08-22 NOPR National Impact Analysis - Refrigeration Systems, 'INPUT_LCC' tab, cells U137:U138, http://www.regulations.gov/#!documentDetail;D=EERE-2008-BT-STD-0015-0126
D85: 3. EISA standards were effective in 2009 (10CFR431.306). Assumed EISA standards were equivalent to baseline standard in 2014 Final Rule. In the 2014 Final Rule, TSL 2 was the final selected TSL. (DOE Walk-In Coolers and Freezers 2014 Final Rule, Feder Register Notice, page 32117, "Benefits and Burdens of Trial Standard Levels Considered for Walk-in Coolers and Walk-In Freezers" section, http://www.regulations.gov/#!documentDetail;D=EERE-2008-BT-STD-0015-0141) TSL Mapping used to determine EL for each product class at TSL 2. (DOE Walk-In Coolers and Freezers 2014 Final Rule, Technical Support Document: Final Rule National Impact Analysis (NIA) - Components, 'TSL Mapping' tab, cells C6:K6, http://www.regulations.gov/#!documentDetail;D=EERE-2008-BT-STD-0015-0134) | K85: 3. EISA standards were effective in 2009 (10CFR431.306). Assumed EISA standards were equivalent to baseline standard in 2014 Final Rule. In the 2014 Final Rule, TSL 2 was the final selected TSL. (DOE Walk-In Coolers and Freezers 2014 Final Rule, Feder Register Notice, page 32117, "Benefits and Burdens of Trial Standard Levels Considered for Walk-in Coolers and Walk-In Freezers" section, http://www.regulations.gov/#!documentDetail;D=EERE-2008-BT-STD-0015-0141) TSL Mapping used to determine EL for each product class at TSL 2. (DOE Walk-In Coolers and Freezers 2014 Final Rule, Technical Support Document: Final Rule National Impact Analysis (NIA) - Systems, 'TSL Mapping' tab, cells C6:X6, http://www.regulations.gov/#!documentDetail;D=EERE-2008-BT-STD-0015-0134)
C89: ='Product Classes'!K15 -> PD.L | D89: =OFFSET('Product Classes'!$F$10,MATCH(C89,'Product Classes'!$K$11:$K$16,0),0) -> Passage Door, Low Temperature | J89: ='Product Classes'!K37 -> DC.M.I.006 | K89: =CONCATENATE('Product Classes'!C37," ",'Product Classes'!D37," ",'Product Classes'!E37," ",'Product Classes'!F37) -> Dedicated Medium Indoor <9000
C91: Model ELs | D91: Energy Level (kWh/year)1,2 | E91: Compliance Year3 | F91: Model Efficiency Levels | J91: Model ELs | K91: Energy Level (kWh/year)1,2 | L91: Compliance Year3 | M91: Model Efficiency Levels
C92: EL0 | D92: 2862.956088 | F92: DOE NOPR Pre-EISA | J92: EL0 | K92: 8287.067237 | M92: DOE NOPR Pre-EISA
C93: EL1 | D93: 3914.580084 | F93: DOE NOPR EISA | J93: EL1 | K93: 6525.454556 | M93: DOE NOPR EISA
C94: EL2 | D94: 4937.601718 | E94: 2009, 2017 | F94: DOE 2014 Final Rule Baseline | J94: EL2 | K94: 5376.884998 | L94: 2009 | M94: DOE 2014 Final Rule Baseline
C95: EL3 | D95: 4666.519386 | F95: DOE 2014 Final Rule EL1 | J95: EL3 | K95: 5247.162239 | M95: DOE 2014 Final Rule EL1
C96: EL4 | D96: 4511.019606 | F96: DOE 2014 Final Rule EL2 | J96: EL4 | K96: 4423.274163 | M96: DOE 2014 Final Rule EL2
C97: EL5 | D97: 4345.434242 | F97: DOE 2014 Final Rule EL3 | J97: EL5 | K97: 4273.927698 | M97: DOE 2014 Final Rule EL3
C98: EL6 | D98: 4297.108263 | F98: DOE 2014 Final Rule EL4 | J98: EL6 | K98: 4158.139275 | M98: DOE 2014 Final Rule EL4
C99: EL7 | D99: 4215.954474 | F99: DOE 2014 Final Rule EL5 | J99: EL7 | K99: 3483.869653 | M99: DOE 2014 Final Rule EL5
C100: EL8 | D100: 4183.369985 | F100: DOE 2014 Final Rule EL6 | J100: EL8 | K100: 3348.356721 | L100: 2017 | M100: DOE 2014 Final Rule EL6
C101: EL9 | D101: 4140.779926 | F101: DOE 2014 Final Rule EL7
C102: EL10 | D102: 4099.27912 | F102: DOE 2014 Final Rule EL8
C104: Sources | D104: 1. DOE Walk-In Coolers and Freezers 2014 Final Rule, Technical Support Document: Final Rule National Impact Analysis (NIA) - Components, 'LCC Inputs' tab, cells C11:K11, http://www.regulations.gov/#!documentDetail;D=EERE-2008-BT-STD-0015-0134 | J104: Sources | K104: 1. DOE Walk-In Coolers and Freezers 2014 Final Rule, Technical Support Document: Final Rule National Impact Analysis (NIA) - Systems, 'LCC Inputs' tab, cells C12:I12, http://www.regulations.gov/#!documentDetail;D=EERE-2008-BT-STD-0015-0135
D105: 2. Pre-EISA and EISA values calculated from shipment weighted average by size from 2013 NOPR NIA Components Model. Refrigeration System TSL 5 values were selected since the criteria for TSL 5 in the NOPR matched the criteria for TSL 2, which was the TSL selected in the final rule. DOE Walk-In Coolers and Freezers 2013 NOPR, Technical Support Document: 2013-08-22 NOPR Component National Impact Analysis Model, 'Shipment-Stock Inputs' tab, cells D29:D31, 'INPUT_LCC' tab, cells DG230:DG231, DG254:DG255, DG278:DG279, http://www.regulations.gov/#!documentDetail;D=EERE-2008-BT-STD-0015-0127 | K105: 2. DOE Walk-In Coolers and Freezers 2013 NOPR, Technical Support Document: 2013-08-22 NOPR National Impact Analysis - Refrigeration Systems, 'INPUT_LCC' tab, cells J9:J10, http://www.regulations.gov/#!documentDetail;D=EERE-2008-BT-STD-0015-0126
D106: 3. EISA standards were effective in 2009 (10CFR431.306). Assumed EISA standards were equivalent to baseline standard in 2014 Final Rule. In the 2014 Final Rule, TSL 2 was the final selected TSL. (DOE Walk-In Coolers and Freezers 2014 Final Rule, Feder Register Notice, page 32117, "Benefits and Burdens of Trial Standard Levels Considered for Walk-in Coolers and Walk-In Freezers" section, http://www.regulations.gov/#!documentDetail;D=EERE-2008-BT-STD-0015-0141) TSL Mapping used to determine EL for each product class at TSL 2. (DOE Walk-In Coolers and Freezers 2014 Final Rule, Technical Support Document: Final Rule National Impact Analysis (NIA) - Components, 'TSL Mapping' tab, cells C6:K6, http://www.regulations.gov/#!documentDetail;D=EERE-2008-BT-STD-0015-0134) | K106: 3. EISA standards were effective in 2009 (10CFR431.306). Assumed EISA standards were equivalent to baseline standard in 2014 Final Rule. In the 2014 Final Rule, TSL 2 was the final selected TSL. (DOE Walk-In Coolers and Freezers 2014 Final Rule, Feder Register Notice, page 32117, "Benefits and Burdens of Trial Standard Levels Considered for Walk-in Coolers and Walk-In Freezers" section, http://www.regulations.gov/#!documentDetail;D=EERE-2008-BT-STD-0015-0141) TSL Mapping used to determine EL for each product class at TSL 2. (DOE Walk-In Coolers and Freezers 2014 Final Rule, Technical Support Document: Final Rule National Impact Analysis (NIA) - Systems, 'TSL Mapping' tab, cells C6:X6, http://www.regulations.gov/#!documentDetail;D=EERE-2008-BT-STD-0015-0134)
C110: ='Product Classes'!K16 -> FD.M | D110: =OFFSET('Product Classes'!$F$10,MATCH(C110,'Product Classes'!$K$11:$K$16,0),0) -> Freight Door, Medium Temperature | J110: ='Product Classes'!K38 -> DC.M.I.018 | K110: =CONCATENATE('Product Classes'!C38," ",'Product Classes'!D38," ",'Product Classes'!E38," ",'Product Classes'!F38) -> Dedicated Medium Indoor >9000
C112: Model ELs | D112: Energy Level (kWh/year)1,2 | E112: Compliance Year3 | F112: Model Efficiency Levels | J112: Model ELs | K112: Energy Level (kWh/year)1,2 | L112: Compliance Year3 | M112: Model Efficiency Levels
C113: EL0* | D113: 195.9402294 | F113: DOE NOPR Pre-EISA | J113: EL0 | K113: 21166.45819 | M113: DOE NOPR Pre-EISA
C114: EL1* | D114: 205.5654914 | F114: DOE NOPR EISA | J114: EL1 | K114: 15181.51142 | M114: DOE NOPR EISA
C115: EL2 | D115: 2006.240282 | E115: 2009, 2017 | F115: DOE 2014 Final Rule Baseline | J115: EL2 | K115: 15160.46395 | L115: 2009 | M115: DOE 2014 Final Rule Baseline
C116: EL3 | D116: 1966.744307 | F116: DOE 2014 Final Rule EL1 | J116: EL3 | K116: 13461.7776 | M116: DOE 2014 Final Rule EL1
C117: EL4 | D117: 1914.242313 | F117: DOE 2014 Final Rule EL2 | J117: EL4 | K117: 12896.32721 | M117: DOE 2014 Final Rule EL2
C118: EL5 | D118: 1897.436699 | F118: DOE 2014 Final Rule EL3 | J118: EL5 | K118: 12557.05698 | M118: DOE 2014 Final Rule EL3
C119: EL6 | D119: 1876.124111 | F119: DOE 2014 Final Rule EL4 | J119: EL6 | K119: 11414.20778 | M119: DOE 2014 Final Rule EL4
C120: EL7 | D120: 1852.19793 | F120: DOE 2014 Final Rule EL5 | J120: EL7 | K120: 11272.70548 | M120: DOE 2014 Final Rule EL5
C121: EL8 | D121: 1836.095153 | F121: DOE 2014 Final Rule EL6 | J121: EL8 | K121: 10487.29493 | L121: 2017 | M121: DOE 2014 Final Rule EL6
C122: EL9 | D122: 1820.287454 | F122: DOE 2014 Final Rule EL7
C123: EL10 | D123: 1793.813846 | F123: DOE 2014 Final Rule EL8
C124: EL11 | D124: 1757.090318 | F124: DOE 2014 Final Rule EL9
D125: *See UEC Development tab Information box for discussion of these values being lower than at the other levels.
C127: Sources | D127: 1. DOE Walk-In Coolers and Freezers 2014 Final Rule, Technical Support Document: Final Rule National Impact Analysis (NIA) - Components, 'LCC Inputs' tab, cells C12:L12, http://www.regulations.gov/#!documentDetail;D=EERE-2008-BT-STD-0015-0134 | J127: Sources | K127: 1. DOE Walk-In Coolers and Freezers 2014 Final Rule, Technical Support Document: Final Rule National Impact Analysis (NIA) - Systems, 'LCC Inputs' tab, cells C13:I13, http://www.regulations.gov/#!documentDetail;D=EERE-2008-BT-STD-0015-0135
D128: 2. Pre-EISA and EISA values calculated from shipment weighted average by size from 2013 NOPR NIA Components Model. Refrigeration System TSL 5 values were selected since the criteria for TSL 5 in the NOPR matched the criteria for TSL 2, which was the TSL selected in the final rule. DOE Walk-In Coolers and Freezers 2013 NOPR, Technical Support Document: 2013-08-22 NOPR Component National Impact Analysis Model, 'Shipment-Stock Inputs' tab, cells D33:D35, 'INPUT_LCC' tab, cells CW303:CW304, CW327:CW328, CW351:CW352, http://www.regulations.gov/#!documentDetail;D=EERE-2008-BT-STD-0015-0127 | K128: 2. DOE Walk-In Coolers and Freezers 2013 NOPR, Technical Support Document: 2013-08-22 NOPR National Impact Analysis - Refrigeration Systems, 'INPUT_LCC' tab, cells J34:J35, http://www.regulations.gov/#!documentDetail;D=EERE-2008-BT-STD-0015-0126
D129: 3. EISA standards were effective in 2009 (10CFR431.306). Assumed EISA standards were equivalent to baseline standard in 2014 Final Rule. In the 2014 Final Rule, TSL 2 was the final selected TSL. (DOE Walk-In Coolers and Freezers 2014 Final Rule, Feder Register Notice, page 32117, "Benefits and Burdens of Trial Standard Levels Considered for Walk-in Coolers and Walk-In Freezers" section, http://www.regulations.gov/#!documentDetail;D=EERE-2008-BT-STD-0015-0141) TSL Mapping used to determine EL for each product class at TSL 2. (DOE Walk-In Coolers and Freezers 2014 Final Rule, Technical Support Document: Final Rule National Impact Analysis (NIA) - Components, 'TSL Mapping' tab, cells C6:K6, http://www.regulations.gov/#!documentDetail;D=EERE-2008-BT-STD-0015-0134) | K129: 3. EISA standards were effective in 2009 (10CFR431.306). Assumed EISA standards were equivalent to baseline standard in 2014 Final Rule. In the 2014 Final Rule, TSL 2 was the final selected TSL. (DOE Walk-In Coolers and Freezers 2014 Final Rule, Feder Register Notice, page 32117, "Benefits and Burdens of Trial Standard Levels Considered for Walk-in Coolers and Walk-In Freezers" section, http://www.regulations.gov/#!documentDetail;D=EERE-2008-BT-STD-0015-0141) TSL Mapping used to determine EL for each product class at TSL 2. (DOE Walk-In Coolers and Freezers 2014 Final Rule, Technical Support Document: Final Rule National Impact Analysis (NIA) - Systems, 'TSL Mapping' tab, cells C6:X6, http://www.regulations.gov/#!documentDetail;D=EERE-2008-BT-STD-0015-0134)
C133: ='Product Classes'!K17 -> FD.L | D133: =OFFSET('Product Classes'!$F$10,MATCH(C133,'Product Classes'!$K$11:$K$19,0),0) -> Freight Door, Low Temperature | J133: ='Product Classes'!K41 -> DC.M.O.006 | K133: =CONCATENATE('Product Classes'!C41," ",'Product Classes'!D41," ",'Product Classes'!E41," ",'Product Classes'!F41) -> Dedicated Medium Outdoor <9000
C135: Model ELs | D135: Energy Level (kWh/year)1,2 | E135: Compliance Year3 | F135: Model Efficiency Levels | J135: Model ELs | K135: Energy Level (kWh/year)1,2 | L135: Compliance Year3 | M135: Model Efficiency Levels
C136: EL0 | D136: 4477.065349 | F136: DOE NOPR Pre-EISA | J136: EL0 | K136: 6944.672632 | M136: DOE NOPR Pre-EISA
C137: EL1 | D137: 6044.176243 | F137: DOE NOPR EISA | J137: EL1 | K137: 5372.255361 | M137: DOE NOPR EISA
C138: EL2 | D138: 7768.558834 | E138: 2009, 2017 | F138: DOE 2014 Final Rule Baseline | J138: EL2 | K138: 3910.575407 | L138: 2009 | M138: DOE 2014 Final Rule Baseline
C139: EL3 | D139: 7356.472026 | F139: DOE 2014 Final Rule EL1 | J139: EL3 | K139: 3259.584956 | M139: DOE 2014 Final Rule EL1
C140: EL4 | D140: 7120.484771 | F140: DOE 2014 Final Rule EL2 | J140: EL4 | K140: 3079.693767 | M140: DOE 2014 Final Rule EL2
C141: EL5 | D141: 6873.705928 | F141: DOE 2014 Final Rule EL3 | J141: EL5 | K141: 2953.750692 | M141: DOE 2014 Final Rule EL3
C142: EL6 | D142: 6751.933616 | F142: DOE 2014 Final Rule EL4 | J142: EL6 | K142: 2527.184122 | M142: DOE 2014 Final Rule EL4
C143: EL7 | D143: 6636.524519 | F143: DOE 2014 Final Rule EL5 | J143: EL7 | K143: 2395.820174 | M143: DOE 2014 Final Rule EL5
C144: EL8 | D144: 6554.476528 | F144: DOE 2014 Final Rule EL6 | J144: EL8 | K144: 2313.553613 | M144: DOE 2014 Final Rule EL6
C145: EL9 | D145: 6490.497275 | F145: DOE 2014 Final Rule EL7 | J145: EL9 | K145: 2255.83737 | L145: 2017 | M145: DOE 2014 Final Rule EL7
C146: EL10 | D146: 6349.823184 | F146: DOE 2014 Final Rule EL8
C148: Sources | D148: 1. DOE Walk-In Coolers and Freezers 2014 Final Rule, Technical Support Document: Final Rule National Impact Analysis (NIA) - Components, 'LCC Inputs' tab, cells C13:K13, http://www.regulations.gov/#!documentDetail;D=EERE-2008-BT-STD-0015-0134 | J148: Sources | K148: 1. DOE Walk-In Coolers and Freezers 2014 Final Rule, Technical Support Document: Final Rule National Impact Analysis (NIA) - Systems, 'LCC Inputs' tab, cells C16:J16, http://www.regulations.gov/#!documentDetail;D=EERE-2008-BT-STD-0015-0135
D149: 2. Pre-EISA and EISA values calculated from shipment weighted average by size from 2013 NOPR NIA Components Model. Refrigeration System TSL 5 values were selected since the criteria for TSL 5 in the NOPR matched the criteria for TSL 2, which was the TSL selected in the final rule. DOE Walk-In Coolers and Freezers 2013 NOPR, Technical Support Document: 2013-08-22 NOPR Component National Impact Analysis Model, 'Shipment-Stock Inputs' tab, cells D37:D39, 'INPUT_LCC' tab, cells DG303:DG304, DG327:DG328, DG351:DG352, http://www.regulations.gov/#!documentDetail;D=EERE-2008-BT-STD-0015-0127 | K149: 2. DOE Walk-In Coolers and Freezers 2013 NOPR, Technical Support Document: 2013-08-22 NOPR National Impact Analysis - Refrigeration Systems, 'INPUT_LCC' tab, cells U9:U10, http://www.regulations.gov/#!documentDetail;D=EERE-2008-BT-STD-0015-0126
D150: 3. EISA standards were effective in 2009 (10CFR431.306). Assumed EISA standards were equivalent to baseline standard in 2014 Final Rule. In the 2014 Final Rule, TSL 2 was the final selected TSL. (DOE Walk-In Coolers and Freezers 2014 Final Rule, Feder Register Notice, page 32117, "Benefits and Burdens of Trial Standard Levels Considered for Walk-in Coolers and Walk-In Freezers" section, http://www.regulations.gov/#!documentDetail;D=EERE-2008-BT-STD-0015-0141) TSL Mapping used to determine EL for each product class at TSL 2. (DOE Walk-In Coolers and Freezers 2014 Final Rule, Technical Support Document: Final Rule National Impact Analysis (NIA) - Components, 'TSL Mapping' tab, cells C6:K6, http://www.regulations.gov/#!documentDetail;D=EERE-2008-BT-STD-0015-0134) | K150: 3. EISA standards were effective in 2009 (10CFR431.306). Assumed EISA standards were equivalent to baseline standard in 2014 Final Rule. In the 2014 Final Rule, TSL 2 was the final selected TSL. (DOE Walk-In Coolers and Freezers 2014 Final Rule, Feder Register Notice, page 32117, "Benefits and Burdens of Trial Standard Levels Considered for Walk-in Coolers and Walk-In Freezers" section, http://www.regulations.gov/#!documentDetail;D=EERE-2008-BT-STD-0015-0141) TSL Mapping used to determine EL for each product class at TSL 2. (DOE Walk-In Coolers and Freezers 2014 Final Rule, Technical Support Document: Final Rule National Impact Analysis (NIA) - Systems, 'TSL Mapping' tab, cells C6:X6, http://www.regulations.gov/#!documentDetail;D=EERE-2008-BT-STD-0015-0134)
C154: ='Product Classes'!K18 -> DD.M | D154: =OFFSET('Product Classes'!$F$10,MATCH(C154,'Product Classes'!$K$11:$K$19,0),0) -> Display Door, Medium Temperature | J154: ='Product Classes'!K42 -> DC.M.O.018 | K154: =CONCATENATE('Product Classes'!C42," ",'Product Classes'!D42," ",'Product Classes'!E42," ",'Product Classes'!F42) -> Dedicated Medium Outdoor >9000
C156: Model ELs | D156: Energy Level (kWh/year)1,2 | E156: Compliance Year3 | F156: Model Efficiency Levels | J156: Model ELs | K156: Energy Level (kWh/year)1,2 | L156: Compliance Year3 | M156: Model Efficiency Levels
C157: EL0 | D157: 1619.517993 | F157: DOE NOPR Pre-EISA | J157: EL0 | K157: 17789.50176 | M157: DOE NOPR Pre-EISA
C158: EL1 | D158: 626.6396667 | F158: DOE NOPR EISA | J158: EL1 | K158: 12254.52175 | M158: DOE NOPR EISA
C159: EL2 | D159: 1413.719381 | E159: 2009 | F159: DOE 2014 Final Rule Baseline | J159: EL2 | K159: 10464.56587 | L159: 2009 | M159: DOE 2014 Final Rule Baseline
C160: EL3 | D160: 1043.501885 | F160: DOE 2014 Final Rule EL1 | J160: EL3 | K160: 8866.723366 | M160: DOE 2014 Final Rule EL1
C161: EL4 | D161: 557.7457795 | F161: DOE 2014 Final Rule EL2 | J161: EL4 | K161: 8127.224708 | M161: DOE 2014 Final Rule EL2
C162: EL5 | D162: 466.1515373 | E162: 2017 | F162: DOE 2014 Final Rule EL3 | J162: EL5 | K162: 7428.155 | M162: DOE 2014 Final Rule EL3
C163: EL6 | D163: 387.5224661 | F163: DOE 2014 Final Rule EL4 | J163: EL6 | K163: 7136.763812 | M163: DOE 2014 Final Rule EL4
C164: EL7 | D164: 320.2220472 | F164: DOE 2014 Final Rule EL5 | J164: EL7 | K164: 5878.342906 | L164: 2017 | M164: DOE 2014 Final Rule EL5
C165: EL8 | D165: 192.7227359 | F165: DOE 2014 Final Rule EL6
C167: Sources | D167: 1. DOE Walk-In Coolers and Freezers 2014 Final Rule, Technical Support Document: Final Rule National Impact Analysis (NIA) - Components, 'LCC Inputs' tab, cells C8:I8, http://www.regulations.gov/#!documentDetail;D=EERE-2008-BT-STD-0015-0134 | J167: Sources | K167: 1. DOE Walk-In Coolers and Freezers 2014 Final Rule, Technical Support Document: Final Rule National Impact Analysis (NIA) - Systems, 'LCC Inputs' tab, cells C17:H17, http://www.regulations.gov/#!documentDetail;D=EERE-2008-BT-STD-0015-0135
D168: 2. Pre-EISA and EISA values calculated from shipment weighted average by size from 2013 NOPR NIA Components Model. Refrigeration System TSL 5 values were selected since the criteria for TSL 5 in the NOPR matched the criteria for TSL 2, which was the TSL selected in the final rule. DOE Walk-In Coolers and Freezers 2013 NOPR, Technical Support Document: 2013-08-22 NOPR Component National Impact Analysis Model, 'Shipment-Stock Inputs' tab, cells D17:D19, 'INPUT_LCC' tab, cells CW157:CW158, CW181:CW182, CW205:CW206, http://www.regulations.gov/#!documentDetail;D=EERE-2008-BT-STD-0015-0127 | K168: 2. DOE Walk-In Coolers and Freezers 2013 NOPR, Technical Support Document: 2013-08-22 NOPR National Impact Analysis - Refrigeration Systems, 'INPUT_LCC' tab, cells U34:U35, http://www.regulations.gov/#!documentDetail;D=EERE-2008-BT-STD-0015-0126
D169: 3. EISA standards were effective in 2009 (10CFR431.306). Assumed EISA standards were equivalent to baseline standard in 2014 Final Rule. In the 2014 Final Rule, TSL 2 was the final selected TSL. (DOE Walk-In Coolers and Freezers 2014 Final Rule, Feder Register Notice, page 32117, "Benefits and Burdens of Trial Standard Levels Considered for Walk-in Coolers and Walk-In Freezers" section, http://www.regulations.gov/#!documentDetail;D=EERE-2008-BT-STD-0015-0141) TSL Mapping used to determine EL for each product class at TSL 2. (DOE Walk-In Coolers and Freezers 2014 Final Rule, Technical Support Document: Final Rule National Impact Analysis (NIA) - Components, 'TSL Mapping' tab, cells C6:K6, http://www.regulations.gov/#!documentDetail;D=EERE-2008-BT-STD-0015-0134) | K169: 3. EISA standards were effective in 2009 (10CFR431.306). Assumed EISA standards were equivalent to baseline standard in 2014 Final Rule. In the 2014 Final Rule, TSL 2 was the final selected TSL. (DOE Walk-In Coolers and Freezers 2014 Final Rule, Feder Register Notice, page 32117, "Benefits and Burdens of Trial Standard Levels Considered for Walk-in Coolers and Walk-In Freezers" section, http://www.regulations.gov/#!documentDetail;D=EERE-2008-BT-STD-0015-0141) TSL Mapping used to determine EL for each product class at TSL 2. (DOE Walk-In Coolers and Freezers 2014 Final Rule, Technical Support Document: Final Rule National Impact Analysis (NIA) - Systems, 'TSL Mapping' tab, cells C6:X6, http://www.regulations.gov/#!documentDetail;D=EERE-2008-BT-STD-0015-0134)
C173: ='Product Classes'!K19 -> DD.L | D173: =OFFSET('Product Classes'!$F$10,MATCH(C173,'Product Classes'!$K$11:$K$19,0),0) -> Display Door, Low Temperature | J173: ='Product Classes'!K46 -> MC.L.009 | K173: =CONCATENATE('Product Classes'!C46," ",'Product Classes'!D46) -> Multiplex Low
C175: Model ELs | D175: Energy Level (kWh/year)1,2 | E175: Compliance Year3 | F175: Model Efficiency Levels | J175: Model ELs | K175: Energy Level (kWh/year)1,2 | L175: Compliance Year3 | M175: Model Efficiency Levels
C176: EL0 | D176: 3912.246581 | F176: DOE NOPR Pre-EISA | J176: EL0 | K176: 11654.3139 | M176: DOE NOPR Pre-EISA
C177: EL1 | D177: 1913.683108 | F177: DOE NOPR EISA | J177: EL1 | K177: 9207.092663 | M177: DOE NOPR EISA
C178: EL2 | D178: 3996.966561 | E178: 2009 | F178: DOE 2014 Final Rule Baseline | J178: EL2 | K178: 8849.638221 | L178: 2009 | M178: DOE 2014 Final Rule Baseline
C179: EL3 | D179: 3449.024811 | F179: DOE 2014 Final Rule EL1 | J179: EL3 | K179: 8127.534189 | M179: DOE 2014 Final Rule EL1
C180: EL4 | D180: 3106.583351 | F180: DOE 2014 Final Rule EL2 | J180: EL4 | K180: 7933.849719 | L180: 2017 | M180: DOE 2014 Final Rule EL2
C181: EL5 | D181: 2054.711787 | F181: DOE 2014 Final Rule EL3
C182: EL6 | D182: 1578.026542 | E182: 2017 | F182: DOE 2014 Final Rule EL4
C183: EL7 | D183: 1276.679941 | F183: DOE 2014 Final Rule EL5
C185: Sources | D185: 1. DOE Walk-In Coolers and Freezers 2014 Final Rule, Technical Support Document: Final Rule National Impact Analysis (NIA) - Components, 'LCC Inputs' tab, cells C9:H9, http://www.regulations.gov/#!documentDetail;D=EERE-2008-BT-STD-0015-0134 | J185: Sources | K185: 1. DOE Walk-In Coolers and Freezers 2014 Final Rule, Technical Support Document: Final Rule National Impact Analysis (NIA) - Systems, 'LCC Inputs' tab, cells C21:E21, http://www.regulations.gov/#!documentDetail;D=EERE-2008-BT-STD-0015-0135
D186: 2. Pre-EISA and EISA values calculated from shipment weighted average by size from 2013 NOPR NIA Components Model. Refrigeration System TSL 5 values were selected since the criteria for TSL 5 in the NOPR matched the criteria for TSL 2, which was the TSL selected in the final rule. DOE Walk-In Coolers and Freezers 2013 NOPR, Technical Support Document: 2013-08-22 NOPR Component National Impact Analysis Model, 'Shipment-Stock Inputs' tab, cells D21:D23, 'INPUT_LCC' tab, cells DG157:DG158, DG181:DG182, DG205:DG206, http://www.regulations.gov/#!documentDetail;D=EERE-2008-BT-STD-0015-0127 | K186: 2. DOE Walk-In Coolers and Freezers 2013 NOPR, Technical Support Document: 2013-08-22 NOPR National Impact Analysis - Refrigeration Systems, 'INPUT_LCC' tab, cells U237:U238, http://www.regulations.gov/#!documentDetail;D=EERE-2008-BT-STD-0015-0126
D187: 3. EISA standards were effective in 2009 (10CFR431.306). Assumed EISA standards were equivalent to baseline standard in 2014 Final Rule. In the 2014 Final Rule, TSL 2 was the final selected TSL. (DOE Walk-In Coolers and Freezers 2014 Final Rule, Feder Register Notice, page 32117, "Benefits and Burdens of Trial Standard Levels Considered for Walk-in Coolers and Walk-In Freezers" section, http://www.regulations.gov/#!documentDetail;D=EERE-2008-BT-STD-0015-0141) TSL Mapping used to determine EL for each product class at TSL 2. (DOE Walk-In Coolers and Freezers 2014 Final Rule, Technical Support Document: Final Rule National Impact Analysis (NIA) - Components, 'TSL Mapping' tab, cells C6:K6, http://www.regulations.gov/#!documentDetail;D=EERE-2008-BT-STD-0015-0134) | K187: 3. EISA standards were effective in 2009 (10CFR431.306). Assumed EISA standards were equivalent to baseline standard in 2014 Final Rule. In the 2014 Final Rule, TSL 2 was the final selected TSL. (DOE Walk-In Coolers and Freezers 2014 Final Rule, Feder Register Notice, page 32117, "Benefits and Burdens of Trial Standard Levels Considered for Walk-in Coolers and Walk-In Freezers" section, http://www.regulations.gov/#!documentDetail;D=EERE-2008-BT-STD-0015-0141) TSL Mapping used to determine EL for each product class at TSL 2. (DOE Walk-In Coolers and Freezers 2014 Final Rule, Technical Support Document: Final Rule National Impact Analysis (NIA) - Systems, 'TSL Mapping' tab, cells C6:X6, http://www.regulations.gov/#!documentDetail;D=EERE-2008-BT-STD-0015-0134)
J191: ='Product Classes'!K50 -> MC.M.009 | K191: =CONCATENATE('Product Classes'!C50," ",'Product Classes'!D50) -> Multiplex Medium
J193: Model ELs | K193: Energy Level (kWh/year)1,2 | L193: Compliance Year3 | M193: Model Efficiency Levels
J194: EL0 | K194: 7003.223102 | M194: DOE NOPR Pre-EISA
J195: EL1 | K195: 4541.50169 | M195: DOE NOPR EISA
J196: EL2 | K196: 4912.083132 | L196: 2009 | M196: DOE 2014 Final Rule Baseline
J197: EL3 | K197: 4655.098339 | M197: DOE 2014 Final Rule EL1
J198: EL4 | K198: 4453.183609 | L198: 2017 | M198: DOE 2014 Final Rule EL2
J203: Sources | K203: 1. DOE Walk-In Coolers and Freezers 2014 Final Rule, Technical Support Document: Final Rule National Impact Analysis (NIA) - Systems, 'LCC Inputs' tab, cells C25:E25, http://www.regulations.gov/#!documentDetail;D=EERE-2008-BT-STD-0015-0135
K204: 2. DOE Walk-In Coolers and Freezers 2013 NOPR, Technical Support Document: 2013-08-22 NOPR National Impact Analysis - Refrigeration Systems, 'INPUT_LCC' tab, cells J237:J238, http://www.regulations.gov/#!documentDetail;D=EERE-2008-BT-STD-0015-0126
K205: 3. EISA standards were effective in 2009 (10CFR431.306). Assumed EISA standards were equivalent to baseline standard in 2014 Final Rule. In the 2014 Final Rule, TSL 2 was the final selected TSL. (DOE Walk-In Coolers and Freezers 2014 Final Rule, Feder Register Notice, page 32117, "Benefits and Burdens of Trial Standard Levels Considered for Walk-in Coolers and Walk-In Freezers" section, http://www.regulations.gov/#!documentDetail;D=EERE-2008-BT-STD-0015-0141) TSL Mapping used to determine EL for each product class at TSL 2. (DOE Walk-In Coolers and Freezers 2014 Final Rule, Technical Support Document: Final Rule National Impact Analysis (NIA) - Systems, 'TSL Mapping' tab, cells C6:X6, http://www.regulations.gov/#!documentDetail;D=EERE-2008-BT-STD-0015-0134)

Sheet Constants and Menus
C2: Constants and Menus
C4: NAVIGATION
C6: COMMENTS
C9: Constant
C10: Hours/Day | D10: 24
C11: Days/Week | D11: 7
C12: Days per Year | D12: 365.25
C13: kW/MW | D13: 1000
C14: Standard Compliance Year | D14: 2017
C15: WICF Component Lifetime1 | D15: 12
C16: WICF System Lifetime1 | D16: 10
C18: 1. Lifetime Source: DOE Walk-in Coolers and Freezers 2014 Final Rule, Technical Support Document Chapter 9: Shipment Analysis, Table 9.5.1 (page 9-13)
C22: Building Types Included in Analysis
D23: Building Type
D24: Large Off
D25: Medium Off
D26: Small Off
D27: Big Box
D28: Small Box
D29: High End
D30: Anchor
D31: K-12
D32: University
D33: Warehouse
D34: Supermarket
D35: MiniMart
D36: Restaurant
D37: Lodging
D38: Hospital
D39: OtherHealth
D40: Assembly
D41: Other
D42: TOTAL

Sheet Product Class Dist
C2: Product Class Distributions
C4: NAVIGATION
C6: COMMENTS
C9: COMPONENTS | AZ9: SYSTEMS
AZ10: PRE-Case | BA10: 1990 | BB10: =BA10+1 -> 1991 | BC10: =BB10+1 -> 1992 | BD10: =BC10+1 -> 1993 | BE10: =BD10+1 -> 1994 | BF10: =BE10+1 -> 1995 | BG10: =BF10+1 -> 1996 | BH10: =BG10+1 -> 1997 | BI10: =BH10+1 -> 1998 | BJ10: =BI10+1 -> 1999 | BK10: =BJ10+1 -> 2000 | BL10: =BK10+1 -> 2001 | BM10: =BL10+1 -> 2002 | BN10: =BM10+1 -> 2003 | BO10: =BN10+1 -> 2004 | BP10: =BO10+1 -> 2005 | BQ10: =BP10+1 -> 2006 | BR10: =BQ10+1 -> 2007 | BS10: =BR10+1 -> 2008 | BT10: =BS10+1 -> 2009 | BU10: =BT10+1 -> 2010 | BV10: =BU10+1 -> 2011 | BW10: =BV10+1 -> 2012 | BX10: =BW10+1 -> 2013 | BY10: =BX10+1 -> 2014 | BZ10: =BY10+1 -> 2015 | CA10: =BZ10+1 -> 2016 | CB10: =CA10+1 -> 2017 | CC10: =CB10+1 -> 2018 | CD10: =CC10+1 -> 2019 | CE10: =CD10+1 -> 2020 | CF10: =CE10+1 -> 2021 | CG10: =CF10+1 -> 2022 | CH10: =CG10+1 -> 2023 | CI10: =CH10+1 -> 2024 | CJ10: =CI10+1 -> 2025 | CK10: =CJ10+1 -> 2026 | CL10: =CK10+1 -> 2027 | CM10: =CL10+1 -> 2028 | CN10: =CM10+1 -> 2029 | CO10: =CN10+1 -> 2030 | CP10: =CO10+1 -> 2031 | CQ10: =CP10+1 -> 2032 | CR10: =CQ10+1 -> 2033 | CS10: =CR10+1 -> 2034
C11: PRE-Case | D11: 1990 | E11: =D11+1 -> 1991 | F11: =E11+1 -> 1992 | G11: 1993 | H11: 1994 | I11: 1995 | J11: 1996 | K11: 1997 | L11: 1998 | M11: 1999 | N11: 2000 | O11: 2001 | P11: 2002 | Q11: 2003 | R11: 2004 | S11: 2005 | T11: 2006 | U11: 2007 | V11: 2008 | W11: =V11+1 -> 2009 | X11: 2010 | Y11: 2011 | Z11: 2012 | AA11: 2013 | AB11: 2014 | AC11: 2015 | AD11: 2016 | AE11: 2017 | AF11: 2018 | AG11: 2019 | AH11: 2020 | AI11: 2021 | AJ11: 2022 | AK11: 2023 | AL11: 2024 | AM11: 2025 | AN11: 2026 | AO11: 2027 | AP11: 2028 | AQ11: 2029 | AR11: 2030 | AS11: 2031 | AT11: 2032 | AU11: 2033 | AV11: 2034 | AZ11: ='Product Classes'!K30 -> DC.L.I.006 | BA11: =$BU$11 -> 0.007314037027 | BB11: 0.007314037027 | BC11: 0.007314037027 | BD11: 0.007314037027 | BE11: 0.007314037027 | BF11: 0.007314037027 | BG11: 0.007314037027 | BH11: 0.007314037027 | BI11: 0.007314037027 | BJ11: 0.007314037027 | BK11: 0.007314037027 | BL11: 0.007314037027 | BM11: 0.007314037027 | BN11: 0.007314037027 | BO11: 0.007314037027 | BP11: 0.007314037027 | BQ11: 0.007314037027 | BR11: 0.007314037027 | BS11: 0.007314037027 | BT11: 0.007314037027 | BU11: 0.007314037027 | BV11: 0.007314037027 | BW11: 0.007314037027 | BX11: 0.007314037027 | BY11: 0.007416837754 | BZ11: 0.00756641239 | CA11: 0.007669301096 | CB11: 0.007711123563 | CC11: 0.007712489338 | CD11: 0.007666350885 | CE11: 0.007619642779 | CF11: 0.007611201674 | CG11: 0.00766104331 | CH11: 0.007746274655 | CI11: 0.007840647023 | CJ11: 0.007921288347 | CK11: 0.007969649446 | CL11: 0.007981999514 | CM11: 0.007972852048 | CN11: 0.007962101534 | CO11: 0.007970449373 | CP11: 0.008004664348 | CQ11: 0.008057351792 | CR11: 0.008117907324 | CS11: 0.00816932506
C12: ='Product Classes'!K11&" - "&OFFSET('Product Classes'!$F$10,MATCH('Product Classes'!K11,MODEL_PCS,0),0) -> SP.M - Structural Panel, Medium Temperature | D12: =$X$12 -> 0 | E12: 0 | F12: 0 | G12: 0 | H12: 0 | I12: 0 | J12: 0 | K12: 0 | L12: 0 | M12: 0 | N12: 0 | O12: 0 | P12: 0 | Q12: 0 | R12: 0 | S12: 0 | T12: 0 | U12: 0 | V12: 0 | W12: =$X$12 -> 0 | X12: 0 | Y12: 0 | Z12: 0 | AA12: 0 | AB12: 0 | AC12: 0 | AD12: 0 | AE12: 0 | AF12: 0 | AG12: 0 | AH12: 0 | AI12: 0 | AJ12: 0 | AK12: 0 | AL12: 0 | AM12: 0 | AN12: 0 | AO12: 0 | AP12: 0 | AQ12: 0 | AR12: 0 | AS12: 0 | AT12: 0 | AU12: 0 | AV12: 0 | AZ12: ='Product Classes'!K31 -> DC.L.I.009 | BA12: =$BU$12 -> 0.005370693856 | BB12: 0.005370693856 | BC12: 0.005370693856 | BD12: 0.005370693856 | BE12: 0.005370693856 | BF12: 0.005370693856 | BG12: 0.005370693856 | BH12: 0.005370693856 | BI12: 0.005370693856 | BJ12: 0.005370693856 | BK12: 0.005370693856 | BL12: 0.005370693856 | BM12: 0.005370693856 | BN12: 0.005370693856 | BO12: 0.005370693856 | BP12: 0.005370693856 | BQ12: 0.005370693856 | BR12: 0.005370693856 | BS12: 0.005370693856 | BT12: 0.005370693856 | BU12: 0.005370693856 | BV12: 0.005370693856 | BW12: 0.005370693856 | BX12: 0.005370693856 | BY12: 0.005446180379 | BZ12: 0.005556012963 | CA12: 0.00563156409 | CB12: 0.005662274307 | CC12: 0.005663277195 | CD12: 0.005629397752 | CE12: 0.005595100012 | CF12: 0.005588901713 | CG12: 0.005625500402 | CH12: 0.005688085737 | CI12: 0.005757383321 | CJ12: 0.005816598206 | CK12: 0.005852109738 | CL12: 0.005861178387 | CM12: 0.005854461407 | CN12: 0.00584656731 | CO12: 0.005852697124 | CP12: 0.005877821164 | CQ12: 0.005916509528 | CR12: 0.005960975426 | CS12: 0.005998731445
C13: ='Product Classes'!K12&" - "&OFFSET('Product Classes'!$F$10,MATCH('Product Classes'!K12,MODEL_PCS,0),0) -> SP.L - Structural Panel, Low Temperature | D13: =$X$13 -> 0 | E13: 0 | F13: 0 | G13: 0 | H13: 0 | I13: 0 | J13: 0 | K13: 0 | L13: 0 | M13: 0 | N13: 0 | O13: 0 | P13: 0 | Q13: 0 | R13: 0 | S13: 0 | T13: 0 | U13: 0 | V13: 0 | W13: =$X$13 -> 0 | X13: 0 | Y13: 0 | Z13: 0 | AA13: 0 | AB13: 0 | AC13: 0 | AD13: 0 | AE13: 0 | AF13: 0 | AG13: 0 | AH13: 0 | AI13: 0 | AJ13: 0 | AK13: 0 | AL13: 0 | AM13: 0 | AN13: 0 | AO13: 0 | AP13: 0 | AQ13: 0 | AR13: 0 | AS13: 0 | AT13: 0 | AU13: 0 | AV13: 0 | AZ13: ='Product Classes'!K33 -> DC.L.O.006 | BA13: =$BU$13 -> 0.1307197115 | BB13: 0.1307197115 | BC13: 0.1307197115 | BD13: 0.1307197115 | BE13: 0.1307197115 | BF13: 0.1307197115 | BG13: 0.1307197115 | BH13: 0.1307197115 | BI13: 0.1307197115 | BJ13: 0.1307197115 | BK13: 0.1307197115 | BL13: 0.1307197115 | BM13: 0.1307197115 | BN13: 0.1307197115 | BO13: 0.1307197115 | BP13: 0.1307197115 | BQ13: 0.1307197115 | BR13: 0.1307197115 | BS13: 0.1307197115 | BT13: 0.1307197115 | BU13: 0.1307197115 | BV13: 0.1307197115 | BW13: 0.1307197115 | BX13: 0.1307197115 | BY13: 0.1319536686 | BZ13: 0.1336025832 | CA13: 0.1346423654 | CB13: 0.1350487763 | CC13: 0.1351406584 | CD13: 0.1347234955 | CE13: 0.1343108332 | CF13: 0.1343389747 | CG13: 0.1350240176 | CH13: 0.1360401755 | CI13: 0.1370692081 | CJ13: 0.1379038296 | CK13: 0.138405741 | CL13: 0.1385666521 | CM13: 0.138545188 | CN13: 0.1385320878 | CO13: 0.1387322346 | CP13: 0.1391916583 | CQ13: 0.1398046727 | CR13: 0.140456936 | CS13: 0.1409776504
C14: ='Product Classes'!K13&" - "&OFFSET('Product Classes'!$F$10,MATCH('Product Classes'!K13,MODEL_PCS,0),0) -> FP.L - Floor Panel, Low Temperature | D14: =$X$14 -> 0 | E14: 0 | F14: 0 | G14: 0 | H14: 0 | I14: 0 | J14: 0 | K14: 0 | L14: 0 | M14: 0 | N14: 0 | O14: 0 | P14: 0 | Q14: 0 | R14: 0 | S14: 0 | T14: 0 | U14: 0 | V14: 0 | W14: =$X$14 -> 0 | X14: 0 | Y14: 0 | Z14: 0 | AA14: 0 | AB14: 0 | AC14: 0 | AD14: 0 | AE14: 0 | AF14: 0 | AG14: 0 | AH14: 0 | AI14: 0 | AJ14: 0 | AK14: 0 | AL14: 0 | AM14: 0 | AN14: 0 | AO14: 0 | AP14: 0 | AQ14: 0 | AR14: 0 | AS14: 0 | AT14: 0 | AU14: 0 | AV14: 0 | AZ14: ='Product Classes'!K34 -> DC.L.O.009 | BA14: =$BU$14 -> 0.1880911404 | BB14: 0.1880911404 | BC14: 0.1880911404 | BD14: 0.1880911404 | BE14: 0.1880911404 | BF14: 0.1880911404 | BG14: 0.1880911404 | BH14: 0.1880911404 | BI14: 0.1880911404 | BJ14: 0.1880911404 | BK14: 0.1880911404 | BL14: 0.1880911404 | BM14: 0.1880911404 | BN14: 0.1880911404 | BO14: 0.1880911404 | BP14: 0.1880911404 | BQ14: 0.1880911404 | BR14: 0.1880911404 | BS14: 0.1880911404 | BT14: 0.1880911404 | BU14: 0.1880911404 | BV14: 0.1880911404 | BW14: 0.1880911404 | BX14: 0.1880911404 | BY14: 0.1898666676 | BZ14: 0.1922392725 | CA14: 0.1937354036 | CB14: 0.1943201837 | CC14: 0.1944523919 | CD14: 0.1938521407 | CE14: 0.1932583655 | CF14: 0.193298858 | CG14: 0.1942845587 | CH14: 0.195746697 | CI14: 0.1972273606 | CJ14: 0.1984282881 | CK14: 0.1991504829 | CL14: 0.1993820161 | CM14: 0.1993511316 | CN14: 0.1993322819 | CO14: 0.199620271 | CP14: 0.2002813305 | CQ14: 0.2011633902 | CR14: 0.2021019246 | CS14: 0.2028511748
C15: ='Product Classes'!K14&" - "&OFFSET('Product Classes'!$F$10,MATCH('Product Classes'!K14,MODEL_PCS,0),0) -> PD.M - Passage Door, Medium Temperature | D15: =$X$15 -> 0.3734708707 | E15: 0.3734708707 | F15: 0.3734708707 | G15: 0.3734708707 | H15: 0.3734708707 | I15: 0.3734708707 | J15: 0.3734708707 | K15: 0.3734708707 | L15: 0.3734708707 | M15: 0.3734708707 | N15: 0.3734708707 | O15: 0.3734708707 | P15: 0.3734708707 | Q15: 0.3734708707 | R15: 0.3734708707 | S15: 0.3734708707 | T15: 0.3734708707 | U15: 0.3734708707 | V15: 0.3734708707 | W15: =$X$15 -> 0.3734708707 | X15: 0.3734708707 | Y15: 0.3734708707 | Z15: 0.3734708707 | AA15: 0.3734708707 | AB15: 0.3735210469 | AC15: 0.3735791962 | AD15: 0.3739402617 | AE15: 0.3745058986 | AF15: 0.3751216777 | AG15: 0.3755964059 | AH15: 0.3760163446 | AI15: 0.3763225203 | AJ15: 0.3765903033 | AK15: 0.3768104749 | AL15: 0.3769514993 | AM15: 0.377103574 | AN15: 0.3773226515 | AO15: 0.3775731837 | AP15: 0.3778273641 | AQ15: 0.3780794068 | AR15: 0.3783282696 | AS15: 0.3785486309 | AT15: 0.3787371332 | AU15: 0.3789360673 | AV15: 0.3791195484 | AZ15: ='Product Classes'!K37 -> DC.M.I.006 | BA15: =$BU$15 -> 0.0285219057 | BB15: 0.0285219057 | BC15: 0.0285219057 | BD15: 0.0285219057 | BE15: 0.0285219057 | BF15: 0.0285219057 | BG15: 0.0285219057 | BH15: 0.0285219057 | BI15: 0.0285219057 | BJ15: 0.0285219057 | BK15: 0.0285219057 | BL15: 0.0285219057 | BM15: 0.0285219057 | BN15: 0.0285219057 | BO15: 0.0285219057 | BP15: 0.0285219057 | BQ15: 0.0285219057 | BR15: 0.0285219057 | BS15: 0.0285219057 | BT15: 0.0285219057 | BU15: 0.0285219057 | BV15: 0.0285219057 | BW15: 0.0285219057 | BX15: 0.0285219057 | BY15: 0.02873073675 | BZ15: 0.02919855491 | CA15: 0.02964386291 | CB15: 0.02993966691 | CC15: 0.03004194409 | CD15: 0.02995160487 | CE15: 0.02979658142 | CF15: 0.02972763319 | CG15: 0.0298317471 | CH15: 0.03005324193 | CI15: 0.030330978 | CJ15: 0.03062079328 | CK15: 0.03083621133 | CL15: 0.03093123748 | CM15: 0.03092869679 | CN15: 0.03089426008 | CO15: 0.0308999404 | CP15: 0.03098323646 | CQ15: 0.03114219598 | CR15: 0.03134013541 | CS15: 0.03152774601
C16: ='Product Classes'!K15&" - "&OFFSET('Product Classes'!$F$10,MATCH('Product Classes'!K15,MODEL_PCS,0),0) -> PD.L - Passage Door, Low Temperature | D16: =$X$16 -> 0.1840609854 | E16: 0.1840609854 | F16: 0.1840609854 | G16: 0.1840609854 | H16: 0.1840609854 | I16: 0.1840609854 | J16: 0.1840609854 | K16: 0.1840609854 | L16: 0.1840609854 | M16: 0.1840609854 | N16: 0.1840609854 | O16: 0.1840609854 | P16: 0.1840609854 | Q16: 0.1840609854 | R16: 0.1840609854 | S16: 0.1840609854 | T16: 0.1840609854 | U16: 0.1840609854 | V16: 0.1840609854 | W16: =$X$16 -> 0.1840609854 | X16: 0.1840609854 | Y16: 0.1840609854 | Z16: 0.1840609854 | AA16: 0.1840609854 | AB16: 0.1840439233 | AC16: 0.1839746345 | AD16: 0.1840338641 | AE16: 0.1843292283 | AF16: 0.1847513677 | AG16: 0.1851742308 | AH16: 0.1854831068 | AI16: 0.1857118435 | AJ16: 0.185874256 | AK16: 0.1859632779 | AL16: 0.1859559914 | AM16: 0.185956277 | AN16: 0.1859872903 | AO16: 0.1860574266 | AP16: 0.1861449436 | AQ16: 0.1862512223 | AR16: 0.1863607539 | AS16: 0.186468798 | AT16: 0.186601257 | AU16: 0.186720307 | AV16: 0.1868122171 | AZ16: ='Product Classes'!K38 -> DC.M.I.018 | BA16: =$BU$16 -> 0.004835393625 | BB16: 0.004835393625 | BC16: 0.004835393625 | BD16: 0.004835393625 | BE16: 0.004835393625 | BF16: 0.004835393625 | BG16: 0.004835393625 | BH16: 0.004835393625 | BI16: 0.004835393625 | BJ16: 0.004835393625 | BK16: 0.004835393625 | BL16: 0.004835393625 | BM16: 0.004835393625 | BN16: 0.004835393625 | BO16: 0.004835393625 | BP16: 0.004835393625 | BQ16: 0.004835393625 | BR16: 0.004835393625 | BS16: 0.004835393625 | BT16: 0.004835393625 | BU16: 0.004835393625 | BV16: 0.004835393625 | BW16: 0.004835393625 | BX16: 0.004835393625 | BY16: 0.004870797301 | BZ16: 0.004950107744 | CA16: 0.005025601979 | CB16: 0.005075750408 | CC16: 0.005093089728 | CD16: 0.005077774283 | CE16: 0.005051492749 | CF16: 0.005039803776 | CG16: 0.005057454479 | CH16: 0.00509500508 | CI16: 0.005142090406 | CJ16: 0.005191223553 | CK16: 0.00522774394 | CL16: 0.005243853974 | CM16: 0.005243423243 | CN16: 0.005237585097 | CO16: 0.005238548098 | CP16: 0.005252669497 | CQ16: 0.005279618321 | CR16: 0.005313175514 | CS16: 0.005344981632
C17: ='Product Classes'!K16&" - "&OFFSET('Product Classes'!$F$10,MATCH('Product Classes'!K16,MODEL_PCS,0),0) -> FD.M - Freight Door, Medium Temperature | D17: =$X$17 -> 0.02216468137 | E17: 0.02216468137 | F17: 0.02216468137 | G17: 0.02216468137 | H17: 0.02216468137 | I17: 0.02216468137 | J17: 0.02216468137 | K17: 0.02216468137 | L17: 0.02216468137 | M17: 0.02216468137 | N17: 0.02216468137 | O17: 0.02216468137 | P17: 0.02216468137 | Q17: 0.02216468137 | R17: 0.02216468137 | S17: 0.02216468137 | T17: 0.02216468137 | U17: 0.02216468137 | V17: 0.02216468137 | W17: =$X$17 -> 0.02216468137 | X17: 0.02216468137 | Y17: 0.02216468137 | Z17: 0.02216468137 | AA17: 0.02216468137 | AB17: 0.02216685184 | AC17: 0.02217058485 | AD17: 0.02219347039 | AE17: 0.02222922453 | AF17: 0.02226736831 | AG17: 0.02229628417 | AH17: 0.02232085845 | AI17: 0.0223386718 | AJ17: 0.02235443345 | AK17: 0.02236758603 | AL17: 0.02237607325 | AM17: 0.02238533068 | AN17: 0.02239846878 | AO17: 0.02241340003 | AP17: 0.02242839671 | AQ17: 0.0224431973 | AR17: 0.0224577817 | AS17: 0.02247081409 | AT17: 0.02248228494 | AU17: 0.02249439258 | AV17: 0.02250554185 | AZ17: ='Product Classes'!K41 -> DC.M.O.006 | BA17: =$BU$17 -> 0.2066453868 | BB17: 0.2066453868 | BC17: 0.2066453868 | BD17: 0.2066453868 | BE17: 0.2066453868 | BF17: 0.2066453868 | BG17: 0.2066453868 | BH17: 0.2066453868 | BI17: 0.2066453868 | BJ17: 0.2066453868 | BK17: 0.2066453868 | BL17: 0.2066453868 | BM17: 0.2066453868 | BN17: 0.2066453868 | BO17: 0.2066453868 | BP17: 0.2066453868 | BQ17: 0.2066453868 | BR17: 0.2066453868 | BS17: 0.2066453868 | BT17: 0.2066453868 | BU17: 0.2066453868 | BV17: 0.2066453868 | BW17: 0.2066453868 | BX17: 0.2066453868 | BY17: 0.2045454915 | BZ17: 0.2012281354 | CA17: 0.1987297836 | CB17: 0.197459632 | CC17: 0.1971369535 | CD17: 0.1979607536 | CE17: 0.1989144267 | CF17: 0.199075383 | CG17: 0.1979579086 | CH17: 0.1961066361 | CI17: 0.1940748522 | CJ17: 0.1922587188 | CK17: 0.1910704747 | CL17: 0.1906449631 | CM17: 0.1907117321 | CN17: 0.1908471691 | CO17: 0.1906007351 | CP17: 0.1898205881 | CQ17: 0.1886499831 | CR17: 0.1873221939 | CS17: 0.186183732
C18: ='Product Classes'!K17&" - "&OFFSET('Product Classes'!$F$10,MATCH('Product Classes'!K17,MODEL_PCS,0),0) -> FD.L - Freight Door, Low Temperature | D18: =$X$18 -> 0.01197260514 | E18: 0.01197260514 | F18: 0.01197260514 | G18: 0.01197260514 | H18: 0.01197260514 | I18: 0.01197260514 | J18: 0.01197260514 | K18: 0.01197260514 | L18: 0.01197260514 | M18: 0.01197260514 | N18: 0.01197260514 | O18: 0.01197260514 | P18: 0.01197260514 | Q18: 0.01197260514 | R18: 0.01197260514 | S18: 0.01197260514 | T18: 0.01197260514 | U18: 0.01197260514 | V18: 0.01197260514 | W18: =$X$18 -> 0.01197260514 | X18: 0.01197260514 | Y18: 0.01197260514 | Z18: 0.01197260514 | AA18: 0.01197260514 | AB18: 0.01197112813 | AC18: 0.01196600364 | AD18: 0.01196923264 | AE18: 0.01198879941 | AF18: 0.01201722325 | AG18: 0.01204606376 | AH18: 0.01206679155 | AI18: 0.01208214598 | AJ18: 0.01209289749 | AK18: 0.01209856857 | AL18: 0.01209759897 | AM18: 0.01209714879 | AN18: 0.01209867145 | AO18: 0.01210288721 | AP18: 0.01210831989 | AQ18: 0.01211509653 | AR18: 0.01212211362 | AS18: 0.01212913276 | AT18: 0.01213804263 | AU18: 0.01214595935 | AV18: 0.01215197673 | AZ18: ='Product Classes'!K42 -> DC.M.O.018 | BA18: =$BU$18 -> 0.2544799671 | BB18: 0.2544799671 | BC18: 0.2544799671 | BD18: 0.2544799671 | BE18: 0.2544799671 | BF18: 0.2544799671 | BG18: 0.2544799671 | BH18: 0.2544799671 | BI18: 0.2544799671 | BJ18: 0.2544799671 | BK18: 0.2544799671 | BL18: 0.2544799671 | BM18: 0.2544799671 | BN18: 0.2544799671 | BO18: 0.2544799671 | BP18: 0.2544799671 | BQ18: 0.2544799671 | BR18: 0.2544799671 | BS18: 0.2544799671 | BT18: 0.2544799671 | BU18: 0.2544799671 | BV18: 0.2544799671 | BW18: 0.2544799671 | BX18: 0.2544799671 | BY18: 0.251893985 | BZ18: 0.2478087223 | CA18: 0.2447320483 | CB18: 0.2431678801 | CC18: 0.2427705075 | CD18: 0.2437850021 | CE18: 0.2449594329 | CF18: 0.2451576476 | CG18: 0.2437814986 | CH18: 0.2415016907 | CI18: 0.2389995865 | CJ18: 0.2367630519 | CK18: 0.2352997513 | CL18: 0.2347757416 | CM18: 0.2348579664 | CN18: 0.2350247546 | CO18: 0.2347212756 | CP18: 0.2337605391 | CQ18: 0.2323189607 | CR18: 0.2306838128 | CS18: 0.2292818182
C19: ='Product Classes'!K18&" - "&OFFSET('Product Classes'!$F$10,MATCH('Product Classes'!K18,MODEL_PCS,0),0) -> DD.M - Display Door, Medium Temperature | D19: =$X$19 -> 0.377399036 | E19: 0.377399036 | F19: 0.377399036 | G19: 0.377399036 | H19: 0.377399036 | I19: 0.377399036 | J19: 0.377399036 | K19: 0.377399036 | L19: 0.377399036 | M19: 0.377399036 | N19: 0.377399036 | O19: 0.377399036 | P19: 0.377399036 | Q19: 0.377399036 | R19: 0.377399036 | S19: 0.377399036 | T19: 0.377399036 | U19: 0.377399036 | V19: 0.377399036 | W19: =$X$19 -> 0.377399036 | X19: 0.377399036 | Y19: 0.377399036 | Z19: 0.377399036 | AA19: 0.377399036 | AB19: 0.3772733714 | AC19: 0.3771813388 | AD19: 0.3766822475 | AE19: 0.375846859 | AF19: 0.3748953799 | AG19: 0.3741213625 | AH19: 0.3734551195 | AI19: 0.3729602902 | AJ19: 0.3725286758 | AK19: 0.3721788904 | AL19: 0.3719724223 | AM19: 0.3717576406 | AN19: 0.3714544558 | AO19: 0.3711048844 | AP19: 0.3707506121 | AQ19: 0.3703942144 | AR19: 0.3700391157 | AS19: 0.3697183803 | AT19: 0.3694253334 | AU19: 0.3691192624 | AV19: 0.3688411872 | AZ19: ='Product Classes'!K46 -> MC.L.009 | BA19: =$BU$19 -> 0.02823668891 | BB19: 0.02823668891 | BC19: 0.02823668891 | BD19: 0.02823668891 | BE19: 0.02823668891 | BF19: 0.02823668891 | BG19: 0.02823668891 | BH19: 0.02823668891 | BI19: 0.02823668891 | BJ19: 0.02823668891 | BK19: 0.02823668891 | BL19: 0.02823668891 | BM19: 0.02823668891 | BN19: 0.02823668891 | BO19: 0.02823668891 | BP19: 0.02823668891 | BQ19: 0.02823668891 | BR19: 0.02823668891 | BS19: 0.02823668891 | BT19: 0.02823668891 | BU19: 0.02823668891 | BV19: 0.02823668891 | BW19: 0.02823668891 | BX19: 0.02823668891 | BY19: 0.028635004 | BZ19: 0.02921483087 | CA19: 0.02961581224 | CB19: 0.02977501307 | CC19: 0.02977191763 | CD19: 0.02958361448 | CE19: 0.02940009395 | CF19: 0.02936753487 | CG19: 0.02956080398 | CH19: 0.02989151321 | CI19: 0.03025939948 | CJ19: 0.03057368206 | CK19: 0.03076167667 | CL19: 0.03080755744 | CM19: 0.03076901475 | CN19: 0.03072475811 | CO19: 0.03075593328 | CP19: 0.03088765986 | CQ19: 0.03108984384 | CR19: 0.03132337069 | CS19: 0.03152211176
C20: ='Product Classes'!K19&" - "&OFFSET('Product Classes'!$F$10,MATCH('Product Classes'!K19,MODEL_PCS,0),0) -> DD.L - Display Door, Low Temperature | D20: =$X$20 -> 0.0309318213 | E20: 0.0309318213 | F20: 0.0309318213 | G20: 0.0309318213 | H20: 0.0309318213 | I20: 0.0309318213 | J20: 0.0309318213 | K20: 0.0309318213 | L20: 0.0309318213 | M20: 0.0309318213 | N20: 0.0309318213 | O20: 0.0309318213 | P20: 0.0309318213 | Q20: 0.0309318213 | R20: 0.0309318213 | S20: 0.0309318213 | T20: 0.0309318213 | U20: 0.0309318213 | V20: 0.0309318213 | W20: =$X$20 -> 0.0309318213 | X20: 0.0309318213 | Y20: 0.0309318213 | Z20: 0.0309318213 | AA20: 0.0309318213 | AB20: 0.03102367835 | AC20: 0.03112824204 | AD20: 0.03118092367 | AE20: 0.03109999021 | AF20: 0.03094698319 | AG20: 0.03076565294 | AH20: 0.03065777902 | AI20: 0.03058452822 | AJ20: 0.030559434 | AK20: 0.03058120226 | AL20: 0.03064641468 | AM20: 0.03070002892 | AN20: 0.0307384621 | AO20: 0.03074821817 | AP20: 0.03074036363 | AQ20: 0.03071686258 | AR20: 0.03069196544 | AS20: 0.03066424394 | AT20: 0.03061594886 | AU20: 0.03058401141 | AV20: 0.03056952875 | AZ20: ='Product Classes'!K50 -> MC.M.009 | BA20: =$BU$20 -> 0.145785075 | BB20: 0.145785075 | BC20: 0.145785075 | BD20: 0.145785075 | BE20: 0.145785075 | BF20: 0.145785075 | BG20: 0.145785075 | BH20: 0.145785075 | BI20: 0.145785075 | BJ20: 0.145785075 | BK20: 0.145785075 | BL20: 0.145785075 | BM20: 0.145785075 | BN20: 0.145785075 | BO20: 0.145785075 | BP20: 0.145785075 | BQ20: 0.145785075 | BR20: 0.145785075 | BS20: 0.145785075 | BT20: 0.145785075 | BU20: 0.145785075 | BV20: 0.145785075 | BW20: 0.145785075 | BX20: 0.145785075 | BY20: 0.1466406311 | BZ20: 0.1486353678 | CA20: 0.1505742568 | CB20: 0.1518396996 | CC20: 0.1522167707 | CD20: 0.151769866 | CE20: 0.1510940308 | CF20: 0.1507940614 | CG20: 0.1512154673 | CH20: 0.1521306801 | CI20: 0.1532984944 | CJ20: 0.1545225262 | CK20: 0.155426159 | CL20: 0.1558048003 | CM20: 0.1557655335 | CN20: 0.1555984345 | CO20: 0.1556079154 | CP20: 0.1559398326 | CQ20: 0.1565774739 | CR20: 0.1573795683 | CS20: 0.1581427287
C22: POST-Case | D22: 1990 | E22: =D22+1 -> 1991 | F22: 1992 | G22: 1993 | H22: 1994 | I22: 1995 | J22: 1996 | K22: 1997 | L22: 1998 | M22: 1999 | N22: 2000 | O22: 2001 | P22: 2002 | Q22: 2003 | R22: 2004 | S22: 2005 | T22: 2006 | U22: 2007 | V22: 2008 | W22: 2009 | X22: 2010 | Y22: 2011 | Z22: 2012 | AA22: 2013 | AB22: 2014 | AC22: 2015 | AD22: 2016 | AE22: 2017 | AF22: 2018 | AG22: 2019 | AH22: 2020 | AI22: 2021 | AJ22: 2022 | AK22: 2023 | AL22: 2024 | AM22: 2025 | AN22: 2026 | AO22: 2027 | AP22: 2028 | AQ22: 2029 | AR22: 2030 | AS22: 2031 | AT22: 2032 | AU22: 2033 | AV22: 2034 | AZ22: POST-Case | BA22: 1990 | BB22: =BA22+1 -> 1991 | BC22: =BB22+1 -> 1992 | BD22: =BC22+1 -> 1993 | BE22: =BD22+1 -> 1994 | BF22: =BE22+1 -> 1995 | BG22: =BF22+1 -> 1996 | BH22: =BG22+1 -> 1997 | BI22: =BH22+1 -> 1998 | BJ22: =BI22+1 -> 1999 | BK22: =BJ22+1 -> 2000 | BL22: =BK22+1 -> 2001 | BM22: =BL22+1 -> 2002 | BN22: =BM22+1 -> 2003 | BO22: =BN22+1 -> 2004 | BP22: =BO22+1 -> 2005 | BQ22: =BP22+1 -> 2006 | BR22: =BQ22+1 -> 2007 | BS22: =BR22+1 -> 2008 | BT22: =BS22+1 -> 2009 | BU22: =BT22+1 -> 2010 | BV22: =BU22+1 -> 2011 | BW22: =BV22+1 -> 2012 | BX22: =BW22+1 -> 2013 | BY22: =BX22+1 -> 2014 | BZ22: =BY22+1 -> 2015 | CA22: =BZ22+1 -> 2016 | CB22: =CA22+1 -> 2017 | CC22: =CB22+1 -> 2018 | CD22: =CC22+1 -> 2019 | CE22: =CD22+1 -> 2020 | CF22: =CE22+1 -> 2021 | CG22: =CF22+1 -> 2022 | CH22: =CG22+1 -> 2023 | CI22: =CH22+1 -> 2024 | CJ22: =CI22+1 -> 2025 | CK22: =CJ22+1 -> 2026 | CL22: =CK22+1 -> 2027 | CM22: =CL22+1 -> 2028 | CN22: =CM22+1 -> 2029 | CO22: =CN22+1 -> 2030 | CP22: =CO22+1 -> 2031 | CQ22: =CP22+1 -> 2032 | CR22: =CQ22+1 -> 2033 | CS22: =CR22+1 -> 2034
C23: ='Product Classes'!K11&" - "&OFFSET('Product Classes'!$F$10,MATCH('Product Classes'!K11,MODEL_PCS,0),0) -> SP.M - Structural Panel, Medium Temperature | D23: =$X$23 -> 0 | E23: 0 | F23: 0 | G23: 0 | H23: 0 | I23: 0 | J23: 0 | K23: 0 | L23: 0 | M23: 0 | N23: 0 | O23: 0 | P23: 0 | Q23: 0 | R23: 0 | S23: 0 | T23: 0 | U23: 0 | V23: 0 | W23: =$X$23 -> 0 | X23: 0 | Y23: 0 | Z23: 0 | AA23: 0 | AB23: 0 | AC23: 0 | AD23: 0 | AE23: 0 | AF23: 0 | AG23: 0 | AH23: 0 | AI23: 0 | AJ23: 0 | AK23: 0 | AL23: 0 | AM23: 0 | AN23: 0 | AO23: 0 | AP23: 0 | AQ23: 0 | AR23: 0 | AS23: 0 | AT23: 0 | AU23: 0 | AV23: 0 | AZ23: =AZ11 -> DC.L.I.006 | BA23: =$BU$23 -> 0.007314037027 | BB23: 0.007314037027 | BC23: 0.007314037027 | BD23: 0.007314037027 | BE23: 0.007314037027 | BF23: 0.007314037027 | BG23: 0.007314037027 | BH23: 0.007314037027 | BI23: 0.007314037027 | BJ23: 0.007314037027 | BK23: 0.007314037027 | BL23: 0.007314037027 | BM23: 0.007314037027 | BN23: 0.007314037027 | BO23: 0.007314037027 | BP23: 0.007314037027 | BQ23: 0.007314037027 | BR23: 0.007314037027 | BS23: 0.007314037027 | BT23: 0.007314037027 | BU23: 0.007314037027 | BV23: 0.007314037027 | BW23: 0.007314037027 | BX23: 0.007314037027 | BY23: 0.007416837754 | BZ23: 0.00756641239 | CA23: 0.007669301096 | CB23: 0.007711123563 | CC23: 0.007712489338 | CD23: 0.007666350885 | CE23: 0.007619642779 | CF23: 0.007611201674 | CG23: 0.00766104331 | CH23: 0.007746274655 | CI23: 0.007840647023 | CJ23: 0.007921288347 | CK23: 0.007969649446 | CL23: 0.007981999514 | CM23: 0.007972852048 | CN23: 0.007962101534 | CO23: 0.007970449373 | CP23: 0.008004664348 | CQ23: 0.008057351792 | CR23: 0.008117907324 | CS23: 0.00816932506
C24: ='Product Classes'!K12&" - "&OFFSET('Product Classes'!$F$10,MATCH('Product Classes'!K12,MODEL_PCS,0),0) -> SP.L - Structural Panel, Low Temperature | D24: =$X$24 -> 0 | E24: 0 | F24: 0 | G24: 0 | H24: 0 | I24: 0 | J24: 0 | K24: 0 | L24: 0 | M24: 0 | N24: 0 | O24: 0 | P24: 0 | Q24: 0 | R24: 0 | S24: 0 | T24: 0 | U24: 0 | V24: 0 | W24: =$X$24 -> 0 | X24: 0 | Y24: 0 | Z24: 0 | AA24: 0 | AB24: 0 | AC24: 0 | AD24: 0 | AE24: 0 | AF24: 0 | AG24: 0 | AH24: 0 | AI24: 0 | AJ24: 0 | AK24: 0 | AL24: 0 | AM24: 0 | AN24: 0 | AO24: 0 | AP24: 0 | AQ24: 0 | AR24: 0 | AS24: 0 | AT24: 0 | AU24: 0 | AV24: 0 | AZ24: DC.L.I.009 | BA24: =$BU$24 -> 0.005370693856 | BB24: 0.005370693856 | BC24: 0.005370693856 | BD24: 0.005370693856 | BE24: 0.005370693856 | BF24: 0.005370693856 | BG24: 0.005370693856 | BH24: 0.005370693856 | BI24: 0.005370693856 | BJ24: 0.005370693856 | BK24: 0.005370693856 | BL24: 0.005370693856 | BM24: 0.005370693856 | BN24: 0.005370693856 | BO24: 0.005370693856 | BP24: 0.005370693856 | BQ24: 0.005370693856 | BR24: 0.005370693856 | BS24: 0.005370693856 | BT24: 0.005370693856 | BU24: 0.005370693856 | BV24: 0.005370693856 | BW24: 0.005370693856 | BX24: 0.005370693856 | BY24: 0.005446180379 | BZ24: 0.005556012963 | CA24: 0.00563156409 | CB24: 0.005662274307 | CC24: 0.005663277195 | CD24: 0.005629397752 | CE24: 0.005595100012 | CF24: 0.005588901713 | CG24: 0.005625500402 | CH24: 0.005688085737 | CI24: 0.005757383321 | CJ24: 0.005816598206 | CK24: 0.005852109738 | CL24: 0.005861178387 | CM24: 0.005854461407 | CN24: 0.00584656731 | CO24: 0.005852697124 | CP24: 0.005877821164 | CQ24: 0.005916509528 | CR24: 0.005960975426 | CS24: 0.005998731445
C25: ='Product Classes'!K13&" - "&OFFSET('Product Classes'!$F$10,MATCH('Product Classes'!K13,MODEL_PCS,0),0) -> FP.L - Floor Panel, Low Temperature | D25: =$X$25 -> 0 | E25: 0 | F25: 0 | G25: 0 | H25: 0 | I25: 0 | J25: 0 | K25: 0 | L25: 0 | M25: 0 | N25: 0 | O25: 0 | P25: 0 | Q25: 0 | R25: 0 | S25: 0 | T25: 0 | U25: 0 | V25: 0 | W25: =$X$25 -> 0 | X25: 0 | Y25: 0 | Z25: 0 | AA25: 0 | AB25: 0 | AC25: 0 | AD25: 0 | AE25: 0 | AF25: 0 | AG25: 0 | AH25: 0 | AI25: 0 | AJ25: 0 | AK25: 0 | AL25: 0 | AM25: 0 | AN25: 0 | AO25: 0 | AP25: 0 | AQ25: 0 | AR25: 0 | AS25: 0 | AT25: 0 | AU25: 0 | AV25: 0 | AZ25: DC.L.O.006 | BA25: =$BU$25 -> 0.1307197115 | BB25: 0.1307197115 | BC25: 0.1307197115 | BD25: 0.1307197115 | BE25: 0.1307197115 | BF25: 0.1307197115 | BG25: 0.1307197115 | BH25: 0.1307197115 | BI25: 0.1307197115 | BJ25: 0.1307197115 | BK25: 0.1307197115 | BL25: 0.1307197115 | BM25: 0.1307197115 | BN25: 0.1307197115 | BO25: 0.1307197115 | BP25: 0.1307197115 | BQ25: 0.1307197115 | BR25: 0.1307197115 | BS25: 0.1307197115 | BT25: 0.1307197115 | BU25: 0.1307197115 | BV25: 0.1307197115 | BW25: 0.1307197115 | BX25: 0.1307197115 | BY25: 0.1319536686 | BZ25: 0.1336025832 | CA25: 0.1346423654 | CB25: 0.1350487763 | CC25: 0.1351406584 | CD25: 0.1347234955 | CE25: 0.1343108332 | CF25: 0.1343389747 | CG25: 0.1350240176 | CH25: 0.1360401755 | CI25: 0.1370692081 | CJ25: 0.1379038296 | CK25: 0.138405741 | CL25: 0.1385666521 | CM25: 0.138545188 | CN25: 0.1385320878 | CO25: 0.1387322346 | CP25: 0.1391916583 | CQ25: 0.1398046727 | CR25: 0.140456936 | CS25: 0.1409776504
C26: ='Product Classes'!K14&" - "&OFFSET('Product Classes'!$F$10,MATCH('Product Classes'!K14,MODEL_PCS,0),0) -> PD.M - Passage Door, Medium Temperature | D26: =$X$26 -> 0.3734708707 | E26: 0.3734708707 | F26: 0.3734708707 | G26: 0.3734708707 | H26: 0.3734708707 | I26: 0.3734708707 | J26: 0.3734708707 | K26: 0.3734708707 | L26: 0.3734708707 | M26: 0.3734708707 | N26: 0.3734708707 | O26: 0.3734708707 | P26: 0.3734708707 | Q26: 0.3734708707 | R26: 0.3734708707 | S26: 0.3734708707 | T26: 0.3734708707 | U26: 0.3734708707 | V26: 0.3734708707 | W26: =$X$26 -> 0.3734708707 | X26: 0.3734708707 | Y26: 0.3734708707 | Z26: 0.3734708707 | AA26: 0.3734708707 | AB26: 0.3735210469 | AC26: 0.3735791962 | AD26: 0.3739402617 | AE26: 0.3745058986 | AF26: 0.3751216777 | AG26: 0.3755964059 | AH26: 0.3760163446 | AI26: 0.3763225203 | AJ26: 0.3765903033 | AK26: 0.3768104749 | AL26: 0.3769514993 | AM26: 0.377103574 | AN26: 0.3773226515 | AO26: 0.3775731837 | AP26: 0.3778273641 | AQ26: 0.3780794068 | AR26: 0.3783282696 | AS26: 0.3785486309 | AT26: 0.3787371332 | AU26: 0.3789360673 | AV26: 0.3791195484 | AZ26: DC.L.O.009 | BA26: =$BU$26 -> 0.1880911404 | BB26: 0.1880911404 | BC26: 0.1880911404 | BD26: 0.1880911404 | BE26: 0.1880911404 | BF26: 0.1880911404 | BG26: 0.1880911404 | BH26: 0.1880911404 | BI26: 0.1880911404 | BJ26: 0.1880911404 | BK26: 0.1880911404 | BL26: 0.1880911404 | BM26: 0.1880911404 | BN26: 0.1880911404 | BO26: 0.1880911404 | BP26: 0.1880911404 | BQ26: 0.1880911404 | BR26: 0.1880911404 | BS26: 0.1880911404 | BT26: 0.1880911404 | BU26: 0.1880911404 | BV26: 0.1880911404 | BW26: 0.1880911404 | BX26: 0.1880911404 | BY26: 0.1898666676 | BZ26: 0.1922392725 | CA26: 0.1937354036 | CB26: 0.1943201837 | CC26: 0.1944523919 | CD26: 0.1938521407 | CE26: 0.1932583655 | CF26: 0.193298858 | CG26: 0.1942845587 | CH26: 0.195746697 | CI26: 0.1972273606 | CJ26: 0.1984282881 | CK26: 0.1991504829 | CL26: 0.1993820161 | CM26: 0.1993511316 | CN26: 0.1993322819 | CO26: 0.199620271 | CP26: 0.2002813305 | CQ26: 0.2011633902 | CR26: 0.2021019246 | CS26: 0.2028511748
C27: ='Product Classes'!K15&" - "&OFFSET('Product Classes'!$F$10,MATCH('Product Classes'!K15,MODEL_PCS,0),0) -> PD.L - Passage Door, Low Temperature | D27: =$X$27 -> 0.1840609854 | E27: 0.1840609854 | F27: 0.1840609854 | G27: 0.1840609854 | H27: 0.1840609854 | I27: 0.1840609854 | J27: 0.1840609854 | K27: 0.1840609854 | L27: 0.1840609854 | M27: 0.1840609854 | N27: 0.1840609854 | O27: 0.1840609854 | P27: 0.1840609854 | Q27: 0.1840609854 | R27: 0.1840609854 | S27: 0.1840609854 | T27: 0.1840609854 | U27: 0.1840609854 | V27: 0.1840609854 | W27: =$X$27 -> 0.1840609854 | X27: 0.1840609854 | Y27: 0.1840609854 | Z27: 0.1840609854 | AA27: 0.1840609854 | AB27: 0.1840439233 | AC27: 0.1839746345 | AD27: 0.1840338641 | AE27: 0.1843292283 | AF27: 0.1847513677 | AG27: 0.1851742308 | AH27: 0.1854831068 | AI27: 0.1857118435 | AJ27: 0.185874256 | AK27: 0.1859632779 | AL27: 0.1859559914 | AM27: 0.185956277 | AN27: 0.1859872903 | AO27: 0.1860574266 | AP27: 0.1861449436 | AQ27: 0.1862512223 | AR27: 0.1863607539 | AS27: 0.186468798 | AT27: 0.186601257 | AU27: 0.186720307 | AV27: 0.1868122171 | AZ27: DC.M.I.006 | BA27: =$BU$27 -> 0.0285219057 | BB27: 0.0285219057 | BC27: 0.0285219057 | BD27: 0.0285219057 | BE27: 0.0285219057 | BF27: 0.0285219057 | BG27: 0.0285219057 | BH27: 0.0285219057 | BI27: 0.0285219057 | BJ27: 0.0285219057 | BK27: 0.0285219057 | BL27: 0.0285219057 | BM27: 0.0285219057 | BN27: 0.0285219057 | BO27: 0.0285219057 | BP27: 0.0285219057 | BQ27: 0.0285219057 | BR27: 0.0285219057 | BS27: 0.0285219057 | BT27: 0.0285219057 | BU27: 0.0285219057 | BV27: 0.0285219057 | BW27: 0.0285219057 | BX27: 0.0285219057 | BY27: 0.02873073675 | BZ27: 0.02919855491 | CA27: 0.02964386291 | CB27: 0.02993966691 | CC27: 0.03004194409 | CD27: 0.02995160487 | CE27: 0.02979658142 | CF27: 0.02972763319 | CG27: 0.0298317471 | CH27: 0.03005324193 | CI27: 0.030330978 | CJ27: 0.03062079328 | CK27: 0.03083621133 | CL27: 0.03093123748 | CM27: 0.03092869679 | CN27: 0.03089426008 | CO27: 0.0308999404 | CP27: 0.03098323646 | CQ27: 0.03114219598 | CR27: 0.03134013541 | CS27: 0.03152774601
C28: ='Product Classes'!K16&" - "&OFFSET('Product Classes'!$F$10,MATCH('Product Classes'!K16,MODEL_PCS,0),0) -> FD.M - Freight Door, Medium Temperature | D28: =$X$28 -> 0.02216468137 | E28: 0.02216468137 | F28: 0.02216468137 | G28: 0.02216468137 | H28: 0.02216468137 | I28: 0.02216468137 | J28: 0.02216468137 | K28: 0.02216468137 | L28: 0.02216468137 | M28: 0.02216468137 | N28: 0.02216468137 | O28: 0.02216468137 | P28: 0.02216468137 | Q28: 0.02216468137 | R28: 0.02216468137 | S28: 0.02216468137 | T28: 0.02216468137 | U28: 0.02216468137 | V28: 0.02216468137 | W28: =$X$28 -> 0.02216468137 | X28: 0.02216468137 | Y28: 0.02216468137 | Z28: 0.02216468137 | AA28: 0.02216468137 | AB28: 0.02216685184 | AC28: 0.02217058485 | AD28: 0.02219347039 | AE28: 0.02222922453 | AF28: 0.02226736831 | AG28: 0.02229628417 | AH28: 0.02232085845 | AI28: 0.0223386718 | AJ28: 0.02235443345 | AK28: 0.02236758603 | AL28: 0.02237607325 | AM28: 0.02238533068 | AN28: 0.02239846878 | AO28: 0.02241340003 | AP28: 0.02242839671 | AQ28: 0.0224431973 | AR28: 0.0224577817 | AS28: 0.02247081409 | AT28: 0.02248228494 | AU28: 0.02249439258 | AV28: 0.02250554185 | AZ28: DC.M.I.018 | BA28: =$BU$28 -> 0.004835393625 | BB28: 0.004835393625 | BC28: 0.004835393625 | BD28: 0.004835393625 | BE28: 0.004835393625 | BF28: 0.004835393625 | BG28: 0.004835393625 | BH28: 0.004835393625 | BI28: 0.004835393625 | BJ28: 0.004835393625 | BK28: 0.004835393625 | BL28: 0.004835393625 | BM28: 0.004835393625 | BN28: 0.004835393625 | BO28: 0.004835393625 | BP28: 0.004835393625 | BQ28: 0.004835393625 | BR28: 0.004835393625 | BS28: 0.004835393625 | BT28: 0.004835393625 | BU28: 0.004835393625 | BV28: 0.004835393625 | BW28: 0.004835393625 | BX28: 0.004835393625 | BY28: 0.004870797301 | BZ28: 0.004950107744 | CA28: 0.005025601979 | CB28: 0.005075750408 | CC28: 0.005093089728 | CD28: 0.005077774283 | CE28: 0.005051492749 | CF28: 0.005039803776 | CG28: 0.005057454479 | CH28: 0.00509500508 | CI28: 0.005142090406 | CJ28: 0.005191223553 | CK28: 0.00522774394 | CL28: 0.005243853974 | CM28: 0.005243423243 | CN28: 0.005237585097 | CO28: 0.005238548098 | CP28: 0.005252669497 | CQ28: 0.005279618321 | CR28: 0.005313175514 | CS28: 0.005344981632
C29: ='Product Classes'!K17&" - "&OFFSET('Product Classes'!$F$10,MATCH('Product Classes'!K17,MODEL_PCS,0),0) -> FD.L - Freight Door, Low Temperature | D29: =$X$29 -> 0.01197260514 | E29: 0.01197260514 | F29: 0.01197260514 | G29: 0.01197260514 | H29: 0.01197260514 | I29: 0.01197260514 | J29: 0.01197260514 | K29: 0.01197260514 | L29: 0.01197260514 | M29: 0.01197260514 | N29: 0.01197260514 | O29: 0.01197260514 | P29: 0.01197260514 | Q29: 0.01197260514 | R29: 0.01197260514 | S29: 0.01197260514 | T29: 0.01197260514 | U29: 0.01197260514 | V29: 0.01197260514 | W29: =$X$29 -> 0.01197260514 | X29: 0.01197260514 | Y29: 0.01197260514 | Z29: 0.01197260514 | AA29: 0.01197260514 | AB29: 0.01197112813 | AC29: 0.01196600364 | AD29: 0.01196923264 | AE29: 0.01198879941 | AF29: 0.01201722325 | AG29: 0.01204606376 | AH29: 0.01206679155 | AI29: 0.01208214598 | AJ29: 0.01209289749 | AK29: 0.01209856857 | AL29: 0.01209759897 | AM29: 0.01209714879 | AN29: 0.01209867145 | AO29: 0.01210288721 | AP29: 0.01210831989 | AQ29: 0.01211509653 | AR29: 0.01212211362 | AS29: 0.01212913276 | AT29: 0.01213804263 | AU29: 0.01214595935 | AV29: 0.01215197673 | AZ29: DC.M.O.006 | BA29: =$BU$29 -> 0.2066453868 | BB29: 0.2066453868 | BC29: 0.2066453868 | BD29: 0.2066453868 | BE29: 0.2066453868 | BF29: 0.2066453868 | BG29: 0.2066453868 | BH29: 0.2066453868 | BI29: 0.2066453868 | BJ29: 0.2066453868 | BK29: 0.2066453868 | BL29: 0.2066453868 | BM29: 0.2066453868 | BN29: 0.2066453868 | BO29: 0.2066453868 | BP29: 0.2066453868 | BQ29: 0.2066453868 | BR29: 0.2066453868 | BS29: 0.2066453868 | BT29: 0.2066453868 | BU29: 0.2066453868 | BV29: 0.2066453868 | BW29: 0.2066453868 | BX29: 0.2066453868 | BY29: 0.2045454915 | BZ29: 0.2012281354 | CA29: 0.1987297836 | CB29: 0.197459632 | CC29: 0.1971369535 | CD29: 0.1979607536 | CE29: 0.1989144267 | CF29: 0.199075383 | CG29: 0.1979579086 | CH29: 0.1961066361 | CI29: 0.1940748522 | CJ29: 0.1922587188 | CK29: 0.1910704747 | CL29: 0.1906449631 | CM29: 0.1907117321 | CN29: 0.1908471691 | CO29: 0.1906007351 | CP29: 0.1898205881 | CQ29: 0.1886499831 | CR29: 0.1873221939 | CS29: 0.186183732
C30: ='Product Classes'!K18&" - "&OFFSET('Product Classes'!$F$10,MATCH('Product Classes'!K18,MODEL_PCS,0),0) -> DD.M - Display Door, Medium Temperature | D30: =$X$30 -> 0.377399036 | E30: 0.377399036 | F30: 0.377399036 | G30: 0.377399036 | H30: 0.377399036 | I30: 0.377399036 | J30: 0.377399036 | K30: 0.377399036 | L30: 0.377399036 | M30: 0.377399036 | N30: 0.377399036 | O30: 0.377399036 | P30: 0.377399036 | Q30: 0.377399036 | R30: 0.377399036 | S30: 0.377399036 | T30: 0.377399036 | U30: 0.377399036 | V30: 0.377399036 | W30: =$X$30 -> 0.377399036 | X30: 0.377399036 | Y30: 0.377399036 | Z30: 0.377399036 | AA30: 0.377399036 | AB30: 0.3772733714 | AC30: 0.3771813388 | AD30: 0.3766822475 | AE30: 0.375846859 | AF30: 0.3748953799 | AG30: 0.3741213625 | AH30: 0.3734551195 | AI30: 0.3729602902 | AJ30: 0.3725286758 | AK30: 0.3721788904 | AL30: 0.3719724223 | AM30: 0.3717576406 | AN30: 0.3714544558 | AO30: 0.3711048844 | AP30: 0.3707506121 | AQ30: 0.3703942144 | AR30: 0.3700391157 | AS30: 0.3697183803 | AT30: 0.3694253334 | AU30: 0.3691192624 | AV30: 0.3688411872 | AZ30: DC.M.O.018 | BA30: =$BU$30 -> 0.2544799671 | BB30: 0.2544799671 | BC30: 0.2544799671 | BD30: 0.2544799671 | BE30: 0.2544799671 | BF30: 0.2544799671 | BG30: 0.2544799671 | BH30: 0.2544799671 | BI30: 0.2544799671 | BJ30: 0.2544799671 | BK30: 0.2544799671 | BL30: 0.2544799671 | BM30: 0.2544799671 | BN30: 0.2544799671 | BO30: 0.2544799671 | BP30: 0.2544799671 | BQ30: 0.2544799671 | BR30: 0.2544799671 | BS30: 0.2544799671 | BT30: 0.2544799671 | BU30: 0.2544799671 | BV30: 0.2544799671 | BW30: 0.2544799671 | BX30: 0.2544799671 | BY30: 0.251893985 | BZ30: 0.2478087223 | CA30: 0.2447320483 | CB30: 0.2431678801 | CC30: 0.2427705075 | CD30: 0.2437850021 | CE30: 0.2449594329 | CF30: 0.2451576476 | CG30: 0.2437814986 | CH30: 0.2415016907 | CI30: 0.2389995865 | CJ30: 0.2367630519 | CK30: 0.2352997513 | CL30: 0.2347757416 | CM30: 0.2348579664 | CN30: 0.2350247546 | CO30: 0.2347212756 | CP30: 0.2337605391 | CQ30: 0.2323189607 | CR30: 0.2306838128 | CS30: 0.2292818182
C31: ='Product Classes'!K19&" - "&OFFSET('Product Classes'!$F$10,MATCH('Product Classes'!K19,MODEL_PCS,0),0) -> DD.L - Display Door, Low Temperature | D31: =$X$31 -> 0.0309318213 | E31: 0.0309318213 | F31: 0.0309318213 | G31: 0.0309318213 | H31: 0.0309318213 | I31: 0.0309318213 | J31: 0.0309318213 | K31: 0.0309318213 | L31: 0.0309318213 | M31: 0.0309318213 | N31: 0.0309318213 | O31: 0.0309318213 | P31: 0.0309318213 | Q31: 0.0309318213 | R31: 0.0309318213 | S31: 0.0309318213 | T31: 0.0309318213 | U31: 0.0309318213 | V31: 0.0309318213 | W31: =$X$31 -> 0.0309318213 | X31: 0.0309318213 | Y31: 0.0309318213 | Z31: 0.0309318213 | AA31: 0.0309318213 | AB31: 0.03102367835 | AC31: 0.03112824204 | AD31: 0.03118092367 | AE31: 0.03109999021 | AF31: 0.03094698319 | AG31: 0.03076565294 | AH31: 0.03065777902 | AI31: 0.03058452822 | AJ31: 0.030559434 | AK31: 0.03058120226 | AL31: 0.03064641468 | AM31: 0.03070002892 | AN31: 0.0307384621 | AO31: 0.03074821817 | AP31: 0.03074036363 | AQ31: 0.03071686258 | AR31: 0.03069196544 | AS31: 0.03066424394 | AT31: 0.03061594886 | AU31: 0.03058401141 | AV31: 0.03056952875 | AZ31: MC.L.009 | BA31: =$BU$31 -> 0.02823668891 | BB31: 0.02823668891 | BC31: 0.02823668891 | BD31: 0.02823668891 | BE31: 0.02823668891 | BF31: 0.02823668891 | BG31: 0.02823668891 | BH31: 0.02823668891 | BI31: 0.02823668891 | BJ31: 0.02823668891 | BK31: 0.02823668891 | BL31: 0.02823668891 | BM31: 0.02823668891 | BN31: 0.02823668891 | BO31: 0.02823668891 | BP31: 0.02823668891 | BQ31: 0.02823668891 | BR31: 0.02823668891 | BS31: 0.02823668891 | BT31: 0.02823668891 | BU31: 0.02823668891 | BV31: 0.02823668891 | BW31: 0.02823668891 | BX31: 0.02823668891 | BY31: 0.028635004 | BZ31: 0.02921483087 | CA31: 0.02961581224 | CB31: 0.02977501307 | CC31: 0.02977191763 | CD31: 0.02958361448 | CE31: 0.02940009395 | CF31: 0.02936753487 | CG31: 0.02956080398 | CH31: 0.02989151321 | CI31: 0.03025939948 | CJ31: 0.03057368206 | CK31: 0.03076167667 | CL31: 0.03080755744 | CM31: 0.03076901475 | CN31: 0.03072475811 | CO31: 0.03075593328 | CP31: 0.03088765986 | CQ31: 0.03108984384 | CR31: 0.03132337069 | CS31: 0.03152211176
AZ32: =AZ20 -> MC.M.009 | BA32: =$BU$32 -> 0.145785075 | BB32: 0.145785075 | BC32: 0.145785075 | BD32: 0.145785075 | BE32: 0.145785075 | BF32: 0.145785075 | BG32: 0.145785075 | BH32: 0.145785075 | BI32: 0.145785075 | BJ32: 0.145785075 | BK32: 0.145785075 | BL32: 0.145785075 | BM32: 0.145785075 | BN32: 0.145785075 | BO32: 0.145785075 | BP32: 0.145785075 | BQ32: 0.145785075 | BR32: 0.145785075 | BS32: 0.145785075 | BT32: 0.145785075 | BU32: 0.145785075 | BV32: 0.145785075 | BW32: 0.145785075 | BX32: 0.145785075 | BY32: 0.1466406311 | BZ32: 0.1486353678 | CA32: 0.1505742568 | CB32: 0.1518396996 | CC32: 0.1522167707 | CD32: 0.151769866 | CE32: 0.1510940308 | CF32: 0.1507940614 | CG32: 0.1512154673 | CH32: 0.1521306801 | CI32: 0.1532984944 | CJ32: 0.1545225262 | CK32: 0.155426159 | CL32: 0.1558048003 | CM32: 0.1557655335 | CN32: 0.1555984345 | CO32: 0.1556079154 | CP32: 0.1559398326 | CQ32: 0.1565774739 | CR32: 0.1573795683 | CS32: 0.1581427287
C33: Source/Rationale | D33: Calculated from DOE Walk-In Coolers and Freezers 2014 Final Rule, Technical Support Document: 2014-04 Final Rule Government Regulatory Impact Model (GRIM), 'Assumptions (INPUT)' tab, cells B1036:U1073, http://www.regulations.gov/#!documentDetail;D=EERE-2008-BT-STD-0015-0142. Note: Values are the same at the baseline and TSL 2 in the GRIM model.
D34: Note: Since no standards were set for panels in the 2014 rulemaking, they were not included in this analysis. | AZ34: Source/Rationale | BA34: Calculated from DOE Walk-In Coolers and Freezers 2014 Final Rule, Technical Support Document: 2014-04 Final Rule Government Regulatory Impact Model (GRIM), 'Assumptions (INPUT)' tab, cells B1036:U1073, http://www.regulations.gov/#!documentDetail;D=EERE-2008-BT-STD-0015-0142. Note: Values are the same at the baseline and TSL 2 in the GRIM model.

Sheet Efficiency Dist
C2: Efficiency Distributions by Product Class
C4: =Navigation!$C$15 -> NAVIGATION
C6: COMMENTS
D8: COMPONENTS | BE8: SYSTEMS
D9: ='Product Classes'!K11&" - "&OFFSET('Product Classes'!$F$10,MATCH('Product Classes'!K11,MODEL_PCS,0),0) -> SP.M - Structural Panel, Medium Temperature | BE9: ='Product Class Dist'!AZ11 -> DC.L.I.006
D11: PRE-Case | F11: Static Distribution | BE11: PRE-Case | BG11: Static Distribution
D12: Efficiency Level | E12: EL (kWh/year) | F12: 2006 | H12: 1990 | I12: =H12+1 -> 1991 | J12: =I12+1 -> 1992 | K12: 1993 | L12: 1994 | M12: 1995 | N12: 1996 | O12: 1997 | P12: 1998 | Q12: 1999 | R12: 2000 | S12: 2001 | T12: 2002 | U12: 2003 | V12: 2004 | W12: 2005 | X12: 2006 | Y12: 2007 | Z12: 2008 | AA12: 2009 | AB12: 2010 | AC12: 2011 | AD12: 2012 | AE12: 2013 | AF12: 2014 | AG12: 2015 | AH12: 2016 | AI12: 2017 | AJ12: 2018 | AK12: 2019 | AL12: 2020 | AM12: 2021 | AN12: 2022 | AO12: 2023 | AP12: 2024 | AQ12: 2025 | AR12: 2026 | AS12: 2027 | AT12: 2028 | AU12: 2029 | AV12: 2030 | AW12: 2031 | AX12: 2032 | AY12: 2033 | AZ12: 2034 | BE12: Efficiency Level | BF12: EL (kWh/year) | BG12: 2014 | BI12: 1990 | BJ12: =BI12+1 -> 1991 | BK12: =BJ12+1 -> 1992 | BL12: =BK12+1 -> 1993 | BM12: =BL12+1 -> 1994 | BN12: =BM12+1 -> 1995 | BO12: =BN12+1 -> 1996 | BP12: =BO12+1 -> 1997 | BQ12: =BP12+1 -> 1998 | BR12: =BQ12+1 -> 1999 | BS12: =BR12+1 -> 2000 | BT12: =BS12+1 -> 2001 | BU12: =BT12+1 -> 2002 | BV12: =BU12+1 -> 2003 | BW12: =BV12+1 -> 2004 | BX12: =BW12+1 -> 2005 | BY12: =BX12+1 -> 2006 | BZ12: =BY12+1 -> 2007 | CA12: =BZ12+1 -> 2008 | CB12: =CA12+1 -> 2009 | CC12: =CB12+1 -> 2010 | CD12: =CC12+1 -> 2011 | CE12: =CD12+1 -> 2012 | CF12: =CE12+1 -> 2013 | CG12: =CF12+1 -> 2014 | CH12: =CG12+1 -> 2015 | CI12: =CH12+1 -> 2016 | CJ12: =CI12+1 -> 2017 | CK12: =CJ12+1 -> 2018 | CL12: =CK12+1 -> 2019 | CM12: =CL12+1 -> 2020 | CN12: =CM12+1 -> 2021 | CO12: =CN12+1 -> 2022 | CP12: =CO12+1 -> 2023 | CQ12: =CP12+1 -> 2024 | CR12: =CQ12+1 -> 2025 | CS12: =CR12+1 -> 2026 | CT12: =CS12+1 -> 2027 | CU12: =CT12+1 -> 2028 | CV12: =CU12+1 -> 2029 | CW12: =CV12+1 -> 2030 | CX12: =CW12+1 -> 2031 | CY12: =CX12+1 -> 2032 | CZ12: =CY12+1 -> 2033 | DA12: =CZ12+1 -> 2034
D13: ='Efficiency Levels'!C14 -> EL0 | E13: ='Efficiency Levels'!D14 -> 1.801721841 | F13: 1 | H13: =$F13 -> 1 | I13: 1 | J13: 1 | K13: 1 | L13: 1 | M13: 1 | N13: 1 | O13: 1 | P13: 1 | Q13: 1 | R13: 1 | S13: 1 | T13: 1 | U13: 1 | V13: 1 | W13: 1 | X13: =$F13 -> 1 | Y13: 1 | Z13: 1 | AA13: 0 | AB13: 0 | AC13: 0 | AD13: 0 | AE13: 0 | AF13: 0 | AG13: 0 | AH13: 0 | AI13: 0 | AJ13: 0 | AK13: 0 | AL13: 0 | AM13: 0 | AN13: 0 | AO13: 0 | AP13: 0 | AQ13: 0 | AR13: 0 | AS13: 0 | AT13: 0 | AU13: 0 | AV13: 0 | AW13: 0 | AX13: 0 | AY13: 0 | AZ13: 0 | BE13: ='Efficiency Levels'!J14 -> EL0 | BF13: ='Efficiency Levels'!K14 -> 15952.31922 | BG13: 0 | BI13: 1 | BJ13: 1 | BK13: 1 | BL13: 1 | BM13: 1 | BN13: 1 | BO13: 1 | BP13: 1 | BQ13: 1 | BR13: 1 | BS13: 1 | BT13: 1 | BU13: 1 | BV13: 1 | BW13: 1 | BX13: 1 | BY13: 1 | BZ13: 1 | CA13: 1 | CB13: =$BG13 -> 0 | CC13: 0 | CD13: 0 | CE13: 0 | CF13: 0 | CG13: 0 | CH13: 0 | CI13: 0 | CJ13: 0 | CK13: 0 | CL13: 0 | CM13: 0 | CN13: 0 | CO13: 0 | CP13: 0 | CQ13: 0 | CR13: =$BG13 -> 0 | CS13: 0 | CT13: 0 | CU13: 0 | CV13: 0 | CW13: 0 | CX13: 0 | CY13: 0 | CZ13: 0 | DA13: 0
D14: ='Efficiency Levels'!C15 -> EL1 | E14: ='Efficiency Levels'!D15 -> 1.607823938 | F14: 0 | H14: 0 | I14: 0 | J14: 0 | K14: 0 | L14: 0 | M14: 0 | N14: 0 | O14: 0 | P14: 0 | Q14: 0 | R14: 0 | S14: 0 | T14: 0 | U14: 0 | V14: 0 | W14: 0 | X14: 0 | Y14: 0 | Z14: 0 | AA14: 0 | AB14: 0 | AC14: 0 | AD14: 0 | AE14: 0 | AF14: 0 | AG14: 0 | AH14: 0 | AI14: 0 | AJ14: 0 | AK14: 0 | AL14: 0 | AM14: 0 | AN14: 0 | AO14: 0 | AP14: 0 | AQ14: 0 | AR14: 0 | AS14: 0 | AT14: 0 | AU14: 0 | AV14: 0 | AW14: 0 | AX14: 0 | AY14: 0 | AZ14: 0 | BE14: ='Efficiency Levels'!J15 -> EL1 | BF14: ='Efficiency Levels'!K15 -> 12280.33426 | BG14: 0 | BI14: 0 | BJ14: 0 | BK14: 0 | BL14: 0 | BM14: 0 | BN14: 0 | BO14: 0 | BP14: 0 | BQ14: 0 | BR14: 0 | BS14: 0 | BT14: 0 | BU14: 0 | BV14: 0 | BW14: 0 | BX14: 0 | BY14: 0 | BZ14: 0 | CA14: 0 | CB14: 0 | CC14: 0 | CD14: 0 | CE14: 0 | CF14: 0 | CG14: 0 | CH14: 0 | CI14: 0 | CJ14: 0 | CK14: 0 | CL14: 0 | CM14: 0 | CN14: 0 | CO14: 0 | CP14: 0 | CQ14: 0 | CR14: 0 | CS14: 0 | CT14: 0 | CU14: 0 | CV14: 0 | CW14: 0 | CX14: 0 | CY14: 0 | CZ14: 0 | DA14: 0
D15: ='Efficiency Levels'!C16 -> EL2 | E15: ='Efficiency Levels'!D16 -> 1.324743675 | F15: 0 | H15: 0 | I15: =$F15 -> 0 | J15: 0 | K15: 0 | L15: 0 | M15: 0 | N15: 0 | O15: 0 | P15: 0 | Q15: 0 | R15: 0 | S15: 0 | T15: 0 | U15: 0 | V15: 0 | W15: 0 | X15: 0 | Y15: 0 | Z15: 0 | AA15: 1 | AB15: 1 | AC15: 1 | AD15: 1 | AE15: 1 | AF15: 1 | AG15: 1 | AH15: 1 | AI15: 1 | AJ15: 1 | AK15: 1 | AL15: 1 | AM15: 1 | AN15: 1 | AO15: 1 | AP15: 1 | AQ15: 1 | AR15: 1 | AS15: 1 | AT15: 1 | AU15: 1 | AV15: 1 | AW15: 1 | AX15: 1 | AY15: 1 | AZ15: 1 | BE15: ='Efficiency Levels'!J16 -> EL2 | BF15: ='Efficiency Levels'!K16 -> 10273.01808 | BG15: 0.75 | BI15: 0 | BJ15: 0 | BK15: 0 | BL15: 0 | BM15: 0 | BN15: 0 | BO15: 0 | BP15: 0 | BQ15: 0 | BR15: 0 | BS15: 0 | BT15: 0 | BU15: 0 | BV15: 0 | BW15: 0 | BX15: 0 | BY15: 0 | BZ15: 0 | CA15: 0 | CB15: =$BG15 -> 0.75 | CC15: 0.75 | CD15: 0.75 | CE15: 0.75 | CF15: 0.75 | CG15: 0.75 | CH15: 0.75 | CI15: 0.75 | CJ15: 0.75 | CK15: 0.75 | CL15: 0.75 | CM15: 0.75 | CN15: 0.75 | CO15: 0.75 | CP15: 0.75 | CQ15: 0.75 | CR15: 0.75 | CS15: 0.75 | CT15: 0.75 | CU15: 0.75 | CV15: 0.75 | CW15: 0.75 | CX15: 0.75 | CY15: 0.75 | CZ15: 0.75 | DA15: 0.75
D16: ='Efficiency Levels'!C17 -> EL3 | E16: ='Efficiency Levels'!D17 -> 1.159150715 | F16: 0 | H16: 0 | I16: =$F16 -> 0 | J16: 0 | K16: 0 | L16: 0 | M16: 0 | N16: 0 | O16: 0 | P16: 0 | Q16: 0 | R16: 0 | S16: 0 | T16: 0 | U16: 0 | V16: 0 | W16: 0 | X16: 0 | Y16: 0 | Z16: 0 | AA16: 0 | AB16: 0 | AC16: 0 | AD16: 0 | AE16: 0 | AF16: 0 | AG16: 0 | AH16: 0 | AI16: 0 | AJ16: 0 | AK16: 0 | AL16: 0 | AM16: 0 | AN16: 0 | AO16: 0 | AP16: 0 | AQ16: 0 | AR16: 0 | AS16: 0 | AT16: 0 | AU16: 0 | AV16: 0 | AW16: 0 | AX16: 0 | AY16: 0 | AZ16: 0 | BE16: ='Efficiency Levels'!J17 -> EL3 | BF16: ='Efficiency Levels'!K17 -> 8809.301232 | BG16: 0.25 | BI16: 0 | BJ16: 0 | BK16: 0 | BL16: 0 | BM16: 0 | BN16: 0 | BO16: 0 | BP16: 0 | BQ16: 0 | BR16: 0 | BS16: 0 | BT16: 0 | BU16: 0 | BV16: 0 | BW16: 0 | BX16: 0 | BY16: 0 | BZ16: 0 | CA16: 0 | CB16: 0.25 | CC16: 0.25 | CD16: 0.25 | CE16: 0.25 | CF16: 0.25 | CG16: 0.25 | CH16: 0.25 | CI16: 0.25 | CJ16: 0.25 | CK16: 0.25 | CL16: 0.25 | CM16: 0.25 | CN16: 0.25 | CO16: 0.25 | CP16: 0.25 | CQ16: 0.25 | CR16: 0.25 | CS16: 0.25 | CT16: 0.25 | CU16: 0.25 | CV16: 0.25 | CW16: 0.25 | CX16: 0.25 | CY16: 0.25 | CZ16: 0.25 | DA16: 0.25
D17: ='Efficiency Levels'!C18 -> EL4 | E17: ='Efficiency Levels'!D18 -> 0.9273205722 | F17: 0 | H17: 0 | I17: 0 | J17: 0 | K17: 0 | L17: 0 | M17: 0 | N17: 0 | O17: 0 | P17: 0 | Q17: 0 | R17: 0 | S17: 0 | T17: 0 | U17: 0 | V17: 0 | W17: 0 | X17: 0 | Y17: 0 | Z17: 0 | AA17: 0 | AB17: 0 | AC17: 0 | AD17: =$F17 -> 0 | AE17: 0 | AF17: 0 | AG17: 0 | AH17: 0 | AI17: 0 | AJ17: 0 | AK17: 0 | AL17: 0 | AM17: 0 | AN17: 0 | AO17: 0 | AP17: 0 | AQ17: 0 | AR17: 0 | AS17: 0 | AT17: 0 | AU17: 0 | AV17: 0 | AW17: 0 | AX17: 0 | AY17: 0 | AZ17: 0 | BE17: ='Efficiency Levels'!J18 -> EL4 | BF17: ='Efficiency Levels'!K18 -> 8344.69551 | BG17: 0 | BI17: 0 | BJ17: 0 | BK17: 0 | BL17: 0 | BM17: 0 | BN17: 0 | BO17: 0 | BP17: 0 | BQ17: 0 | BR17: 0 | BS17: 0 | BT17: 0 | BU17: 0 | BV17: 0 | BW17: 0 | BX17: 0 | BY17: 0 | BZ17: 0 | CA17: 0 | CB17: 0 | CC17: 0 | CD17: 0 | CE17: 0 | CF17: 0 | CG17: 0 | CH17: 0 | CI17: 0 | CJ17: 0 | CK17: 0 | CL17: 0 | CM17: 0 | CN17: 0 | CO17: 0 | CP17: 0 | CQ17: 0 | CR17: 0 | CS17: 0 | CT17: 0 | CU17: 0 | CV17: 0 | CW17: 0 | CX17: 0 | CY17: 0 | CZ17: 0 | DA17: 0
D18: ='Efficiency Levels'!C19 -> EL5 | E18: ='Efficiency Levels'!D19 -> 0.7727671435 | F18: 0 | H18: 0 | I18: 0 | J18: 0 | K18: 0 | L18: 0 | M18: 0 | N18: 0 | O18: 0 | P18: 0 | Q18: 0 | R18: 0 | S18: 0 | T18: 0 | U18: 0 | V18: 0 | W18: 0 | X18: 0 | Y18: 0 | Z18: 0 | AA18: 0 | AB18: 0 | AC18: 0 | AD18: 0 | AE18: 0 | AF18: 0 | AG18: 0 | AH18: 0 | AI18: 0 | AJ18: 0 | AK18: 0 | AL18: 0 | AM18: 0 | AN18: 0 | AO18: 0 | AP18: 0 | AQ18: 0 | AR18: 0 | AS18: 0 | AT18: 0 | AU18: 0 | AV18: 0 | AW18: 0 | AX18: 0 | AY18: 0 | AZ18: 0 | BE18: ='Efficiency Levels'!J19 -> EL5 | BF18: ='Efficiency Levels'!K19 -> 8041.139143 | BG18: 0 | BI18: 0 | BJ18: 0 | BK18: 0 | BL18: 0 | BM18: 0 | BN18: 0 | BO18: 0 | BP18: 0 | BQ18: 0 | BR18: 0 | BS18: 0 | BT18: 0 | BU18: 0 | BV18: 0 | BW18: 0 | BX18: 0 | BY18: 0 | BZ18: 0 | CA18: 0 | CB18: 0 | CC18: 0 | CD18: 0 | CE18: 0 | CF18: 0 | CG18: 0 | CH18: 0 | CI18: 0 | CJ18: 0 | CK18: 0 | CL18: 0 | CM18: 0 | CN18: 0 | CO18: 0 | CP18: 0 | CQ18: 0 | CR18: 0 | CS18: 0 | CT18: 0 | CU18: 0 | CV18: 0 | CW18: 0 | CX18: 0 | CY18: 0 | CZ18: 0 | DA18: 0
D19: ='Efficiency Levels'!C20 -> EL6 | E19: ='Efficiency Levels'!D20 -> 0.4121424765 | F19: 0 | H19: 0 | I19: 0 | J19: 0 | K19: 0 | L19: 0 | M19: 0 | N19: 0 | O19: 0 | P19: 0 | Q19: 0 | R19: 0 | S19: 0 | T19: 0 | U19: 0 | V19: 0 | W19: 0 | X19: 0 | Y19: 0 | Z19: 0 | AA19: 0 | AB19: 0 | AC19: 0 | AD19: 0 | AE19: 0 | AF19: 0 | AG19: 0 | AH19: 0 | AI19: 0 | AJ19: 0 | AK19: 0 | AL19: 0 | AM19: 0 | AN19: 0 | AO19: 0 | AP19: 0 | AQ19: 0 | AR19: 0 | AS19: 0 | AT19: 0 | AU19: 0 | AV19: 0 | AW19: 0 | AX19: 0 | AY19: 0 | AZ19: 0 | BE19: ='Efficiency Levels'!J20 -> EL6 | BF19: ='Efficiency Levels'!K20 -> 7648.858288 | BG19: 0 | BI19: 0 | BJ19: 0 | BK19: 0 | BL19: 0 | BM19: 0 | BN19: 0 | BO19: 0 | BP19: 0 | BQ19: 0 | BR19: 0 | BS19: 0 | BT19: 0 | BU19: 0 | BV19: 0 | BW19: 0 | BX19: 0 | BY19: 0 | BZ19: 0 | CA19: 0 | CB19: 0 | CC19: 0 | CD19: 0 | CE19: 0 | CF19: 0 | CG19: 0 | CH19: 0 | CI19: 0 | CJ19: 0 | CK19: 0 | CL19: 0 | CM19: 0 | CN19: 0 | CO19: 0 | CP19: 0 | CQ19: 0 | CR19: 0 | CS19: 0 | CT19: 0 | CU19: 0 | CV19: 0 | CW19: 0 | CX19: 0 | CY19: 0 | CZ19: 0 | DA19: 0
D20: TOTAL | F20: =SUM(F13:F19) -> 1 | H20: =SUM(H13:H19) -> 1 | I20: =SUM(I13:I19) -> 1 | J20: 1 | K20: 1 | L20: 1 | M20: 1 | N20: 1 | O20: 1 | P20: 1 | Q20: 1 | R20: 1 | S20: 1 | T20: 1 | U20: 1 | V20: 1 | W20: 1 | X20: 1 | Y20: 1 | Z20: 1 | AA20: 1 | AB20: 1 | AC20: 1 | AD20: 1 | AE20: 1 | AF20: 1 | AG20: 1 | AH20: 1 | AI20: 1 | AJ20: 1 | AK20: 1 | AL20: 1 | AM20: 1 | AN20: 1 | AO20: 1 | AP20: 1 | AQ20: 1 | AR20: 1 | AS20: 1 | AT20: 1 | AU20: 1 | AV20: 1 | AW20: 1 | AX20: 1 | AY20: 1 | AZ20: 1 | BE20: ='Efficiency Levels'!J21 -> EL7 | BF20: ='Efficiency Levels'!K21 -> 7562.933302 | BG20: 0 | BI20: 0 | BJ20: 0 | BK20: 0 | BL20: 0 | BM20: 0 | BN20: 0 | BO20: 0 | BP20: 0 | BQ20: 0 | BR20: 0 | BS20: 0 | BT20: 0 | BU20: 0 | BV20: 0 | BW20: 0 | BX20: 0 | BY20: 0 | BZ20: 0 | CA20: 0 | CB20: 0 | CC20: 0 | CD20: 0 | CE20: 0 | CF20: 0 | CG20: 0 | CH20: 0 | CI20: 0 | CJ20: 0 | CK20: 0 | CL20: 0 | CM20: 0 | CN20: 0 | CO20: 0 | CP20: 0 | CQ20: 0 | CR20: 0 | CS20: 0 | CT20: 0 | CU20: 0 | CV20: 0 | CW20: 0 | CX20: 0 | CY20: 0 | CZ20: 0 | DA20: 0
BE21: ='Efficiency Levels'!J22 -> EL8 | BF21: ='Efficiency Levels'!K22 -> 7064.464815 | BG21: 0 | BI21: 0 | BJ21: 0 | BK21: 0 | BL21: 0 | BM21: 0 | BN21: 0 | BO21: 0 | BP21: 0 | BQ21: 0 | BR21: 0 | BS21: 0 | BT21: 0 | BU21: 0 | BV21: 0 | BW21: 0 | BX21: 0 | BY21: 0 | BZ21: 0 | CA21: 0 | CB21: =$BG21 -> 0 | CC21: 0 | CD21: 0 | CE21: 0 | CF21: 0 | CG21: 0 | CH21: 0 | CI21: 0 | CJ21: 0 | CK21: 0 | CL21: 0 | CM21: 0 | CN21: 0 | CO21: 0 | CP21: 0 | CQ21: 0 | CR21: 0 | CS21: 0 | CT21: 0 | CU21: 0 | CV21: 0 | CW21: 0 | CX21: 0 | CY21: 0 | CZ21: 0 | DA21: 0
D22: POST-Case | BE22: TOTAL | BG22: =SUM(BG13:BG21) -> 1 | BI22: =SUM(BI13:BI21) -> 1 | BJ22: =SUM(BJ13:BJ21) -> 1 | BK22: 1 | BL22: 1 | BM22: 1 | BN22: 1 | BO22: 1 | BP22: 1 | BQ22: 1 | BR22: 1 | BS22: 1 | BT22: 1 | BU22: 1 | BV22: 1 | BW22: 1 | BX22: 1 | BY22: 1 | BZ22: 1 | CA22: 1 | CB22: 1 | CC22: 1 | CD22: 1 | CE22: 1 | CF22: 1 | CG22: 1 | CH22: 1 | CI22: 1 | CJ22: 1 | CK22: 1 | CL22: 1 | CM22: 1 | CN22: 1 | CO22: 1 | CP22: 1 | CQ22: 1 | CR22: 1 | CS22: 1 | CT22: 1 | CU22: 1 | CV22: 1 | CW22: 1 | CX22: 1 | CY22: 1 | CZ22: 1 | DA22: 1
D23: Efficiency Level | E23: EL (kWh/year) | H23: 1990 | I23: =H23+1 -> 1991 | J23: =I23+1 -> 1992 | K23: 1993 | L23: 1994 | M23: 1995 | N23: 1996 | O23: 1997 | P23: 1998 | Q23: 1999 | R23: 2000 | S23: 2001 | T23: 2002 | U23: 2003 | V23: 2004 | W23: 2005 | X23: =X12 -> 2006 | Y23: 2007 | Z23: 2008 | AA23: 2009 | AB23: 2010 | AC23: 2011 | AD23: 2012 | AE23: 2013 | AF23: 2014 | AG23: 2015 | AH23: 2016 | AI23: 2017 | AJ23: 2018 | AK23: 2019 | AL23: 2020 | AM23: 2021 | AN23: 2022 | AO23: 2023 | AP23: 2024 | AQ23: 2025 | AR23: 2026 | AS23: 2027 | AT23: 2028 | AU23: 2029 | AV23: 2030 | AW23: 2031 | AX23: 2032 | AY23: 2033 | AZ23: 2034
D24: ='Efficiency Levels'!C14 -> EL0 | E24: ='Efficiency Levels'!D14 -> 1.801721841 | H24: =H13 -> 1 | I24: =I13 -> 1 | J24: 1 | K24: 1 | L24: 1 | M24: 1 | N24: 1 | O24: 1 | P24: 1 | Q24: 1 | R24: 1 | S24: 1 | T24: 1 | U24: 1 | V24: 1 | W24: 1 | X24: 1 | Y24: 1 | Z24: 1 | AA24: 0 | AB24: 0 | AC24: 0 | AD24: 0 | AE24: 0 | AF24: 0 | AG24: 0 | AH24: 0 | AI24: 0 | AJ24: 0 | AK24: 0 | AL24: 0 | AM24: 0 | AN24: 0 | AO24: 0 | AP24: 0 | AQ24: 0 | AR24: 0 | AS24: 0 | AT24: 0 | AU24: 0 | AV24: 0 | AW24: 0 | AX24: 0 | AY24: 0 | AZ24: 0 | BE24: POST-Case
D25: ='Efficiency Levels'!C15 -> EL1 | E25: ='Efficiency Levels'!D15 -> 1.607823938 | H25: 0 | I25: =I14 -> 0 | J25: 0 | K25: 0 | L25: 0 | M25: 0 | N25: 0 | O25: 0 | P25: 0 | Q25: 0 | R25: 0 | S25: 0 | T25: 0 | U25: 0 | V25: 0 | W25: 0 | X25: 0 | Y25: 0 | Z25: 0 | AA25: 0 | AB25: 0 | AC25: 0 | AD25: 0 | AE25: 0 | AF25: 0 | AG25: 0 | AH25: 0 | AI25: 0 | AJ25: 0 | AK25: 0 | AL25: 0 | AM25: 0 | AN25: 0 | AO25: 0 | AP25: 0 | AQ25: 0 | AR25: 0 | AS25: 0 | AT25: 0 | AU25: 0 | AV25: 0 | AW25: 0 | AX25: 0 | AY25: 0 | AZ25: 0 | BE25: Efficiency Level | BF25: EL (kWh/year) | BI25: 1990 | BJ25: =BI25+1 -> 1991 | BK25: =BJ25+1 -> 1992 | BL25: =BK25+1 -> 1993 | BM25: =BL25+1 -> 1994 | BN25: =BM25+1 -> 1995 | BO25: =BN25+1 -> 1996 | BP25: =BO25+1 -> 1997 | BQ25: =BP25+1 -> 1998 | BR25: =BQ25+1 -> 1999 | BS25: =BR25+1 -> 2000 | BT25: =BS25+1 -> 2001 | BU25: =BT25+1 -> 2002 | BV25: =BU25+1 -> 2003 | BW25: =BV25+1 -> 2004 | BX25: =BW25+1 -> 2005 | BY25: =BY12 -> 2006 | BZ25: 2007 | CA25: 2008 | CB25: 2009 | CC25: 2010 | CD25: 2011 | CE25: 2012 | CF25: 2013 | CG25: 2014 | CH25: 2015 | CI25: 2016 | CJ25: 2017 | CK25: 2018 | CL25: 2019 | CM25: 2020 | CN25: 2021 | CO25: 2022 | CP25: 2023 | CQ25: 2024 | CR25: 2025 | CS25: 2026 | CT25: 2027 | CU25: 2028 | CV25: 2029 | CW25: 2030 | CX25: 2031 | CY25: 2032 | CZ25: 2033 | DA25: 2034
D26: ='Efficiency Levels'!C16 -> EL2 | E26: ='Efficiency Levels'!D16 -> 1.324743675 | H26: =H15 -> 0 | I26: =I15 -> 0 | J26: 0 | K26: 0 | L26: 0 | M26: 0 | N26: 0 | O26: 0 | P26: 0 | Q26: 0 | R26: 0 | S26: 0 | T26: 0 | U26: 0 | V26: 0 | W26: 0 | X26: 0 | Y26: 0 | Z26: 0 | AA26: =SUM(AA13:AA15) -> 1 | AB26: =SUM(AB13:AB15) -> 1 | AC26: 1 | AD26: 1 | AE26: 1 | AF26: 1 | AG26: 1 | AH26: =SUM(AH13:AH15) -> 1 | AI26: =SUM(AI13:AI15) -> 1 | AJ26: =SUM(AJ13:AJ15) -> 1 | AK26: 1 | AL26: 1 | AM26: 1 | AN26: 1 | AO26: 1 | AP26: 1 | AQ26: 1 | AR26: 1 | AS26: 1 | AT26: 1 | AU26: 1 | AV26: 1 | AW26: 1 | AX26: 1 | AY26: 1 | AZ26: 1 | BE26: =BE13 -> EL0 | BF26: 15952.31922 | BI26: =BI13 -> 1 | BJ26: 1 | BK26: 1 | BL26: 1 | BM26: 1 | BN26: 1 | BO26: 1 | BP26: 1 | BQ26: 1 | BR26: 1 | BS26: 1 | BT26: 1 | BU26: 1 | BV26: 1 | BW26: 1 | BX26: 1 | BY26: 1 | BZ26: 1 | CA26: 1 | CB26: =CB13 -> 0 | CC26: 0 | CD26: 0 | CE26: 0 | CF26: 0 | CG26: 0 | CH26: 0 | CI26: 0 | CJ26: 0 | CK26: 0 | CL26: 0 | CM26: 0 | CN26: 0 | CO26: 0 | CP26: 0 | CQ26: 0 | CR26: 0 | CS26: 0 | CT26: 0 | CU26: 0 | CV26: 0 | CW26: 0 | CX26: 0 | CY26: 0 | CZ26: 0 | DA26: 0
D27: ='Efficiency Levels'!C17 -> EL3 | E27: ='Efficiency Levels'!D17 -> 1.159150715 | H27: =H16 -> 0 | I27: =I16 -> 0 | J27: 0 | K27: 0 | L27: 0 | M27: 0 | N27: 0 | O27: 0 | P27: 0 | Q27: 0 | R27: 0 | S27: 0 | T27: 0 | U27: 0 | V27: 0 | W27: 0 | X27: 0 | Y27: 0 | Z27: 0 | AA27: =AA16 -> 0 | AB27: 0 | AC27: 0 | AD27: 0 | AE27: 0 | AF27: 0 | AG27: 0 | AH27: 0 | AI27: =AI16 -> 0 | AJ27: 0 | AK27: 0 | AL27: 0 | AM27: 0 | AN27: 0 | AO27: 0 | AP27: 0 | AQ27: 0 | AR27: 0 | AS27: 0 | AT27: 0 | AU27: 0 | AV27: 0 | AW27: 0 | AX27: 0 | AY27: 0 | AZ27: 0 | BE27: =BE14 -> EL1 | BF27: 12280.33426 | BI27: =BI14 -> 0 | BJ27: 0 | BK27: 0 | BL27: 0 | BM27: 0 | BN27: 0 | BO27: 0 | BP27: 0 | BQ27: 0 | BR27: 0 | BS27: 0 | BT27: 0 | BU27: 0 | BV27: 0 | BW27: 0 | BX27: 0 | BY27: 0 | BZ27: 0 | CA27: 0 | CB27: =CB14 -> 0 | CC27: 0 | CD27: 0 | CE27: 0 | CF27: 0 | CG27: 0 | CH27: 0 | CI27: 0 | CJ27: 0 | CK27: 0 | CL27: 0 | CM27: 0 | CN27: 0 | CO27: 0 | CP27: 0 | CQ27: 0 | CR27: 0 | CS27: 0 | CT27: 0 | CU27: 0 | CV27: 0 | CW27: 0 | CX27: 0 | CY27: 0 | CZ27: 0 | DA27: 0
D28: ='Efficiency Levels'!C18 -> EL4 | E28: ='Efficiency Levels'!D18 -> 0.9273205722 | H28: =H17 -> 0 | I28: =I17 -> 0 | J28: 0 | K28: 0 | L28: 0 | M28: 0 | N28: 0 | O28: 0 | P28: 0 | Q28: 0 | R28: 0 | S28: 0 | T28: 0 | U28: 0 | V28: 0 | W28: 0 | X28: 0 | Y28: 0 | Z28: 0 | AA28: 0 | AB28: 0 | AC28: 0 | AD28: 0 | AE28: 0 | AF28: 0 | AG28: 0 | AH28: 0 | AI28: =AI17 -> 0 | AJ28: 0 | AK28: 0 | AL28: 0 | AM28: 0 | AN28: 0 | AO28: 0 | AP28: 0 | AQ28: 0 | AR28: 0 | AS28: 0 | AT28: 0 | AU28: 0 | AV28: 0 | AW28: 0 | AX28: 0 | AY28: 0 | AZ28: 0 | BE28: =BE15 -> EL2 | BF28: 10273.01808 | BI28: =BI15 -> 0 | BJ28: 0 | BK28: 0 | BL28: 0 | BM28: 0 | BN28: 0 | BO28: 0 | BP28: 0 | BQ28: 0 | BR28: 0 | BS28: 0 | BT28: 0 | BU28: 0 | BV28: 0 | BW28: 0 | BX28: 0 | BY28: 0 | BZ28: 0 | CA28: 0 | CB28: 0.75 | CC28: 0.75 | CD28: 0.75 | CE28: 0.75 | CF28: 0.75 | CG28: 0.75 | CH28: 0.75 | CI28: 0.75 | CJ28: 0 | CK28: 0 | CL28: 0 | CM28: 0 | CN28: 0 | CO28: 0 | CP28: 0 | CQ28: 0 | CR28: 0 | CS28: 0 | CT28: 0 | CU28: 0 | CV28: 0 | CW28: 0 | CX28: 0 | CY28: 0 | CZ28: 0 | DA28: 0
D29: ='Efficiency Levels'!C19 -> EL5 | E29: ='Efficiency Levels'!D19 -> 0.7727671435 | H29: =H18 -> 0 | I29: =I18 -> 0 | J29: 0 | K29: 0 | L29: 0 | M29: 0 | N29: 0 | O29: 0 | P29: 0 | Q29: 0 | R29: 0 | S29: 0 | T29: 0 | U29: 0 | V29: 0 | W29: 0 | X29: 0 | Y29: 0 | Z29: 0 | AA29: 0 | AB29: 0 | AC29: 0 | AD29: 0 | AE29: 0 | AF29: 0 | AG29: 0 | AH29: 0 | AI29: =AI18 -> 0 | AJ29: 0 | AK29: 0 | AL29: 0 | AM29: 0 | AN29: 0 | AO29: 0 | AP29: 0 | AQ29: 0 | AR29: 0 | AS29: 0 | AT29: 0 | AU29: 0 | AV29: 0 | AW29: 0 | AX29: 0 | AY29: 0 | AZ29: 0 | BE29: EL3 | BF29: 8809.301232 | BI29: =BI16 -> 0 | BJ29: 0 | BK29: 0 | BL29: 0 | BM29: 0 | BN29: 0 | BO29: 0 | BP29: 0 | BQ29: 0 | BR29: 0 | BS29: 0 | BT29: 0 | BU29: 0 | BV29: 0 | BW29: 0 | BX29: 0 | BY29: 0 | BZ29: 0 | CA29: 0 | CB29: 0.25 | CC29: 0.25 | CD29: 0.25 | CE29: 0.25 | CF29: 0.25 | CG29: 0.25 | CH29: 0.25 | CI29: 0.25 | CJ29: 0 | CK29: 0 | CL29: 0 | CM29: 0 | CN29: 0 | CO29: 0 | CP29: 0 | CQ29: 0 | CR29: 0 | CS29: 0 | CT29: 0 | CU29: 0 | CV29: 0 | CW29: 0 | CX29: 0 | CY29: 0 | CZ29: 0 | DA29: 0
D30: ='Efficiency Levels'!C20 -> EL6 | E30: ='Efficiency Levels'!D20 -> 0.4121424765 | H30: =H19 -> 0 | I30: =I19 -> 0 | J30: 0 | K30: 0 | L30: 0 | M30: 0 | N30: 0 | O30: 0 | P30: 0 | Q30: 0 | R30: 0 | S30: 0 | T30: 0 | U30: 0 | V30: 0 | W30: 0 | X30: 0 | Y30: 0 | Z30: 0 | AA30: 0 | AB30: 0 | AC30: 0 | AD30: 0 | AE30: 0 | AF30: 0 | AG30: 0 | AH30: 0 | AI30: =AI19 -> 0 | AJ30: 0 | AK30: 0 | AL30: 0 | AM30: 0 | AN30: 0 | AO30: 0 | AP30: 0 | AQ30: 0 | AR30: 0 | AS30: 0 | AT30: 0 | AU30: 0 | AV30: 0 | AW30: 0 | AX30: 0 | AY30: 0 | AZ30: 0 | BE30: EL4 | BF30: 8344.69551 | BI30: =BI17 -> 0 | BJ30: 0 | BK30: 0 | BL30: 0 | BM30: 0 | BN30: 0 | BO30: 0 | BP30: 0 | BQ30: 0 | BR30: 0 | BS30: 0 | BT30: 0 | BU30: 0 | BV30: 0 | BW30: 0 | BX30: 0 | BY30: 0 | BZ30: 0 | CA30: 0 | CB30: 0 | CC30: 0 | CD30: 0 | CE30: 0 | CF30: 0 | CG30: 0 | CH30: 0 | CI30: 0 | CJ30: 0 | CK30: 0 | CL30: 0 | CM30: 0 | CN30: 0 | CO30: 0 | CP30: 0 | CQ30: 0 | CR30: 0 | CS30: 0 | CT30: 0 | CU30: 0 | CV30: 0 | CW30: 0 | CX30: 0 | CY30: 0 | CZ30: 0 | DA30: 0
D31: TOTAL | H31: =SUM(H24:H30) -> 1 | I31: =SUM(I24:I30) -> 1 | J31: 1 | K31: 1 | L31: 1 | M31: 1 | N31: 1 | O31: 1 | P31: 1 | Q31: 1 | R31: 1 | S31: 1 | T31: 1 | U31: 1 | V31: 1 | W31: 1 | X31: 1 | Y31: 1 | Z31: 1 | AA31: =SUM(AA24:AA30) -> 1 | AB31: =SUM(AB24:AB30) -> 1 | AC31: 1 | AD31: 1 | AE31: 1 | AF31: 1 | AG31: 1 | AH31: 1 | AI31: 1 | AJ31: =SUM(AJ24:AJ30) -> 1 | AK31: =SUM(AK24:AK30) -> 1 | AL31: =SUM(AL24:AL30) -> 1 | AM31: =SUM(AM24:AM30) -> 1 | AN31: =SUM(AN24:AN30) -> 1 | AO31: =SUM(AO24:AO30) -> 1 | AP31: =SUM(AP24:AP30) -> 1 | AQ31: 1 | AR31: =SUM(AR24:AR30) -> 1 | AS31: =SUM(AS24:AS30) -> 1 | AT31: =SUM(AT24:AT30) -> 1 | AU31: =SUM(AU24:AU30) -> 1 | AV31: =SUM(AV24:AV30) -> 1 | AW31: =SUM(AW24:AW30) -> 1 | AX31: =SUM(AX24:AX30) -> 1 | AY31: 1 | AZ31: =SUM(AZ24:AZ30) -> 1 | BE31: EL5 | BF31: 8041.139143 | BI31: =BI18 -> 0 | BJ31: 0 | BK31: 0 | BL31: 0 | BM31: 0 | BN31: 0 | BO31: 0 | BP31: 0 | BQ31: 0 | BR31: 0 | BS31: 0 | BT31: 0 | BU31: 0 | BV31: 0 | BW31: 0 | BX31: 0 | BY31: 0 | BZ31: 0 | CA31: 0 | CB31: 0 | CC31: 0 | CD31: 0 | CE31: 0 | CF31: 0 | CG31: 0 | CH31: 0 | CI31: 0 | CJ31: 0 | CK31: 0 | CL31: 0 | CM31: 0 | CN31: 0 | CO31: 0 | CP31: 0 | CQ31: 0 | CR31: 0 | CS31: 0 | CT31: 0 | CU31: 0 | CV31: 0 | CW31: 0 | CX31: 0 | CY31: 0 | CZ31: 0 | DA31: 0
BE32: EL6 | BF32: 7648.858288 | BI32: =BI19 -> 0 | BJ32: 0 | BK32: 0 | BL32: 0 | BM32: 0 | BN32: 0 | BO32: 0 | BP32: 0 | BQ32: 0 | BR32: 0 | BS32: 0 | BT32: 0 | BU32: 0 | BV32: 0 | BW32: 0 | BX32: 0 | BY32: 0 | BZ32: 0 | CA32: 0 | CB32: 0 | CC32: 0 | CD32: 0 | CE32: 0 | CF32: 0 | CG32: 0 | CH32: 0 | CI32: 0 | CJ32: 0 | CK32: 0 | CL32: 0 | CM32: 0 | CN32: 0 | CO32: 0 | CP32: 0 | CQ32: 0 | CR32: 0 | CS32: 0 | CT32: 0 | CU32: 0 | CV32: 0 | CW32: 0 | CX32: 0 | CY32: 0 | CZ32: 0 | DA32: 0
D33: Sources | E33: 1. DOE Walk-In Coolers and Freezers 2014 Final Rule, Technical Support Document: Final Rule National Impact Analysis (NIA) - Components, 'Market Share Inputs' tab, cells B3:M35, http://www.regulations.gov/#!documentDetail;D=EERE-2008-BT-STD-0015-0134 | BE33: EL7 | BF33: 7562.933302 | BI33: =BI20 -> 0 | BJ33: 0 | BK33: 0 | BL33: 0 | BM33: 0 | BN33: 0 | BO33: 0 | BP33: 0 | BQ33: 0 | BR33: 0 | BS33: 0 | BT33: 0 | BU33: 0 | BV33: 0 | BW33: 0 | BX33: 0 | BY33: 0 | BZ33: 0 | CA33: 0 | CB33: 0 | CC33: 0 | CD33: 0 | CE33: 0 | CF33: 0 | CG33: 0 | CH33: 0 | CI33: 0 | CJ33: 0 | CK33: 0 | CL33: 0 | CM33: 0 | CN33: 0 | CO33: 0 | CP33: 0 | CQ33: 0 | CR33: 0 | CS33: 0 | CT33: 0 | CU33: 0 | CV33: 0 | CW33: 0 | CX33: 0 | CY33: 0 | CZ33: 0 | DA33: 0
BE34: EL8 | BF34: 7064.464815 | BI34: =BI21 -> 0 | BJ34: 0 | BK34: 0 | BL34: 0 | BM34: 0 | BN34: 0 | BO34: 0 | BP34: 0 | BQ34: 0 | BR34: 0 | BS34: 0 | BT34: 0 | BU34: 0 | BV34: 0 | BW34: 0 | BX34: 0 | BY34: 0 | BZ34: 0 | CA34: 0 | CB34: 0 | CC34: 0 | CD34: 0 | CE34: 0 | CF34: 0 | CG34: 0 | CH34: 0 | CI34: 0 | CJ34: =SUM(CJ15:CJ21) -> 1 | CK34: 1 | CL34: 1 | CM34: 1 | CN34: 1 | CO34: 1 | CP34: 1 | CQ34: 1 | CR34: 1 | CS34: 1 | CT34: 1 | CU34: 1 | CV34: 1 | CW34: 1 | CX34: 1 | CY34: 1 | CZ34: 1 | DA34: 1
BE35: TOTAL | BI35: =SUM(BI26:BI34) -> 1 | BJ35: =SUM(BJ26:BJ34) -> 1 | BK35: 1 | BL35: 1 | BM35: 1 | BN35: 1 | BO35: 1 | BP35: 1 | BQ35: 1 | BR35: 1 | BS35: 1 | BT35: 1 | BU35: 1 | BV35: 1 | BW35: 1 | BX35: 1 | BY35: 1 | BZ35: 1 | CA35: 1 | CB35: 1 | CC35: 1 | CD35: 1 | CE35: 1 | CF35: 1 | CG35: 1 | CH35: 1 | CI35: 1 | CJ35: 1 | CK35: 1 | CL35: 1 | CM35: 1 | CN35: 1 | CO35: 1 | CP35: 1 | CQ35: 1 | CR35: 1 | CS35: 1 | CT35: 1 | CU35: 1 | CV35: 1 | CW35: 1 | CX35: 1 | CY35: 1 | CZ35: 1 | DA35: 1
BE37: Sources | BF37: 1. DOE Walk-In Coolers and Freezers 2014 Final Rule, Technical Support Document: Final Rule National Impact Analysis (NIA) - Systems, 'Market Share Inputs' tab, cells B3:M35, http://www.regulations.gov/#!documentDetail;D=EERE-2008-BT-STD-0015-0134
D38: ='Product Classes'!K12&" - "&OFFSET('Product Classes'!$F$10,MATCH('Product Classes'!K12,MODEL_PCS,0),0) -> SP.L - Structural Panel, Low Temperature
D40: PRE-Case | F40: Static Distribution
D41: Efficiency Level | E41: EL (kWh/year) | F41: 2006 | H41: 1990 | I41: =H41+1 -> 1991 | J41: 1992 | K41: 1993 | L41: 1994 | M41: 1995 | N41: 1996 | O41: 1997 | P41: 1998 | Q41: 1999 | R41: 2000 | S41: 2001 | T41: 2002 | U41: 2003 | V41: 2004 | W41: 2005 | X41: 2006 | Y41: 2007 | Z41: 2008 | AA41: 2009 | AB41: 2010 | AC41: 2011 | AD41: 2012 | AE41: 2013 | AF41: 2014 | AG41: 2015 | AH41: 2016 | AI41: 2017 | AJ41: 2018 | AK41: 2019 | AL41: 2020 | AM41: 2021 | AN41: 2022 | AO41: 2023 | AP41: 2024 | AQ41: 2025 | AR41: 2026 | AS41: 2027 | AT41: 2028 | AU41: 2029 | AV41: 2030 | AW41: 2031 | AX41: 2032 | AY41: 2033 | AZ41: 2034
D42: ='Efficiency Levels'!C33 -> EL0 | E42: ='Efficiency Levels'!D33 -> 6.907461111 | F42: 1 | H42: =$F42 -> 1 | I42: 1 | J42: 1 | K42: 1 | L42: 1 | M42: 1 | N42: 1 | O42: 1 | P42: 1 | Q42: 1 | R42: 1 | S42: 1 | T42: 1 | U42: 1 | V42: 1 | W42: 1 | X42: =$F42 -> 1 | Y42: 1 | Z42: 1 | AA42: 0 | AB42: 0 | AC42: 0 | AD42: 0 | AE42: 0 | AF42: 0 | AG42: 0 | AH42: 0 | AI42: 0 | AJ42: 0 | AK42: 0 | AL42: 0 | AM42: 0 | AN42: 0 | AO42: 0 | AP42: 0 | AQ42: 0 | AR42: 0 | AS42: 0 | AT42: 0 | AU42: 0 | AV42: 0 | AW42: 0 | AX42: 0 | AY42: 0 | AZ42: 0 | BE42: ='Product Class Dist'!AZ12 -> DC.L.I.009
D43: ='Efficiency Levels'!C34 -> EL1 | E43: ='Efficiency Levels'!D34 -> 6.158704629 | F43: 0 | H43: 0 | I43: 0 | J43: 0 | K43: 0 | L43: 0 | M43: 0 | N43: 0 | O43: 0 | P43: 0 | Q43: 0 | R43: 0 | S43: 0 | T43: 0 | U43: 0 | V43: 0 | W43: 0 | X43: 0 | Y43: 0 | Z43: 0 | AA43: 0 | AB43: 0 | AC43: 0 | AD43: 0 | AE43: 0 | AF43: 0 | AG43: 0 | AH43: 0 | AI43: 0 | AJ43: 0 | AK43: 0 | AL43: 0 | AM43: 0 | AN43: 0 | AO43: 0 | AP43: 0 | AQ43: 0 | AR43: 0 | AS43: 0 | AT43: 0 | AU43: 0 | AV43: 0 | AW43: 0 | AX43: 0 | AY43: 0 | AZ43: 0
D44: ='Efficiency Levels'!C35 -> EL2 | E44: ='Efficiency Levels'!D35 -> 5.593414766 | F44: 0 | H44: 0 | I44: 0 | J44: 0 | K44: 0 | L44: 0 | M44: 0 | N44: 0 | O44: 0 | P44: 0 | Q44: 0 | R44: 0 | S44: 0 | T44: 0 | U44: 0 | V44: 0 | W44: 0 | X44: 0 | Y44: 0 | Z44: 0 | AA44: 1 | AB44: 1 | AC44: 1 | AD44: 1 | AE44: 1 | AF44: 1 | AG44: 1 | AH44: 1 | AI44: 1 | AJ44: 1 | AK44: 1 | AL44: 1 | AM44: 1 | AN44: 1 | AO44: 1 | AP44: 1 | AQ44: 1 | AR44: 1 | AS44: 1 | AT44: 1 | AU44: 1 | AV44: 1 | AW44: 1 | AX44: 1 | AY44: 1 | AZ44: 1 | BE44: PRE-Case | BG44: Static Distribution
D45: ='Efficiency Levels'!C36 -> EL3 | E45: ='Efficiency Levels'!D36 -> 4.474731813 | F45: 0 | H45: 0 | I45: 0 | J45: 0 | K45: 0 | L45: 0 | M45: 0 | N45: 0 | O45: 0 | P45: 0 | Q45: 0 | R45: 0 | S45: 0 | T45: 0 | U45: 0 | V45: 0 | W45: 0 | X45: 0 | Y45: 0 | Z45: 0 | AA45: 0 | AB45: 0 | AC45: 0 | AD45: 0 | AE45: 0 | AF45: 0 | AG45: 0 | AH45: 0 | AI45: 0 | AJ45: 0 | AK45: 0 | AL45: 0 | AM45: 0 | AN45: 0 | AO45: 0 | AP45: 0 | AQ45: 0 | AR45: 0 | AS45: 0 | AT45: 0 | AU45: 0 | AV45: 0 | AW45: 0 | AX45: 0 | AY45: 0 | AZ45: 0 | BE45: Efficiency Level | BF45: EL (kWh/year) | BG45: 2014 | BI45: 1990 | BJ45: =BI45+1 -> 1991 | BK45: =BJ45+1 -> 1992 | BL45: =BK45+1 -> 1993 | BM45: =BL45+1 -> 1994 | BN45: =BM45+1 -> 1995 | BO45: =BN45+1 -> 1996 | BP45: =BO45+1 -> 1997 | BQ45: =BP45+1 -> 1998 | BR45: =BQ45+1 -> 1999 | BS45: =BR45+1 -> 2000 | BT45: =BS45+1 -> 2001 | BU45: =BT45+1 -> 2002 | BV45: =BU45+1 -> 2003 | BW45: =BV45+1 -> 2004 | BX45: =BW45+1 -> 2005 | BY45: =BX45+1 -> 2006 | BZ45: =BY45+1 -> 2007 | CA45: =BZ45+1 -> 2008 | CB45: =CA45+1 -> 2009 | CC45: =CB45+1 -> 2010 | CD45: =CC45+1 -> 2011 | CE45: =CD45+1 -> 2012 | CF45: =CE45+1 -> 2013 | CG45: =CF45+1 -> 2014 | CH45: =CG45+1 -> 2015 | CI45: =CH45+1 -> 2016 | CJ45: =CI45+1 -> 2017 | CK45: =CJ45+1 -> 2018 | CL45: =CK45+1 -> 2019 | CM45: =CL45+1 -> 2020 | CN45: =CM45+1 -> 2021 | CO45: =CN45+1 -> 2022 | CP45: =CO45+1 -> 2023 | CQ45: =CP45+1 -> 2024 | CR45: =CQ45+1 -> 2025 | CS45: =CR45+1 -> 2026 | CT45: =CS45+1 -> 2027 | CU45: =CT45+1 -> 2028 | CV45: =CU45+1 -> 2029 | CW45: =CV45+1 -> 2030 | CX45: =CW45+1 -> 2031 | CY45: =CX45+1 -> 2032 | CZ45: =CY45+1 -> 2033 | DA45: =CZ45+1 -> 2034
D46: ='Efficiency Levels'!C37 -> EL4 | E46: ='Efficiency Levels'!D37 -> 3.728943177 | F46: 0 | H46: 0 | I46: 0 | J46: 0 | K46: 0 | L46: 0 | M46: 0 | N46: 0 | O46: 0 | P46: 0 | Q46: 0 | R46: 0 | S46: 0 | T46: 0 | U46: 0 | V46: 0 | W46: 0 | X46: 0 | Y46: 0 | Z46: 0 | AA46: 0 | AB46: 0 | AC46: 0 | AD46: 0 | AE46: 0 | AF46: 0 | AG46: 0 | AH46: 0 | AI46: 0 | AJ46: 0 | AK46: 0 | AL46: 0 | AM46: 0 | AN46: 0 | AO46: 0 | AP46: 0 | AQ46: 0 | AR46: 0 | AS46: 0 | AT46: 0 | AU46: 0 | AV46: 0 | AW46: 0 | AX46: 0 | AY46: 0 | AZ46: 0 | BE46: ='Efficiency Levels'!J33 -> EL0 | BF46: ='Efficiency Levels'!K33 -> 20094.23982 | BG46: 0 | BI46: 1 | BJ46: 1 | BK46: 1 | BL46: 1 | BM46: 1 | BN46: 1 | BO46: 1 | BP46: 1 | BQ46: 1 | BR46: 1 | BS46: 1 | BT46: 1 | BU46: 1 | BV46: 1 | BW46: 1 | BX46: 1 | BY46: 1 | BZ46: 1 | CA46: 1 | CB46: =$BG46 -> 0 | CC46: 0 | CD46: 0 | CE46: 0 | CF46: 0 | CG46: =$BG46 -> 0 | CH46: 0 | CI46: 0 | CJ46: 0 | CK46: 0 | CL46: 0 | CM46: 0 | CN46: 0 | CO46: 0 | CP46: 0 | CQ46: 0 | CR46: 0 | CS46: 0 | CT46: 0 | CU46: 0 | CV46: 0 | CW46: 0 | CX46: 0 | CY46: 0 | CZ46: 0 | DA46: 0
D47: ='Efficiency Levels'!C38 -> EL5 | E47: ='Efficiency Levels'!D38 -> 1.988769695 | F47: 0 | H47: 0 | I47: 0 | J47: 0 | K47: 0 | L47: 0 | M47: 0 | N47: 0 | O47: 0 | P47: 0 | Q47: 0 | R47: 0 | S47: 0 | T47: 0 | U47: 0 | V47: 0 | W47: 0 | X47: 0 | Y47: 0 | Z47: 0 | AA47: 0 | AB47: 0 | AC47: 0 | AD47: 0 | AE47: 0 | AF47: 0 | AG47: 0 | AH47: 0 | AI47: 0 | AJ47: 0 | AK47: 0 | AL47: 0 | AM47: 0 | AN47: 0 | AO47: 0 | AP47: 0 | AQ47: 0 | AR47: 0 | AS47: 0 | AT47: 0 | AU47: 0 | AV47: 0 | AW47: 0 | AX47: 0 | AY47: 0 | AZ47: 0 | BE47: ='Efficiency Levels'!J34 -> EL1 | BF47: ='Efficiency Levels'!K34 -> 16422.18145 | BG47: 0 | BI47: 0 | BJ47: 0 | BK47: 0 | BL47: 0 | BM47: 0 | BN47: 0 | BO47: 0 | BP47: 0 | BQ47: 0 | BR47: 0 | BS47: 0 | BT47: 0 | BU47: 0 | BV47: 0 | BW47: 0 | BX47: 0 | BY47: 0 | BZ47: 0 | CA47: 0 | CB47: 0 | CC47: 0 | CD47: 0 | CE47: 0 | CF47: 0 | CG47: 0 | CH47: 0 | CI47: 0 | CJ47: 0 | CK47: 0 | CL47: 0 | CM47: 0 | CN47: 0 | CO47: 0 | CP47: 0 | CQ47: 0 | CR47: 0 | CS47: 0 | CT47: 0 | CU47: 0 | CV47: 0 | CW47: 0 | CX47: 0 | CY47: 0 | CZ47: 0 | DA47: 0
D48: ='Efficiency Levels'!C39 -> EL6 | E48: ='Efficiency Levels'!D39 -> 1.988769695 | F48: 0 | H48: 0 | I48: 0 | J48: 0 | K48: 0 | L48: 0 | M48: 0 | N48: 0 | O48: =$F48 -> 0 | P48: 0 | Q48: 0 | R48: 0 | S48: 0 | T48: 0 | U48: 0 | V48: 0 | W48: 0 | X48: 0 | Y48: 0 | Z48: 0 | AA48: 0 | AB48: 0 | AC48: 0 | AD48: 0 | AE48: 0 | AF48: 0 | AG48: 0 | AH48: 0 | AI48: 0 | AJ48: 0 | AK48: 0 | AL48: 0 | AM48: 0 | AN48: 0 | AO48: 0 | AP48: 0 | AQ48: 0 | AR48: 0 | AS48: 0 | AT48: 0 | AU48: 0 | AV48: 0 | AW48: 0 | AX48: 0 | AY48: 0 | AZ48: 0 | BE48: ='Efficiency Levels'!J35 -> EL2 | BF48: ='Efficiency Levels'!K35 -> 14690.0016 | BG48: 0.75 | BI48: 0 | BJ48: 0 | BK48: 0 | BL48: 0 | BM48: 0 | BN48: 0 | BO48: 0 | BP48: 0 | BQ48: 0 | BR48: 0 | BS48: 0 | BT48: 0 | BU48: 0 | BV48: 0 | BW48: 0 | BX48: 0 | BY48: 0 | BZ48: 0 | CA48: 0 | CB48: 0.75 | CC48: 0.75 | CD48: 0.75 | CE48: 0.75 | CF48: 0.75 | CG48: 0.75 | CH48: 0.75 | CI48: 0.75 | CJ48: 0.75 | CK48: 0.75 | CL48: 0.75 | CM48: 0.75 | CN48: 0.75 | CO48: 0.75 | CP48: 0.75 | CQ48: 0.75 | CR48: 0.75 | CS48: 0.75 | CT48: 0.75 | CU48: 0.75 | CV48: 0.75 | CW48: 0.75 | CX48: 0.75 | CY48: 0.75 | CZ48: 0.75 | DA48: 0.75
D49: TOTAL | F49: =SUM(F42:F48) -> 1 | H49: =SUM(H42:H48) -> 1 | I49: =SUM(I42:I48) -> 1 | J49: 1 | K49: 1 | L49: 1 | M49: 1 | N49: 1 | O49: 1 | P49: 1 | Q49: 1 | R49: 1 | S49: 1 | T49: 1 | U49: 1 | V49: 1 | W49: 1 | X49: 1 | Y49: 1 | Z49: 1 | AA49: 1 | AB49: 1 | AC49: 1 | AD49: 1 | AE49: 1 | AF49: 1 | AG49: 1 | AH49: 1 | AI49: 1 | AJ49: 1 | AK49: 1 | AL49: 1 | AM49: 1 | AN49: 1 | AO49: 1 | AP49: 1 | AQ49: 1 | AR49: 1 | AS49: 1 | AT49: 1 | AU49: 1 | AV49: 1 | AW49: 1 | AX49: 1 | AY49: 1 | AZ49: 1 | BE49: ='Efficiency Levels'!J36 -> EL3 | BF49: ='Efficiency Levels'!K36 -> 13937.94033 | BG49: 0.25 | BI49: 0 | BJ49: 0 | BK49: 0 | BL49: 0 | BM49: 0 | BN49: 0 | BO49: 0 | BP49: 0 | BQ49: 0 | BR49: 0 | BS49: 0 | BT49: 0 | BU49: 0 | BV49: 0 | BW49: 0 | BX49: 0 | BY49: 0 | BZ49: 0 | CA49: 0 | CB49: 0.25 | CC49: 0.25 | CD49: 0.25 | CE49: 0.25 | CF49: 0.25 | CG49: 0.25 | CH49: 0.25 | CI49: 0.25 | CJ49: 0.25 | CK49: 0.25 | CL49: 0.25 | CM49: 0.25 | CN49: 0.25 | CO49: 0.25 | CP49: 0.25 | CQ49: 0.25 | CR49: 0.25 | CS49: 0.25 | CT49: 0.25 | CU49: 0.25 | CV49: 0.25 | CW49: 0.25 | CX49: 0.25 | CY49: 0.25 | CZ49: 0.25 | DA49: 0.25
BE50: ='Efficiency Levels'!J37 -> EL4 | BF50: ='Efficiency Levels'!K37 -> 13481.88376 | BG50: 0 | BI50: 0 | BJ50: 0 | BK50: 0 | BL50: 0 | BM50: 0 | BN50: 0 | BO50: 0 | BP50: 0 | BQ50: 0 | BR50: 0 | BS50: 0 | BT50: 0 | BU50: 0 | BV50: 0 | BW50: 0 | BX50: 0 | BY50: 0 | BZ50: 0 | CA50: 0 | CB50: 0 | CC50: 0 | CD50: 0 | CE50: 0 | CF50: 0 | CG50: 0 | CH50: 0 | CI50: 0 | CJ50: 0 | CK50: 0 | CL50: 0 | CM50: 0 | CN50: 0 | CO50: 0 | CP50: 0 | CQ50: 0 | CR50: 0 | CS50: 0 | CT50: 0 | CU50: 0 | CV50: 0 | CW50: 0 | CX50: 0 | CY50: 0 | CZ50: 0 | DA50: 0
D51: POST-Case | BE51: ='Efficiency Levels'!J38 -> EL5 | BF51: ='Efficiency Levels'!K38 -> 11815.04532 | BG51: 0 | BI51: 0 | BJ51: 0 | BK51: 0 | BL51: 0 | BM51: 0 | BN51: 0 | BO51: 0 | BP51: 0 | BQ51: 0 | BR51: 0 | BS51: 0 | BT51: 0 | BU51: 0 | BV51: 0 | BW51: 0 | BX51: 0 | BY51: 0 | BZ51: 0 | CA51: 0 | CB51: 0 | CC51: 0 | CD51: 0 | CE51: 0 | CF51: 0 | CG51: 0 | CH51: 0 | CI51: 0 | CJ51: 0 | CK51: 0 | CL51: 0 | CM51: 0 | CN51: 0 | CO51: 0 | CP51: 0 | CQ51: 0 | CR51: 0 | CS51: 0 | CT51: 0 | CU51: 0 | CV51: 0 | CW51: 0 | CX51: 0 | CY51: 0 | CZ51: 0 | DA51: 0
D52: Efficiency Level | E52: EL (kWh/year) | H52: 1990 | I52: =H52+1 -> 1991 | J52: 1992 | K52: 1993 | L52: 1994 | M52: 1995 | N52: 1996 | O52: 1997 | P52: 1998 | Q52: 1999 | R52: 2000 | S52: 2001 | T52: 2002 | U52: 2003 | V52: 2004 | W52: 2005 | X52: =X41 -> 2006 | Y52: 2007 | Z52: 2008 | AA52: 2009 | AB52: 2010 | AC52: 2011 | AD52: 2012 | AE52: 2013 | AF52: 2014 | AG52: 2015 | AH52: 2016 | AI52: 2017 | AJ52: 2018 | AK52: 2019 | AL52: 2020 | AM52: 2021 | AN52: 2022 | AO52: 2023 | AP52: 2024 | AQ52: 2025 | AR52: 2026 | AS52: 2027 | AT52: 2028 | AU52: 2029 | AV52: 2030 | AW52: 2031 | AX52: 2032 | AY52: 2033 | AZ52: 2034 | BE52: ='Efficiency Levels'!J39 -> EL6 | BF52: ='Efficiency Levels'!K39 -> 11500.35485 | BG52: 0 | BI52: 0 | BJ52: 0 | BK52: 0 | BL52: 0 | BM52: 0 | BN52: 0 | BO52: 0 | BP52: 0 | BQ52: 0 | BR52: 0 | BS52: 0 | BT52: 0 | BU52: 0 | BV52: 0 | BW52: 0 | BX52: 0 | BY52: 0 | BZ52: 0 | CA52: 0 | CB52: 0 | CC52: 0 | CD52: 0 | CE52: 0 | CF52: 0 | CG52: 0 | CH52: 0 | CI52: 0 | CJ52: 0 | CK52: 0 | CL52: 0 | CM52: 0 | CN52: 0 | CO52: 0 | CP52: 0 | CQ52: 0 | CR52: 0 | CS52: 0 | CT52: 0 | CU52: 0 | CV52: 0 | CW52: 0 | CX52: 0 | CY52: 0 | CZ52: 0 | DA52: 0
D53: ='Efficiency Levels'!C33 -> EL0 | E53: ='Efficiency Levels'!D33 -> 6.907461111 | H53: =H42 -> 1 | I53: 1 | J53: 1 | K53: 1 | L53: 1 | M53: 1 | N53: 1 | O53: 1 | P53: 1 | Q53: 1 | R53: 1 | S53: 1 | T53: 1 | U53: 1 | V53: 1 | W53: 1 | X53: =X42 -> 1 | Y53: 1 | Z53: 1 | AA53: 0 | AB53: 0 | AC53: 0 | AD53: 0 | AE53: 0 | AF53: 0 | AG53: 0 | AH53: 0 | AI53: 0 | AJ53: 0 | AK53: 0 | AL53: 0 | AM53: 0 | AN53: 0 | AO53: 0 | AP53: 0 | AQ53: 0 | AR53: 0 | AS53: 0 | AT53: 0 | AU53: 0 | AV53: 0 | AW53: 0 | AX53: 0 | AY53: 0 | AZ53: 0 | BE53: ='Efficiency Levels'!J40 -> EL7 | BF53: ='Efficiency Levels'!K40 -> 11078.18516 | BG53: 0 | BI53: 0 | BJ53: 0 | BK53: 0 | BL53: 0 | BM53: 0 | BN53: 0 | BO53: 0 | BP53: 0 | BQ53: 0 | BR53: 0 | BS53: 0 | BT53: 0 | BU53: 0 | BV53: 0 | BW53: 0 | BX53: 0 | BY53: 0 | BZ53: 0 | CA53: 0 | CB53: 0 | CC53: 0 | CD53: 0 | CE53: 0 | CF53: 0 | CG53: 0 | CH53: 0 | CI53: 0 | CJ53: 0 | CK53: 0 | CL53: 0 | CM53: 0 | CN53: 0 | CO53: 0 | CP53: 0 | CQ53: 0 | CR53: 0 | CS53: 0 | CT53: 0 | CU53: 0 | CV53: 0 | CW53: 0 | CX53: 0 | CY53: 0 | CZ53: 0 | DA53: 0
D54: ='Efficiency Levels'!C34 -> EL1 | E54: ='Efficiency Levels'!D34 -> 6.158704629 | H54: 0 | I54: 0 | J54: 0 | K54: 0 | L54: 0 | M54: 0 | N54: 0 | O54: 0 | P54: 0 | Q54: 0 | R54: 0 | S54: 0 | T54: 0 | U54: 0 | V54: 0 | W54: 0 | X54: 0 | Y54: 0 | Z54: 0 | AA54: 0 | AB54: 0 | AC54: 0 | AD54: 0 | AE54: 0 | AF54: 0 | AG54: 0 | AH54: 0 | AI54: 0 | AJ54: 0 | AK54: 0 | AL54: 0 | AM54: 0 | AN54: 0 | AO54: 0 | AP54: 0 | AQ54: 0 | AR54: 0 | AS54: 0 | AT54: 0 | AU54: 0 | AV54: 0 | AW54: 0 | AX54: 0 | AY54: 0 | AZ54: 0 | BE54: TOTAL | BG54: =SUM(BG46:BG53) -> 1 | BI54: =SUM(BI46:BI53) -> 1 | BJ54: =SUM(BJ46:BJ53) -> 1 | BK54: 1 | BL54: 1 | BM54: 1 | BN54: 1 | BO54: 1 | BP54: 1 | BQ54: 1 | BR54: 1 | BS54: 1 | BT54: 1 | BU54: 1 | BV54: 1 | BW54: 1 | BX54: 1 | BY54: 1 | BZ54: 1 | CA54: 1 | CB54: 1 | CC54: 1 | CD54: 1 | CE54: 1 | CF54: 1 | CG54: 1 | CH54: 1 | CI54: 1 | CJ54: 1 | CK54: 1 | CL54: 1 | CM54: 1 | CN54: 1 | CO54: 1 | CP54: 1 | CQ54: 1 | CR54: 1 | CS54: 1 | CT54: 1 | CU54: 1 | CV54: 1 | CW54: 1 | CX54: 1 | CY54: 1 | CZ54: 1 | DA54: 1
D55: ='Efficiency Levels'!C35 -> EL2 | E55: ='Efficiency Levels'!D35 -> 5.593414766 | H55: =H44 -> 0 | I55: 0 | J55: 0 | K55: 0 | L55: 0 | M55: 0 | N55: 0 | O55: 0 | P55: 0 | Q55: 0 | R55: 0 | S55: 0 | T55: 0 | U55: 0 | V55: 0 | W55: 0 | X55: 0 | Y55: 0 | Z55: 0 | AA55: =SUM(AA42:AA44) -> 1 | AB55: =SUM(AB42:AB44) -> 1 | AC55: 1 | AD55: 1 | AE55: 1 | AF55: 1 | AG55: 1 | AH55: 1 | AI55: =SUM(AI42:AI44) -> 1 | AJ55: =SUM(AJ42:AJ44) -> 1 | AK55: 1 | AL55: 1 | AM55: 1 | AN55: 1 | AO55: 1 | AP55: 1 | AQ55: 1 | AR55: 1 | AS55: 1 | AT55: 1 | AU55: 1 | AV55: 1 | AW55: 1 | AX55: 1 | AY55: 1 | AZ55: 1
D56: ='Efficiency Levels'!C36 -> EL3 | E56: ='Efficiency Levels'!D36 -> 4.474731813 | H56: =H45 -> 0 | I56: 0 | J56: 0 | K56: 0 | L56: 0 | M56: 0 | N56: 0 | O56: 0 | P56: 0 | Q56: 0 | R56: 0 | S56: 0 | T56: 0 | U56: 0 | V56: 0 | W56: 0 | X56: 0 | Y56: 0 | Z56: 0 | AA56: 0 | AB56: 0 | AC56: 0 | AD56: 0 | AE56: 0 | AF56: 0 | AG56: 0 | AH56: 0 | AI56: =AI45 -> 0 | AJ56: 0 | AK56: 0 | AL56: 0 | AM56: 0 | AN56: 0 | AO56: 0 | AP56: 0 | AQ56: 0 | AR56: 0 | AS56: 0 | AT56: 0 | AU56: 0 | AV56: 0 | AW56: 0 | AX56: 0 | AY56: 0 | AZ56: 0 | BE56: POST-Case
D57: ='Efficiency Levels'!C37 -> EL4 | E57: ='Efficiency Levels'!D37 -> 3.728943177 | H57: =H46 -> 0 | I57: 0 | J57: 0 | K57: 0 | L57: 0 | M57: 0 | N57: 0 | O57: 0 | P57: 0 | Q57: 0 | R57: 0 | S57: 0 | T57: 0 | U57: 0 | V57: 0 | W57: 0 | X57: 0 | Y57: 0 | Z57: 0 | AA57: 0 | AB57: 0 | AC57: 0 | AD57: 0 | AE57: 0 | AF57: 0 | AG57: 0 | AH57: 0 | AI57: =AI46 -> 0 | AJ57: 0 | AK57: 0 | AL57: 0 | AM57: 0 | AN57: 0 | AO57: 0 | AP57: 0 | AQ57: 0 | AR57: 0 | AS57: 0 | AT57: 0 | AU57: 0 | AV57: 0 | AW57: 0 | AX57: 0 | AY57: 0 | AZ57: 0 | BE57: Efficiency Level | BF57: EL (kWh/year) | BI57: 1990 | BJ57: =BI57+1 -> 1991 | BK57: =BJ57+1 -> 1992 | BL57: =BK57+1 -> 1993 | BM57: =BL57+1 -> 1994 | BN57: =BM57+1 -> 1995 | BO57: =BN57+1 -> 1996 | BP57: =BO57+1 -> 1997 | BQ57: =BP57+1 -> 1998 | BR57: =BQ57+1 -> 1999 | BS57: =BR57+1 -> 2000 | BT57: =BS57+1 -> 2001 | BU57: =BT57+1 -> 2002 | BV57: =BU57+1 -> 2003 | BW57: =BV57+1 -> 2004 | BX57: =BW57+1 -> 2005 | BY57: =BY45 -> 2006 | BZ57: 2007 | CA57: 2008 | CB57: 2009 | CC57: 2010 | CD57: 2011 | CE57: 2012 | CF57: 2013 | CG57: 2014 | CH57: 2015 | CI57: 2016 | CJ57: 2017 | CK57: 2018 | CL57: 2019 | CM57: 2020 | CN57: 2021 | CO57: 2022 | CP57: 2023 | CQ57: 2024 | CR57: 2025 | CS57: 2026 | CT57: 2027 | CU57: 2028 | CV57: 2029 | CW57: 2030 | CX57: 2031 | CY57: 2032 | CZ57: 2033 | DA57: 2034
D58: ='Efficiency Levels'!C38 -> EL5 | E58: ='Efficiency Levels'!D38 -> 1.988769695 | H58: =H47 -> 0 | I58: 0 | J58: 0 | K58: 0 | L58: 0 | M58: 0 | N58: 0 | O58: 0 | P58: 0 | Q58: 0 | R58: 0 | S58: 0 | T58: 0 | U58: 0 | V58: 0 | W58: 0 | X58: 0 | Y58: 0 | Z58: 0 | AA58: 0 | AB58: 0 | AC58: 0 | AD58: 0 | AE58: 0 | AF58: 0 | AG58: 0 | AH58: 0 | AI58: =AI47 -> 0 | AJ58: 0 | AK58: 0 | AL58: 0 | AM58: 0 | AN58: 0 | AO58: 0 | AP58: 0 | AQ58: 0 | AR58: 0 | AS58: 0 | AT58: 0 | AU58: 0 | AV58: 0 | AW58: 0 | AX58: 0 | AY58: 0 | AZ58: 0 | BE58: =BE46 -> EL0 | BF58: 20094.23982 | BI58: =BI46 -> 1 | BJ58: 1 | BK58: 1 | BL58: 1 | BM58: 1 | BN58: 1 | BO58: 1 | BP58: 1 | BQ58: 1 | BR58: 1 | BS58: 1 | BT58: 1 | BU58: 1 | BV58: 1 | BW58: 1 | BX58: 1 | BY58: 1 | BZ58: 1 | CA58: 1 | CB58: 0 | CC58: 0 | CD58: 0 | CE58: 0 | CF58: 0 | CG58: 0 | CH58: 0 | CI58: 0 | CJ58: 0 | CK58: 0 | CL58: 0 | CM58: 0 | CN58: 0 | CO58: 0 | CP58: 0 | CQ58: 0 | CR58: 0 | CS58: 0 | CT58: 0 | CU58: 0 | CV58: 0 | CW58: 0 | CX58: 0 | CY58: 0 | CZ58: 0 | DA58: 0
D59: ='Efficiency Levels'!C39 -> EL6 | E59: ='Efficiency Levels'!D39 -> 1.988769695 | H59: =H48 -> 0 | I59: 0 | J59: 0 | K59: 0 | L59: 0 | M59: 0 | N59: 0 | O59: 0 | P59: 0 | Q59: 0 | R59: 0 | S59: 0 | T59: 0 | U59: 0 | V59: 0 | W59: 0 | X59: 0 | Y59: 0 | Z59: 0 | AA59: 0 | AB59: 0 | AC59: 0 | AD59: 0 | AE59: 0 | AF59: 0 | AG59: 0 | AH59: 0 | AI59: =AI48 -> 0 | AJ59: 0 | AK59: 0 | AL59: 0 | AM59: 0 | AN59: 0 | AO59: 0 | AP59: 0 | AQ59: 0 | AR59: 0 | AS59: 0 | AT59: 0 | AU59: 0 | AV59: 0 | AW59: 0 | AX59: 0 | AY59: 0 | AZ59: 0 | BE59: =BE47 -> EL1 | BF59: 16422.18145 | BI59: =BI47 -> 0 | BJ59: 0 | BK59: 0 | BL59: 0 | BM59: 0 | BN59: 0 | BO59: 0 | BP59: 0 | BQ59: 0 | BR59: 0 | BS59: 0 | BT59: 0 | BU59: 0 | BV59: 0 | BW59: 0 | BX59: 0 | BY59: 0 | BZ59: 0 | CA59: 0 | CB59: 0 | CC59: 0 | CD59: 0 | CE59: 0 | CF59: 0 | CG59: 0 | CH59: 0 | CI59: 0 | CJ59: 0 | CK59: 0 | CL59: 0 | CM59: 0 | CN59: 0 | CO59: 0 | CP59: 0 | CQ59: 0 | CR59: 0 | CS59: 0 | CT59: 0 | CU59: 0 | CV59: 0 | CW59: 0 | CX59: 0 | CY59: 0 | CZ59: 0 | DA59: 0
D60: TOTAL | H60: =SUM(H53:H59) -> 1 | I60: =SUM(I53:I59) -> 1 | J60: 1 | K60: 1 | L60: 1 | M60: 1 | N60: 1 | O60: 1 | P60: 1 | Q60: 1 | R60: 1 | S60: 1 | T60: 1 | U60: 1 | V60: 1 | W60: 1 | X60: 1 | Y60: 1 | Z60: 1 | AA60: 1 | AB60: 1 | AC60: 1 | AD60: 1 | AE60: 1 | AF60: 1 | AG60: 1 | AH60: 1 | AI60: 1 | AJ60: 1 | AK60: 1 | AL60: 1 | AM60: 1 | AN60: 1 | AO60: 1 | AP60: 1 | AQ60: 1 | AR60: 1 | AS60: 1 | AT60: 1 | AU60: 1 | AV60: 1 | AW60: 1 | AX60: 1 | AY60: 1 | AZ60: =SUM(AZ53:AZ59) -> 1 | BE60: =BE48 -> EL2 | BF60: 14690.0016 | BI60: =BI48 -> 0 | BJ60: 0 | BK60: 0 | BL60: 0 | BM60: 0 | BN60: 0 | BO60: 0 | BP60: 0 | BQ60: 0 | BR60: 0 | BS60: 0 | BT60: 0 | BU60: 0 | BV60: 0 | BW60: 0 | BX60: 0 | BY60: 0 | BZ60: 0 | CA60: 0 | CB60: 0.75 | CC60: 0.75 | CD60: 0.75 | CE60: 0.75 | CF60: 0.75 | CG60: 0.75 | CH60: 0.75 | CI60: 0.75 | CJ60: 0 | CK60: 0 | CL60: 0 | CM60: 0 | CN60: 0 | CO60: 0 | CP60: 0 | CQ60: 0 | CR60: 0 | CS60: 0 | CT60: 0 | CU60: 0 | CV60: 0 | CW60: 0 | CX60: 0 | CY60: 0 | CZ60: 0 | DA60: 0
BE61: EL3 | BF61: 13937.94033 | BI61: =BI49 -> 0 | BJ61: 0 | BK61: 0 | BL61: 0 | BM61: 0 | BN61: 0 | BO61: 0 | BP61: 0 | BQ61: 0 | BR61: 0 | BS61: 0 | BT61: 0 | BU61: 0 | BV61: 0 | BW61: 0 | BX61: 0 | BY61: 0 | BZ61: 0 | CA61: 0 | CB61: 0.25 | CC61: 0.25 | CD61: 0.25 | CE61: 0.25 | CF61: 0.25 | CG61: 0.25 | CH61: 0.25 | CI61: 0.25 | CJ61: 0 | CK61: 0 | CL61: 0 | CM61: 0 | CN61: 0 | CO61: 0 | CP61: 0 | CQ61: 0 | CR61: 0 | CS61: 0 | CT61: 0 | CU61: 0 | CV61: 0 | CW61: 0 | CX61: 0 | CY61: 0 | CZ61: 0 | DA61: 0
D62: Sources | E62: 1. DOE Walk-In Coolers and Freezers 2014 Final Rule, Technical Support Document: Final Rule National Impact Analysis (NIA) - Components, 'Market Share Inputs' tab, cells B3:M35, http://www.regulations.gov/#!documentDetail;D=EERE-2008-BT-STD-0015-0134 | BE62: EL4 | BF62: 13481.88376 | BI62: =BI50 -> 0 | BJ62: 0 | BK62: 0 | BL62: 0 | BM62: 0 | BN62: 0 | BO62: 0 | BP62: 0 | BQ62: 0 | BR62: 0 | BS62: 0 | BT62: 0 | BU62: 0 | BV62: 0 | BW62: 0 | BX62: 0 | BY62: 0 | BZ62: 0 | CA62: 0 | CB62: 0 | CC62: 0 | CD62: 0 | CE62: 0 | CF62: 0 | CG62: 0 | CH62: 0 | CI62: 0 | CJ62: 0 | CK62: 0 | CL62: 0 | CM62: 0 | CN62: 0 | CO62: 0 | CP62: 0 | CQ62: 0 | CR62: 0 | CS62: 0 | CT62: 0 | CU62: 0 | CV62: 0 | CW62: 0 | CX62: 0 | CY62: 0 | CZ62: 0 | DA62: 0
BE63: EL5 | BF63: 11815.04532 | BI63: =BI51 -> 0 | BJ63: 0 | BK63: 0 | BL63: 0 | BM63: 0 | BN63: 0 | BO63: 0 | BP63: 0 | BQ63: 0 | BR63: 0 | BS63: 0 | BT63: 0 | BU63: 0 | BV63: 0 | BW63: 0 | BX63: 0 | BY63: 0 | BZ63: 0 | CA63: 0 | CB63: 0 | CC63: 0 | CD63: 0 | CE63: 0 | CF63: 0 | CG63: 0 | CH63: 0 | CI63: 0 | CJ63: 0 | CK63: 0 | CL63: 0 | CM63: 0 | CN63: 0 | CO63: 0 | CP63: 0 | CQ63: 0 | CR63: 0 | CS63: 0 | CT63: 0 | CU63: 0 | CV63: 0 | CW63: 0 | CX63: 0 | CY63: 0 | CZ63: 0 | DA63: 0
BE64: EL6 | BF64: 11500.35485 | BI64: =BI52 -> 0 | BJ64: 0 | BK64: 0 | BL64: 0 | BM64: 0 | BN64: 0 | BO64: 0 | BP64: 0 | BQ64: 0 | BR64: 0 | BS64: 0 | BT64: 0 | BU64: 0 | BV64: 0 | BW64: 0 | BX64: 0 | BY64: 0 | BZ64: 0 | CA64: 0 | CB64: 0 | CC64: 0 | CD64: 0 | CE64: 0 | CF64: 0 | CG64: 0 | CH64: 0 | CI64: 0 | CJ64: 0 | CK64: 0 | CL64: 0 | CM64: 0 | CN64: 0 | CO64: 0 | CP64: 0 | CQ64: 0 | CR64: 0 | CS64: 0 | CT64: 0 | CU64: 0 | CV64: 0 | CW64: 0 | CX64: 0 | CY64: 0 | CZ64: 0 | DA64: 0
BE65: EL7 | BF65: 11078.18516 | BI65: =BI53 -> 0 | BJ65: 0 | BK65: 0 | BL65: 0 | BM65: 0 | BN65: 0 | BO65: 0 | BP65: 0 | BQ65: 0 | BR65: 0 | BS65: 0 | BT65: 0 | BU65: 0 | BV65: 0 | BW65: 0 | BX65: 0 | BY65: 0 | BZ65: 0 | CA65: 0 | CB65: 0 | CC65: 0 | CD65: 0 | CE65: 0 | CF65: 0 | CG65: 0 | CH65: 0 | CI65: 0 | CJ65: =SUM(CJ48:CJ53) -> 1 | CK65: 1 | CL65: 1 | CM65: 1 | CN65: 1 | CO65: 1 | CP65: 1 | CQ65: 1 | CR65: 1 | CS65: 1 | CT65: 1 | CU65: 1 | CV65: 1 | CW65: 1 | CX65: 1 | CY65: 1 | CZ65: 1 | DA65: 1
BE66: TOTAL | BI66: =SUM(BI58:BI65) -> 1 | BJ66: =SUM(BJ58:BJ65) -> 1 | BK66: 1 | BL66: 1 | BM66: 1 | BN66: 1 | BO66: 1 | BP66: 1 | BQ66: 1 | BR66: 1 | BS66: 1 | BT66: 1 | BU66: 1 | BV66: 1 | BW66: 1 | BX66: 1 | BY66: 1 | BZ66: 1 | CA66: 1 | CB66: 1 | CC66: 1 | CD66: 1 | CE66: 1 | CF66: 1 | CG66: 1 | CH66: 1 | CI66: 1 | CJ66: 1 | CK66: 1 | CL66: 1 | CM66: 1 | CN66: 1 | CO66: 1 | CP66: 1 | CQ66: 1 | CR66: 1 | CS66: 1 | CT66: 1 | CU66: 1 | CV66: 1 | CW66: 1 | CX66: 1 | CY66: 1 | CZ66: 1 | DA66: 1
D67: ='Product Classes'!K13&" - "&OFFSET('Product Classes'!$F$10,MATCH('Product Classes'!K13,MODEL_PCS,0),0) -> FP.L - Floor Panel, Low Temperature
BE68: Sources | BF68: 1. DOE Walk-In Coolers and Freezers 2014 Final Rule, Technical Support Document: Final Rule National Impact Analysis (NIA) - Systems, 'Market Share Inputs' tab, cells B3:M35, http://www.regulations.gov/#!documentDetail;D=EERE-2008-BT-STD-0015-0134
D69: PRE-Case | F69: Static Distribution
D70: Efficiency Level | E70: EL (kWh/year) | F70: 2006 | H70: 1990 | I70: =H70+1 -> 1991 | J70: 1992 | K70: 1993 | L70: 1994 | M70: 1995 | N70: 1996 | O70: 1997 | P70: 1998 | Q70: 1999 | R70: 2000 | S70: 2001 | T70: 2002 | U70: 2003 | V70: 2004 | W70: 2005 | X70: 2006 | Y70: 2007 | Z70: 2008 | AA70: 2009 | AB70: 2010 | AC70: 2011 | AD70: 2012 | AE70: 2013 | AF70: 2014 | AG70: 2015 | AH70: 2016 | AI70: 2017 | AJ70: 2018 | AK70: 2019 | AL70: 2020 | AM70: 2021 | AN70: 2022 | AO70: 2023 | AP70: 2024 | AQ70: 2025 | AR70: 2026 | AS70: 2027 | AT70: 2028 | AU70: 2029 | AV70: 2030 | AW70: 2031 | AX70: 2032 | AY70: 2033 | AZ70: 2034
D71: ='Efficiency Levels'!C51 -> EL0 | E71: ='Efficiency Levels'!D51 -> 5.526223416 | F71: 1 | H71: =$F71 -> 1 | I71: 1 | J71: 1 | K71: 1 | L71: 1 | M71: 1 | N71: 1 | O71: 1 | P71: 1 | Q71: 1 | R71: 1 | S71: 1 | T71: 1 | U71: 1 | V71: 1 | W71: 1 | X71: =$F71 -> 1 | Y71: 1 | Z71: 1 | AA71: 0 | AB71: 0 | AC71: 0 | AD71: 0 | AE71: 0 | AF71: 0 | AG71: 0 | AH71: 0 | AI71: 0 | AJ71: 0 | AK71: 0 | AL71: 0 | AM71: 0 | AN71: 0 | AO71: 0 | AP71: 0 | AQ71: 0 | AR71: 0 | AS71: 0 | AT71: 0 | AU71: 0 | AV71: 0 | AW71: 0 | AX71: 0 | AY71: 0 | AZ71: 0
D72: ='Efficiency Levels'!C52 -> EL1 | E72: ='Efficiency Levels'!D52 -> 4.907259963 | F72: 0 | H72: 0 | I72: 0 | J72: 0 | K72: 0 | L72: 0 | M72: 0 | N72: 0 | O72: 0 | P72: 0 | Q72: 0 | R72: 0 | S72: 0 | T72: 0 | U72: 0 | V72: 0 | W72: 0 | X72: 0 | Y72: 0 | Z72: 0 | AA72: 0 | AB72: 0 | AC72: 0 | AD72: 0 | AE72: 0 | AF72: 0 | AG72: 0 | AH72: 0 | AI72: 0 | AJ72: 0 | AK72: 0 | AL72: 0 | AM72: 0 | AN72: 0 | AO72: 0 | AP72: 0 | AQ72: 0 | AR72: 0 | AS72: 0 | AT72: 0 | AU72: 0 | AV72: 0 | AW72: 0 | AX72: 0 | AY72: 0 | AZ72: 0
D73: ='Efficiency Levels'!C53 -> EL2 | E73: ='Efficiency Levels'!D53 -> 4.888362484 | F73: 0 | H73: 0 | I73: =$F73 -> 0 | J73: 0 | K73: 0 | L73: 0 | M73: 0 | N73: 0 | O73: 0 | P73: 0 | Q73: 0 | R73: 0 | S73: 0 | T73: 0 | U73: 0 | V73: 0 | W73: 0 | X73: 0 | Y73: 0 | Z73: 0 | AA73: 1 | AB73: 1 | AC73: 1 | AD73: 1 | AE73: 1 | AF73: 1 | AG73: 1 | AH73: 1 | AI73: 1 | AJ73: 1 | AK73: 1 | AL73: 1 | AM73: 1 | AN73: 1 | AO73: 1 | AP73: 1 | AQ73: 1 | AR73: 1 | AS73: 1 | AT73: 1 | AU73: 1 | AV73: 1 | AW73: 1 | AX73: 1 | AY73: 1 | AZ73: 1 | BE73: ='Product Class Dist'!AZ13 -> DC.L.O.006
D74: ='Efficiency Levels'!C54 -> EL3 | E74: ='Efficiency Levels'!D54 -> 4.277317174 | F74: 0 | H74: 0 | I74: =$F74 -> 0 | J74: 0 | K74: 0 | L74: 0 | M74: 0 | N74: 0 | O74: 0 | P74: 0 | Q74: 0 | R74: 0 | S74: 0 | T74: 0 | U74: 0 | V74: 0 | W74: 0 | X74: 0 | Y74: 0 | Z74: 0 | AA74: 0 | AB74: 0 | AC74: 0 | AD74: =$F74 -> 0 | AE74: 0 | AF74: 0 | AG74: 0 | AH74: 0 | AI74: 0 | AJ74: 0 | AK74: 0 | AL74: 0 | AM74: 0 | AN74: 0 | AO74: 0 | AP74: 0 | AQ74: 0 | AR74: 0 | AS74: 0 | AT74: 0 | AU74: 0 | AV74: 0 | AW74: 0 | AX74: 0 | AY74: 0 | AZ74: 0
D75: ='Efficiency Levels'!C55 -> EL4 | E75: ='Efficiency Levels'!D55 -> 3.421853739 | F75: 0 | H75: 0 | I75: 0 | J75: 0 | K75: 0 | L75: 0 | M75: 0 | N75: 0 | O75: 0 | P75: 0 | Q75: 0 | R75: 0 | S75: 0 | T75: 0 | U75: 0 | V75: 0 | W75: 0 | X75: 0 | Y75: 0 | Z75: 0 | AA75: 0 | AB75: 0 | AC75: 0 | AD75: 0 | AE75: 0 | AF75: 0 | AG75: 0 | AH75: 0 | AI75: 0 | AJ75: 0 | AK75: 0 | AL75: 0 | AM75: 0 | AN75: 0 | AO75: 0 | AP75: 0 | AQ75: 0 | AR75: 0 | AS75: 0 | AT75: 0 | AU75: 0 | AV75: 0 | AW75: 0 | AX75: 0 | AY75: 0 | AZ75: 0 | BE75: PRE-Case | BG75: Static Distribution
D76: ='Efficiency Levels'!C56 -> EL5 | E76: ='Efficiency Levels'!D56 -> 2.851544783 | F76: 0 | H76: 0 | I76: 0 | J76: 0 | K76: 0 | L76: 0 | M76: 0 | N76: 0 | O76: 0 | P76: 0 | Q76: 0 | R76: 0 | S76: 0 | T76: 0 | U76: 0 | V76: 0 | W76: 0 | X76: 0 | Y76: 0 | Z76: 0 | AA76: 0 | AB76: 0 | AC76: 0 | AD76: 0 | AE76: 0 | AF76: 0 | AG76: 0 | AH76: 0 | AI76: 0 | AJ76: 0 | AK76: 0 | AL76: 0 | AM76: 0 | AN76: 0 | AO76: 0 | AP76: 0 | AQ76: 0 | AR76: 0 | AS76: 0 | AT76: 0 | AU76: 0 | AV76: 0 | AW76: 0 | AX76: 0 | AY76: 0 | AZ76: 0 | BE76: Efficiency Level | BF76: EL (kWh/year) | BG76: 2014 | BI76: 1990 | BJ76: =BI76+1 -> 1991 | BK76: =BJ76+1 -> 1992 | BL76: =BK76+1 -> 1993 | BM76: =BL76+1 -> 1994 | BN76: =BM76+1 -> 1995 | BO76: =BN76+1 -> 1996 | BP76: =BO76+1 -> 1997 | BQ76: =BP76+1 -> 1998 | BR76: =BQ76+1 -> 1999 | BS76: =BR76+1 -> 2000 | BT76: =BS76+1 -> 2001 | BU76: =BT76+1 -> 2002 | BV76: =BU76+1 -> 2003 | BW76: =BV76+1 -> 2004 | BX76: =BW76+1 -> 2005 | BY76: =BX76+1 -> 2006 | BZ76: =BY76+1 -> 2007 | CA76: =BZ76+1 -> 2008 | CB76: =CA76+1 -> 2009 | CC76: =CB76+1 -> 2010 | CD76: =CC76+1 -> 2011 | CE76: =CD76+1 -> 2012 | CF76: =CE76+1 -> 2013 | CG76: =CF76+1 -> 2014 | CH76: =CG76+1 -> 2015 | CI76: =CH76+1 -> 2016 | CJ76: =CI76+1 -> 2017 | CK76: =CJ76+1 -> 2018 | CL76: =CK76+1 -> 2019 | CM76: =CL76+1 -> 2020 | CN76: =CM76+1 -> 2021 | CO76: =CN76+1 -> 2022 | CP76: =CO76+1 -> 2023 | CQ76: =CP76+1 -> 2024 | CR76: =CQ76+1 -> 2025 | CS76: =CR76+1 -> 2026 | CT76: =CS76+1 -> 2027 | CU76: =CT76+1 -> 2028 | CV76: =CU76+1 -> 2029 | CW76: =CV76+1 -> 2030 | CX76: =CW76+1 -> 2031 | CY76: =CX76+1 -> 2032 | CZ76: =CY76+1 -> 2033 | DA76: =CZ76+1 -> 2034
D77: ='Efficiency Levels'!C57 -> EL6 | E77: ='Efficiency Levels'!D57 -> 1.520823884 | F77: 0 | H77: 0 | I77: 0 | J77: 0 | K77: 0 | L77: 0 | M77: 0 | N77: 0 | O77: 0 | P77: 0 | Q77: 0 | R77: 0 | S77: 0 | T77: 0 | U77: 0 | V77: 0 | W77: 0 | X77: 0 | Y77: 0 | Z77: 0 | AA77: 0 | AB77: 0 | AC77: 0 | AD77: 0 | AE77: 0 | AF77: 0 | AG77: 0 | AH77: 0 | AI77: 0 | AJ77: 0 | AK77: 0 | AL77: 0 | AM77: 0 | AN77: 0 | AO77: 0 | AP77: 0 | AQ77: 0 | AR77: 0 | AS77: 0 | AT77: 0 | AU77: 0 | AV77: 0 | AW77: 0 | AX77: 0 | AY77: 0 | AZ77: 0 | BE77: ='Efficiency Levels'!J51 -> EL0 | BF77: ='Efficiency Levels'!K51 -> 13403.33859 | BG77: 0 | BI77: 1 | BJ77: 1 | BK77: 1 | BL77: 1 | BM77: 1 | BN77: 1 | BO77: 1 | BP77: 1 | BQ77: 1 | BR77: 1 | BS77: 1 | BT77: 1 | BU77: 1 | BV77: 1 | BW77: 1 | BX77: 1 | BY77: 1 | BZ77: 1 | CA77: 1 | CB77: =$BG77 -> 0 | CC77: 0 | CD77: 0 | CE77: 0 | CF77: 0 | CG77: =$BG77 -> 0 | CH77: 0 | CI77: 0 | CJ77: 0 | CK77: 0 | CL77: 0 | CM77: 0 | CN77: 0 | CO77: 0 | CP77: 0 | CQ77: 0 | CR77: 0 | CS77: 0 | CT77: 0 | CU77: 0 | CV77: 0 | CW77: 0 | CX77: 0 | CY77: 0 | CZ77: 0 | DA77: =$BG77 -> 0
D78: TOTAL | F78: =SUM(F71:F77) -> 1 | H78: =SUM(H71:H77) -> 1 | I78: =SUM(I71:I77) -> 1 | J78: 1 | K78: 1 | L78: 1 | M78: 1 | N78: 1 | O78: 1 | P78: 1 | Q78: 1 | R78: 1 | S78: 1 | T78: 1 | U78: 1 | V78: 1 | W78: 1 | X78: 1 | Y78: 1 | Z78: 1 | AA78: 1 | AB78: 1 | AC78: 1 | AD78: 1 | AE78: 1 | AF78: 1 | AG78: 1 | AH78: 1 | AI78: 1 | AJ78: 1 | AK78: 1 | AL78: 1 | AM78: 1 | AN78: 1 | AO78: 1 | AP78: 1 | AQ78: 1 | AR78: 1 | AS78: 1 | AT78: 1 | AU78: 1 | AV78: 1 | AW78: 1 | AX78: 1 | AY78: 1 | AZ78: 1 | BE78: ='Efficiency Levels'!J52 -> EL1 | BF78: ='Efficiency Levels'!K52 -> 10457.46627 | BG78: 0 | BI78: 0 | BJ78: 0 | BK78: 0 | BL78: 0 | BM78: 0 | BN78: 0 | BO78: 0 | BP78: 0 | BQ78: 0 | BR78: 0 | BS78: 0 | BT78: 0 | BU78: 0 | BV78: 0 | BW78: 0 | BX78: 0 | BY78: 0 | BZ78: 0 | CA78: 0 | CB78: 0 | CC78: 0 | CD78: 0 | CE78: 0 | CF78: 0 | CG78: 0 | CH78: 0 | CI78: 0 | CJ78: 0 | CK78: 0 | CL78: 0 | CM78: 0 | CN78: 0 | CO78: 0 | CP78: 0 | CQ78: 0 | CR78: 0 | CS78: 0 | CT78: 0 | CU78: 0 | CV78: 0 | CW78: 0 | CX78: 0 | CY78: 0 | CZ78: 0 | DA78: 0
BE79: ='Efficiency Levels'!J53 -> EL2 | BF79: ='Efficiency Levels'!K53 -> 7804.500034 | BG79: 0.75 | BI79: 0 | BJ79: 0 | BK79: 0 | BL79: 0 | BM79: 0 | BN79: 0 | BO79: 0 | BP79: 0 | BQ79: 0 | BR79: 0 | BS79: 0 | BT79: 0 | BU79: 0 | BV79: 0 | BW79: 0 | BX79: 0 | BY79: 0 | BZ79: 0 | CA79: 0 | CB79: 0.75 | CC79: 0.75 | CD79: 0.75 | CE79: 0.75 | CF79: 0.75 | CG79: 0.75 | CH79: 0.75 | CI79: 0.75 | CJ79: 0.75 | CK79: 0.75 | CL79: 0.75 | CM79: 0.75 | CN79: 0.75 | CO79: 0.75 | CP79: 0.75 | CQ79: 0.75 | CR79: 0.75 | CS79: 0.75 | CT79: 0.75 | CU79: 0.75 | CV79: 0.75 | CW79: 0.75 | CX79: 0.75 | CY79: 0.75 | CZ79: 0.75 | DA79: 0.75
D80: POST-Case | BE80: ='Efficiency Levels'!J54 -> EL3 | BF80: ='Efficiency Levels'!K54 -> 6264.419233 | BG80: 0.25 | BI80: 0 | BJ80: 0 | BK80: 0 | BL80: 0 | BM80: 0 | BN80: 0 | BO80: 0 | BP80: 0 | BQ80: 0 | BR80: 0 | BS80: 0 | BT80: 0 | BU80: 0 | BV80: 0 | BW80: 0 | BX80: 0 | BY80: 0 | BZ80: 0 | CA80: 0 | CB80: 0.25 | CC80: 0.25 | CD80: 0.25 | CE80: 0.25 | CF80: 0.25 | CG80: 0.25 | CH80: 0.25 | CI80: 0.25 | CJ80: 0.25 | CK80: 0.25 | CL80: 0.25 | CM80: 0.25 | CN80: 0.25 | CO80: 0.25 | CP80: 0.25 | CQ80: 0.25 | CR80: 0.25 | CS80: 0.25 | CT80: 0.25 | CU80: 0.25 | CV80: 0.25 | CW80: 0.25 | CX80: 0.25 | CY80: 0.25 | CZ80: 0.25 | DA80: 0.25
D81: Efficiency Level | E81: EL (kWh/year) | H81: 1990 | I81: =H81+1 -> 1991 | J81: 1992 | K81: 1993 | L81: 1994 | M81: 1995 | N81: 1996 | O81: 1997 | P81: 1998 | Q81: 1999 | R81: 2000 | S81: 2001 | T81: 2002 | U81: 2003 | V81: 2004 | W81: 2005 | X81: =X70 -> 2006 | Y81: 2007 | Z81: 2008 | AA81: 2009 | AB81: 2010 | AC81: 2011 | AD81: 2012 | AE81: 2013 | AF81: 2014 | AG81: 2015 | AH81: 2016 | AI81: 2017 | AJ81: 2018 | AK81: 2019 | AL81: 2020 | AM81: 2021 | AN81: 2022 | AO81: 2023 | AP81: 2024 | AQ81: 2025 | AR81: 2026 | AS81: 2027 | AT81: 2028 | AU81: 2029 | AV81: 2030 | AW81: 2031 | AX81: 2032 | AY81: 2033 | AZ81: 2034 | BE81: ='Efficiency Levels'!J55 -> EL4 | BF81: ='Efficiency Levels'!K55 -> 5563.747419 | BG81: 0 | BI81: 0 | BJ81: 0 | BK81: 0 | BL81: 0 | BM81: 0 | BN81: 0 | BO81: 0 | BP81: 0 | BQ81: 0 | BR81: 0 | BS81: 0 | BT81: 0 | BU81: 0 | BV81: 0 | BW81: 0 | BX81: 0 | BY81: 0 | BZ81: 0 | CA81: 0 | CB81: 0 | CC81: 0 | CD81: 0 | CE81: 0 | CF81: 0 | CG81: 0 | CH81: 0 | CI81: 0 | CJ81: 0 | CK81: 0 | CL81: 0 | CM81: 0 | CN81: 0 | CO81: 0 | CP81: 0 | CQ81: 0 | CR81: 0 | CS81: 0 | CT81: 0 | CU81: 0 | CV81: 0 | CW81: 0 | CX81: 0 | CY81: 0 | CZ81: 0 | DA81: 0
D82: ='Efficiency Levels'!C51 -> EL0 | E82: ='Efficiency Levels'!D51 -> 5.526223416 | H82: =H71 -> 1 | I82: 1 | J82: 1 | K82: 1 | L82: 1 | M82: 1 | N82: 1 | O82: 1 | P82: 1 | Q82: 1 | R82: 1 | S82: 1 | T82: 1 | U82: 1 | V82: 1 | W82: 1 | X82: 1 | Y82: 1 | Z82: 1 | AA82: 0 | AB82: 0 | AC82: 0 | AD82: 0 | AE82: 0 | AF82: 0 | AG82: 0 | AH82: 0 | AI82: 0 | AJ82: 0 | AK82: 0 | AL82: 0 | AM82: 0 | AN82: 0 | AO82: 0 | AP82: 0 | AQ82: 0 | AR82: 0 | AS82: 0 | AT82: 0 | AU82: 0 | AV82: 0 | AW82: 0 | AX82: 0 | AY82: 0 | AZ82: 0 | BE82: ='Efficiency Levels'!J56 -> EL5 | BF82: ='Efficiency Levels'!K56 -> 5411.845507 | BG82: 0 | BI82: 0 | BJ82: 0 | BK82: 0 | BL82: 0 | BM82: 0 | BN82: 0 | BO82: 0 | BP82: 0 | BQ82: 0 | BR82: 0 | BS82: 0 | BT82: 0 | BU82: 0 | BV82: 0 | BW82: 0 | BX82: 0 | BY82: 0 | BZ82: 0 | CA82: 0 | CB82: 0 | CC82: 0 | CD82: 0 | CE82: 0 | CF82: 0 | CG82: 0 | CH82: 0 | CI82: 0 | CJ82: 0 | CK82: 0 | CL82: 0 | CM82: 0 | CN82: 0 | CO82: 0 | CP82: 0 | CQ82: 0 | CR82: 0 | CS82: 0 | CT82: 0 | CU82: 0 | CV82: 0 | CW82: 0 | CX82: 0 | CY82: 0 | CZ82: 0 | DA82: 0
D83: ='Efficiency Levels'!C52 -> EL1 | E83: ='Efficiency Levels'!D52 -> 4.907259963 | H83: =H72 -> 0 | I83: 0 | J83: 0 | K83: 0 | L83: 0 | M83: 0 | N83: 0 | O83: 0 | P83: 0 | Q83: 0 | R83: 0 | S83: 0 | T83: 0 | U83: 0 | V83: 0 | W83: 0 | X83: 0 | Y83: 0 | Z83: 0 | AA83: 0 | AB83: 0 | AC83: 0 | AD83: 0 | AE83: 0 | AF83: 0 | AG83: 0 | AH83: 0 | AI83: 0 | AJ83: 0 | AK83: 0 | AL83: 0 | AM83: 0 | AN83: 0 | AO83: 0 | AP83: 0 | AQ83: 0 | AR83: 0 | AS83: 0 | AT83: 0 | AU83: 0 | AV83: 0 | AW83: 0 | AX83: 0 | AY83: 0 | AZ83: 0 | BE83: ='Efficiency Levels'!J57 -> EL6 | BF83: ='Efficiency Levels'!K57 -> 5199.570451 | BG83: 0 | BI83: 0 | BJ83: 0 | BK83: 0 | BL83: 0 | BM83: 0 | BN83: 0 | BO83: 0 | BP83: 0 | BQ83: 0 | BR83: 0 | BS83: 0 | BT83: 0 | BU83: 0 | BV83: 0 | BW83: 0 | BX83: 0 | BY83: 0 | BZ83: 0 | CA83: 0 | CB83: 0 | CC83: 0 | CD83: 0 | CE83: 0 | CF83: 0 | CG83: 0 | CH83: 0 | CI83: 0 | CJ83: 0 | CK83: 0 | CL83: 0 | CM83: 0 | CN83: 0 | CO83: 0 | CP83: 0 | CQ83: 0 | CR83: 0 | CS83: 0 | CT83: 0 | CU83: 0 | CV83: 0 | CW83: 0 | CX83: 0 | CY83: 0 | CZ83: 0 | DA83: 0
D84: ='Efficiency Levels'!C53 -> EL2 | E84: ='Efficiency Levels'!D53 -> 4.888362484 | H84: =H73 -> 0 | I84: 0 | J84: 0 | K84: 0 | L84: 0 | M84: 0 | N84: 0 | O84: 0 | P84: 0 | Q84: 0 | R84: 0 | S84: 0 | T84: 0 | U84: 0 | V84: 0 | W84: 0 | X84: 0 | Y84: 0 | Z84: 0 | AA84: =SUM(AA71:AA73) -> 1 | AB84: =SUM(AB71:AB73) -> 1 | AC84: =SUM(AC71:AC73) -> 1 | AD84: 1 | AE84: 1 | AF84: 1 | AG84: 1 | AH84: 1 | AI84: 1 | AJ84: 1 | AK84: 1 | AL84: 1 | AM84: 1 | AN84: 1 | AO84: 1 | AP84: 1 | AQ84: 1 | AR84: 1 | AS84: 1 | AT84: 1 | AU84: 1 | AV84: 1 | AW84: 1 | AX84: 1 | AY84: 1 | AZ84: 1 | BE84: ='Efficiency Levels'!J58 -> EL7 | BF84: ='Efficiency Levels'!K58 -> 4898.195629 | BG84: 0 | BI84: 0 | BJ84: 0 | BK84: 0 | BL84: 0 | BM84: 0 | BN84: 0 | BO84: 0 | BP84: 0 | BQ84: 0 | BR84: 0 | BS84: 0 | BT84: 0 | BU84: 0 | BV84: 0 | BW84: 0 | BX84: 0 | BY84: 0 | BZ84: 0 | CA84: 0 | CB84: 0 | CC84: 0 | CD84: 0 | CE84: 0 | CF84: 0 | CG84: 0 | CH84: 0 | CI84: 0 | CJ84: 0 | CK84: 0 | CL84: 0 | CM84: 0 | CN84: 0 | CO84: 0 | CP84: 0 | CQ84: 0 | CR84: 0 | CS84: 0 | CT84: 0 | CU84: 0 | CV84: 0 | CW84: 0 | CX84: 0 | CY84: 0 | CZ84: 0 | DA84: 0
D85: ='Efficiency Levels'!C54 -> EL3 | E85: ='Efficiency Levels'!D54 -> 4.277317174 | H85: =H74 -> 0 | I85: 0 | J85: 0 | K85: 0 | L85: 0 | M85: 0 | N85: 0 | O85: 0 | P85: 0 | Q85: 0 | R85: 0 | S85: 0 | T85: 0 | U85: 0 | V85: 0 | W85: 0 | X85: 0 | Y85: 0 | Z85: 0 | AA85: 0 | AB85: 0 | AC85: 0 | AD85: 0 | AE85: 0 | AF85: 0 | AG85: 0 | AH85: 0 | AI85: 0 | AJ85: 0 | AK85: 0 | AL85: 0 | AM85: 0 | AN85: 0 | AO85: 0 | AP85: 0 | AQ85: 0 | AR85: 0 | AS85: 0 | AT85: 0 | AU85: 0 | AV85: 0 | AW85: 0 | AX85: 0 | AY85: 0 | AZ85: 0 | BE85: TOTAL | BG85: =SUM(BG77:BG84) -> 1 | BI85: =SUM(BI77:BI84) -> 1 | BJ85: =SUM(BJ77:BJ84) -> 1 | BK85: 1 | BL85: 1 | BM85: 1 | BN85: 1 | BO85: 1 | BP85: 1 | BQ85: 1 | BR85: 1 | BS85: 1 | BT85: 1 | BU85: 1 | BV85: 1 | BW85: 1 | BX85: 1 | BY85: 1 | BZ85: 1 | CA85: 1 | CB85: 1 | CC85: 1 | CD85: 1 | CE85: 1 | CF85: 1 | CG85: 1 | CH85: 1 | CI85: 1 | CJ85: 1 | CK85: 1 | CL85: 1 | CM85: 1 | CN85: 1 | CO85: 1 | CP85: 1 | CQ85: 1 | CR85: 1 | CS85: 1 | CT85: 1 | CU85: 1 | CV85: 1 | CW85: 1 | CX85: 1 | CY85: 1 | CZ85: 1 | DA85: 1
D86: ='Efficiency Levels'!C55 -> EL4 | E86: ='Efficiency Levels'!D55 -> 3.421853739 | H86: =H75 -> 0 | I86: 0 | J86: 0 | K86: 0 | L86: 0 | M86: 0 | N86: 0 | O86: 0 | P86: 0 | Q86: 0 | R86: 0 | S86: 0 | T86: 0 | U86: 0 | V86: 0 | W86: 0 | X86: 0 | Y86: 0 | Z86: 0 | AA86: 0 | AB86: 0 | AC86: 0 | AD86: 0 | AE86: 0 | AF86: 0 | AG86: 0 | AH86: 0 | AI86: 0 | AJ86: 0 | AK86: 0 | AL86: 0 | AM86: 0 | AN86: 0 | AO86: 0 | AP86: 0 | AQ86: 0 | AR86: 0 | AS86: 0 | AT86: 0 | AU86: 0 | AV86: 0 | AW86: 0 | AX86: 0 | AY86: 0 | AZ86: 0
D87: ='Efficiency Levels'!C56 -> EL5 | E87: ='Efficiency Levels'!D56 -> 2.851544783 | H87: =H76 -> 0 | I87: 0 | J87: 0 | K87: 0 | L87: 0 | M87: 0 | N87: 0 | O87: 0 | P87: 0 | Q87: 0 | R87: 0 | S87: 0 | T87: 0 | U87: 0 | V87: 0 | W87: 0 | X87: 0 | Y87: 0 | Z87: 0 | AA87: 0 | AB87: 0 | AC87: 0 | AD87: 0 | AE87: 0 | AF87: 0 | AG87: 0 | AH87: 0 | AI87: 0 | AJ87: 0 | AK87: 0 | AL87: 0 | AM87: 0 | AN87: 0 | AO87: 0 | AP87: 0 | AQ87: 0 | AR87: 0 | AS87: 0 | AT87: 0 | AU87: 0 | AV87: 0 | AW87: 0 | AX87: 0 | AY87: 0 | AZ87: 0 | BE87: POST-Case
D88: ='Efficiency Levels'!C57 -> EL6 | E88: ='Efficiency Levels'!D57 -> 1.520823884 | H88: =H77 -> 0 | I88: 0 | J88: 0 | K88: 0 | L88: 0 | M88: 0 | N88: 0 | O88: 0 | P88: 0 | Q88: 0 | R88: 0 | S88: 0 | T88: 0 | U88: 0 | V88: 0 | W88: 0 | X88: 0 | Y88: 0 | Z88: 0 | AA88: 0 | AB88: 0 | AC88: 0 | AD88: 0 | AE88: 0 | AF88: 0 | AG88: 0 | AH88: 0 | AI88: 0 | AJ88: 0 | AK88: 0 | AL88: 0 | AM88: 0 | AN88: 0 | AO88: 0 | AP88: 0 | AQ88: 0 | AR88: 0 | AS88: 0 | AT88: 0 | AU88: 0 | AV88: 0 | AW88: 0 | AX88: 0 | AY88: 0 | AZ88: 0 | BE88: Efficiency Level | BF88: EL (kWh/year) | BI88: 1990 | BJ88: =BI88+1 -> 1991 | BK88: =BJ88+1 -> 1992 | BL88: =BK88+1 -> 1993 | BM88: =BL88+1 -> 1994 | BN88: =BM88+1 -> 1995 | BO88: =BN88+1 -> 1996 | BP88: =BO88+1 -> 1997 | BQ88: =BP88+1 -> 1998 | BR88: =BQ88+1 -> 1999 | BS88: =BR88+1 -> 2000 | BT88: =BS88+1 -> 2001 | BU88: =BT88+1 -> 2002 | BV88: =BU88+1 -> 2003 | BW88: =BV88+1 -> 2004 | BX88: =BW88+1 -> 2005 | BY88: =BY76 -> 2006 | BZ88: 2007 | CA88: 2008 | CB88: 2009 | CC88: 2010 | CD88: 2011 | CE88: 2012 | CF88: 2013 | CG88: 2014 | CH88: 2015 | CI88: 2016 | CJ88: 2017 | CK88: 2018 | CL88: 2019 | CM88: 2020 | CN88: 2021 | CO88: 2022 | CP88: 2023 | CQ88: 2024 | CR88: 2025 | CS88: 2026 | CT88: 2027 | CU88: 2028 | CV88: 2029 | CW88: 2030 | CX88: 2031 | CY88: 2032 | CZ88: 2033 | DA88: 2034
D89: TOTAL | H89: =SUM(H82:H88) -> 1 | I89: =SUM(I82:I88) -> 1 | J89: 1 | K89: 1 | L89: 1 | M89: 1 | N89: 1 | O89: 1 | P89: 1 | Q89: 1 | R89: 1 | S89: 1 | T89: 1 | U89: 1 | V89: 1 | W89: 1 | X89: 1 | Y89: 1 | Z89: 1 | AA89: 1 | AB89: 1 | AC89: 1 | AD89: 1 | AE89: 1 | AF89: 1 | AG89: 1 | AH89: 1 | AI89: 1 | AJ89: 1 | AK89: 1 | AL89: 1 | AM89: 1 | AN89: 1 | AO89: 1 | AP89: 1 | AQ89: 1 | AR89: 1 | AS89: 1 | AT89: 1 | AU89: 1 | AV89: 1 | AW89: 1 | AX89: 1 | AY89: 1 | AZ89: 1 | BE89: =BE77 -> EL0 | BF89: 13403.33859 | BI89: =BI77 -> 1 | BJ89: 1 | BK89: 1 | BL89: 1 | BM89: 1 | BN89: 1 | BO89: 1 | BP89: 1 | BQ89: 1 | BR89: 1 | BS89: 1 | BT89: 1 | BU89: 1 | BV89: 1 | BW89: 1 | BX89: 1 | BY89: 1 | BZ89: 1 | CA89: 1 | CB89: 0 | CC89: 0 | CD89: 0 | CE89: 0 | CF89: 0 | CG89: 0 | CH89: 0 | CI89: 0 | CJ89: 0 | CK89: 0 | CL89: 0 | CM89: 0 | CN89: 0 | CO89: 0 | CP89: 0 | CQ89: 0 | CR89: 0 | CS89: 0 | CT89: 0 | CU89: 0 | CV89: 0 | CW89: 0 | CX89: 0 | CY89: 0 | CZ89: 0 | DA89: 0
BE90: =BE78 -> EL1 | BF90: 10457.46627 | BI90: =BI78 -> 0 | BJ90: 0 | BK90: 0 | BL90: 0 | BM90: 0 | BN90: 0 | BO90: 0 | BP90: 0 | BQ90: 0 | BR90: 0 | BS90: 0 | BT90: 0 | BU90: 0 | BV90: 0 | BW90: 0 | BX90: 0 | BY90: 0 | BZ90: 0 | CA90: 0 | CB90: 0 | CC90: 0 | CD90: 0 | CE90: 0 | CF90: 0 | CG90: 0 | CH90: 0 | CI90: 0 | CJ90: 0 | CK90: 0 | CL90: 0 | CM90: 0 | CN90: 0 | CO90: 0 | CP90: 0 | CQ90: 0 | CR90: 0 | CS90: 0 | CT90: 0 | CU90: 0 | CV90: 0 | CW90: 0 | CX90: 0 | CY90: 0 | CZ90: 0 | DA90: 0
D91: Sources | E91: 1. DOE Walk-In Coolers and Freezers 2014 Final Rule, Technical Support Document: Final Rule National Impact Analysis (NIA) - Components, 'Market Share Inputs' tab, cells B3:M35, http://www.regulations.gov/#!documentDetail;D=EERE-2008-BT-STD-0015-0134 | BE91: =BE79 -> EL2 | BF91: 7804.500034 | BI91: =BI79 -> 0 | BJ91: 0 | BK91: 0 | BL91: 0 | BM91: 0 | BN91: 0 | BO91: 0 | BP91: 0 | BQ91: 0 | BR91: 0 | BS91: 0 | BT91: 0 | BU91: 0 | BV91: 0 | BW91: 0 | BX91: 0 | BY91: 0 | BZ91: 0 | CA91: 0 | CB91: 0.75 | CC91: 0.75 | CD91: 0.75 | CE91: 0.75 | CF91: 0.75 | CG91: 0.75 | CH91: 0.75 | CI91: 0.75 | CJ91: 0 | CK91: 0 | CL91: 0 | CM91: 0 | CN91: 0 | CO91: 0 | CP91: 0 | CQ91: 0 | CR91: 0 | CS91: 0 | CT91: 0 | CU91: 0 | CV91: 0 | CW91: 0 | CX91: 0 | CY91: 0 | CZ91: 0 | DA91: 0
BE92: EL3 | BF92: 6264.419233 | BI92: =BI80 -> 0 | BJ92: 0 | BK92: 0 | BL92: 0 | BM92: 0 | BN92: 0 | BO92: 0 | BP92: 0 | BQ92: 0 | BR92: 0 | BS92: 0 | BT92: 0 | BU92: 0 | BV92: 0 | BW92: 0 | BX92: 0 | BY92: 0 | BZ92: 0 | CA92: 0 | CB92: 0.25 | CC92: 0.25 | CD92: 0.25 | CE92: 0.25 | CF92: 0.25 | CG92: 0.25 | CH92: 0.25 | CI92: 0.25 | CJ92: 0 | CK92: 0 | CL92: 0 | CM92: 0 | CN92: 0 | CO92: 0 | CP92: 0 | CQ92: 0 | CR92: 0 | CS92: 0 | CT92: 0 | CU92: 0 | CV92: 0 | CW92: 0 | CX92: 0 | CY92: 0 | CZ92: 0 | DA92: 0
BE93: EL4 | BF93: 5563.747419 | BI93: =BI81 -> 0 | BJ93: 0 | BK93: 0 | BL93: 0 | BM93: 0 | BN93: 0 | BO93: 0 | BP93: 0 | BQ93: 0 | BR93: 0 | BS93: 0 | BT93: 0 | BU93: 0 | BV93: 0 | BW93: 0 | BX93: 0 | BY93: 0 | BZ93: 0 | CA93: 0 | CB93: 0 | CC93: 0 | CD93: 0 | CE93: 0 | CF93: 0 | CG93: 0 | CH93: 0 | CI93: 0 | CJ93: 0 | CK93: 0 | CL93: 0 | CM93: 0 | CN93: 0 | CO93: 0 | CP93: 0 | CQ93: 0 | CR93: 0 | CS93: 0 | CT93: 0 | CU93: 0 | CV93: 0 | CW93: 0 | CX93: 0 | CY93: 0 | CZ93: 0 | DA93: 0
BE94: EL5 | BF94: 5411.845507 | BI94: =BI82 -> 0 | BJ94: 0 | BK94: 0 | BL94: 0 | BM94: 0 | BN94: 0 | BO94: 0 | BP94: 0 | BQ94: 0 | BR94: 0 | BS94: 0 | BT94: 0 | BU94: 0 | BV94: 0 | BW94: 0 | BX94: 0 | BY94: 0 | BZ94: 0 | CA94: 0 | CB94: 0 | CC94: 0 | CD94: 0 | CE94: 0 | CF94: 0 | CG94: 0 | CH94: 0 | CI94: 0 | CJ94: 0 | CK94: 0 | CL94: 0 | CM94: 0 | CN94: 0 | CO94: 0 | CP94: 0 | CQ94: 0 | CR94: 0 | CS94: 0 | CT94: 0 | CU94: 0 | CV94: 0 | CW94: 0 | CX94: 0 | CY94: 0 | CZ94: 0 | DA94: 0
BE95: EL6 | BF95: 5199.570451 | BI95: =BI83 -> 0 | BJ95: 0 | BK95: 0 | BL95: 0 | BM95: 0 | BN95: 0 | BO95: 0 | BP95: 0 | BQ95: 0 | BR95: 0 | BS95: 0 | BT95: 0 | BU95: 0 | BV95: 0 | BW95: 0 | BX95: 0 | BY95: 0 | BZ95: 0 | CA95: 0 | CB95: 0 | CC95: 0 | CD95: 0 | CE95: 0 | CF95: 0 | CG95: 0 | CH95: 0 | CI95: 0 | CJ95: 0 | CK95: 0 | CL95: 0 | CM95: 0 | CN95: 0 | CO95: 0 | CP95: 0 | CQ95: 0 | CR95: 0 | CS95: 0 | CT95: 0 | CU95: 0 | CV95: 0 | CW95: 0 | CX95: 0 | CY95: 0 | CZ95: 0 | DA95: 0
D96: ='Product Classes'!K14&" - "&OFFSET('Product Classes'!$F$10,MATCH('Product Classes'!K14,MODEL_PCS,0),0) -> PD.M - Passage Door, Medium Temperature | BE96: EL7 | BF96: 4898.195629 | BI96: =BI84 -> 0 | BJ96: 0 | BK96: 0 | BL96: 0 | BM96: 0 | BN96: 0 | BO96: 0 | BP96: 0 | BQ96: 0 | BR96: 0 | BS96: 0 | BT96: 0 | BU96: 0 | BV96: 0 | BW96: 0 | BX96: 0 | BY96: 0 | BZ96: 0 | CA96: 0 | CB96: 0 | CC96: 0 | CD96: 0 | CE96: 0 | CF96: 0 | CG96: 0 | CH96: 0 | CI96: 0 | CJ96: =SUM(CJ79:CJ84) -> 1 | CK96: 1 | CL96: 1 | CM96: 1 | CN96: 1 | CO96: 1 | CP96: 1 | CQ96: 1 | CR96: 1 | CS96: 1 | CT96: 1 | CU96: 1 | CV96: 1 | CW96: 1 | CX96: 1 | CY96: 1 | CZ96: 1 | DA96: 1
BE97: TOTAL | BI97: =SUM(BI89:BI96) -> 1 | BJ97: =SUM(BJ89:BJ96) -> 1 | BK97: 1 | BL97: 1 | BM97: 1 | BN97: 1 | BO97: 1 | BP97: 1 | BQ97: 1 | BR97: 1 | BS97: 1 | BT97: 1 | BU97: 1 | BV97: 1 | BW97: 1 | BX97: 1 | BY97: 1 | BZ97: 1 | CA97: 1 | CB97: 1 | CC97: 1 | CD97: 1 | CE97: 1 | CF97: 1 | CG97: 1 | CH97: 1 | CI97: 1 | CJ97: 1 | CK97: 1 | CL97: 1 | CM97: 1 | CN97: 1 | CO97: 1 | CP97: 1 | CQ97: 1 | CR97: 1 | CS97: 1 | CT97: 1 | CU97: 1 | CV97: 1 | CW97: 1 | CX97: 1 | CY97: 1 | CZ97: 1 | DA97: 1
D98: PRE-Case | F98: Static Distribution
D99: Efficiency Level | E99: EL (kWh/year) | F99: 2006 | H99: 1990 | I99: =H99+1 -> 1991 | J99: 1992 | K99: 1993 | L99: 1994 | M99: 1995 | N99: 1996 | O99: 1997 | P99: 1998 | Q99: 1999 | R99: 2000 | S99: 2001 | T99: 2002 | U99: 2003 | V99: 2004 | W99: 2005 | X99: 2006 | Y99: 2007 | Z99: 2008 | AA99: 2009 | AB99: 2010 | AC99: 2011 | AD99: 2012 | AE99: 2013 | AF99: 2014 | AG99: 2015 | AH99: 2016 | AI99: 2017 | AJ99: 2018 | AK99: 2019 | AL99: 2020 | AM99: 2021 | AN99: 2022 | AO99: 2023 | AP99: 2024 | AQ99: 2025 | AR99: 2026 | AS99: 2027 | AT99: 2028 | AU99: 2029 | AV99: 2030 | AW99: 2031 | AX99: 2032 | AY99: 2033 | AZ99: 2034 | BE99: Sources | BF99: 1. DOE Walk-In Coolers and Freezers 2014 Final Rule, Technical Support Document: Final Rule National Impact Analysis (NIA) - Systems, 'Market Share Inputs' tab, cells B3:M35, http://www.regulations.gov/#!documentDetail;D=EERE-2008-BT-STD-0015-0134
D100: ='Efficiency Levels'!C69 -> EL0* | E100: ='Efficiency Levels'!D69 -> 181.2615229 | F100: 1 | H100: =$F100 -> 1 | I100: 1 | J100: 1 | K100: 1 | L100: 1 | M100: 1 | N100: 1 | O100: 1 | P100: 1 | Q100: 1 | R100: 1 | S100: 1 | T100: 1 | U100: 1 | V100: 1 | W100: 1 | X100: =$F100 -> 1 | Y100: 1 | Z100: 1 | AA100: 0 | AB100: 0 | AC100: 0 | AD100: 0 | AE100: 0 | AF100: 0 | AG100: 0 | AH100: 0 | AI100: 0 | AJ100: 0 | AK100: 0 | AL100: 0 | AM100: 0 | AN100: 0 | AO100: 0 | AP100: 0 | AQ100: 0 | AR100: 0 | AS100: 0 | AT100: 0 | AU100: 0 | AV100: 0 | AW100: 0 | AX100: 0 | AY100: 0 | AZ100: 0
D101: ='Efficiency Levels'!C70 -> EL1* | E101: ='Efficiency Levels'!D70 -> 188.263376 | F101: 0 | H101: 0 | I101: 0 | J101: 0 | K101: 0 | L101: 0 | M101: 0 | N101: 0 | O101: 0 | P101: 0 | Q101: 0 | R101: 0 | S101: 0 | T101: 0 | U101: 0 | V101: 0 | W101: 0 | X101: 0 | Y101: 0 | Z101: 0 | AA101: 0 | AB101: 0 | AC101: 0 | AD101: 0 | AE101: 0 | AF101: 0 | AG101: 0 | AH101: 0 | AI101: 0 | AJ101: 0 | AK101: 0 | AL101: 0 | AM101: 0 | AN101: 0 | AO101: 0 | AP101: 0 | AQ101: 0 | AR101: 0 | AS101: 0 | AT101: 0 | AU101: 0 | AV101: 0 | AW101: 0 | AX101: 0 | AY101: 0 | AZ101: 0
D102: ='Efficiency Levels'!C71 -> EL2 | E102: ='Efficiency Levels'!D71 -> 1317.037082 | F102: 0 | H102: 0 | I102: 0 | J102: 0 | K102: 0 | L102: 0 | M102: 0 | N102: 0 | O102: 0 | P102: 0 | Q102: 0 | R102: 0 | S102: 0 | T102: 0 | U102: 0 | V102: 0 | W102: 0 | X102: =$F102 -> 0 | Y102: 0 | Z102: 0 | AA102: 1 | AB102: 1 | AC102: 1 | AD102: 1 | AE102: 1 | AF102: 1 | AG102: 1 | AH102: 1 | AI102: 1 | AJ102: 1 | AK102: 1 | AL102: 1 | AM102: 1 | AN102: 1 | AO102: 1 | AP102: 1 | AQ102: 1 | AR102: 1 | AS102: 1 | AT102: 1 | AU102: 1 | AV102: 1 | AW102: 1 | AX102: 1 | AY102: 1 | AZ102: 1
D103: ='Efficiency Levels'!C72 -> EL3 | E103: ='Efficiency Levels'!D72 -> 1305.38652 | F103: 0 | H103: 0 | I103: 0 | J103: 0 | K103: 0 | L103: 0 | M103: 0 | N103: 0 | O103: 0 | P103: 0 | Q103: 0 | R103: 0 | S103: 0 | T103: 0 | U103: 0 | V103: 0 | W103: 0 | X103: 0 | Y103: 0 | Z103: 0 | AA103: 0 | AB103: 0 | AC103: 0 | AD103: 0 | AE103: 0 | AF103: 0 | AG103: 0 | AH103: 0 | AI103: 0 | AJ103: 0 | AK103: 0 | AL103: 0 | AM103: 0 | AN103: 0 | AO103: 0 | AP103: 0 | AQ103: 0 | AR103: 0 | AS103: 0 | AT103: 0 | AU103: 0 | AV103: 0 | AW103: 0 | AX103: 0 | AY103: 0 | AZ103: 0
D104: ='Efficiency Levels'!C73 -> EL4 | E104: ='Efficiency Levels'!D73 -> 1270.912344 | F104: 0 | H104: 0 | I104: 0 | J104: 0 | K104: 0 | L104: 0 | M104: 0 | N104: 0 | O104: 0 | P104: 0 | Q104: 0 | R104: 0 | S104: 0 | T104: 0 | U104: 0 | V104: 0 | W104: 0 | X104: 0 | Y104: 0 | Z104: 0 | AA104: 0 | AB104: 0 | AC104: 0 | AD104: 0 | AE104: 0 | AF104: 0 | AG104: 0 | AH104: 0 | AI104: 0 | AJ104: 0 | AK104: 0 | AL104: 0 | AM104: 0 | AN104: 0 | AO104: 0 | AP104: 0 | AQ104: 0 | AR104: 0 | AS104: 0 | AT104: 0 | AU104: 0 | AV104: 0 | AW104: 0 | AX104: 0 | AY104: 0 | AZ104: 0 | BE104: ='Product Class Dist'!AZ14 -> DC.L.O.009
D105: ='Efficiency Levels'!C74 -> EL5 | E105: ='Efficiency Levels'!D74 -> 1264.282977 | F105: 0 | H105: 0 | I105: 0 | J105: 0 | K105: 0 | L105: 0 | M105: 0 | N105: 0 | O105: 0 | P105: 0 | Q105: 0 | R105: 0 | S105: 0 | T105: 0 | U105: 0 | V105: 0 | W105: 0 | X105: 0 | Y105: 0 | Z105: 0 | AA105: 0 | AB105: 0 | AC105: 0 | AD105: 0 | AE105: 0 | AF105: 0 | AG105: 0 | AH105: 0 | AI105: 0 | AJ105: 0 | AK105: 0 | AL105: 0 | AM105: 0 | AN105: 0 | AO105: 0 | AP105: 0 | AQ105: 0 | AR105: 0 | AS105: 0 | AT105: 0 | AU105: 0 | AV105: 0 | AW105: 0 | AX105: 0 | AY105: 0 | AZ105: 0
D106: ='Efficiency Levels'!C75 -> EL6 | E106: ='Efficiency Levels'!D75 -> 1250.902215 | F106: 0 | H106: 0 | I106: 0 | J106: 0 | K106: 0 | L106: 0 | M106: 0 | N106: 0 | O106: 0 | P106: 0 | Q106: 0 | R106: 0 | S106: 0 | T106: 0 | U106: 0 | V106: 0 | W106: 0 | X106: 0 | Y106: 0 | Z106: 0 | AA106: 0 | AB106: 0 | AC106: 0 | AD106: 0 | AE106: 0 | AF106: 0 | AG106: 0 | AH106: 0 | AI106: 0 | AJ106: 0 | AK106: 0 | AL106: 0 | AM106: 0 | AN106: 0 | AO106: 0 | AP106: 0 | AQ106: 0 | AR106: 0 | AS106: 0 | AT106: 0 | AU106: 0 | AV106: 0 | AW106: 0 | AX106: 0 | AY106: 0 | AZ106: 0 | BE106: PRE-Case | BG106: Static Distribution
D107: ='Efficiency Levels'!C76 -> EL7 | E107: ='Efficiency Levels'!D76 -> 1241.336351 | F107: 0 | H107: 0 | I107: 0 | J107: 0 | K107: 0 | L107: 0 | M107: 0 | N107: 0 | O107: 0 | P107: 0 | Q107: 0 | R107: 0 | S107: 0 | T107: 0 | U107: 0 | V107: 0 | W107: 0 | X107: 0 | Y107: 0 | Z107: 0 | AA107: 0 | AB107: 0 | AC107: 0 | AD107: 0 | AE107: 0 | AF107: 0 | AG107: 0 | AH107: 0 | AI107: 0 | AJ107: 0 | AK107: 0 | AL107: 0 | AM107: 0 | AN107: 0 | AO107: 0 | AP107: 0 | AQ107: 0 | AR107: 0 | AS107: 0 | AT107: 0 | AU107: 0 | AV107: 0 | AW107: 0 | AX107: 0 | AY107: 0 | AZ107: 0 | BE107: Efficiency Level | BF107: EL (kWh/year) | BG107: 2014 | BI107: 1990 | BJ107: =BI107+1 -> 1991 | BK107: =BJ107+1 -> 1992 | BL107: =BK107+1 -> 1993 | BM107: =BL107+1 -> 1994 | BN107: =BM107+1 -> 1995 | BO107: =BN107+1 -> 1996 | BP107: =BO107+1 -> 1997 | BQ107: =BP107+1 -> 1998 | BR107: =BQ107+1 -> 1999 | BS107: =BR107+1 -> 2000 | BT107: =BS107+1 -> 2001 | BU107: =BT107+1 -> 2002 | BV107: =BU107+1 -> 2003 | BW107: =BV107+1 -> 2004 | BX107: =BW107+1 -> 2005 | BY107: =BX107+1 -> 2006 | BZ107: =BY107+1 -> 2007 | CA107: =BZ107+1 -> 2008 | CB107: =CA107+1 -> 2009 | CC107: =CB107+1 -> 2010 | CD107: =CC107+1 -> 2011 | CE107: =CD107+1 -> 2012 | CF107: =CE107+1 -> 2013 | CG107: =CF107+1 -> 2014 | CH107: =CG107+1 -> 2015 | CI107: =CH107+1 -> 2016 | CJ107: =CI107+1 -> 2017 | CK107: =CJ107+1 -> 2018 | CL107: =CK107+1 -> 2019 | CM107: =CL107+1 -> 2020 | CN107: =CM107+1 -> 2021 | CO107: =CN107+1 -> 2022 | CP107: =CO107+1 -> 2023 | CQ107: =CP107+1 -> 2024 | CR107: =CQ107+1 -> 2025 | CS107: =CR107+1 -> 2026 | CT107: =CS107+1 -> 2027 | CU107: =CT107+1 -> 2028 | CV107: =CU107+1 -> 2029 | CW107: =CV107+1 -> 2030 | CX107: =CW107+1 -> 2031 | CY107: =CX107+1 -> 2032 | CZ107: =CY107+1 -> 2033 | DA107: =CZ107+1 -> 2034
D108: ='Efficiency Levels'!C77 -> EL8 | E108: ='Efficiency Levels'!D77 -> 1234.96157 | F108: 0 | H108: 0 | I108: 0 | J108: 0 | K108: 0 | L108: 0 | M108: 0 | N108: 0 | O108: =$F108 -> 0 | P108: 0 | Q108: 0 | R108: 0 | S108: 0 | T108: 0 | U108: 0 | V108: 0 | W108: 0 | X108: 0 | Y108: 0 | Z108: 0 | AA108: 0 | AB108: 0 | AC108: 0 | AD108: 0 | AE108: 0 | AF108: 0 | AG108: 0 | AH108: 0 | AI108: 0 | AJ108: 0 | AK108: 0 | AL108: 0 | AM108: 0 | AN108: 0 | AO108: 0 | AP108: 0 | AQ108: 0 | AR108: 0 | AS108: 0 | AT108: 0 | AU108: 0 | AV108: 0 | AW108: 0 | AX108: 0 | AY108: 0 | AZ108: 0 | BE108: ='Efficiency Levels'!J69 -> EL0 | BF108: ='Efficiency Levels'!K69 -> 16967.80754 | BG108: 0 | BI108: 1 | BJ108: 1 | BK108: 1 | BL108: 1 | BM108: 1 | BN108: 1 | BO108: 1 | BP108: 1 | BQ108: 1 | BR108: 1 | BS108: 1 | BT108: 1 | BU108: 1 | BV108: 1 | BW108: 1 | BX108: 1 | BY108: 1 | BZ108: 1 | CA108: 1 | CB108: =$BG108 -> 0 | CC108: 0 | CD108: 0 | CE108: 0 | CF108: 0 | CG108: 0 | CH108: 0 | CI108: 0 | CJ108: 0 | CK108: 0 | CL108: 0 | CM108: 0 | CN108: 0 | CO108: 0 | CP108: 0 | CQ108: 0 | CR108: =$BG108 -> 0 | CS108: 0 | CT108: 0 | CU108: 0 | CV108: 0 | CW108: 0 | CX108: 0 | CY108: 0 | CZ108: 0 | DA108: 0
D109: ='Efficiency Levels'!C78 -> EL9 | E109: ='Efficiency Levels'!D78 -> 1224.855363 | F109: 0 | H109: 0 | I109: 0 | J109: 0 | K109: 0 | L109: 0 | M109: 0 | N109: 0 | O109: 0 | P109: 0 | Q109: 0 | R109: 0 | S109: 0 | T109: 0 | U109: 0 | V109: 0 | W109: 0 | X109: 0 | Y109: 0 | Z109: 0 | AA109: 0 | AB109: 0 | AC109: 0 | AD109: 0 | AE109: 0 | AF109: 0 | AG109: 0 | AH109: 0 | AI109: 0 | AJ109: 0 | AK109: 0 | AL109: 0 | AM109: 0 | AN109: 0 | AO109: 0 | AP109: 0 | AQ109: 0 | AR109: 0 | AS109: 0 | AT109: 0 | AU109: 0 | AV109: 0 | AW109: 0 | AX109: 0 | AY109: 0 | AZ109: 0 | BE109: ='Efficiency Levels'!J70 -> EL1 | BF109: ='Efficiency Levels'!K70 -> 13920.63112 | BG109: 0 | BI109: 0 | BJ109: 0 | BK109: 0 | BL109: 0 | BM109: 0 | BN109: 0 | BO109: 0 | BP109: 0 | BQ109: 0 | BR109: 0 | BS109: 0 | BT109: 0 | BU109: 0 | BV109: 0 | BW109: 0 | BX109: 0 | BY109: 0 | BZ109: 0 | CA109: 0 | CB109: 0 | CC109: 0 | CD109: 0 | CE109: 0 | CF109: 0 | CG109: 0 | CH109: 0 | CI109: 0 | CJ109: 0 | CK109: 0 | CL109: 0 | CM109: 0 | CN109: 0 | CO109: 0 | CP109: 0 | CQ109: 0 | CR109: 0 | CS109: 0 | CT109: 0 | CU109: 0 | CV109: 0 | CW109: 0 | CX109: 0 | CY109: 0 | CZ109: 0 | DA109: 0
D110: ='Efficiency Levels'!C79 -> EL10 | E110: ='Efficiency Levels'!D79 -> 1206.862263 | F110: 0 | H110: 0 | I110: 0 | J110: 0 | K110: 0 | L110: 0 | M110: 0 | N110: 0 | O110: 0 | P110: 0 | Q110: 0 | R110: 0 | S110: 0 | T110: 0 | U110: 0 | V110: 0 | W110: 0 | X110: 0 | Y110: 0 | Z110: 0 | AA110: 0 | AB110: 0 | AC110: 0 | AD110: 0 | AE110: 0 | AF110: 0 | AG110: 0 | AH110: 0 | AI110: 0 | AJ110: 0 | AK110: 0 | AL110: 0 | AM110: 0 | AN110: 0 | AO110: 0 | AP110: 0 | AQ110: 0 | AR110: 0 | AS110: 0 | AT110: 0 | AU110: 0 | AV110: 0 | AW110: 0 | AX110: 0 | AY110: 0 | AZ110: 0 | BE110: ='Efficiency Levels'!J71 -> EL2 | BF110: ='Efficiency Levels'!K71 -> 11146.08987 | BG110: 0.75 | BI110: 0 | BJ110: 0 | BK110: 0 | BL110: 0 | BM110: 0 | BN110: 0 | BO110: 0 | BP110: 0 | BQ110: 0 | BR110: 0 | BS110: 0 | BT110: 0 | BU110: 0 | BV110: 0 | BW110: 0 | BX110: 0 | BY110: 0 | BZ110: 0 | CA110: 0 | CB110: =$BG110 -> 0.75 | CC110: 0.75 | CD110: 0.75 | CE110: 0.75 | CF110: 0.75 | CG110: 0.75 | CH110: 0.75 | CI110: 0.75 | CJ110: 0.75 | CK110: 0.75 | CL110: 0.75 | CM110: 0.75 | CN110: 0.75 | CO110: 0.75 | CP110: 0.75 | CQ110: 0.75 | CR110: 0.75 | CS110: 0.75 | CT110: 0.75 | CU110: 0.75 | CV110: 0.75 | CW110: 0.75 | CX110: 0.75 | CY110: 0.75 | CZ110: 0.75 | DA110: 0.75
D111: ='Efficiency Levels'!C80 -> EL11 | E111: ='Efficiency Levels'!D80 -> 1192.723647 | F111: 0 | H111: 0 | I111: 0 | J111: 0 | K111: 0 | L111: 0 | M111: 0 | N111: 0 | O111: 0 | P111: 0 | Q111: 0 | R111: 0 | S111: 0 | T111: 0 | U111: 0 | V111: 0 | W111: 0 | X111: 0 | Y111: 0 | Z111: 0 | AA111: 0 | AB111: 0 | AC111: 0 | AD111: 0 | AE111: 0 | AF111: 0 | AG111: 0 | AH111: 0 | AI111: 0 | AJ111: 0 | AK111: 0 | AL111: 0 | AM111: 0 | AN111: 0 | AO111: 0 | AP111: 0 | AQ111: 0 | AR111: 0 | AS111: 0 | AT111: 0 | AU111: 0 | AV111: 0 | AW111: 0 | AX111: 0 | AY111: 0 | AZ111: 0 | BE111: ='Efficiency Levels'!J72 -> EL3 | BF111: ='Efficiency Levels'!K72 -> 9418.87011 | BG111: 0.25 | BI111: 0 | BJ111: 0 | BK111: 0 | BL111: 0 | BM111: 0 | BN111: 0 | BO111: 0 | BP111: 0 | BQ111: 0 | BR111: 0 | BS111: 0 | BT111: 0 | BU111: 0 | BV111: 0 | BW111: 0 | BX111: 0 | BY111: 0 | BZ111: 0 | CA111: 0 | CB111: 0.25 | CC111: 0.25 | CD111: 0.25 | CE111: 0.25 | CF111: 0.25 | CG111: 0.25 | CH111: 0.25 | CI111: 0.25 | CJ111: 0.25 | CK111: 0.25 | CL111: 0.25 | CM111: 0.25 | CN111: 0.25 | CO111: 0.25 | CP111: 0.25 | CQ111: 0.25 | CR111: 0.25 | CS111: 0.25 | CT111: 0.25 | CU111: 0.25 | CV111: 0.25 | CW111: 0.25 | CX111: 0.25 | CY111: 0.25 | CZ111: 0.25 | DA111: 0.25
D112: TOTAL | F112: =SUM(F100:F111) -> 1 | H112: =SUM(H100:H111) -> 1 | I112: =SUM(I100:I111) -> 1 | J112: 1 | K112: 1 | L112: 1 | M112: 1 | N112: 1 | O112: 1 | P112: 1 | Q112: 1 | R112: 1 | S112: 1 | T112: 1 | U112: 1 | V112: 1 | W112: 1 | X112: 1 | Y112: 1 | Z112: 1 | AA112: 1 | AB112: 1 | AC112: 1 | AD112: 1 | AE112: 1 | AF112: 1 | AG112: 1 | AH112: 1 | AI112: 1 | AJ112: 1 | AK112: 1 | AL112: 1 | AM112: 1 | AN112: 1 | AO112: 1 | AP112: 1 | AQ112: 1 | AR112: 1 | AS112: 1 | AT112: 1 | AU112: 1 | AV112: 1 | AW112: 1 | AX112: 1 | AY112: 1 | AZ112: 1 | BE112: ='Efficiency Levels'!J73 -> EL4 | BF112: ='Efficiency Levels'!K73 -> 9042.126375 | BG112: 0 | BI112: 0 | BJ112: 0 | BK112: 0 | BL112: 0 | BM112: 0 | BN112: 0 | BO112: 0 | BP112: 0 | BQ112: 0 | BR112: 0 | BS112: 0 | BT112: 0 | BU112: 0 | BV112: 0 | BW112: 0 | BX112: 0 | BY112: 0 | BZ112: 0 | CA112: 0 | CB112: 0 | CC112: 0 | CD112: 0 | CE112: 0 | CF112: 0 | CG112: 0 | CH112: 0 | CI112: 0 | CJ112: 0 | CK112: 0 | CL112: 0 | CM112: 0 | CN112: 0 | CO112: 0 | CP112: 0 | CQ112: 0 | CR112: 0 | CS112: 0 | CT112: 0 | CU112: 0 | CV112: 0 | CW112: 0 | CX112: 0 | CY112: 0 | CZ112: 0 | DA112: 0
BE113: ='Efficiency Levels'!J74 -> EL5 | BF113: ='Efficiency Levels'!K74 -> 8506.799591 | BG113: 0 | BI113: 0 | BJ113: 0 | BK113: 0 | BL113: 0 | BM113: 0 | BN113: 0 | BO113: 0 | BP113: 0 | BQ113: 0 | BR113: 0 | BS113: 0 | BT113: 0 | BU113: 0 | BV113: 0 | BW113: 0 | BX113: 0 | BY113: 0 | BZ113: 0 | CA113: 0 | CB113: 0 | CC113: 0 | CD113: 0 | CE113: 0 | CF113: 0 | CG113: 0 | CH113: 0 | CI113: 0 | CJ113: 0 | CK113: 0 | CL113: 0 | CM113: 0 | CN113: 0 | CO113: 0 | CP113: 0 | CQ113: 0 | CR113: 0 | CS113: 0 | CT113: 0 | CU113: 0 | CV113: 0 | CW113: 0 | CX113: 0 | CY113: 0 | CZ113: 0 | DA113: 0
D114: POST-Case | BE114: ='Efficiency Levels'!J75 -> EL6 | BF114: ='Efficiency Levels'!K75 -> 8019.018914 | BG114: 0 | BI114: 0 | BJ114: 0 | BK114: 0 | BL114: 0 | BM114: 0 | BN114: 0 | BO114: 0 | BP114: 0 | BQ114: 0 | BR114: 0 | BS114: 0 | BT114: 0 | BU114: 0 | BV114: 0 | BW114: 0 | BX114: 0 | BY114: 0 | BZ114: 0 | CA114: 0 | CB114: 0 | CC114: 0 | CD114: 0 | CE114: 0 | CF114: 0 | CG114: 0 | CH114: 0 | CI114: 0 | CJ114: 0 | CK114: 0 | CL114: 0 | CM114: 0 | CN114: 0 | CO114: 0 | CP114: 0 | CQ114: 0 | CR114: 0 | CS114: 0 | CT114: 0 | CU114: 0 | CV114: 0 | CW114: 0 | CX114: 0 | CY114: 0 | CZ114: 0 | DA114: 0
D115: Efficiency Level | E115: EL (kWh/year) | H115: 1990 | I115: =H115+1 -> 1991 | J115: 1992 | K115: 1993 | L115: 1994 | M115: 1995 | N115: 1996 | O115: 1997 | P115: 1998 | Q115: 1999 | R115: 2000 | S115: 2001 | T115: 2002 | U115: 2003 | V115: 2004 | W115: 2005 | X115: =X99 -> 2006 | Y115: 2007 | Z115: 2008 | AA115: 2009 | AB115: 2010 | AC115: 2011 | AD115: 2012 | AE115: 2013 | AF115: 2014 | AG115: 2015 | AH115: 2016 | AI115: 2017 | AJ115: 2018 | AK115: 2019 | AL115: 2020 | AM115: 2021 | AN115: 2022 | AO115: 2023 | AP115: 2024 | AQ115: 2025 | AR115: 2026 | AS115: 2027 | AT115: 2028 | AU115: 2029 | AV115: 2030 | AW115: 2031 | AX115: 2032 | AY115: 2033 | AZ115: 2034 | BE115: ='Efficiency Levels'!J76 -> EL7 | BF115: ='Efficiency Levels'!K76 -> 7672.830458 | BG115: 0 | BI115: 0 | BJ115: 0 | BK115: 0 | BL115: 0 | BM115: 0 | BN115: 0 | BO115: 0 | BP115: 0 | BQ115: 0 | BR115: 0 | BS115: 0 | BT115: 0 | BU115: 0 | BV115: 0 | BW115: 0 | BX115: 0 | BY115: 0 | BZ115: 0 | CA115: 0 | CB115: 0 | CC115: 0 | CD115: 0 | CE115: 0 | CF115: 0 | CG115: 0 | CH115: 0 | CI115: 0 | CJ115: 0 | CK115: 0 | CL115: 0 | CM115: 0 | CN115: 0 | CO115: 0 | CP115: 0 | CQ115: 0 | CR115: 0 | CS115: 0 | CT115: 0 | CU115: 0 | CV115: 0 | CW115: 0 | CX115: 0 | CY115: 0 | CZ115: 0 | DA115: 0
D116: ='Efficiency Levels'!C69 -> EL0* | E116: ='Efficiency Levels'!D69 -> 181.2615229 | H116: =H100 -> 1 | I116: 1 | J116: 1 | K116: 1 | L116: 1 | M116: 1 | N116: 1 | O116: 1 | P116: 1 | Q116: 1 | R116: 1 | S116: 1 | T116: 1 | U116: 1 | V116: 1 | W116: 1 | X116: 1 | Y116: 1 | Z116: 1 | AA116: 0 | AB116: 0 | AC116: 0 | AD116: 0 | AE116: 0 | AF116: 0 | AG116: 0 | AH116: 0 | AI116: 0 | AJ116: 0 | AK116: 0 | AL116: 0 | AM116: 0 | AN116: 0 | AO116: 0 | AP116: 0 | AQ116: 0 | AR116: 0 | AS116: 0 | AT116: 0 | AU116: 0 | AV116: 0 | AW116: 0 | AX116: 0 | AY116: 0 | AZ116: 0 | BE116: ='Efficiency Levels'!J77 -> EL8 | BF116: ='Efficiency Levels'!K77 -> 7627.951915 | BG116: 0 | BI116: 0 | BJ116: 0 | BK116: 0 | BL116: 0 | BM116: 0 | BN116: 0 | BO116: 0 | BP116: 0 | BQ116: 0 | BR116: 0 | BS116: 0 | BT116: 0 | BU116: 0 | BV116: 0 | BW116: 0 | BX116: 0 | BY116: 0 | BZ116: 0 | CA116: 0 | CB116: =$BG116 -> 0 | CC116: 0 | CD116: 0 | CE116: 0 | CF116: 0 | CG116: 0 | CH116: 0 | CI116: 0 | CJ116: 0 | CK116: 0 | CL116: 0 | CM116: 0 | CN116: 0 | CO116: 0 | CP116: 0 | CQ116: 0 | CR116: 0 | CS116: 0 | CT116: 0 | CU116: 0 | CV116: 0 | CW116: 0 | CX116: 0 | CY116: 0 | CZ116: 0 | DA116: 0
D117: ='Efficiency Levels'!C70 -> EL1* | E117: ='Efficiency Levels'!D70 -> 188.263376 | H117: =H101 -> 0 | I117: 0 | J117: 0 | K117: 0 | L117: 0 | M117: 0 | N117: 0 | O117: 0 | P117: 0 | Q117: 0 | R117: 0 | S117: 0 | T117: 0 | U117: 0 | V117: 0 | W117: 0 | X117: 0 | Y117: 0 | Z117: 0 | AA117: 0 | AB117: 0 | AC117: 0 | AD117: 0 | AE117: 0 | AF117: 0 | AG117: 0 | AH117: 0 | AI117: 0 | AJ117: 0 | AK117: 0 | AL117: 0 | AM117: 0 | AN117: 0 | AO117: 0 | AP117: 0 | AQ117: 0 | AR117: 0 | AS117: 0 | AT117: 0 | AU117: 0 | AV117: 0 | AW117: 0 | AX117: 0 | AY117: 0 | AZ117: 0 | BE117: ='Efficiency Levels'!J78 -> EL9 | BF117: ='Efficiency Levels'!K78 -> 7511.217399 | BG117: 0 | BI117: 0 | BJ117: 0 | BK117: 0 | BL117: 0 | BM117: 0 | BN117: 0 | BO117: 0 | BP117: 0 | BQ117: 0 | BR117: 0 | BS117: 0 | BT117: 0 | BU117: 0 | BV117: 0 | BW117: 0 | BX117: 0 | BY117: 0 | BZ117: 0 | CA117: 0 | CB117: 0 | CC117: 0 | CD117: 0 | CE117: 0 | CF117: 0 | CG117: 0 | CH117: 0 | CI117: 0 | CJ117: 0 | CK117: 0 | CL117: 0 | CM117: 0 | CN117: 0 | CO117: 0 | CP117: 0 | CQ117: 0 | CR117: 0 | CS117: 0 | CT117: 0 | CU117: 0 | CV117: 0 | CW117: 0 | CX117: 0 | CY117: 0 | CZ117: 0 | DA117: 0
D118: ='Efficiency Levels'!C71 -> EL2 | E118: ='Efficiency Levels'!D71 -> 1317.037082 | H118: =H102 -> 0 | I118: 0 | J118: 0 | K118: 0 | L118: 0 | M118: 0 | N118: 0 | O118: 0 | P118: 0 | Q118: 0 | R118: 0 | S118: 0 | T118: 0 | U118: 0 | V118: 0 | W118: 0 | X118: 0 | Y118: 0 | Z118: 0 | AA118: =SUM(AA100:AA102) -> 1 | AB118: =SUM(AB100:AB102) -> 1 | AC118: 1 | AD118: 1 | AE118: 1 | AF118: 1 | AG118: 1 | AH118: 1 | AI118: 1 | AJ118: 1 | AK118: 1 | AL118: 1 | AM118: 1 | AN118: 1 | AO118: 1 | AP118: 1 | AQ118: 1 | AR118: 1 | AS118: 1 | AT118: 1 | AU118: 1 | AV118: 1 | AW118: 1 | AX118: 1 | AY118: 1 | AZ118: 1 | BE118: ='Efficiency Levels'!J79 -> EL10 | BF118: ='Efficiency Levels'!K79 -> 7068.15657 | BG118: 0 | BI118: 0 | BJ118: 0 | BK118: 0 | BL118: 0 | BM118: 0 | BN118: 0 | BO118: 0 | BP118: 0 | BQ118: 0 | BR118: 0 | BS118: 0 | BT118: 0 | BU118: 0 | BV118: 0 | BW118: 0 | BX118: 0 | BY118: 0 | BZ118: 0 | CA118: 0 | CB118: 0 | CC118: 0 | CD118: 0 | CE118: 0 | CF118: 0 | CG118: 0 | CH118: 0 | CI118: 0 | CJ118: 0 | CK118: 0 | CL118: 0 | CM118: 0 | CN118: 0 | CO118: 0 | CP118: 0 | CQ118: 0 | CR118: 0 | CS118: 0 | CT118: 0 | CU118: 0 | CV118: 0 | CW118: 0 | CX118: 0 | CY118: 0 | CZ118: 0 | DA118: 0
D119: ='Efficiency Levels'!C72 -> EL3 | E119: ='Efficiency Levels'!D72 -> 1305.38652 | H119: =H103 -> 0 | I119: 0 | J119: 0 | K119: 0 | L119: 0 | M119: 0 | N119: 0 | O119: 0 | P119: 0 | Q119: 0 | R119: 0 | S119: 0 | T119: 0 | U119: 0 | V119: 0 | W119: 0 | X119: 0 | Y119: 0 | Z119: 0 | AA119: 0 | AB119: 0 | AC119: 0 | AD119: 0 | AE119: 0 | AF119: 0 | AG119: 0 | AH119: 0 | AI119: 0 | AJ119: 0 | AK119: 0 | AL119: 0 | AM119: 0 | AN119: 0 | AO119: 0 | AP119: 0 | AQ119: 0 | AR119: 0 | AS119: 0 | AT119: 0 | AU119: 0 | AV119: 0 | AW119: 0 | AX119: 0 | AY119: 0 | AZ119: 0 | BE119: ='Efficiency Levels'!J80 -> EL11 | BF119: ='Efficiency Levels'!K80 -> 7032.306539 | BG119: 0 | BI119: 0 | BJ119: 0 | BK119: 0 | BL119: 0 | BM119: 0 | BN119: 0 | BO119: 0 | BP119: 0 | BQ119: 0 | BR119: 0 | BS119: 0 | BT119: 0 | BU119: 0 | BV119: 0 | BW119: 0 | BX119: 0 | BY119: 0 | BZ119: 0 | CA119: 0 | CB119: 0 | CC119: 0 | CD119: 0 | CE119: 0 | CF119: 0 | CG119: 0 | CH119: 0 | CI119: 0 | CJ119: 0 | CK119: 0 | CL119: 0 | CM119: 0 | CN119: 0 | CO119: 0 | CP119: 0 | CQ119: 0 | CR119: 0 | CS119: 0 | CT119: 0 | CU119: 0 | CV119: 0 | CW119: 0 | CX119: 0 | CY119: 0 | CZ119: 0 | DA119: 0
D120: ='Efficiency Levels'!C73 -> EL4 | E120: ='Efficiency Levels'!D73 -> 1270.912344 | H120: =H104 -> 0 | I120: 0 | J120: 0 | K120: 0 | L120: 0 | M120: 0 | N120: 0 | O120: 0 | P120: 0 | Q120: 0 | R120: 0 | S120: 0 | T120: 0 | U120: 0 | V120: 0 | W120: 0 | X120: 0 | Y120: 0 | Z120: 0 | AA120: 0 | AB120: 0 | AC120: 0 | AD120: 0 | AE120: 0 | AF120: 0 | AG120: 0 | AH120: 0 | AI120: 0 | AJ120: 0 | AK120: 0 | AL120: 0 | AM120: 0 | AN120: 0 | AO120: 0 | AP120: 0 | AQ120: 0 | AR120: 0 | AS120: 0 | AT120: 0 | AU120: 0 | AV120: 0 | AW120: 0 | AX120: 0 | AY120: 0 | AZ120: 0 | BE120: TOTAL | BG120: =SUM(BG108:BG119) -> 1 | BI120: =SUM(BI108:BI119) -> 1 | BJ120: =SUM(BJ108:BJ119) -> 1 | BK120: 1 | BL120: 1 | BM120: 1 | BN120: 1 | BO120: 1 | BP120: 1 | BQ120: 1 | BR120: 1 | BS120: 1 | BT120: 1 | BU120: 1 | BV120: 1 | BW120: 1 | BX120: 1 | BY120: 1 | BZ120: 1 | CA120: 1 | CB120: 1 | CC120: 1 | CD120: 1 | CE120: 1 | CF120: 1 | CG120: 1 | CH120: 1 | CI120: 1 | CJ120: 1 | CK120: 1 | CL120: 1 | CM120: 1 | CN120: 1 | CO120: 1 | CP120: 1 | CQ120: 1 | CR120: 1 | CS120: 1 | CT120: 1 | CU120: 1 | CV120: 1 | CW120: 1 | CX120: 1 | CY120: 1 | CZ120: 1 | DA120: 1
D121: ='Efficiency Levels'!C74 -> EL5 | E121: ='Efficiency Levels'!D74 -> 1264.282977 | H121: =H105 -> 0 | I121: 0 | J121: 0 | K121: 0 | L121: 0 | M121: 0 | N121: 0 | O121: 0 | P121: 0 | Q121: 0 | R121: 0 | S121: 0 | T121: 0 | U121: 0 | V121: 0 | W121: 0 | X121: 0 | Y121: 0 | Z121: 0 | AA121: 0 | AB121: 0 | AC121: 0 | AD121: 0 | AE121: 0 | AF121: 0 | AG121: 0 | AH121: 0 | AI121: 0 | AJ121: 0 | AK121: 0 | AL121: 0 | AM121: 0 | AN121: 0 | AO121: 0 | AP121: 0 | AQ121: 0 | AR121: 0 | AS121: 0 | AT121: 0 | AU121: 0 | AV121: 0 | AW121: 0 | AX121: 0 | AY121: 0 | AZ121: 0
D122: ='Efficiency Levels'!C75 -> EL6 | E122: ='Efficiency Levels'!D75 -> 1250.902215 | H122: =H106 -> 0 | I122: 0 | J122: 0 | K122: 0 | L122: 0 | M122: 0 | N122: 0 | O122: 0 | P122: 0 | Q122: 0 | R122: 0 | S122: 0 | T122: 0 | U122: 0 | V122: 0 | W122: 0 | X122: 0 | Y122: 0 | Z122: 0 | AA122: 0 | AB122: 0 | AC122: 0 | AD122: 0 | AE122: 0 | AF122: 0 | AG122: 0 | AH122: 0 | AI122: 0 | AJ122: 0 | AK122: 0 | AL122: 0 | AM122: 0 | AN122: 0 | AO122: 0 | AP122: 0 | AQ122: 0 | AR122: 0 | AS122: 0 | AT122: 0 | AU122: 0 | AV122: 0 | AW122: 0 | AX122: 0 | AY122: 0 | AZ122: 0 | BE122: POST-Case
D123: ='Efficiency Levels'!C76 -> EL7 | E123: ='Efficiency Levels'!D76 -> 1241.336351 | H123: =H107 -> 0 | I123: 0 | J123: 0 | K123: 0 | L123: 0 | M123: 0 | N123: 0 | O123: 0 | P123: 0 | Q123: 0 | R123: 0 | S123: 0 | T123: 0 | U123: 0 | V123: 0 | W123: 0 | X123: 0 | Y123: 0 | Z123: 0 | AA123: 0 | AB123: 0 | AC123: 0 | AD123: 0 | AE123: 0 | AF123: 0 | AG123: 0 | AH123: 0 | AI123: 0 | AJ123: 0 | AK123: 0 | AL123: 0 | AM123: 0 | AN123: 0 | AO123: 0 | AP123: 0 | AQ123: 0 | AR123: 0 | AS123: 0 | AT123: 0 | AU123: 0 | AV123: 0 | AW123: 0 | AX123: 0 | AY123: 0 | AZ123: 0 | BE123: Efficiency Level | BF123: EL (kWh/year) | BI123: 1990 | BJ123: =BI123+1 -> 1991 | BK123: =BJ123+1 -> 1992 | BL123: =BK123+1 -> 1993 | BM123: =BL123+1 -> 1994 | BN123: =BM123+1 -> 1995 | BO123: =BN123+1 -> 1996 | BP123: =BO123+1 -> 1997 | BQ123: =BP123+1 -> 1998 | BR123: =BQ123+1 -> 1999 | BS123: =BR123+1 -> 2000 | BT123: =BS123+1 -> 2001 | BU123: =BT123+1 -> 2002 | BV123: =BU123+1 -> 2003 | BW123: =BV123+1 -> 2004 | BX123: =BW123+1 -> 2005 | BY123: =BY107 -> 2006 | BZ123: 2007 | CA123: 2008 | CB123: 2009 | CC123: 2010 | CD123: 2011 | CE123: 2012 | CF123: 2013 | CG123: 2014 | CH123: 2015 | CI123: 2016 | CJ123: 2017 | CK123: 2018 | CL123: 2019 | CM123: 2020 | CN123: 2021 | CO123: 2022 | CP123: 2023 | CQ123: 2024 | CR123: 2025 | CS123: 2026 | CT123: 2027 | CU123: 2028 | CV123: 2029 | CW123: 2030 | CX123: 2031 | CY123: 2032 | CZ123: 2033 | DA123: 2034
D124: ='Efficiency Levels'!C77 -> EL8 | E124: ='Efficiency Levels'!D77 -> 1234.96157 | H124: =H108 -> 0 | I124: 0 | J124: 0 | K124: 0 | L124: 0 | M124: 0 | N124: 0 | O124: 0 | P124: 0 | Q124: 0 | R124: 0 | S124: 0 | T124: 0 | U124: 0 | V124: 0 | W124: 0 | X124: 0 | Y124: 0 | Z124: 0 | AA124: 0 | AB124: 0 | AC124: 0 | AD124: 0 | AE124: 0 | AF124: 0 | AG124: 0 | AH124: 0 | AI124: 0 | AJ124: 0 | AK124: 0 | AL124: 0 | AM124: 0 | AN124: 0 | AO124: 0 | AP124: 0 | AQ124: 0 | AR124: 0 | AS124: 0 | AT124: 0 | AU124: 0 | AV124: 0 | AW124: 0 | AX124: 0 | AY124: 0 | AZ124: 0 | BE124: =BE108 -> EL0 | BF124: 16967.80754 | BI124: =BI108 -> 1 | BJ124: 1 | BK124: 1 | BL124: 1 | BM124: 1 | BN124: 1 | BO124: 1 | BP124: 1 | BQ124: 1 | BR124: 1 | BS124: 1 | BT124: 1 | BU124: 1 | BV124: 1 | BW124: 1 | BX124: 1 | BY124: 1 | BZ124: 1 | CA124: 1 | CB124: 0 | CC124: 0 | CD124: 0 | CE124: 0 | CF124: 0 | CG124: 0 | CH124: 0 | CI124: 0 | CJ124: 0 | CK124: 0 | CL124: 0 | CM124: 0 | CN124: 0 | CO124: 0 | CP124: 0 | CQ124: 0 | CR124: 0 | CS124: 0 | CT124: 0 | CU124: 0 | CV124: 0 | CW124: 0 | CX124: 0 | CY124: 0 | CZ124: 0 | DA124: 0
D125: ='Efficiency Levels'!C78 -> EL9 | E125: ='Efficiency Levels'!D78 -> 1224.855363 | H125: =H109 -> 0 | I125: 0 | J125: 0 | K125: 0 | L125: 0 | M125: 0 | N125: 0 | O125: 0 | P125: 0 | Q125: 0 | R125: 0 | S125: 0 | T125: 0 | U125: 0 | V125: 0 | W125: 0 | X125: 0 | Y125: 0 | Z125: 0 | AA125: 0 | AB125: 0 | AC125: 0 | AD125: 0 | AE125: 0 | AF125: 0 | AG125: 0 | AH125: 0 | AI125: 0 | AJ125: 0 | AK125: 0 | AL125: 0 | AM125: 0 | AN125: 0 | AO125: 0 | AP125: 0 | AQ125: 0 | AR125: 0 | AS125: 0 | AT125: 0 | AU125: 0 | AV125: 0 | AW125: 0 | AX125: 0 | AY125: 0 | AZ125: 0 | BE125: =BE109 -> EL1 | BF125: 13920.63112 | BI125: =BI109 -> 0 | BJ125: 0 | BK125: 0 | BL125: 0 | BM125: 0 | BN125: 0 | BO125: 0 | BP125: 0 | BQ125: 0 | BR125: 0 | BS125: 0 | BT125: 0 | BU125: 0 | BV125: 0 | BW125: 0 | BX125: 0 | BY125: 0 | BZ125: 0 | CA125: 0 | CB125: 0 | CC125: 0 | CD125: 0 | CE125: 0 | CF125: 0 | CG125: 0 | CH125: 0 | CI125: 0 | CJ125: 0 | CK125: 0 | CL125: 0 | CM125: 0 | CN125: 0 | CO125: 0 | CP125: 0 | CQ125: 0 | CR125: 0 | CS125: 0 | CT125: 0 | CU125: 0 | CV125: 0 | CW125: 0 | CX125: 0 | CY125: 0 | CZ125: 0 | DA125: 0
D126: ='Efficiency Levels'!C79 -> EL10 | E126: ='Efficiency Levels'!D79 -> 1206.862263 | H126: =H110 -> 0 | I126: 0 | J126: 0 | K126: 0 | L126: 0 | M126: 0 | N126: 0 | O126: 0 | P126: 0 | Q126: 0 | R126: 0 | S126: 0 | T126: 0 | U126: 0 | V126: 0 | W126: 0 | X126: 0 | Y126: 0 | Z126: 0 | AA126: 0 | AB126: 0 | AC126: 0 | AD126: 0 | AE126: 0 | AF126: 0 | AG126: 0 | AH126: 0 | AI126: 0 | AJ126: 0 | AK126: 0 | AL126: 0 | AM126: 0 | AN126: 0 | AO126: 0 | AP126: 0 | AQ126: 0 | AR126: 0 | AS126: 0 | AT126: 0 | AU126: 0 | AV126: 0 | AW126: 0 | AX126: 0 | AY126: 0 | AZ126: 0 | BE126: =BE110 -> EL2 | BF126: 11146.08987 | BI126: =BI110 -> 0 | BJ126: 0 | BK126: 0 | BL126: 0 | BM126: 0 | BN126: 0 | BO126: 0 | BP126: 0 | BQ126: 0 | BR126: 0 | BS126: 0 | BT126: 0 | BU126: 0 | BV126: 0 | BW126: 0 | BX126: 0 | BY126: 0 | BZ126: 0 | CA126: 0 | CB126: 0.75 | CC126: 0.75 | CD126: 0.75 | CE126: 0.75 | CF126: 0.75 | CG126: 0.75 | CH126: 0.75 | CI126: 0.75 | CJ126: 0 | CK126: 0 | CL126: 0 | CM126: 0 | CN126: 0 | CO126: 0 | CP126: 0 | CQ126: 0 | CR126: 0 | CS126: 0 | CT126: 0 | CU126: 0 | CV126: 0 | CW126: 0 | CX126: 0 | CY126: 0 | CZ126: 0 | DA126: 0
D127: ='Efficiency Levels'!C80 -> EL11 | E127: ='Efficiency Levels'!D80 -> 1192.723647 | H127: =H111 -> 0 | I127: 0 | J127: 0 | K127: 0 | L127: 0 | M127: 0 | N127: 0 | O127: 0 | P127: 0 | Q127: 0 | R127: 0 | S127: 0 | T127: 0 | U127: 0 | V127: 0 | W127: 0 | X127: 0 | Y127: 0 | Z127: 0 | AA127: 0 | AB127: 0 | AC127: 0 | AD127: 0 | AE127: 0 | AF127: 0 | AG127: 0 | AH127: 0 | AI127: 0 | AJ127: 0 | AK127: 0 | AL127: 0 | AM127: 0 | AN127: 0 | AO127: 0 | AP127: 0 | AQ127: 0 | AR127: 0 | AS127: 0 | AT127: 0 | AU127: 0 | AV127: 0 | AW127: 0 | AX127: 0 | AY127: 0 | AZ127: 0 | BE127: EL3 | BF127: 9418.87011 | BI127: =BI111 -> 0 | BJ127: 0 | BK127: 0 | BL127: 0 | BM127: 0 | BN127: 0 | BO127: 0 | BP127: 0 | BQ127: 0 | BR127: 0 | BS127: 0 | BT127: 0 | BU127: 0 | BV127: 0 | BW127: 0 | BX127: 0 | BY127: 0 | BZ127: 0 | CA127: 0 | CB127: 0.25 | CC127: 0.25 | CD127: 0.25 | CE127: 0.25 | CF127: 0.25 | CG127: 0.25 | CH127: 0.25 | CI127: 0.25 | CJ127: 0 | CK127: 0 | CL127: 0 | CM127: 0 | CN127: 0 | CO127: 0 | CP127: 0 | CQ127: 0 | CR127: 0 | CS127: 0 | CT127: 0 | CU127: 0 | CV127: 0 | CW127: 0 | CX127: 0 | CY127: 0 | CZ127: 0 | DA127: 0
D128: TOTAL | H128: =SUM(H116:H127) -> 1 | I128: =SUM(I116:I127) -> 1 | J128: 1 | K128: 1 | L128: 1 | M128: 1 | N128: 1 | O128: 1 | P128: 1 | Q128: 1 | R128: 1 | S128: 1 | T128: 1 | U128: 1 | V128: 1 | W128: 1 | X128: 1 | Y128: 1 | Z128: 1 | AA128: 1 | AB128: 1 | AC128: 1 | AD128: 1 | AE128: 1 | AF128: 1 | AG128: 1 | AH128: 1 | AI128: 1 | AJ128: 1 | AK128: 1 | AL128: 1 | AM128: 1 | AN128: 1 | AO128: 1 | AP128: 1 | AQ128: 1 | AR128: 1 | AS128: 1 | AT128: 1 | AU128: 1 | AV128: 1 | AW128: 1 | AX128: 1 | AY128: 1 | AZ128: 1 | BE128: EL4 | BF128: 9042.126375 | BI128: =BI112 -> 0 | BJ128: 0 | BK128: 0 | BL128: 0 | BM128: 0 | BN128: 0 | BO128: 0 | BP128: 0 | BQ128: 0 | BR128: 0 | BS128: 0 | BT128: 0 | BU128: 0 | BV128: 0 | BW128: 0 | BX128: 0 | BY128: 0 | BZ128: 0 | CA128: 0 | CB128: 0 | CC128: 0 | CD128: 0 | CE128: 0 | CF128: 0 | CG128: 0 | CH128: 0 | CI128: 0 | CJ128: 0 | CK128: 0 | CL128: 0 | CM128: 0 | CN128: 0 | CO128: 0 | CP128: 0 | CQ128: 0 | CR128: 0 | CS128: 0 | CT128: 0 | CU128: 0 | CV128: 0 | CW128: 0 | CX128: 0 | CY128: 0 | CZ128: 0 | DA128: 0
BE129: EL5 | BF129: 8506.799591 | BI129: =BI113 -> 0 | BJ129: 0 | BK129: 0 | BL129: 0 | BM129: 0 | BN129: 0 | BO129: 0 | BP129: 0 | BQ129: 0 | BR129: 0 | BS129: 0 | BT129: 0 | BU129: 0 | BV129: 0 | BW129: 0 | BX129: 0 | BY129: 0 | BZ129: 0 | CA129: 0 | CB129: 0 | CC129: 0 | CD129: 0 | CE129: 0 | CF129: 0 | CG129: 0 | CH129: 0 | CI129: 0 | CJ129: 0 | CK129: 0 | CL129: 0 | CM129: 0 | CN129: 0 | CO129: 0 | CP129: 0 | CQ129: 0 | CR129: 0 | CS129: 0 | CT129: 0 | CU129: 0 | CV129: 0 | CW129: 0 | CX129: 0 | CY129: 0 | CZ129: 0 | DA129: 0
D130: Sources | E130: 1. DOE Walk-In Coolers and Freezers 2014 Final Rule, Technical Support Document: Final Rule National Impact Analysis (NIA) - Components, 'Market Share Inputs' tab, cells B3:M35, http://www.regulations.gov/#!documentDetail;D=EERE-2008-BT-STD-0015-0134 | BE130: EL6 | BF130: 8019.018914 | BI130: =BI114 -> 0 | BJ130: 0 | BK130: 0 | BL130: 0 | BM130: 0 | BN130: 0 | BO130: 0 | BP130: 0 | BQ130: 0 | BR130: 0 | BS130: 0 | BT130: 0 | BU130: 0 | BV130: 0 | BW130: 0 | BX130: 0 | BY130: 0 | BZ130: 0 | CA130: 0 | CB130: 0 | CC130: 0 | CD130: 0 | CE130: 0 | CF130: 0 | CG130: 0 | CH130: 0 | CI130: 0 | CJ130: 0 | CK130: 0 | CL130: 0 | CM130: 0 | CN130: 0 | CO130: 0 | CP130: 0 | CQ130: 0 | CR130: 0 | CS130: 0 | CT130: 0 | CU130: 0 | CV130: 0 | CW130: 0 | CX130: 0 | CY130: 0 | CZ130: 0 | DA130: 0
BE131: EL7 | BF131: 7672.830458 | BI131: =BI115 -> 0 | BJ131: 0 | BK131: 0 | BL131: 0 | BM131: 0 | BN131: 0 | BO131: 0 | BP131: 0 | BQ131: 0 | BR131: 0 | BS131: 0 | BT131: 0 | BU131: 0 | BV131: 0 | BW131: 0 | BX131: 0 | BY131: 0 | BZ131: 0 | CA131: 0 | CB131: 0 | CC131: 0 | CD131: 0 | CE131: 0 | CF131: 0 | CG131: 0 | CH131: 0 | CI131: 0 | CJ131: 0 | CK131: 0 | CL131: 0 | CM131: 0 | CN131: 0 | CO131: 0 | CP131: 0 | CQ131: 0 | CR131: 0 | CS131: 0 | CT131: 0 | CU131: 0 | CV131: 0 | CW131: 0 | CX131: 0 | CY131: 0 | CZ131: 0 | DA131: 0
BE132: EL8 | BF132: 7627.951915 | BI132: =BI116 -> 0 | BJ132: 0 | BK132: 0 | BL132: 0 | BM132: 0 | BN132: 0 | BO132: 0 | BP132: 0 | BQ132: 0 | BR132: 0 | BS132: 0 | BT132: 0 | BU132: 0 | BV132: 0 | BW132: 0 | BX132: 0 | BY132: 0 | BZ132: 0 | CA132: 0 | CB132: 0 | CC132: 0 | CD132: 0 | CE132: 0 | CF132: 0 | CG132: 0 | CH132: 0 | CI132: 0 | CJ132: 0 | CK132: 0 | CL132: 0 | CM132: 0 | CN132: 0 | CO132: 0 | CP132: 0 | CQ132: 0 | CR132: 0 | CS132: 0 | CT132: 0 | CU132: 0 | CV132: 0 | CW132: 0 | CX132: 0 | CY132: 0 | CZ132: 0 | DA132: 0
BE133: EL9 | BF133: 7511.217399 | BI133: =BI117 -> 0 | BJ133: 0 | BK133: 0 | BL133: 0 | BM133: 0 | BN133: 0 | BO133: 0 | BP133: 0 | BQ133: 0 | BR133: 0 | BS133: 0 | BT133: 0 | BU133: 0 | BV133: 0 | BW133: 0 | BX133: 0 | BY133: 0 | BZ133: 0 | CA133: 0 | CB133: 0 | CC133: 0 | CD133: 0 | CE133: 0 | CF133: 0 | CG133: 0 | CH133: 0 | CI133: 0 | CJ133: 0 | CK133: 0 | CL133: 0 | CM133: 0 | CN133: 0 | CO133: 0 | CP133: 0 | CQ133: 0 | CR133: 0 | CS133: 0 | CT133: 0 | CU133: 0 | CV133: 0 | CW133: 0 | CX133: 0 | CY133: 0 | CZ133: 0 | DA133: 0
BE134: EL10 | BF134: 7068.15657 | BI134: =BI118 -> 0 | BJ134: 0 | BK134: 0 | BL134: 0 | BM134: 0 | BN134: 0 | BO134: 0 | BP134: 0 | BQ134: 0 | BR134: 0 | BS134: 0 | BT134: 0 | BU134: 0 | BV134: 0 | BW134: 0 | BX134: 0 | BY134: 0 | BZ134: 0 | CA134: 0 | CB134: 0 | CC134: 0 | CD134: 0 | CE134: 0 | CF134: 0 | CG134: 0 | CH134: 0 | CI134: 0 | CJ134: 0 | CK134: 0 | CL134: 0 | CM134: 0 | CN134: 0 | CO134: 0 | CP134: 0 | CQ134: 0 | CR134: 0 | CS134: 0 | CT134: 0 | CU134: 0 | CV134: 0 | CW134: 0 | CX134: 0 | CY134: 0 | CZ134: 0 | DA134: 0
D135: ='Product Classes'!K15&" - "&OFFSET('Product Classes'!$F$10,MATCH('Product Classes'!K15,MODEL_PCS,0),0) -> PD.L - Passage Door, Low Temperature | BE135: EL11 | BF135: 7032.306539 | BI135: =BI119 -> 0 | BJ135: 0 | BK135: 0 | BL135: 0 | BM135: 0 | BN135: 0 | BO135: 0 | BP135: 0 | BQ135: 0 | BR135: 0 | BS135: 0 | BT135: 0 | BU135: 0 | BV135: 0 | BW135: 0 | BX135: 0 | BY135: 0 | BZ135: 0 | CA135: 0 | CB135: 0 | CC135: 0 | CD135: 0 | CE135: 0 | CF135: 0 | CG135: 0 | CH135: 0 | CI135: 0 | CJ135: =SUM(CJ110:CJ119) -> 1 | CK135: 1 | CL135: 1 | CM135: 1 | CN135: 1 | CO135: 1 | CP135: 1 | CQ135: 1 | CR135: 1 | CS135: 1 | CT135: 1 | CU135: 1 | CV135: 1 | CW135: 1 | CX135: 1 | CY135: 1 | CZ135: 1 | DA135: 1
BE136: TOTAL | BI136: =SUM(BI124:BI135) -> 1 | BJ136: =SUM(BJ124:BJ135) -> 1 | BK136: 1 | BL136: 1 | BM136: 1 | BN136: 1 | BO136: 1 | BP136: 1 | BQ136: 1 | BR136: 1 | BS136: 1 | BT136: 1 | BU136: 1 | BV136: 1 | BW136: 1 | BX136: 1 | BY136: 1 | BZ136: 1 | CA136: 1 | CB136: 1 | CC136: 1 | CD136: 1 | CE136: 1 | CF136: 1 | CG136: 1 | CH136: 1 | CI136: 1 | CJ136: 1 | CK136: 1 | CL136: 1 | CM136: 1 | CN136: 1 | CO136: 1 | CP136: 1 | CQ136: 1 | CR136: 1 | CS136: 1 | CT136: 1 | CU136: 1 | CV136: 1 | CW136: 1 | CX136: 1 | CY136: 1 | CZ136: 1 | DA136: 1
D137: PRE-Case | F137: Static Distribution
D138: Efficiency Level | E138: EL (kWh/year) | F138: 2006 | H138: 1990 | I138: =H138+1 -> 1991 | J138: 1992 | K138: 1993 | L138: 1994 | M138: 1995 | N138: 1996 | O138: 1997 | P138: 1998 | Q138: 1999 | R138: 2000 | S138: 2001 | T138: 2002 | U138: 2003 | V138: 2004 | W138: 2005 | X138: 2006 | Y138: 2007 | Z138: 2008 | AA138: 2009 | AB138: 2010 | AC138: 2011 | AD138: 2012 | AE138: 2013 | AF138: 2014 | AG138: 2015 | AH138: 2016 | AI138: 2017 | AJ138: 2018 | AK138: 2019 | AL138: 2020 | AM138: 2021 | AN138: 2022 | AO138: 2023 | AP138: 2024 | AQ138: 2025 | AR138: 2026 | AS138: 2027 | AT138: 2028 | AU138: 2029 | AV138: 2030 | AW138: 2031 | AX138: 2032 | AY138: 2033 | AZ138: 2034 | BE138: Sources | BF138: 1. DOE Walk-In Coolers and Freezers 2014 Final Rule, Technical Support Document: Final Rule National Impact Analysis (NIA) - Systems, 'Market Share Inputs' tab, cells B3:M35, http://www.regulations.gov/#!documentDetail;D=EERE-2008-BT-STD-0015-0134
D139: ='Efficiency Levels'!C92 -> EL0 | E139: ='Efficiency Levels'!D92 -> 2862.956088 | F139: 1 | H139: =$F139 -> 1 | I139: 1 | J139: 1 | K139: 1 | L139: 1 | M139: 1 | N139: 1 | O139: 1 | P139: 1 | Q139: 1 | R139: 1 | S139: 1 | T139: 1 | U139: 1 | V139: 1 | W139: 1 | X139: =$F139 -> 1 | Y139: 1 | Z139: 1 | AA139: 0 | AB139: 0 | AC139: 0 | AD139: 0 | AE139: 0 | AF139: 0 | AG139: 0 | AH139: 0 | AI139: 0 | AJ139: 0 | AK139: 0 | AL139: 0 | AM139: 0 | AN139: 0 | AO139: 0 | AP139: 0 | AQ139: 0 | AR139: 0 | AS139: 0 | AT139: 0 | AU139: 0 | AV139: 0 | AW139: 0 | AX139: 0 | AY139: 0 | AZ139: 0
D140: ='Efficiency Levels'!C93 -> EL1 | E140: ='Efficiency Levels'!D93 -> 3914.580084 | F140: 0 | H140: 0 | I140: 0 | J140: 0 | K140: 0 | L140: 0 | M140: 0 | N140: 0 | O140: 0 | P140: 0 | Q140: 0 | R140: 0 | S140: 0 | T140: 0 | U140: 0 | V140: 0 | W140: 0 | X140: 0 | Y140: 0 | Z140: 0 | AA140: 0 | AB140: 0 | AC140: 0 | AD140: 0 | AE140: 0 | AF140: 0 | AG140: 0 | AH140: 0 | AI140: 0 | AJ140: 0 | AK140: 0 | AL140: 0 | AM140: 0 | AN140: 0 | AO140: 0 | AP140: 0 | AQ140: 0 | AR140: 0 | AS140: 0 | AT140: 0 | AU140: 0 | AV140: 0 | AW140: 0 | AX140: 0 | AY140: 0 | AZ140: 0
D141: ='Efficiency Levels'!C94 -> EL2 | E141: ='Efficiency Levels'!D94 -> 4937.601718 | F141: 0 | H141: 0 | I141: 0 | J141: 0 | K141: 0 | L141: 0 | M141: 0 | N141: 0 | O141: 0 | P141: 0 | Q141: 0 | R141: 0 | S141: 0 | T141: 0 | U141: 0 | V141: 0 | W141: 0 | X141: =$F141 -> 0 | Y141: 0 | Z141: 0 | AA141: 1 | AB141: 1 | AC141: 1 | AD141: 1 | AE141: 1 | AF141: 1 | AG141: 1 | AH141: 1 | AI141: 1 | AJ141: 1 | AK141: 1 | AL141: 1 | AM141: 1 | AN141: 1 | AO141: 1 | AP141: 1 | AQ141: 1 | AR141: 1 | AS141: 1 | AT141: 1 | AU141: 1 | AV141: 1 | AW141: 1 | AX141: 1 | AY141: 1 | AZ141: 1
D142: ='Efficiency Levels'!C95 -> EL3 | E142: ='Efficiency Levels'!D95 -> 4666.519386 | F142: 0 | H142: 0 | I142: 0 | J142: 0 | K142: 0 | L142: 0 | M142: 0 | N142: 0 | O142: 0 | P142: 0 | Q142: 0 | R142: 0 | S142: 0 | T142: 0 | U142: 0 | V142: 0 | W142: 0 | X142: 0 | Y142: 0 | Z142: 0 | AA142: 0 | AB142: 0 | AC142: 0 | AD142: 0 | AE142: 0 | AF142: 0 | AG142: 0 | AH142: 0 | AI142: 0 | AJ142: 0 | AK142: 0 | AL142: 0 | AM142: 0 | AN142: 0 | AO142: 0 | AP142: 0 | AQ142: 0 | AR142: 0 | AS142: 0 | AT142: 0 | AU142: 0 | AV142: 0 | AW142: 0 | AX142: 0 | AY142: 0 | AZ142: 0
D143: ='Efficiency Levels'!C96 -> EL4 | E143: ='Efficiency Levels'!D96 -> 4511.019606 | F143: 0 | H143: 0 | I143: 0 | J143: 0 | K143: 0 | L143: 0 | M143: 0 | N143: 0 | O143: 0 | P143: 0 | Q143: 0 | R143: 0 | S143: 0 | T143: 0 | U143: 0 | V143: 0 | W143: 0 | X143: 0 | Y143: 0 | Z143: 0 | AA143: 0 | AB143: 0 | AC143: 0 | AD143: 0 | AE143: 0 | AF143: 0 | AG143: 0 | AH143: 0 | AI143: 0 | AJ143: 0 | AK143: 0 | AL143: 0 | AM143: 0 | AN143: 0 | AO143: 0 | AP143: 0 | AQ143: 0 | AR143: 0 | AS143: 0 | AT143: 0 | AU143: 0 | AV143: 0 | AW143: 0 | AX143: 0 | AY143: 0 | AZ143: 0 | BE143: ='Product Class Dist'!AZ15 -> DC.M.I.006
D144: ='Efficiency Levels'!C97 -> EL5 | E144: ='Efficiency Levels'!D97 -> 4345.434242 | F144: 0 | H144: 0 | I144: 0 | J144: 0 | K144: 0 | L144: 0 | M144: 0 | N144: 0 | O144: 0 | P144: 0 | Q144: 0 | R144: 0 | S144: 0 | T144: 0 | U144: 0 | V144: 0 | W144: 0 | X144: 0 | Y144: 0 | Z144: 0 | AA144: 0 | AB144: 0 | AC144: 0 | AD144: 0 | AE144: 0 | AF144: 0 | AG144: 0 | AH144: 0 | AI144: 0 | AJ144: 0 | AK144: 0 | AL144: 0 | AM144: 0 | AN144: 0 | AO144: 0 | AP144: 0 | AQ144: 0 | AR144: 0 | AS144: 0 | AT144: 0 | AU144: 0 | AV144: 0 | AW144: 0 | AX144: 0 | AY144: 0 | AZ144: 0
D145: ='Efficiency Levels'!C98 -> EL6 | E145: ='Efficiency Levels'!D98 -> 4297.108263 | F145: 0 | H145: 0 | I145: 0 | J145: 0 | K145: 0 | L145: 0 | M145: 0 | N145: 0 | O145: 0 | P145: 0 | Q145: 0 | R145: 0 | S145: 0 | T145: 0 | U145: 0 | V145: 0 | W145: 0 | X145: 0 | Y145: 0 | Z145: 0 | AA145: 0 | AB145: 0 | AC145: 0 | AD145: 0 | AE145: 0 | AF145: 0 | AG145: 0 | AH145: 0 | AI145: 0 | AJ145: 0 | AK145: 0 | AL145: 0 | AM145: 0 | AN145: 0 | AO145: 0 | AP145: 0 | AQ145: 0 | AR145: 0 | AS145: 0 | AT145: 0 | AU145: 0 | AV145: 0 | AW145: 0 | AX145: 0 | AY145: 0 | AZ145: 0 | BE145: PRE-Case | BG145: Static Distribution
D146: ='Efficiency Levels'!C99 -> EL7 | E146: ='Efficiency Levels'!D99 -> 4215.954474 | F146: 0 | H146: 0 | I146: 0 | J146: 0 | K146: 0 | L146: 0 | M146: 0 | N146: 0 | O146: 0 | P146: 0 | Q146: 0 | R146: 0 | S146: 0 | T146: 0 | U146: 0 | V146: 0 | W146: 0 | X146: 0 | Y146: 0 | Z146: 0 | AA146: 0 | AB146: 0 | AC146: 0 | AD146: 0 | AE146: 0 | AF146: 0 | AG146: 0 | AH146: 0 | AI146: 0 | AJ146: 0 | AK146: 0 | AL146: 0 | AM146: 0 | AN146: 0 | AO146: 0 | AP146: 0 | AQ146: 0 | AR146: 0 | AS146: 0 | AT146: 0 | AU146: 0 | AV146: 0 | AW146: 0 | AX146: 0 | AY146: 0 | AZ146: 0 | BE146: Efficiency Level | BF146: EL (kWh/year) | BG146: 2014 | BI146: 1990 | BJ146: =BI146+1 -> 1991 | BK146: =BJ146+1 -> 1992 | BL146: =BK146+1 -> 1993 | BM146: =BL146+1 -> 1994 | BN146: =BM146+1 -> 1995 | BO146: =BN146+1 -> 1996 | BP146: =BO146+1 -> 1997 | BQ146: =BP146+1 -> 1998 | BR146: =BQ146+1 -> 1999 | BS146: =BR146+1 -> 2000 | BT146: =BS146+1 -> 2001 | BU146: =BT146+1 -> 2002 | BV146: =BU146+1 -> 2003 | BW146: =BV146+1 -> 2004 | BX146: =BW146+1 -> 2005 | BY146: =BX146+1 -> 2006 | BZ146: =BY146+1 -> 2007 | CA146: =BZ146+1 -> 2008 | CB146: =CA146+1 -> 2009 | CC146: =CB146+1 -> 2010 | CD146: =CC146+1 -> 2011 | CE146: =CD146+1 -> 2012 | CF146: =CE146+1 -> 2013 | CG146: =CF146+1 -> 2014 | CH146: =CG146+1 -> 2015 | CI146: =CH146+1 -> 2016 | CJ146: =CI146+1 -> 2017 | CK146: =CJ146+1 -> 2018 | CL146: =CK146+1 -> 2019 | CM146: =CL146+1 -> 2020 | CN146: =CM146+1 -> 2021 | CO146: =CN146+1 -> 2022 | CP146: =CO146+1 -> 2023 | CQ146: =CP146+1 -> 2024 | CR146: =CQ146+1 -> 2025 | CS146: =CR146+1 -> 2026 | CT146: =CS146+1 -> 2027 | CU146: =CT146+1 -> 2028 | CV146: =CU146+1 -> 2029 | CW146: =CV146+1 -> 2030 | CX146: =CW146+1 -> 2031 | CY146: =CX146+1 -> 2032 | CZ146: =CY146+1 -> 2033 | DA146: =CZ146+1 -> 2034
D147: ='Efficiency Levels'!C100 -> EL8 | E147: ='Efficiency Levels'!D100 -> 4183.369985 | F147: 0 | H147: 0 | I147: 0 | J147: 0 | K147: 0 | L147: 0 | M147: 0 | N147: 0 | O147: =$F147 -> 0 | P147: 0 | Q147: 0 | R147: 0 | S147: 0 | T147: 0 | U147: 0 | V147: 0 | W147: 0 | X147: 0 | Y147: 0 | Z147: 0 | AA147: 0 | AB147: 0 | AC147: 0 | AD147: 0 | AE147: 0 | AF147: 0 | AG147: 0 | AH147: 0 | AI147: 0 | AJ147: 0 | AK147: 0 | AL147: 0 | AM147: 0 | AN147: 0 | AO147: 0 | AP147: 0 | AQ147: 0 | AR147: 0 | AS147: 0 | AT147: 0 | AU147: 0 | AV147: 0 | AW147: 0 | AX147: 0 | AY147: 0 | AZ147: 0 | BE147: ='Efficiency Levels'!J92 -> EL0 | BF147: ='Efficiency Levels'!K92 -> 8287.067237 | BG147: 0 | BI147: 1 | BJ147: 1 | BK147: 1 | BL147: 1 | BM147: 1 | BN147: 1 | BO147: 1 | BP147: 1 | BQ147: 1 | BR147: 1 | BS147: 1 | BT147: 1 | BU147: 1 | BV147: 1 | BW147: 1 | BX147: 1 | BY147: 1 | BZ147: 1 | CA147: 1 | CB147: =$BG147 -> 0 | CC147: 0 | CD147: 0 | CE147: 0 | CF147: 0 | CG147: 0 | CH147: 0 | CI147: 0 | CJ147: 0 | CK147: 0 | CL147: 0 | CM147: 0 | CN147: 0 | CO147: 0 | CP147: 0 | CQ147: 0 | CR147: =$BG147 -> 0 | CS147: 0 | CT147: 0 | CU147: 0 | CV147: 0 | CW147: 0 | CX147: 0 | CY147: 0 | CZ147: 0 | DA147: 0
D148: ='Efficiency Levels'!C101 -> EL9 | E148: ='Efficiency Levels'!D101 -> 4140.779926 | F148: 0 | H148: 0 | I148: 0 | J148: 0 | K148: 0 | L148: 0 | M148: 0 | N148: 0 | O148: 0 | P148: 0 | Q148: 0 | R148: 0 | S148: 0 | T148: 0 | U148: 0 | V148: 0 | W148: 0 | X148: 0 | Y148: 0 | Z148: 0 | AA148: 0 | AB148: 0 | AC148: 0 | AD148: 0 | AE148: 0 | AF148: 0 | AG148: 0 | AH148: 0 | AI148: 0 | AJ148: 0 | AK148: 0 | AL148: 0 | AM148: 0 | AN148: 0 | AO148: 0 | AP148: 0 | AQ148: 0 | AR148: 0 | AS148: 0 | AT148: 0 | AU148: 0 | AV148: 0 | AW148: 0 | AX148: 0 | AY148: 0 | AZ148: 0 | BE148: ='Efficiency Levels'!J93 -> EL1 | BF148: ='Efficiency Levels'!K93 -> 6525.454556 | BG148: 0 | BI148: 0 | BJ148: 0 | BK148: 0 | BL148: 0 | BM148: 0 | BN148: 0 | BO148: 0 | BP148: 0 | BQ148: 0 | BR148: 0 | BS148: 0 | BT148: 0 | BU148: 0 | BV148: 0 | BW148: 0 | BX148: 0 | BY148: 0 | BZ148: 0 | CA148: 0 | CB148: 0 | CC148: 0 | CD148: 0 | CE148: 0 | CF148: 0 | CG148: 0 | CH148: 0 | CI148: 0 | CJ148: 0 | CK148: 0 | CL148: 0 | CM148: 0 | CN148: 0 | CO148: 0 | CP148: 0 | CQ148: 0 | CR148: 0 | CS148: 0 | CT148: 0 | CU148: 0 | CV148: 0 | CW148: 0 | CX148: 0 | CY148: 0 | CZ148: 0 | DA148: 0
D149: ='Efficiency Levels'!C102 -> EL10 | E149: ='Efficiency Levels'!D102 -> 4099.27912 | F149: 0 | H149: 0 | I149: 0 | J149: 0 | K149: 0 | L149: 0 | M149: 0 | N149: 0 | O149: 0 | P149: 0 | Q149: 0 | R149: 0 | S149: 0 | T149: 0 | U149: 0 | V149: 0 | W149: 0 | X149: 0 | Y149: 0 | Z149: 0 | AA149: 0 | AB149: 0 | AC149: 0 | AD149: 0 | AE149: 0 | AF149: 0 | AG149: 0 | AH149: 0 | AI149: 0 | AJ149: 0 | AK149: 0 | AL149: 0 | AM149: 0 | AN149: 0 | AO149: 0 | AP149: 0 | AQ149: 0 | AR149: 0 | AS149: 0 | AT149: 0 | AU149: 0 | AV149: 0 | AW149: 0 | AX149: 0 | AY149: 0 | AZ149: 0 | BE149: ='Efficiency Levels'!J94 -> EL2 | BF149: ='Efficiency Levels'!K94 -> 5376.884998 | BG149: 0.75 | BI149: 0 | BJ149: 0 | BK149: 0 | BL149: 0 | BM149: 0 | BN149: 0 | BO149: 0 | BP149: 0 | BQ149: 0 | BR149: 0 | BS149: 0 | BT149: 0 | BU149: 0 | BV149: 0 | BW149: 0 | BX149: 0 | BY149: 0 | BZ149: 0 | CA149: 0 | CB149: =$BG149 -> 0.75 | CC149: 0.75 | CD149: 0.75 | CE149: 0.75 | CF149: 0.75 | CG149: 0.75 | CH149: 0.75 | CI149: 0.75 | CJ149: 0.75 | CK149: 0.75 | CL149: 0.75 | CM149: 0.75 | CN149: 0.75 | CO149: 0.75 | CP149: 0.75 | CQ149: 0.75 | CR149: 0.75 | CS149: 0.75 | CT149: 0.75 | CU149: 0.75 | CV149: 0.75 | CW149: 0.75 | CX149: 0.75 | CY149: 0.75 | CZ149: 0.75 | DA149: 0.75
D150: TOTAL | F150: =SUM(F139:F149) -> 1 | H150: =SUM(H139:H149) -> 1 | I150: =SUM(I139:I149) -> 1 | J150: 1 | K150: 1 | L150: 1 | M150: 1 | N150: 1 | O150: 1 | P150: 1 | Q150: 1 | R150: 1 | S150: 1 | T150: 1 | U150: 1 | V150: 1 | W150: 1 | X150: 1 | Y150: 1 | Z150: 1 | AA150: 1 | AB150: 1 | AC150: 1 | AD150: 1 | AE150: 1 | AF150: 1 | AG150: 1 | AH150: 1 | AI150: 1 | AJ150: 1 | AK150: 1 | AL150: 1 | AM150: 1 | AN150: 1 | AO150: 1 | AP150: 1 | AQ150: 1 | AR150: 1 | AS150: 1 | AT150: 1 | AU150: 1 | AV150: 1 | AW150: 1 | AX150: 1 | AY150: 1 | AZ150: 1 | BE150: ='Efficiency Levels'!J95 -> EL3 | BF150: ='Efficiency Levels'!K95 -> 5247.162239 | BG150: 0.25 | BI150: 0 | BJ150: 0 | BK150: 0 | BL150: 0 | BM150: 0 | BN150: 0 | BO150: 0 | BP150: 0 | BQ150: 0 | BR150: 0 | BS150: 0 | BT150: 0 | BU150: 0 | BV150: 0 | BW150: 0 | BX150: 0 | BY150: 0 | BZ150: 0 | CA150: 0 | CB150: 0.25 | CC150: 0.25 | CD150: 0.25 | CE150: 0.25 | CF150: 0.25 | CG150: 0.25 | CH150: 0.25 | CI150: 0.25 | CJ150: 0.25 | CK150: 0.25 | CL150: 0.25 | CM150: 0.25 | CN150: 0.25 | CO150: 0.25 | CP150: 0.25 | CQ150: 0.25 | CR150: 0.25 | CS150: 0.25 | CT150: 0.25 | CU150: 0.25 | CV150: 0.25 | CW150: 0.25 | CX150: 0.25 | CY150: 0.25 | CZ150: 0.25 | DA150: 0.25
BE151: ='Efficiency Levels'!J96 -> EL4 | BF151: ='Efficiency Levels'!K96 -> 4423.274163 | BG151: 0 | BI151: 0 | BJ151: 0 | BK151: 0 | BL151: 0 | BM151: 0 | BN151: 0 | BO151: 0 | BP151: 0 | BQ151: 0 | BR151: 0 | BS151: 0 | BT151: 0 | BU151: 0 | BV151: 0 | BW151: 0 | BX151: 0 | BY151: 0 | BZ151: 0 | CA151: 0 | CB151: 0 | CC151: 0 | CD151: 0 | CE151: 0 | CF151: 0 | CG151: 0 | CH151: 0 | CI151: 0 | CJ151: 0 | CK151: 0 | CL151: 0 | CM151: 0 | CN151: 0 | CO151: 0 | CP151: 0 | CQ151: 0 | CR151: 0 | CS151: 0 | CT151: 0 | CU151: 0 | CV151: 0 | CW151: 0 | CX151: 0 | CY151: 0 | CZ151: 0 | DA151: 0
D152: POST-Case | BE152: ='Efficiency Levels'!J97 -> EL5 | BF152: ='Efficiency Levels'!K97 -> 4273.927698 | BG152: 0 | BI152: 0 | BJ152: 0 | BK152: 0 | BL152: 0 | BM152: 0 | BN152: 0 | BO152: 0 | BP152: 0 | BQ152: 0 | BR152: 0 | BS152: 0 | BT152: 0 | BU152: 0 | BV152: 0 | BW152: 0 | BX152: 0 | BY152: 0 | BZ152: 0 | CA152: 0 | CB152: 0 | CC152: 0 | CD152: 0 | CE152: 0 | CF152: 0 | CG152: 0 | CH152: 0 | CI152: 0 | CJ152: 0 | CK152: 0 | CL152: 0 | CM152: 0 | CN152: 0 | CO152: 0 | CP152: 0 | CQ152: 0 | CR152: 0 | CS152: 0 | CT152: 0 | CU152: 0 | CV152: 0 | CW152: 0 | CX152: 0 | CY152: 0 | CZ152: 0 | DA152: 0
D153: Efficiency Level | E153: EL (kWh/year) | H153: 1990 | I153: =H153+1 -> 1991 | J153: 1992 | K153: 1993 | L153: 1994 | M153: 1995 | N153: 1996 | O153: 1997 | P153: 1998 | Q153: 1999 | R153: 2000 | S153: 2001 | T153: 2002 | U153: 2003 | V153: 2004 | W153: 2005 | X153: =X138 -> 2006 | Y153: 2007 | Z153: 2008 | AA153: 2009 | AB153: 2010 | AC153: 2011 | AD153: 2012 | AE153: 2013 | AF153: 2014 | AG153: 2015 | AH153: 2016 | AI153: 2017 | AJ153: 2018 | AK153: 2019 | AL153: 2020 | AM153: 2021 | AN153: 2022 | AO153: 2023 | AP153: 2024 | AQ153: 2025 | AR153: 2026 | AS153: 2027 | AT153: 2028 | AU153: 2029 | AV153: 2030 | AW153: 2031 | AX153: 2032 | AY153: 2033 | AZ153: 2034 | BE153: ='Efficiency Levels'!J98 -> EL6 | BF153: ='Efficiency Levels'!K98 -> 4158.139275 | BG153: 0 | BI153: 0 | BJ153: 0 | BK153: 0 | BL153: 0 | BM153: 0 | BN153: 0 | BO153: 0 | BP153: 0 | BQ153: 0 | BR153: 0 | BS153: 0 | BT153: 0 | BU153: 0 | BV153: 0 | BW153: 0 | BX153: 0 | BY153: 0 | BZ153: 0 | CA153: 0 | CB153: 0 | CC153: 0 | CD153: 0 | CE153: 0 | CF153: 0 | CG153: 0 | CH153: 0 | CI153: 0 | CJ153: 0 | CK153: 0 | CL153: 0 | CM153: 0 | CN153: 0 | CO153: 0 | CP153: 0 | CQ153: 0 | CR153: 0 | CS153: 0 | CT153: 0 | CU153: 0 | CV153: 0 | CW153: 0 | CX153: 0 | CY153: 0 | CZ153: 0 | DA153: 0
D154: ='Efficiency Levels'!C92 -> EL0 | E154: ='Efficiency Levels'!D92 -> 2862.956088 | H154: =H139 -> 1 | I154: 1 | J154: 1 | K154: 1 | L154: 1 | M154: 1 | N154: 1 | O154: 1 | P154: 1 | Q154: 1 | R154: 1 | S154: 1 | T154: 1 | U154: 1 | V154: 1 | W154: 1 | X154: 1 | Y154: 1 | Z154: 1 | AA154: 0 | AB154: 0 | AC154: 0 | AD154: 0 | AE154: 0 | AF154: 0 | AG154: 0 | AH154: 0 | AI154: 0 | AJ154: 0 | AK154: 0 | AL154: 0 | AM154: 0 | AN154: 0 | AO154: 0 | AP154: 0 | AQ154: 0 | AR154: 0 | AS154: 0 | AT154: 0 | AU154: 0 | AV154: 0 | AW154: 0 | AX154: 0 | AY154: 0 | AZ154: 0 | BE154: ='Efficiency Levels'!J99 -> EL7 | BF154: ='Efficiency Levels'!K99 -> 3483.869653 | BG154: 0 | BI154: 0 | BJ154: 0 | BK154: 0 | BL154: 0 | BM154: 0 | BN154: 0 | BO154: 0 | BP154: 0 | BQ154: 0 | BR154: 0 | BS154: 0 | BT154: 0 | BU154: 0 | BV154: 0 | BW154: 0 | BX154: 0 | BY154: 0 | BZ154: 0 | CA154: 0 | CB154: 0 | CC154: 0 | CD154: 0 | CE154: 0 | CF154: 0 | CG154: 0 | CH154: 0 | CI154: 0 | CJ154: 0 | CK154: 0 | CL154: 0 | CM154: 0 | CN154: 0 | CO154: 0 | CP154: 0 | CQ154: 0 | CR154: 0 | CS154: 0 | CT154: 0 | CU154: 0 | CV154: 0 | CW154: 0 | CX154: 0 | CY154: 0 | CZ154: 0 | DA154: 0
D155: ='Efficiency Levels'!C93 -> EL1 | E155: ='Efficiency Levels'!D93 -> 3914.580084 | H155: =H140 -> 0 | I155: 0 | J155: 0 | K155: 0 | L155: 0 | M155: 0 | N155: 0 | O155: 0 | P155: 0 | Q155: 0 | R155: 0 | S155: 0 | T155: 0 | U155: 0 | V155: 0 | W155: 0 | X155: 0 | Y155: 0 | Z155: 0 | AA155: 0 | AB155: 0 | AC155: 0 | AD155: 0 | AE155: 0 | AF155: 0 | AG155: 0 | AH155: 0 | AI155: 0 | AJ155: 0 | AK155: 0 | AL155: 0 | AM155: 0 | AN155: 0 | AO155: 0 | AP155: 0 | AQ155: 0 | AR155: 0 | AS155: 0 | AT155: 0 | AU155: 0 | AV155: 0 | AW155: 0 | AX155: 0 | AY155: 0 | AZ155: 0 | BE155: ='Efficiency Levels'!J100 -> EL8 | BF155: ='Efficiency Levels'!K100 -> 3348.356721 | BG155: 0 | BI155: 0 | BJ155: 0 | BK155: 0 | BL155: 0 | BM155: 0 | BN155: 0 | BO155: 0 | BP155: 0 | BQ155: 0 | BR155: 0 | BS155: 0 | BT155: 0 | BU155: 0 | BV155: 0 | BW155: 0 | BX155: 0 | BY155: 0 | BZ155: 0 | CA155: 0 | CB155: =$BG155 -> 0 | CC155: 0 | CD155: 0 | CE155: 0 | CF155: 0 | CG155: 0 | CH155: 0 | CI155: 0 | CJ155: 0 | CK155: 0 | CL155: 0 | CM155: 0 | CN155: 0 | CO155: 0 | CP155: 0 | CQ155: 0 | CR155: 0 | CS155: 0 | CT155: 0 | CU155: 0 | CV155: 0 | CW155: 0 | CX155: 0 | CY155: 0 | CZ155: 0 | DA155: 0
D156: ='Efficiency Levels'!C94 -> EL2 | E156: ='Efficiency Levels'!D94 -> 4937.601718 | H156: =H141 -> 0 | I156: 0 | J156: 0 | K156: 0 | L156: 0 | M156: 0 | N156: 0 | O156: 0 | P156: 0 | Q156: 0 | R156: 0 | S156: 0 | T156: 0 | U156: 0 | V156: 0 | W156: 0 | X156: 0 | Y156: 0 | Z156: 0 | AA156: =SUM(AA139:AA141) -> 1 | AB156: =SUM(AB139:AB141) -> 1 | AC156: 1 | AD156: 1 | AE156: 1 | AF156: 1 | AG156: 1 | AH156: 1 | AI156: 1 | AJ156: 1 | AK156: 1 | AL156: 1 | AM156: 1 | AN156: 1 | AO156: 1 | AP156: 1 | AQ156: 1 | AR156: 1 | AS156: 1 | AT156: 1 | AU156: 1 | AV156: 1 | AW156: 1 | AX156: 1 | AY156: 1 | AZ156: 1 | BE156: TOTAL | BG156: =SUM(BG147:BG155) -> 1 | BI156: =SUM(BI147:BI155) -> 1 | BJ156: =SUM(BJ147:BJ155) -> 1 | BK156: 1 | BL156: 1 | BM156: 1 | BN156: 1 | BO156: 1 | BP156: 1 | BQ156: 1 | BR156: 1 | BS156: 1 | BT156: 1 | BU156: 1 | BV156: 1 | BW156: 1 | BX156: 1 | BY156: 1 | BZ156: 1 | CA156: 1 | CB156: 1 | CC156: 1 | CD156: 1 | CE156: 1 | CF156: 1 | CG156: 1 | CH156: 1 | CI156: 1 | CJ156: 1 | CK156: 1 | CL156: 1 | CM156: 1 | CN156: 1 | CO156: 1 | CP156: 1 | CQ156: 1 | CR156: 1 | CS156: 1 | CT156: 1 | CU156: 1 | CV156: 1 | CW156: 1 | CX156: 1 | CY156: 1 | CZ156: 1 | DA156: 1
D157: ='Efficiency Levels'!C95 -> EL3 | E157: ='Efficiency Levels'!D95 -> 4666.519386 | H157: =H142 -> 0 | I157: 0 | J157: 0 | K157: 0 | L157: 0 | M157: 0 | N157: 0 | O157: 0 | P157: 0 | Q157: 0 | R157: 0 | S157: 0 | T157: 0 | U157: 0 | V157: 0 | W157: 0 | X157: 0 | Y157: 0 | Z157: 0 | AA157: 0 | AB157: 0 | AC157: 0 | AD157: 0 | AE157: 0 | AF157: 0 | AG157: 0 | AH157: 0 | AI157: 0 | AJ157: 0 | AK157: 0 | AL157: 0 | AM157: 0 | AN157: 0 | AO157: 0 | AP157: 0 | AQ157: 0 | AR157: 0 | AS157: 0 | AT157: 0 | AU157: 0 | AV157: 0 | AW157: 0 | AX157: 0 | AY157: 0 | AZ157: 0
D158: ='Efficiency Levels'!C96 -> EL4 | E158: ='Efficiency Levels'!D96 -> 4511.019606 | H158: =H143 -> 0 | I158: 0 | J158: 0 | K158: 0 | L158: 0 | M158: 0 | N158: 0 | O158: 0 | P158: 0 | Q158: 0 | R158: 0 | S158: 0 | T158: 0 | U158: 0 | V158: 0 | W158: 0 | X158: 0 | Y158: 0 | Z158: 0 | AA158: 0 | AB158: 0 | AC158: 0 | AD158: 0 | AE158: 0 | AF158: 0 | AG158: 0 | AH158: 0 | AI158: 0 | AJ158: 0 | AK158: 0 | AL158: 0 | AM158: 0 | AN158: 0 | AO158: 0 | AP158: 0 | AQ158: 0 | AR158: 0 | AS158: 0 | AT158: 0 | AU158: 0 | AV158: 0 | AW158: 0 | AX158: 0 | AY158: 0 | AZ158: 0 | BE158: POST-Case
D159: ='Efficiency Levels'!C97 -> EL5 | E159: ='Efficiency Levels'!D97 -> 4345.434242 | H159: =H144 -> 0 | I159: 0 | J159: 0 | K159: 0 | L159: 0 | M159: 0 | N159: 0 | O159: 0 | P159: 0 | Q159: 0 | R159: 0 | S159: 0 | T159: 0 | U159: 0 | V159: 0 | W159: 0 | X159: 0 | Y159: 0 | Z159: 0 | AA159: 0 | AB159: 0 | AC159: 0 | AD159: 0 | AE159: 0 | AF159: 0 | AG159: 0 | AH159: 0 | AI159: 0 | AJ159: 0 | AK159: 0 | AL159: 0 | AM159: 0 | AN159: 0 | AO159: 0 | AP159: 0 | AQ159: 0 | AR159: 0 | AS159: 0 | AT159: 0 | AU159: 0 | AV159: 0 | AW159: 0 | AX159: 0 | AY159: 0 | AZ159: 0 | BE159: Efficiency Level | BF159: EL (kWh/year) | BI159: 1990 | BJ159: =BI159+1 -> 1991 | BK159: =BJ159+1 -> 1992 | BL159: =BK159+1 -> 1993 | BM159: =BL159+1 -> 1994 | BN159: =BM159+1 -> 1995 | BO159: =BN159+1 -> 1996 | BP159: =BO159+1 -> 1997 | BQ159: =BP159+1 -> 1998 | BR159: =BQ159+1 -> 1999 | BS159: =BR159+1 -> 2000 | BT159: =BS159+1 -> 2001 | BU159: =BT159+1 -> 2002 | BV159: =BU159+1 -> 2003 | BW159: =BV159+1 -> 2004 | BX159: =BW159+1 -> 2005 | BY159: =BY146 -> 2006 | BZ159: 2007 | CA159: 2008 | CB159: 2009 | CC159: 2010 | CD159: 2011 | CE159: 2012 | CF159: 2013 | CG159: 2014 | CH159: 2015 | CI159: 2016 | CJ159: 2017 | CK159: 2018 | CL159: 2019 | CM159: 2020 | CN159: 2021 | CO159: 2022 | CP159: 2023 | CQ159: 2024 | CR159: 2025 | CS159: 2026 | CT159: 2027 | CU159: 2028 | CV159: 2029 | CW159: 2030 | CX159: 2031 | CY159: 2032 | CZ159: 2033 | DA159: 2034
D160: ='Efficiency Levels'!C98 -> EL6 | E160: ='Efficiency Levels'!D98 -> 4297.108263 | H160: =H145 -> 0 | I160: 0 | J160: 0 | K160: 0 | L160: 0 | M160: 0 | N160: 0 | O160: 0 | P160: 0 | Q160: 0 | R160: 0 | S160: 0 | T160: 0 | U160: 0 | V160: 0 | W160: 0 | X160: 0 | Y160: 0 | Z160: 0 | AA160: 0 | AB160: 0 | AC160: 0 | AD160: 0 | AE160: 0 | AF160: 0 | AG160: 0 | AH160: 0 | AI160: 0 | AJ160: 0 | AK160: 0 | AL160: 0 | AM160: 0 | AN160: 0 | AO160: 0 | AP160: 0 | AQ160: 0 | AR160: 0 | AS160: 0 | AT160: 0 | AU160: 0 | AV160: 0 | AW160: 0 | AX160: 0 | AY160: 0 | AZ160: 0 | BE160: =BE147 -> EL0 | BF160: 8287.067237 | BI160: =BI147 -> 1 | BJ160: 1 | BK160: 1 | BL160: 1 | BM160: 1 | BN160: 1 | BO160: 1 | BP160: 1 | BQ160: 1 | BR160: 1 | BS160: 1 | BT160: 1 | BU160: 1 | BV160: 1 | BW160: 1 | BX160: 1 | BY160: 1 | BZ160: 1 | CA160: 1 | CB160: 0 | CC160: 0 | CD160: 0 | CE160: 0 | CF160: 0 | CG160: 0 | CH160: 0 | CI160: 0 | CJ160: 0 | CK160: 0 | CL160: 0 | CM160: 0 | CN160: 0 | CO160: 0 | CP160: 0 | CQ160: 0 | CR160: 0 | CS160: 0 | CT160: 0 | CU160: 0 | CV160: 0 | CW160: 0 | CX160: 0 | CY160: 0 | CZ160: 0 | DA160: 0
D161: ='Efficiency Levels'!C99 -> EL7 | E161: ='Efficiency Levels'!D99 -> 4215.954474 | H161: =H146 -> 0 | I161: 0 | J161: 0 | K161: 0 | L161: 0 | M161: 0 | N161: 0 | O161: 0 | P161: 0 | Q161: 0 | R161: 0 | S161: 0 | T161: 0 | U161: 0 | V161: 0 | W161: 0 | X161: 0 | Y161: 0 | Z161: 0 | AA161: 0 | AB161: 0 | AC161: 0 | AD161: 0 | AE161: 0 | AF161: 0 | AG161: 0 | AH161: 0 | AI161: 0 | AJ161: 0 | AK161: 0 | AL161: 0 | AM161: 0 | AN161: 0 | AO161: 0 | AP161: 0 | AQ161: 0 | AR161: 0 | AS161: 0 | AT161: 0 | AU161: 0 | AV161: 0 | AW161: 0 | AX161: 0 | AY161: 0 | AZ161: 0 | BE161: =BE148 -> EL1 | BF161: 6525.454556 | BI161: =BI148 -> 0 | BJ161: 0 | BK161: 0 | BL161: 0 | BM161: 0 | BN161: 0 | BO161: 0 | BP161: 0 | BQ161: 0 | BR161: 0 | BS161: 0 | BT161: 0 | BU161: 0 | BV161: 0 | BW161: 0 | BX161: 0 | BY161: 0 | BZ161: 0 | CA161: 0 | CB161: 0 | CC161: 0 | CD161: 0 | CE161: 0 | CF161: 0 | CG161: 0 | CH161: 0 | CI161: 0 | CJ161: 0 | CK161: 0 | CL161: 0 | CM161: 0 | CN161: 0 | CO161: 0 | CP161: 0 | CQ161: 0 | CR161: 0 | CS161: 0 | CT161: 0 | CU161: 0 | CV161: 0 | CW161: 0 | CX161: 0 | CY161: 0 | CZ161: 0 | DA161: 0
D162: ='Efficiency Levels'!C100 -> EL8 | E162: ='Efficiency Levels'!D100 -> 4183.369985 | H162: =H147 -> 0 | I162: 0 | J162: 0 | K162: 0 | L162: 0 | M162: 0 | N162: 0 | O162: 0 | P162: 0 | Q162: 0 | R162: 0 | S162: 0 | T162: 0 | U162: 0 | V162: 0 | W162: 0 | X162: 0 | Y162: 0 | Z162: 0 | AA162: 0 | AB162: 0 | AC162: 0 | AD162: 0 | AE162: 0 | AF162: 0 | AG162: 0 | AH162: 0 | AI162: 0 | AJ162: 0 | AK162: 0 | AL162: 0 | AM162: 0 | AN162: 0 | AO162: 0 | AP162: 0 | AQ162: 0 | AR162: 0 | AS162: 0 | AT162: 0 | AU162: 0 | AV162: 0 | AW162: 0 | AX162: 0 | AY162: 0 | AZ162: 0 | BE162: =BE149 -> EL2 | BF162: 5376.884998 | BI162: =BI149 -> 0 | BJ162: 0 | BK162: 0 | BL162: 0 | BM162: 0 | BN162: 0 | BO162: 0 | BP162: 0 | BQ162: 0 | BR162: 0 | BS162: 0 | BT162: 0 | BU162: 0 | BV162: 0 | BW162: 0 | BX162: 0 | BY162: 0 | BZ162: 0 | CA162: 0 | CB162: 0.75 | CC162: 0.75 | CD162: 0.75 | CE162: 0.75 | CF162: 0.75 | CG162: 0.75 | CH162: 0.75 | CI162: 0.75 | CJ162: 0 | CK162: 0 | CL162: 0 | CM162: 0 | CN162: 0 | CO162: 0 | CP162: 0 | CQ162: 0 | CR162: 0 | CS162: 0 | CT162: 0 | CU162: 0 | CV162: 0 | CW162: 0 | CX162: 0 | CY162: 0 | CZ162: 0 | DA162: 0
D163: ='Efficiency Levels'!C101 -> EL9 | E163: ='Efficiency Levels'!D101 -> 4140.779926 | H163: =H148 -> 0 | I163: 0 | J163: 0 | K163: 0 | L163: 0 | M163: 0 | N163: 0 | O163: 0 | P163: 0 | Q163: 0 | R163: 0 | S163: 0 | T163: 0 | U163: 0 | V163: 0 | W163: 0 | X163: 0 | Y163: 0 | Z163: 0 | AA163: 0 | AB163: 0 | AC163: 0 | AD163: 0 | AE163: 0 | AF163: 0 | AG163: 0 | AH163: 0 | AI163: 0 | AJ163: 0 | AK163: 0 | AL163: 0 | AM163: 0 | AN163: 0 | AO163: 0 | AP163: 0 | AQ163: 0 | AR163: 0 | AS163: 0 | AT163: 0 | AU163: 0 | AV163: 0 | AW163: 0 | AX163: 0 | AY163: 0 | AZ163: 0 | BE163: EL3 | BF163: 5247.162239 | BI163: =BI150 -> 0 | BJ163: 0 | BK163: 0 | BL163: 0 | BM163: 0 | BN163: 0 | BO163: 0 | BP163: 0 | BQ163: 0 | BR163: 0 | BS163: 0 | BT163: 0 | BU163: 0 | BV163: 0 | BW163: 0 | BX163: 0 | BY163: 0 | BZ163: 0 | CA163: 0 | CB163: 0.25 | CC163: 0.25 | CD163: 0.25 | CE163: 0.25 | CF163: 0.25 | CG163: 0.25 | CH163: 0.25 | CI163: 0.25 | CJ163: 0 | CK163: 0 | CL163: 0 | CM163: 0 | CN163: 0 | CO163: 0 | CP163: 0 | CQ163: 0 | CR163: 0 | CS163: 0 | CT163: 0 | CU163: 0 | CV163: 0 | CW163: 0 | CX163: 0 | CY163: 0 | CZ163: 0 | DA163: 0
D164: ='Efficiency Levels'!C102 -> EL10 | E164: ='Efficiency Levels'!D102 -> 4099.27912 | H164: =H149 -> 0 | I164: 0 | J164: 0 | K164: 0 | L164: 0 | M164: 0 | N164: 0 | O164: 0 | P164: 0 | Q164: 0 | R164: 0 | S164: 0 | T164: 0 | U164: 0 | V164: 0 | W164: 0 | X164: 0 | Y164: 0 | Z164: 0 | AA164: 0 | AB164: 0 | AC164: 0 | AD164: 0 | AE164: 0 | AF164: 0 | AG164: 0 | AH164: 0 | AI164: 0 | AJ164: 0 | AK164: 0 | AL164: 0 | AM164: 0 | AN164: 0 | AO164: 0 | AP164: 0 | AQ164: 0 | AR164: 0 | AS164: 0 | AT164: 0 | AU164: 0 | AV164: 0 | AW164: 0 | AX164: 0 | AY164: 0 | AZ164: 0 | BE164: EL4 | BF164: 4423.274163 | BI164: =BI151 -> 0 | BJ164: 0 | BK164: 0 | BL164: 0 | BM164: 0 | BN164: 0 | BO164: 0 | BP164: 0 | BQ164: 0 | BR164: 0 | BS164: 0 | BT164: 0 | BU164: 0 | BV164: 0 | BW164: 0 | BX164: 0 | BY164: 0 | BZ164: 0 | CA164: 0 | CB164: 0 | CC164: 0 | CD164: 0 | CE164: 0 | CF164: 0 | CG164: 0 | CH164: 0 | CI164: 0 | CJ164: 0 | CK164: 0 | CL164: 0 | CM164: 0 | CN164: 0 | CO164: 0 | CP164: 0 | CQ164: 0 | CR164: 0 | CS164: 0 | CT164: 0 | CU164: 0 | CV164: 0 | CW164: 0 | CX164: 0 | CY164: 0 | CZ164: 0 | DA164: 0
D165: TOTAL | H165: =SUM(H154:H164) -> 1 | I165: =SUM(I154:I164) -> 1 | J165: 1 | K165: 1 | L165: 1 | M165: 1 | N165: 1 | O165: 1 | P165: 1 | Q165: 1 | R165: 1 | S165: 1 | T165: 1 | U165: 1 | V165: 1 | W165: 1 | X165: 1 | Y165: 1 | Z165: 1 | AA165: 1 | AB165: 1 | AC165: 1 | AD165: 1 | AE165: 1 | AF165: 1 | AG165: 1 | AH165: 1 | AI165: 1 | AJ165: 1 | AK165: 1 | AL165: 1 | AM165: 1 | AN165: 1 | AO165: 1 | AP165: 1 | AQ165: 1 | AR165: 1 | AS165: 1 | AT165: 1 | AU165: 1 | AV165: 1 | AW165: 1 | AX165: 1 | AY165: 1 | AZ165: 1 | BE165: EL5 | BF165: 4273.927698 | BI165: =BI152 -> 0 | BJ165: 0 | BK165: 0 | BL165: 0 | BM165: 0 | BN165: 0 | BO165: 0 | BP165: 0 | BQ165: 0 | BR165: 0 | BS165: 0 | BT165: 0 | BU165: 0 | BV165: 0 | BW165: 0 | BX165: 0 | BY165: 0 | BZ165: 0 | CA165: 0 | CB165: 0 | CC165: 0 | CD165: 0 | CE165: 0 | CF165: 0 | CG165: 0 | CH165: 0 | CI165: 0 | CJ165: 0 | CK165: 0 | CL165: 0 | CM165: 0 | CN165: 0 | CO165: 0 | CP165: 0 | CQ165: 0 | CR165: 0 | CS165: 0 | CT165: 0 | CU165: 0 | CV165: 0 | CW165: 0 | CX165: 0 | CY165: 0 | CZ165: 0 | DA165: 0
BE166: EL6 | BF166: 4158.139275 | BI166: =BI153 -> 0 | BJ166: 0 | BK166: 0 | BL166: 0 | BM166: 0 | BN166: 0 | BO166: 0 | BP166: 0 | BQ166: 0 | BR166: 0 | BS166: 0 | BT166: 0 | BU166: 0 | BV166: 0 | BW166: 0 | BX166: 0 | BY166: 0 | BZ166: 0 | CA166: 0 | CB166: 0 | CC166: 0 | CD166: 0 | CE166: 0 | CF166: 0 | CG166: 0 | CH166: 0 | CI166: 0 | CJ166: 0 | CK166: 0 | CL166: 0 | CM166: 0 | CN166: 0 | CO166: 0 | CP166: 0 | CQ166: 0 | CR166: 0 | CS166: 0 | CT166: 0 | CU166: 0 | CV166: 0 | CW166: 0 | CX166: 0 | CY166: 0 | CZ166: 0 | DA166: 0
D167: Sources | E167: 1. DOE Walk-In Coolers and Freezers 2014 Final Rule, Technical Support Document: Final Rule National Impact Analysis (NIA) - Components, 'Market Share Inputs' tab, cells B3:M35, http://www.regulations.gov/#!documentDetail;D=EERE-2008-BT-STD-0015-0134 | BE167: EL7 | BF167: 3483.869653 | BI167: =BI154 -> 0 | BJ167: 0 | BK167: 0 | BL167: 0 | BM167: 0 | BN167: 0 | BO167: 0 | BP167: 0 | BQ167: 0 | BR167: 0 | BS167: 0 | BT167: 0 | BU167: 0 | BV167: 0 | BW167: 0 | BX167: 0 | BY167: 0 | BZ167: 0 | CA167: 0 | CB167: 0 | CC167: 0 | CD167: 0 | CE167: 0 | CF167: 0 | CG167: 0 | CH167: 0 | CI167: 0 | CJ167: 0 | CK167: 0 | CL167: 0 | CM167: 0 | CN167: 0 | CO167: 0 | CP167: 0 | CQ167: 0 | CR167: 0 | CS167: 0 | CT167: 0 | CU167: 0 | CV167: 0 | CW167: 0 | CX167: 0 | CY167: 0 | CZ167: 0 | DA167: 0
BE168: EL8 | BF168: 3348.356721 | BI168: =BI155 -> 0 | BJ168: 0 | BK168: 0 | BL168: 0 | BM168: 0 | BN168: 0 | BO168: 0 | BP168: 0 | BQ168: 0 | BR168: 0 | BS168: 0 | BT168: 0 | BU168: 0 | BV168: 0 | BW168: 0 | BX168: 0 | BY168: 0 | BZ168: 0 | CA168: 0 | CB168: 0 | CC168: 0 | CD168: 0 | CE168: 0 | CF168: 0 | CG168: 0 | CH168: 0 | CI168: 0 | CJ168: =SUM(CJ149:CJ155) -> 1 | CK168: 1 | CL168: 1 | CM168: 1 | CN168: 1 | CO168: 1 | CP168: 1 | CQ168: 1 | CR168: 1 | CS168: 1 | CT168: 1 | CU168: 1 | CV168: 1 | CW168: 1 | CX168: 1 | CY168: 1 | CZ168: 1 | DA168: 1
BE169: TOTAL | BI169: =SUM(BI160:BI168) -> 1 | BJ169: =SUM(BJ160:BJ168) -> 1 | BK169: 1 | BL169: 1 | BM169: 1 | BN169: 1 | BO169: 1 | BP169: 1 | BQ169: 1 | BR169: 1 | BS169: 1 | BT169: 1 | BU169: 1 | BV169: 1 | BW169: 1 | BX169: 1 | BY169: 1 | BZ169: 1 | CA169: 1 | CB169: 1 | CC169: 1 | CD169: 1 | CE169: 1 | CF169: 1 | CG169: 1 | CH169: 1 | CI169: 1 | CJ169: 1 | CK169: 1 | CL169: 1 | CM169: 1 | CN169: 1 | CO169: 1 | CP169: 1 | CQ169: 1 | CR169: 1 | CS169: 1 | CT169: 1 | CU169: 1 | CV169: 1 | CW169: 1 | CX169: 1 | CY169: 1 | CZ169: 1 | DA169: 1
BE171: Sources | BF171: 1. DOE Walk-In Coolers and Freezers 2014 Final Rule, Technical Support Document: Final Rule National Impact Analysis (NIA) - Systems, 'Market Share Inputs' tab, cells B3:M35, http://www.regulations.gov/#!documentDetail;D=EERE-2008-BT-STD-0015-0134
D172: ='Product Classes'!K16&" - "&OFFSET('Product Classes'!$F$10,MATCH('Product Classes'!K16,MODEL_PCS,0),0) -> FD.M - Freight Door, Medium Temperature
D174: PRE-Case | F174: Static Distribution
D175: Efficiency Level | E175: EL (kWh/year) | F175: 2006 | H175: 1990 | I175: =H175+1 -> 1991 | J175: 1992 | K175: 1993 | L175: 1994 | M175: 1995 | N175: 1996 | O175: 1997 | P175: 1998 | Q175: 1999 | R175: 2000 | S175: 2001 | T175: 2002 | U175: 2003 | V175: 2004 | W175: 2005 | X175: 2006 | Y175: 2007 | Z175: 2008 | AA175: 2009 | AB175: 2010 | AC175: 2011 | AD175: 2012 | AE175: 2013 | AF175: 2014 | AG175: 2015 | AH175: 2016 | AI175: 2017 | AJ175: 2018 | AK175: 2019 | AL175: 2020 | AM175: 2021 | AN175: 2022 | AO175: 2023 | AP175: 2024 | AQ175: 2025 | AR175: 2026 | AS175: 2027 | AT175: 2028 | AU175: 2029 | AV175: 2030 | AW175: 2031 | AX175: 2032 | AY175: 2033 | AZ175: 2034
D176: ='Efficiency Levels'!C113 -> EL0* | E176: ='Efficiency Levels'!D113 -> 195.9402294 | F176: 1 | H176: =$F176 -> 1 | I176: 1 | J176: 1 | K176: 1 | L176: 1 | M176: 1 | N176: 1 | O176: 1 | P176: 1 | Q176: 1 | R176: 1 | S176: 1 | T176: 1 | U176: 1 | V176: 1 | W176: 1 | X176: =$F176 -> 1 | Y176: 1 | Z176: 1 | AA176: 0 | AB176: 0 | AC176: 0 | AD176: 0 | AE176: 0 | AF176: 0 | AG176: 0 | AH176: 0 | AI176: 0 | AJ176: 0 | AK176: 0 | AL176: 0 | AM176: 0 | AN176: 0 | AO176: 0 | AP176: 0 | AQ176: 0 | AR176: 0 | AS176: 0 | AT176: 0 | AU176: 0 | AV176: 0 | AW176: 0 | AX176: 0 | AY176: 0 | AZ176: 0 | BE176: ='Product Class Dist'!AZ16 -> DC.M.I.018
D177: ='Efficiency Levels'!C114 -> EL1* | E177: ='Efficiency Levels'!D114 -> 205.5654914 | F177: 0 | H177: 0 | I177: 0 | J177: 0 | K177: 0 | L177: 0 | M177: 0 | N177: 0 | O177: 0 | P177: 0 | Q177: 0 | R177: 0 | S177: 0 | T177: 0 | U177: 0 | V177: 0 | W177: 0 | X177: 0 | Y177: 0 | Z177: 0 | AA177: 0 | AB177: 0 | AC177: 0 | AD177: 0 | AE177: 0 | AF177: 0 | AG177: 0 | AH177: 0 | AI177: 0 | AJ177: 0 | AK177: 0 | AL177: 0 | AM177: 0 | AN177: 0 | AO177: 0 | AP177: 0 | AQ177: 0 | AR177: 0 | AS177: 0 | AT177: 0 | AU177: 0 | AV177: 0 | AW177: 0 | AX177: 0 | AY177: 0 | AZ177: 0
D178: ='Efficiency Levels'!C115 -> EL2 | E178: ='Efficiency Levels'!D115 -> 2006.240282 | F178: 0 | H178: 0 | I178: 0 | J178: 0 | K178: 0 | L178: 0 | M178: 0 | N178: 0 | O178: 0 | P178: 0 | Q178: 0 | R178: 0 | S178: 0 | T178: 0 | U178: 0 | V178: 0 | W178: 0 | X178: =$F178 -> 0 | Y178: 0 | Z178: 0 | AA178: 1 | AB178: 1 | AC178: 1 | AD178: 1 | AE178: 1 | AF178: 1 | AG178: 1 | AH178: 1 | AI178: 1 | AJ178: 1 | AK178: 1 | AL178: 1 | AM178: 1 | AN178: 1 | AO178: 1 | AP178: 1 | AQ178: 1 | AR178: 1 | AS178: 1 | AT178: 1 | AU178: 1 | AV178: 1 | AW178: 1 | AX178: 1 | AY178: 1 | AZ178: 1 | BE178: PRE-Case | BG178: Static Distribution
D179: ='Efficiency Levels'!C116 -> EL3 | E179: ='Efficiency Levels'!D116 -> 1966.744307 | F179: 0 | H179: 0 | I179: 0 | J179: 0 | K179: 0 | L179: 0 | M179: 0 | N179: 0 | O179: 0 | P179: 0 | Q179: 0 | R179: 0 | S179: 0 | T179: 0 | U179: 0 | V179: 0 | W179: 0 | X179: 0 | Y179: 0 | Z179: 0 | AA179: 0 | AB179: 0 | AC179: 0 | AD179: 0 | AE179: 0 | AF179: 0 | AG179: 0 | AH179: 0 | AI179: 0 | AJ179: 0 | AK179: 0 | AL179: 0 | AM179: 0 | AN179: 0 | AO179: 0 | AP179: 0 | AQ179: 0 | AR179: 0 | AS179: 0 | AT179: 0 | AU179: 0 | AV179: 0 | AW179: 0 | AX179: 0 | AY179: 0 | AZ179: 0 | BE179: Efficiency Level | BF179: EL (kWh/year) | BG179: 2014 | BI179: 1990 | BJ179: =BI179+1 -> 1991 | BK179: =BJ179+1 -> 1992 | BL179: =BK179+1 -> 1993 | BM179: =BL179+1 -> 1994 | BN179: =BM179+1 -> 1995 | BO179: =BN179+1 -> 1996 | BP179: =BO179+1 -> 1997 | BQ179: =BP179+1 -> 1998 | BR179: =BQ179+1 -> 1999 | BS179: =BR179+1 -> 2000 | BT179: =BS179+1 -> 2001 | BU179: =BT179+1 -> 2002 | BV179: =BU179+1 -> 2003 | BW179: =BV179+1 -> 2004 | BX179: =BW179+1 -> 2005 | BY179: =BX179+1 -> 2006 | BZ179: =BY179+1 -> 2007 | CA179: =BZ179+1 -> 2008 | CB179: =CA179+1 -> 2009 | CC179: =CB179+1 -> 2010 | CD179: =CC179+1 -> 2011 | CE179: =CD179+1 -> 2012 | CF179: =CE179+1 -> 2013 | CG179: =CF179+1 -> 2014 | CH179: =CG179+1 -> 2015 | CI179: =CH179+1 -> 2016 | CJ179: =CI179+1 -> 2017 | CK179: =CJ179+1 -> 2018 | CL179: =CK179+1 -> 2019 | CM179: =CL179+1 -> 2020 | CN179: =CM179+1 -> 2021 | CO179: =CN179+1 -> 2022 | CP179: =CO179+1 -> 2023 | CQ179: =CP179+1 -> 2024 | CR179: =CQ179+1 -> 2025 | CS179: =CR179+1 -> 2026 | CT179: =CS179+1 -> 2027 | CU179: =CT179+1 -> 2028 | CV179: =CU179+1 -> 2029 | CW179: =CV179+1 -> 2030 | CX179: =CW179+1 -> 2031 | CY179: =CX179+1 -> 2032 | CZ179: =CY179+1 -> 2033 | DA179: =CZ179+1 -> 2034
D180: ='Efficiency Levels'!C117 -> EL4 | E180: ='Efficiency Levels'!D117 -> 1914.242313 | F180: 0 | H180: 0 | I180: 0 | J180: 0 | K180: 0 | L180: 0 | M180: 0 | N180: 0 | O180: 0 | P180: 0 | Q180: 0 | R180: 0 | S180: 0 | T180: 0 | U180: 0 | V180: 0 | W180: 0 | X180: 0 | Y180: 0 | Z180: 0 | AA180: 0 | AB180: 0 | AC180: 0 | AD180: 0 | AE180: 0 | AF180: 0 | AG180: 0 | AH180: 0 | AI180: 0 | AJ180: 0 | AK180: 0 | AL180: 0 | AM180: 0 | AN180: 0 | AO180: 0 | AP180: 0 | AQ180: 0 | AR180: 0 | AS180: 0 | AT180: 0 | AU180: 0 | AV180: 0 | AW180: 0 | AX180: 0 | AY180: 0 | AZ180: 0 | BE180: ='Efficiency Levels'!J113 -> EL0 | BF180: ='Efficiency Levels'!K113 -> 21166.45819 | BG180: 0 | BI180: 1 | BJ180: 1 | BK180: 1 | BL180: 1 | BM180: 1 | BN180: 1 | BO180: 1 | BP180: 1 | BQ180: 1 | BR180: 1 | BS180: 1 | BT180: 1 | BU180: 1 | BV180: 1 | BW180: 1 | BX180: 1 | BY180: 1 | BZ180: 1 | CA180: 1 | CB180: =$BG180 -> 0 | CC180: 0 | CD180: 0 | CE180: 0 | CF180: 0 | CG180: 0 | CH180: 0 | CI180: 0 | CJ180: 0 | CK180: 0 | CL180: 0 | CM180: 0 | CN180: 0 | CO180: 0 | CP180: 0 | CQ180: 0 | CR180: =$BG180 -> 0 | CS180: 0 | CT180: 0 | CU180: 0 | CV180: 0 | CW180: 0 | CX180: 0 | CY180: 0 | CZ180: 0 | DA180: 0
D181: ='Efficiency Levels'!C118 -> EL5 | E181: ='Efficiency Levels'!D118 -> 1897.436699 | F181: 0 | H181: 0 | I181: 0 | J181: 0 | K181: 0 | L181: 0 | M181: 0 | N181: 0 | O181: 0 | P181: 0 | Q181: 0 | R181: 0 | S181: 0 | T181: 0 | U181: 0 | V181: 0 | W181: 0 | X181: 0 | Y181: 0 | Z181: 0 | AA181: 0 | AB181: 0 | AC181: 0 | AD181: 0 | AE181: 0 | AF181: 0 | AG181: 0 | AH181: 0 | AI181: 0 | AJ181: 0 | AK181: 0 | AL181: 0 | AM181: 0 | AN181: 0 | AO181: 0 | AP181: 0 | AQ181: 0 | AR181: 0 | AS181: 0 | AT181: 0 | AU181: 0 | AV181: 0 | AW181: 0 | AX181: 0 | AY181: 0 | AZ181: 0 | BE181: ='Efficiency Levels'!J114 -> EL1 | BF181: ='Efficiency Levels'!K114 -> 15181.51142 | BG181: 0 | BI181: 0 | BJ181: 0 | BK181: 0 | BL181: 0 | BM181: 0 | BN181: 0 | BO181: 0 | BP181: 0 | BQ181: 0 | BR181: 0 | BS181: 0 | BT181: 0 | BU181: 0 | BV181: 0 | BW181: 0 | BX181: 0 | BY181: 0 | BZ181: 0 | CA181: 0 | CB181: 0 | CC181: 0 | CD181: 0 | CE181: 0 | CF181: 0 | CG181: 0 | CH181: 0 | CI181: 0 | CJ181: 0 | CK181: 0 | CL181: 0 | CM181: 0 | CN181: 0 | CO181: 0 | CP181: 0 | CQ181: 0 | CR181: 0 | CS181: 0 | CT181: 0 | CU181: 0 | CV181: 0 | CW181: 0 | CX181: 0 | CY181: 0 | CZ181: 0 | DA181: 0
D182: ='Efficiency Levels'!C119 -> EL6 | E182: ='Efficiency Levels'!D119 -> 1876.124111 | F182: 0 | H182: 0 | I182: 0 | J182: 0 | K182: 0 | L182: 0 | M182: 0 | N182: 0 | O182: 0 | P182: 0 | Q182: 0 | R182: 0 | S182: 0 | T182: 0 | U182: 0 | V182: 0 | W182: 0 | X182: 0 | Y182: 0 | Z182: 0 | AA182: 0 | AB182: 0 | AC182: 0 | AD182: 0 | AE182: 0 | AF182: 0 | AG182: 0 | AH182: 0 | AI182: 0 | AJ182: 0 | AK182: 0 | AL182: 0 | AM182: 0 | AN182: 0 | AO182: 0 | AP182: 0 | AQ182: 0 | AR182: 0 | AS182: 0 | AT182: 0 | AU182: 0 | AV182: 0 | AW182: 0 | AX182: 0 | AY182: 0 | AZ182: 0 | BE182: ='Efficiency Levels'!J115 -> EL2 | BF182: ='Efficiency Levels'!K115 -> 15160.46395 | BG182: 0.75 | BI182: 0 | BJ182: 0 | BK182: 0 | BL182: 0 | BM182: 0 | BN182: 0 | BO182: 0 | BP182: 0 | BQ182: 0 | BR182: 0 | BS182: 0 | BT182: 0 | BU182: 0 | BV182: 0 | BW182: 0 | BX182: 0 | BY182: 0 | BZ182: 0 | CA182: 0 | CB182: =$BG182 -> 0.75 | CC182: 0.75 | CD182: 0.75 | CE182: 0.75 | CF182: 0.75 | CG182: 0.75 | CH182: 0.75 | CI182: 0.75 | CJ182: 0.75 | CK182: 0.75 | CL182: 0.75 | CM182: 0.75 | CN182: 0.75 | CO182: 0.75 | CP182: 0.75 | CQ182: 0.75 | CR182: 0.75 | CS182: 0.75 | CT182: 0.75 | CU182: 0.75 | CV182: 0.75 | CW182: 0.75 | CX182: 0.75 | CY182: 0.75 | CZ182: 0.75 | DA182: 0.75
D183: ='Efficiency Levels'!C120 -> EL7 | E183: ='Efficiency Levels'!D120 -> 1852.19793 | F183: 0 | H183: 0 | I183: 0 | J183: 0 | K183: 0 | L183: 0 | M183: 0 | N183: 0 | O183: 0 | P183: 0 | Q183: 0 | R183: 0 | S183: 0 | T183: 0 | U183: 0 | V183: 0 | W183: 0 | X183: 0 | Y183: 0 | Z183: 0 | AA183: 0 | AB183: 0 | AC183: 0 | AD183: 0 | AE183: 0 | AF183: 0 | AG183: 0 | AH183: 0 | AI183: 0 | AJ183: 0 | AK183: 0 | AL183: 0 | AM183: 0 | AN183: 0 | AO183: 0 | AP183: 0 | AQ183: 0 | AR183: 0 | AS183: 0 | AT183: 0 | AU183: 0 | AV183: 0 | AW183: 0 | AX183: 0 | AY183: 0 | AZ183: 0 | BE183: ='Efficiency Levels'!J116 -> EL3 | BF183: ='Efficiency Levels'!K116 -> 13461.7776 | BG183: 0.25 | BI183: 0 | BJ183: 0 | BK183: 0 | BL183: 0 | BM183: 0 | BN183: 0 | BO183: 0 | BP183: 0 | BQ183: 0 | BR183: 0 | BS183: 0 | BT183: 0 | BU183: 0 | BV183: 0 | BW183: 0 | BX183: 0 | BY183: 0 | BZ183: 0 | CA183: 0 | CB183: 0.25 | CC183: 0.25 | CD183: 0.25 | CE183: 0.25 | CF183: 0.25 | CG183: 0.25 | CH183: 0.25 | CI183: 0.25 | CJ183: 0.25 | CK183: 0.25 | CL183: 0.25 | CM183: 0.25 | CN183: 0.25 | CO183: 0.25 | CP183: 0.25 | CQ183: 0.25 | CR183: 0.25 | CS183: 0.25 | CT183: 0.25 | CU183: 0.25 | CV183: 0.25 | CW183: 0.25 | CX183: 0.25 | CY183: 0.25 | CZ183: 0.25 | DA183: 0.25
D184: ='Efficiency Levels'!C121 -> EL8 | E184: ='Efficiency Levels'!D121 -> 1836.095153 | F184: 0 | H184: 0 | I184: 0 | J184: 0 | K184: 0 | L184: 0 | M184: 0 | N184: 0 | O184: =$F184 -> 0 | P184: 0 | Q184: 0 | R184: 0 | S184: 0 | T184: 0 | U184: 0 | V184: 0 | W184: 0 | X184: 0 | Y184: 0 | Z184: 0 | AA184: 0 | AB184: 0 | AC184: 0 | AD184: 0 | AE184: 0 | AF184: 0 | AG184: 0 | AH184: 0 | AI184: 0 | AJ184: 0 | AK184: 0 | AL184: 0 | AM184: 0 | AN184: 0 | AO184: 0 | AP184: 0 | AQ184: 0 | AR184: 0 | AS184: 0 | AT184: 0 | AU184: 0 | AV184: 0 | AW184: 0 | AX184: 0 | AY184: 0 | AZ184: 0 | BE184: ='Efficiency Levels'!J117 -> EL4 | BF184: ='Efficiency Levels'!K117 -> 12896.32721 | BG184: 0 | BI184: 0 | BJ184: 0 | BK184: 0 | BL184: 0 | BM184: 0 | BN184: 0 | BO184: 0 | BP184: 0 | BQ184: 0 | BR184: 0 | BS184: 0 | BT184: 0 | BU184: 0 | BV184: 0 | BW184: 0 | BX184: 0 | BY184: 0 | BZ184: 0 | CA184: 0 | CB184: 0 | CC184: 0 | CD184: 0 | CE184: 0 | CF184: 0 | CG184: 0 | CH184: 0 | CI184: 0 | CJ184: 0 | CK184: 0 | CL184: 0 | CM184: 0 | CN184: 0 | CO184: 0 | CP184: 0 | CQ184: 0 | CR184: 0 | CS184: 0 | CT184: 0 | CU184: 0 | CV184: 0 | CW184: 0 | CX184: 0 | CY184: 0 | CZ184: 0 | DA184: 0
D185: ='Efficiency Levels'!C122 -> EL9 | E185: ='Efficiency Levels'!D122 -> 1820.287454 | F185: 0 | H185: 0 | I185: 0 | J185: 0 | K185: 0 | L185: 0 | M185: 0 | N185: 0 | O185: 0 | P185: 0 | Q185: 0 | R185: 0 | S185: 0 | T185: 0 | U185: 0 | V185: 0 | W185: 0 | X185: 0 | Y185: 0 | Z185: 0 | AA185: 0 | AB185: 0 | AC185: 0 | AD185: 0 | AE185: 0 | AF185: 0 | AG185: 0 | AH185: 0 | AI185: 0 | AJ185: 0 | AK185: 0 | AL185: 0 | AM185: 0 | AN185: 0 | AO185: 0 | AP185: 0 | AQ185: 0 | AR185: 0 | AS185: 0 | AT185: 0 | AU185: 0 | AV185: 0 | AW185: 0 | AX185: 0 | AY185: 0 | AZ185: 0 | BE185: ='Efficiency Levels'!J118 -> EL5 | BF185: ='Efficiency Levels'!K118 -> 12557.05698 | BG185: 0 | BI185: 0 | BJ185: 0 | BK185: 0 | BL185: 0 | BM185: 0 | BN185: 0 | BO185: 0 | BP185: 0 | BQ185: 0 | BR185: 0 | BS185: 0 | BT185: 0 | BU185: 0 | BV185: 0 | BW185: 0 | BX185: 0 | BY185: 0 | BZ185: 0 | CA185: 0 | CB185: 0 | CC185: 0 | CD185: 0 | CE185: 0 | CF185: 0 | CG185: 0 | CH185: 0 | CI185: 0 | CJ185: 0 | CK185: 0 | CL185: 0 | CM185: 0 | CN185: 0 | CO185: 0 | CP185: 0 | CQ185: 0 | CR185: 0 | CS185: 0 | CT185: 0 | CU185: 0 | CV185: 0 | CW185: 0 | CX185: 0 | CY185: 0 | CZ185: 0 | DA185: 0
D186: ='Efficiency Levels'!C123 -> EL10 | E186: ='Efficiency Levels'!D123 -> 1793.813846 | F186: 0 | H186: 0 | I186: 0 | J186: 0 | K186: 0 | L186: 0 | M186: 0 | N186: 0 | O186: 0 | P186: 0 | Q186: 0 | R186: 0 | S186: 0 | T186: 0 | U186: 0 | V186: 0 | W186: 0 | X186: 0 | Y186: 0 | Z186: 0 | AA186: 0 | AB186: 0 | AC186: 0 | AD186: 0 | AE186: 0 | AF186: 0 | AG186: 0 | AH186: 0 | AI186: 0 | AJ186: 0 | AK186: 0 | AL186: 0 | AM186: 0 | AN186: 0 | AO186: 0 | AP186: 0 | AQ186: 0 | AR186: 0 | AS186: 0 | AT186: 0 | AU186: 0 | AV186: 0 | AW186: 0 | AX186: 0 | AY186: 0 | AZ186: 0 | BE186: ='Efficiency Levels'!J119 -> EL6 | BF186: ='Efficiency Levels'!K119 -> 11414.20778 | BG186: 0 | BI186: 0 | BJ186: 0 | BK186: 0 | BL186: 0 | BM186: 0 | BN186: 0 | BO186: 0 | BP186: 0 | BQ186: 0 | BR186: 0 | BS186: 0 | BT186: 0 | BU186: 0 | BV186: 0 | BW186: 0 | BX186: 0 | BY186: 0 | BZ186: 0 | CA186: 0 | CB186: 0 | CC186: 0 | CD186: 0 | CE186: 0 | CF186: 0 | CG186: 0 | CH186: 0 | CI186: 0 | CJ186: 0 | CK186: 0 | CL186: 0 | CM186: 0 | CN186: 0 | CO186: 0 | CP186: 0 | CQ186: 0 | CR186: 0 | CS186: 0 | CT186: 0 | CU186: 0 | CV186: 0 | CW186: 0 | CX186: 0 | CY186: 0 | CZ186: 0 | DA186: 0
D187: ='Efficiency Levels'!C124 -> EL11 | E187: ='Efficiency Levels'!D124 -> 1757.090318 | F187: 0 | H187: 0 | I187: 0 | J187: 0 | K187: 0 | L187: 0 | M187: 0 | N187: 0 | O187: 0 | P187: 0 | Q187: 0 | R187: 0 | S187: 0 | T187: 0 | U187: 0 | V187: 0 | W187: 0 | X187: 0 | Y187: 0 | Z187: 0 | AA187: 0 | AB187: 0 | AC187: 0 | AD187: 0 | AE187: 0 | AF187: 0 | AG187: 0 | AH187: 0 | AI187: 0 | AJ187: 0 | AK187: 0 | AL187: 0 | AM187: 0 | AN187: 0 | AO187: 0 | AP187: 0 | AQ187: 0 | AR187: 0 | AS187: 0 | AT187: 0 | AU187: 0 | AV187: 0 | AW187: 0 | AX187: 0 | AY187: 0 | AZ187: 0 | BE187: ='Efficiency Levels'!J120 -> EL7 | BF187: ='Efficiency Levels'!K120 -> 11272.70548 | BG187: 0 | BI187: 0 | BJ187: 0 | BK187: 0 | BL187: 0 | BM187: 0 | BN187: 0 | BO187: 0 | BP187: 0 | BQ187: 0 | BR187: 0 | BS187: 0 | BT187: 0 | BU187: 0 | BV187: 0 | BW187: 0 | BX187: 0 | BY187: 0 | BZ187: 0 | CA187: 0 | CB187: 0 | CC187: 0 | CD187: 0 | CE187: 0 | CF187: 0 | CG187: 0 | CH187: 0 | CI187: 0 | CJ187: 0 | CK187: 0 | CL187: 0 | CM187: 0 | CN187: 0 | CO187: 0 | CP187: 0 | CQ187: 0 | CR187: 0 | CS187: 0 | CT187: 0 | CU187: 0 | CV187: 0 | CW187: 0 | CX187: 0 | CY187: 0 | CZ187: 0 | DA187: 0
D188: TOTAL | F188: =SUM(F176:F187) -> 1 | H188: =SUM(H176:H187) -> 1 | I188: =SUM(I176:I187) -> 1 | J188: 1 | K188: 1 | L188: 1 | M188: 1 | N188: 1 | O188: 1 | P188: 1 | Q188: 1 | R188: 1 | S188: 1 | T188: 1 | U188: 1 | V188: 1 | W188: 1 | X188: 1 | Y188: 1 | Z188: 1 | AA188: 1 | AB188: 1 | AC188: 1 | AD188: 1 | AE188: 1 | AF188: 1 | AG188: 1 | AH188: 1 | AI188: 1 | AJ188: 1 | AK188: 1 | AL188: 1 | AM188: 1 | AN188: 1 | AO188: 1 | AP188: 1 | AQ188: 1 | AR188: 1 | AS188: 1 | AT188: 1 | AU188: 1 | AV188: 1 | AW188: 1 | AX188: 1 | AY188: 1 | AZ188: 1 | BE188: ='Efficiency Levels'!J121 -> EL8 | BF188: ='Efficiency Levels'!K121 -> 10487.29493 | BG188: 0 | BI188: 0 | BJ188: 0 | BK188: 0 | BL188: 0 | BM188: 0 | BN188: 0 | BO188: 0 | BP188: 0 | BQ188: 0 | BR188: 0 | BS188: 0 | BT188: 0 | BU188: 0 | BV188: 0 | BW188: 0 | BX188: 0 | BY188: 0 | BZ188: 0 | CA188: 0 | CB188: =$BG188 -> 0 | CC188: 0 | CD188: 0 | CE188: 0 | CF188: 0 | CG188: 0 | CH188: 0 | CI188: 0 | CJ188: 0 | CK188: 0 | CL188: 0 | CM188: 0 | CN188: 0 | CO188: 0 | CP188: 0 | CQ188: 0 | CR188: 0 | CS188: 0 | CT188: 0 | CU188: 0 | CV188: 0 | CW188: 0 | CX188: 0 | CY188: 0 | CZ188: 0 | DA188: 0
BE189: TOTAL | BG189: =SUM(BG180:BG188) -> 1 | BI189: =SUM(BI180:BI188) -> 1 | BJ189: =SUM(BJ180:BJ188) -> 1 | BK189: 1 | BL189: 1 | BM189: 1 | BN189: 1 | BO189: 1 | BP189: 1 | BQ189: 1 | BR189: 1 | BS189: 1 | BT189: 1 | BU189: 1 | BV189: 1 | BW189: 1 | BX189: 1 | BY189: 1 | BZ189: 1 | CA189: 1 | CB189: 1 | CC189: 1 | CD189: 1 | CE189: 1 | CF189: 1 | CG189: 1 | CH189: 1 | CI189: 1 | CJ189: 1 | CK189: 1 | CL189: 1 | CM189: 1 | CN189: 1 | CO189: 1 | CP189: 1 | CQ189: 1 | CR189: 1 | CS189: 1 | CT189: 1 | CU189: 1 | CV189: 1 | CW189: 1 | CX189: 1 | CY189: 1 | CZ189: 1 | DA189: 1
D190: POST-Case
D191: Efficiency Level | E191: EL (kWh/year) | H191: 1990 | I191: =H191+1 -> 1991 | J191: 1992 | K191: 1993 | L191: 1994 | M191: 1995 | N191: 1996 | O191: 1997 | P191: 1998 | Q191: 1999 | R191: 2000 | S191: 2001 | T191: 2002 | U191: 2003 | V191: 2004 | W191: 2005 | X191: =X175 -> 2006 | Y191: 2007 | Z191: 2008 | AA191: 2009 | AB191: 2010 | AC191: 2011 | AD191: 2012 | AE191: 2013 | AF191: 2014 | AG191: 2015 | AH191: 2016 | AI191: 2017 | AJ191: 2018 | AK191: 2019 | AL191: 2020 | AM191: 2021 | AN191: 2022 | AO191: 2023 | AP191: 2024 | AQ191: 2025 | AR191: 2026 | AS191: 2027 | AT191: 2028 | AU191: 2029 | AV191: 2030 | AW191: 2031 | AX191: 2032 | AY191: 2033 | AZ191: 2034 | BE191: POST-Case
D192: ='Efficiency Levels'!C113 -> EL0* | E192: ='Efficiency Levels'!D113 -> 195.9402294 | H192: =H176 -> 1 | I192: 1 | J192: 1 | K192: 1 | L192: 1 | M192: 1 | N192: 1 | O192: 1 | P192: 1 | Q192: 1 | R192: 1 | S192: 1 | T192: 1 | U192: 1 | V192: 1 | W192: 1 | X192: 1 | Y192: 1 | Z192: 1 | AA192: 0 | AB192: 0 | AC192: 0 | AD192: 0 | AE192: 0 | AF192: 0 | AG192: 0 | AH192: 0 | AI192: 0 | AJ192: 0 | AK192: 0 | AL192: 0 | AM192: 0 | AN192: 0 | AO192: 0 | AP192: 0 | AQ192: 0 | AR192: 0 | AS192: 0 | AT192: 0 | AU192: 0 | AV192: 0 | AW192: 0 | AX192: 0 | AY192: 0 | AZ192: 0 | BE192: Efficiency Level | BF192: EL (kWh/year) | BI192: 1990 | BJ192: =BI192+1 -> 1991 | BK192: =BJ192+1 -> 1992 | BL192: =BK192+1 -> 1993 | BM192: =BL192+1 -> 1994 | BN192: =BM192+1 -> 1995 | BO192: =BN192+1 -> 1996 | BP192: =BO192+1 -> 1997 | BQ192: =BP192+1 -> 1998 | BR192: =BQ192+1 -> 1999 | BS192: =BR192+1 -> 2000 | BT192: =BS192+1 -> 2001 | BU192: =BT192+1 -> 2002 | BV192: =BU192+1 -> 2003 | BW192: =BV192+1 -> 2004 | BX192: =BW192+1 -> 2005 | BY192: =BY179 -> 2006 | BZ192: 2007 | CA192: 2008 | CB192: 2009 | CC192: 2010 | CD192: 2011 | CE192: 2012 | CF192: 2013 | CG192: 2014 | CH192: 2015 | CI192: 2016 | CJ192: 2017 | CK192: 2018 | CL192: 2019 | CM192: 2020 | CN192: 2021 | CO192: 2022 | CP192: 2023 | CQ192: 2024 | CR192: 2025 | CS192: 2026 | CT192: 2027 | CU192: 2028 | CV192: 2029 | CW192: 2030 | CX192: 2031 | CY192: 2032 | CZ192: 2033 | DA192: 2034
D193: ='Efficiency Levels'!C114 -> EL1* | E193: ='Efficiency Levels'!D114 -> 205.5654914 | H193: =H177 -> 0 | I193: 0 | J193: 0 | K193: 0 | L193: 0 | M193: 0 | N193: 0 | O193: 0 | P193: 0 | Q193: 0 | R193: 0 | S193: 0 | T193: 0 | U193: 0 | V193: 0 | W193: 0 | X193: 0 | Y193: 0 | Z193: 0 | AA193: 0 | AB193: 0 | AC193: 0 | AD193: 0 | AE193: 0 | AF193: 0 | AG193: 0 | AH193: 0 | AI193: 0 | AJ193: 0 | AK193: 0 | AL193: 0 | AM193: 0 | AN193: 0 | AO193: 0 | AP193: 0 | AQ193: 0 | AR193: 0 | AS193: 0 | AT193: 0 | AU193: 0 | AV193: 0 | AW193: 0 | AX193: 0 | AY193: 0 | AZ193: 0 | BE193: =BE180 -> EL0 | BF193: 21166.45819 | BI193: =BI180 -> 1 | BJ193: =BJ180 -> 1 | BK193: 1 | BL193: 1 | BM193: 1 | BN193: 1 | BO193: 1 | BP193: 1 | BQ193: 1 | BR193: 1 | BS193: 1 | BT193: 1 | BU193: 1 | BV193: 1 | BW193: 1 | BX193: 1 | BY193: 1 | BZ193: 1 | CA193: 1 | CB193: 0 | CC193: 0 | CD193: 0 | CE193: 0 | CF193: 0 | CG193: 0 | CH193: 0 | CI193: 0 | CJ193: 0 | CK193: 0 | CL193: 0 | CM193: 0 | CN193: 0 | CO193: 0 | CP193: 0 | CQ193: 0 | CR193: 0 | CS193: 0 | CT193: 0 | CU193: 0 | CV193: 0 | CW193: 0 | CX193: 0 | CY193: 0 | CZ193: 0 | DA193: 0
D194: ='Efficiency Levels'!C115 -> EL2 | E194: ='Efficiency Levels'!D115 -> 2006.240282 | H194: =H178 -> 0 | I194: 0 | J194: 0 | K194: 0 | L194: 0 | M194: 0 | N194: 0 | O194: 0 | P194: 0 | Q194: 0 | R194: 0 | S194: 0 | T194: 0 | U194: 0 | V194: 0 | W194: 0 | X194: 0 | Y194: 0 | Z194: 0 | AA194: =SUM(AA176:AA178) -> 1 | AB194: =SUM(AB176:AB178) -> 1 | AC194: 1 | AD194: 1 | AE194: 1 | AF194: 1 | AG194: 1 | AH194: 1 | AI194: 1 | AJ194: 1 | AK194: 1 | AL194: 1 | AM194: 1 | AN194: 1 | AO194: 1 | AP194: 1 | AQ194: 1 | AR194: 1 | AS194: 1 | AT194: 1 | AU194: 1 | AV194: 1 | AW194: 1 | AX194: 1 | AY194: 1 | AZ194: 1 | BE194: =BE181 -> EL1 | BF194: 15181.51142 | BI194: 0 | BJ194: =BJ181 -> 0 | BK194: 0 | BL194: 0 | BM194: 0 | BN194: 0 | BO194: 0 | BP194: 0 | BQ194: 0 | BR194: 0 | BS194: 0 | BT194: 0 | BU194: 0 | BV194: 0 | BW194: 0 | BX194: 0 | BY194: 0 | BZ194: 0 | CA194: 0 | CB194: 0 | CC194: 0 | CD194: 0 | CE194: 0 | CF194: 0 | CG194: 0 | CH194: 0 | CI194: 0 | CJ194: 0 | CK194: 0 | CL194: 0 | CM194: 0 | CN194: 0 | CO194: 0 | CP194: 0 | CQ194: 0 | CR194: 0 | CS194: 0 | CT194: 0 | CU194: 0 | CV194: 0 | CW194: 0 | CX194: 0 | CY194: 0 | CZ194: 0 | DA194: 0
D195: ='Efficiency Levels'!C116 -> EL3 | E195: ='Efficiency Levels'!D116 -> 1966.744307 | H195: =H179 -> 0 | I195: 0 | J195: 0 | K195: 0 | L195: 0 | M195: 0 | N195: 0 | O195: 0 | P195: 0 | Q195: 0 | R195: 0 | S195: 0 | T195: 0 | U195: 0 | V195: 0 | W195: 0 | X195: 0 | Y195: 0 | Z195: 0 | AA195: 0 | AB195: 0 | AC195: 0 | AD195: 0 | AE195: 0 | AF195: 0 | AG195: 0 | AH195: 0 | AI195: 0 | AJ195: 0 | AK195: 0 | AL195: 0 | AM195: 0 | AN195: 0 | AO195: 0 | AP195: 0 | AQ195: 0 | AR195: 0 | AS195: 0 | AT195: 0 | AU195: 0 | AV195: 0 | AW195: 0 | AX195: 0 | AY195: 0 | AZ195: 0 | BE195: =BE182 -> EL2 | BF195: 15160.46395 | BI195: 0 | BJ195: =BJ182 -> 0 | BK195: 0 | BL195: 0 | BM195: 0 | BN195: 0 | BO195: 0 | BP195: 0 | BQ195: 0 | BR195: 0 | BS195: 0 | BT195: 0 | BU195: 0 | BV195: 0 | BW195: 0 | BX195: 0 | BY195: 0 | BZ195: 0 | CA195: 0 | CB195: 0.75 | CC195: 0.75 | CD195: 0.75 | CE195: 0.75 | CF195: 0.75 | CG195: 0.75 | CH195: 0.75 | CI195: 0.75 | CJ195: 0 | CK195: 0 | CL195: 0 | CM195: 0 | CN195: 0 | CO195: 0 | CP195: 0 | CQ195: 0 | CR195: 0 | CS195: 0 | CT195: 0 | CU195: 0 | CV195: 0 | CW195: 0 | CX195: 0 | CY195: 0 | CZ195: 0 | DA195: 0
D196: ='Efficiency Levels'!C117 -> EL4 | E196: ='Efficiency Levels'!D117 -> 1914.242313 | H196: =H180 -> 0 | I196: 0 | J196: 0 | K196: 0 | L196: 0 | M196: 0 | N196: 0 | O196: 0 | P196: 0 | Q196: 0 | R196: 0 | S196: 0 | T196: 0 | U196: 0 | V196: 0 | W196: 0 | X196: 0 | Y196: 0 | Z196: 0 | AA196: 0 | AB196: 0 | AC196: 0 | AD196: 0 | AE196: 0 | AF196: 0 | AG196: 0 | AH196: 0 | AI196: 0 | AJ196: 0 | AK196: 0 | AL196: 0 | AM196: 0 | AN196: 0 | AO196: 0 | AP196: 0 | AQ196: 0 | AR196: 0 | AS196: 0 | AT196: 0 | AU196: 0 | AV196: 0 | AW196: 0 | AX196: 0 | AY196: 0 | AZ196: 0 | BE196: EL3 | BF196: 13461.7776 | BI196: =BI183 -> 0 | BJ196: =BJ183 -> 0 | BK196: 0 | BL196: 0 | BM196: 0 | BN196: 0 | BO196: 0 | BP196: 0 | BQ196: 0 | BR196: 0 | BS196: 0 | BT196: 0 | BU196: 0 | BV196: 0 | BW196: 0 | BX196: 0 | BY196: 0 | BZ196: 0 | CA196: 0 | CB196: 0.25 | CC196: 0.25 | CD196: 0.25 | CE196: 0.25 | CF196: 0.25 | CG196: 0.25 | CH196: 0.25 | CI196: 0.25 | CJ196: 0 | CK196: 0 | CL196: 0 | CM196: 0 | CN196: 0 | CO196: 0 | CP196: 0 | CQ196: 0 | CR196: 0 | CS196: 0 | CT196: 0 | CU196: 0 | CV196: 0 | CW196: 0 | CX196: 0 | CY196: 0 | CZ196: 0 | DA196: 0
D197: ='Efficiency Levels'!C118 -> EL5 | E197: ='Efficiency Levels'!D118 -> 1897.436699 | H197: =H181 -> 0 | I197: 0 | J197: 0 | K197: 0 | L197: 0 | M197: 0 | N197: 0 | O197: 0 | P197: 0 | Q197: 0 | R197: 0 | S197: 0 | T197: 0 | U197: 0 | V197: 0 | W197: 0 | X197: 0 | Y197: 0 | Z197: 0 | AA197: 0 | AB197: 0 | AC197: 0 | AD197: 0 | AE197: 0 | AF197: 0 | AG197: 0 | AH197: 0 | AI197: 0 | AJ197: 0 | AK197: 0 | AL197: 0 | AM197: 0 | AN197: 0 | AO197: 0 | AP197: 0 | AQ197: 0 | AR197: 0 | AS197: 0 | AT197: 0 | AU197: 0 | AV197: 0 | AW197: 0 | AX197: 0 | AY197: 0 | AZ197: 0 | BE197: EL4 | BF197: 12896.32721 | BI197: =BI184 -> 0 | BJ197: =BJ184 -> 0 | BK197: 0 | BL197: 0 | BM197: 0 | BN197: 0 | BO197: 0 | BP197: 0 | BQ197: 0 | BR197: 0 | BS197: 0 | BT197: 0 | BU197: 0 | BV197: 0 | BW197: 0 | BX197: 0 | BY197: 0 | BZ197: 0 | CA197: 0 | CB197: 0 | CC197: 0 | CD197: 0 | CE197: 0 | CF197: 0 | CG197: 0 | CH197: 0 | CI197: 0 | CJ197: 0 | CK197: 0 | CL197: 0 | CM197: 0 | CN197: 0 | CO197: 0 | CP197: 0 | CQ197: 0 | CR197: 0 | CS197: 0 | CT197: 0 | CU197: 0 | CV197: 0 | CW197: 0 | CX197: 0 | CY197: 0 | CZ197: 0 | DA197: 0
D198: ='Efficiency Levels'!C119 -> EL6 | E198: ='Efficiency Levels'!D119 -> 1876.124111 | H198: =H182 -> 0 | I198: 0 | J198: 0 | K198: 0 | L198: 0 | M198: 0 | N198: 0 | O198: 0 | P198: 0 | Q198: 0 | R198: 0 | S198: 0 | T198: 0 | U198: 0 | V198: 0 | W198: 0 | X198: 0 | Y198: 0 | Z198: 0 | AA198: 0 | AB198: 0 | AC198: 0 | AD198: 0 | AE198: 0 | AF198: 0 | AG198: 0 | AH198: 0 | AI198: 0 | AJ198: 0 | AK198: 0 | AL198: 0 | AM198: 0 | AN198: 0 | AO198: 0 | AP198: 0 | AQ198: 0 | AR198: 0 | AS198: 0 | AT198: 0 | AU198: 0 | AV198: 0 | AW198: 0 | AX198: 0 | AY198: 0 | AZ198: 0 | BE198: EL5 | BF198: 12557.05698 | BI198: =BI185 -> 0 | BJ198: =BJ185 -> 0 | BK198: 0 | BL198: 0 | BM198: 0 | BN198: 0 | BO198: 0 | BP198: 0 | BQ198: 0 | BR198: 0 | BS198: 0 | BT198: 0 | BU198: 0 | BV198: 0 | BW198: 0 | BX198: 0 | BY198: 0 | BZ198: 0 | CA198: 0 | CB198: 0 | CC198: 0 | CD198: 0 | CE198: 0 | CF198: 0 | CG198: 0 | CH198: 0 | CI198: 0 | CJ198: 0 | CK198: 0 | CL198: 0 | CM198: 0 | CN198: 0 | CO198: 0 | CP198: 0 | CQ198: 0 | CR198: 0 | CS198: 0 | CT198: 0 | CU198: 0 | CV198: 0 | CW198: 0 | CX198: 0 | CY198: 0 | CZ198: 0 | DA198: 0
D199: ='Efficiency Levels'!C120 -> EL7 | E199: ='Efficiency Levels'!D120 -> 1852.19793 | H199: =H183 -> 0 | I199: 0 | J199: 0 | K199: 0 | L199: 0 | M199: 0 | N199: 0 | O199: 0 | P199: 0 | Q199: 0 | R199: 0 | S199: 0 | T199: 0 | U199: 0 | V199: 0 | W199: 0 | X199: 0 | Y199: 0 | Z199: 0 | AA199: 0 | AB199: 0 | AC199: 0 | AD199: 0 | AE199: 0 | AF199: 0 | AG199: 0 | AH199: 0 | AI199: 0 | AJ199: 0 | AK199: 0 | AL199: 0 | AM199: 0 | AN199: 0 | AO199: 0 | AP199: 0 | AQ199: 0 | AR199: 0 | AS199: 0 | AT199: 0 | AU199: 0 | AV199: 0 | AW199: 0 | AX199: 0 | AY199: 0 | AZ199: 0 | BE199: EL6 | BF199: 11414.20778 | BI199: =BI186 -> 0 | BJ199: =BJ186 -> 0 | BK199: 0 | BL199: 0 | BM199: 0 | BN199: 0 | BO199: 0 | BP199: 0 | BQ199: 0 | BR199: 0 | BS199: 0 | BT199: 0 | BU199: 0 | BV199: 0 | BW199: 0 | BX199: 0 | BY199: 0 | BZ199: 0 | CA199: 0 | CB199: 0 | CC199: 0 | CD199: 0 | CE199: 0 | CF199: 0 | CG199: 0 | CH199: 0 | CI199: 0 | CJ199: 0 | CK199: 0 | CL199: 0 | CM199: 0 | CN199: 0 | CO199: 0 | CP199: 0 | CQ199: 0 | CR199: 0 | CS199: 0 | CT199: 0 | CU199: 0 | CV199: 0 | CW199: 0 | CX199: 0 | CY199: 0 | CZ199: 0 | DA199: 0
D200: ='Efficiency Levels'!C121 -> EL8 | E200: ='Efficiency Levels'!D121 -> 1836.095153 | H200: =H184 -> 0 | I200: 0 | J200: 0 | K200: 0 | L200: 0 | M200: 0 | N200: 0 | O200: 0 | P200: 0 | Q200: 0 | R200: 0 | S200: 0 | T200: 0 | U200: 0 | V200: 0 | W200: 0 | X200: 0 | Y200: 0 | Z200: 0 | AA200: 0 | AB200: 0 | AC200: 0 | AD200: 0 | AE200: 0 | AF200: 0 | AG200: 0 | AH200: 0 | AI200: 0 | AJ200: 0 | AK200: 0 | AL200: 0 | AM200: 0 | AN200: 0 | AO200: 0 | AP200: 0 | AQ200: 0 | AR200: 0 | AS200: 0 | AT200: 0 | AU200: 0 | AV200: 0 | AW200: 0 | AX200: 0 | AY200: 0 | AZ200: 0 | BE200: EL7 | BF200: 11272.70548 | BI200: =BI187 -> 0 | BJ200: =BJ187 -> 0 | BK200: 0 | BL200: 0 | BM200: 0 | BN200: 0 | BO200: 0 | BP200: 0 | BQ200: 0 | BR200: 0 | BS200: 0 | BT200: 0 | BU200: 0 | BV200: 0 | BW200: 0 | BX200: 0 | BY200: 0 | BZ200: 0 | CA200: 0 | CB200: 0 | CC200: 0 | CD200: 0 | CE200: 0 | CF200: 0 | CG200: 0 | CH200: 0 | CI200: 0 | CJ200: 0 | CK200: 0 | CL200: 0 | CM200: 0 | CN200: 0 | CO200: 0 | CP200: 0 | CQ200: 0 | CR200: 0 | CS200: 0 | CT200: 0 | CU200: 0 | CV200: 0 | CW200: 0 | CX200: 0 | CY200: 0 | CZ200: 0 | DA200: 0
D201: ='Efficiency Levels'!C122 -> EL9 | E201: ='Efficiency Levels'!D122 -> 1820.287454 | H201: =H185 -> 0 | I201: 0 | J201: 0 | K201: 0 | L201: 0 | M201: 0 | N201: 0 | O201: 0 | P201: 0 | Q201: 0 | R201: 0 | S201: 0 | T201: 0 | U201: 0 | V201: 0 | W201: 0 | X201: 0 | Y201: 0 | Z201: 0 | AA201: 0 | AB201: 0 | AC201: 0 | AD201: 0 | AE201: 0 | AF201: 0 | AG201: 0 | AH201: 0 | AI201: 0 | AJ201: 0 | AK201: 0 | AL201: 0 | AM201: 0 | AN201: 0 | AO201: 0 | AP201: 0 | AQ201: 0 | AR201: 0 | AS201: 0 | AT201: 0 | AU201: 0 | AV201: 0 | AW201: 0 | AX201: 0 | AY201: 0 | AZ201: 0 | BE201: EL8 | BF201: 10487.29493 | BI201: =BI188 -> 0 | BJ201: =BJ188 -> 0 | BK201: 0 | BL201: 0 | BM201: 0 | BN201: 0 | BO201: 0 | BP201: 0 | BQ201: 0 | BR201: 0 | BS201: 0 | BT201: 0 | BU201: 0 | BV201: 0 | BW201: 0 | BX201: 0 | BY201: 0 | BZ201: 0 | CA201: 0 | CB201: 0 | CC201: 0 | CD201: 0 | CE201: 0 | CF201: 0 | CG201: 0 | CH201: 0 | CI201: 0 | CJ201: =SUM(CJ182:CJ188) -> 1 | CK201: 1 | CL201: 1 | CM201: 1 | CN201: 1 | CO201: 1 | CP201: 1 | CQ201: 1 | CR201: 1 | CS201: 1 | CT201: 1 | CU201: 1 | CV201: 1 | CW201: 1 | CX201: 1 | CY201: 1 | CZ201: 1 | DA201: 1
D202: ='Efficiency Levels'!C123 -> EL10 | E202: ='Efficiency Levels'!D123 -> 1793.813846 | H202: =H186 -> 0 | I202: 0 | J202: 0 | K202: 0 | L202: 0 | M202: 0 | N202: 0 | O202: 0 | P202: 0 | Q202: 0 | R202: 0 | S202: 0 | T202: 0 | U202: 0 | V202: 0 | W202: 0 | X202: 0 | Y202: 0 | Z202: 0 | AA202: 0 | AB202: 0 | AC202: 0 | AD202: 0 | AE202: 0 | AF202: 0 | AG202: 0 | AH202: 0 | AI202: 0 | AJ202: 0 | AK202: 0 | AL202: 0 | AM202: 0 | AN202: 0 | AO202: 0 | AP202: 0 | AQ202: 0 | AR202: 0 | AS202: 0 | AT202: 0 | AU202: 0 | AV202: 0 | AW202: 0 | AX202: 0 | AY202: 0 | AZ202: 0 | BE202: TOTAL | BI202: =SUM(BI193:BI201) -> 1 | BJ202: =SUM(BJ193:BJ201) -> 1 | BK202: 1 | BL202: 1 | BM202: 1 | BN202: 1 | BO202: 1 | BP202: 1 | BQ202: 1 | BR202: 1 | BS202: 1 | BT202: 1 | BU202: 1 | BV202: 1 | BW202: 1 | BX202: 1 | BY202: 1 | BZ202: 1 | CA202: 1 | CB202: 1 | CC202: 1 | CD202: 1 | CE202: 1 | CF202: 1 | CG202: 1 | CH202: 1 | CI202: 1 | CJ202: 1 | CK202: 1 | CL202: 1 | CM202: 1 | CN202: 1 | CO202: 1 | CP202: 1 | CQ202: 1 | CR202: 1 | CS202: 1 | CT202: 1 | CU202: 1 | CV202: 1 | CW202: 1 | CX202: 1 | CY202: 1 | CZ202: 1 | DA202: 1
D203: ='Efficiency Levels'!C124 -> EL11 | E203: ='Efficiency Levels'!D124 -> 1757.090318 | H203: =H187 -> 0 | I203: 0 | J203: 0 | K203: 0 | L203: 0 | M203: 0 | N203: 0 | O203: 0 | P203: 0 | Q203: 0 | R203: 0 | S203: 0 | T203: 0 | U203: 0 | V203: 0 | W203: 0 | X203: 0 | Y203: 0 | Z203: 0 | AA203: 0 | AB203: 0 | AC203: 0 | AD203: 0 | AE203: 0 | AF203: 0 | AG203: 0 | AH203: 0 | AI203: 0 | AJ203: 0 | AK203: 0 | AL203: 0 | AM203: 0 | AN203: 0 | AO203: 0 | AP203: 0 | AQ203: 0 | AR203: 0 | AS203: 0 | AT203: 0 | AU203: 0 | AV203: 0 | AW203: 0 | AX203: 0 | AY203: 0 | AZ203: 0
D204: TOTAL | H204: =SUM(H192:H203) -> 1 | I204: =SUM(I192:I203) -> 1 | J204: 1 | K204: 1 | L204: 1 | M204: 1 | N204: 1 | O204: 1 | P204: 1 | Q204: 1 | R204: 1 | S204: 1 | T204: 1 | U204: 1 | V204: 1 | W204: 1 | X204: 1 | Y204: 1 | Z204: 1 | AA204: 1 | AB204: 1 | AC204: 1 | AD204: 1 | AE204: 1 | AF204: 1 | AG204: 1 | AH204: 1 | AI204: 1 | AJ204: 1 | AK204: 1 | AL204: 1 | AM204: 1 | AN204: 1 | AO204: 1 | AP204: 1 | AQ204: 1 | AR204: 1 | AS204: 1 | AT204: 1 | AU204: 1 | AV204: 1 | AW204: 1 | AX204: 1 | AY204: 1 | AZ204: 1 | BE204: Sources | BF204: 1. DOE Walk-In Coolers and Freezers 2014 Final Rule, Technical Support Document: Final Rule National Impact Analysis (NIA) - Systems, 'Market Share Inputs' tab, cells B3:M35, http://www.regulations.gov/#!documentDetail;D=EERE-2008-BT-STD-0015-0134
D206: Sources | E206: 1. DOE Walk-In Coolers and Freezers 2014 Final Rule, Technical Support Document: Final Rule National Impact Analysis (NIA) - Components, 'Market Share Inputs' tab, cells B3:M35, http://www.regulations.gov/#!documentDetail;D=EERE-2008-BT-STD-0015-0134
BE209: ='Product Class Dist'!AZ17 -> DC.M.O.006
D211: ='Product Classes'!K17&" - "&OFFSET('Product Classes'!$F$10,MATCH('Product Classes'!K17,MODEL_PCS,0),0) -> FD.L - Freight Door, Low Temperature | BE211: PRE-Case | BG211: Static Distribution
BE212: Efficiency Level | BF212: EL (kWh/year) | BG212: 2014 | BI212: 1990 | BJ212: =BI212+1 -> 1991 | BK212: =BJ212+1 -> 1992 | BL212: =BK212+1 -> 1993 | BM212: =BL212+1 -> 1994 | BN212: =BM212+1 -> 1995 | BO212: =BN212+1 -> 1996 | BP212: =BO212+1 -> 1997 | BQ212: =BP212+1 -> 1998 | BR212: =BQ212+1 -> 1999 | BS212: =BR212+1 -> 2000 | BT212: =BS212+1 -> 2001 | BU212: =BT212+1 -> 2002 | BV212: =BU212+1 -> 2003 | BW212: =BV212+1 -> 2004 | BX212: =BW212+1 -> 2005 | BY212: =BX212+1 -> 2006 | BZ212: =BY212+1 -> 2007 | CA212: =BZ212+1 -> 2008 | CB212: =CA212+1 -> 2009 | CC212: =CB212+1 -> 2010 | CD212: =CC212+1 -> 2011 | CE212: =CD212+1 -> 2012 | CF212: =CE212+1 -> 2013 | CG212: =CF212+1 -> 2014 | CH212: =CG212+1 -> 2015 | CI212: =CH212+1 -> 2016 | CJ212: =CI212+1 -> 2017 | CK212: =CJ212+1 -> 2018 | CL212: =CK212+1 -> 2019 | CM212: =CL212+1 -> 2020 | CN212: =CM212+1 -> 2021 | CO212: =CN212+1 -> 2022 | CP212: =CO212+1 -> 2023 | CQ212: =CP212+1 -> 2024 | CR212: =CQ212+1 -> 2025 | CS212: =CR212+1 -> 2026 | CT212: =CS212+1 -> 2027 | CU212: =CT212+1 -> 2028 | CV212: =CU212+1 -> 2029 | CW212: =CV212+1 -> 2030 | CX212: =CW212+1 -> 2031 | CY212: =CX212+1 -> 2032 | CZ212: =CY212+1 -> 2033 | DA212: =CZ212+1 -> 2034
D213: PRE-Case | F213: Static Distribution | BE213: ='Efficiency Levels'!J136 -> EL0 | BF213: ='Efficiency Levels'!K136 -> 6944.672632 | BG213: 0 | BI213: 1 | BJ213: 1 | BK213: 1 | BL213: 1 | BM213: 1 | BN213: 1 | BO213: 1 | BP213: 1 | BQ213: 1 | BR213: 1 | BS213: 1 | BT213: 1 | BU213: 1 | BV213: 1 | BW213: 1 | BX213: 1 | BY213: 1 | BZ213: 1 | CA213: 1 | CB213: =$BG213 -> 0 | CC213: 0 | CD213: 0 | CE213: 0 | CF213: 0 | CG213: 0 | CH213: 0 | CI213: 0 | CJ213: 0 | CK213: 0 | CL213: 0 | CM213: 0 | CN213: 0 | CO213: 0 | CP213: 0 | CQ213: 0 | CR213: =$BG213 -> 0 | CS213: 0 | CT213: 0 | CU213: 0 | CV213: 0 | CW213: 0 | CX213: 0 | CY213: 0 | CZ213: 0 | DA213: 0
... 102 more rows

Sheet Shipments and Stock - Component
C2: Shipments and Stock - Component
C4: =Navigation!$C$15 -> NAVIGATION
C6: COMMENTS
C8: Building Type
C9: =RESULTS!C9 -> TOTAL
C12: Walk_In_Coolers_Freezers_Components
E13: 1987 | F13: 1988 | G13: 1989 | H13: 1990 | I13: 1991 | J13: 1992 | K13: 1993 | L13: 1994 | M13: 1995 | N13: 1996 | O13: 1997 | P13: 1998 | Q13: 1999 | R13: 2000 | S13: 2001 | T13: 2002 | U13: 2003 | V13: 2004 | W13: 2005 | X13: 2006 | Y13: 2007 | Z13: 2008 | AA13: 2009 | AB13: 2010 | AC13: 2011 | AD13: 2012 | AE13: 2013 | AF13: 2014 | AG13: 2015 | AH13: 2016 | AI13: 2017 | AJ13: 2018 | AK13: 2019 | AL13: 2020 | AM13: 2021 | AN13: 2022 | AO13: 2023 | AP13: 2024 | AQ13: 2025 | AR13: 2026 | AS13: 2027 | AT13: 2028 | AU13: 2029 | AV13: 2030 | AW13: 2031 | AX13: 2032 | AY13: 2033 | AZ13: 2034
C14: 6P Shipments | D14: (units) | E14: Not in 6P | F14: Not in 6P | G14: Not in 6P | H14: Not in 6P | I14: Not in 6P | J14: Not in 6P | K14: Not in 6P | L14: Not in 6P | M14: Not in 6P | N14: Not in 6P | O14: Not in 6P | P14: Not in 6P | Q14: Not in 6P | R14: Not in 6P | S14: Not in 6P | T14: Not in 6P | U14: Not in 6P | V14: Not in 6P | W14: Not in 6P | X14: Not in 6P | Y14: Not in 6P | Z14: Not in 6P | AA14: Not in 6P | AB14: Not in 6P | AC14: Not in 6P | AD14: Not in 6P | AE14: Not in 6P | AF14: Not in 6P | AG14: Not in 6P | AH14: Not in 6P | AI14: Not in 6P | AJ14: Not in 6P | AK14: Not in 6P | AL14: Not in 6P | AM14: Not in 6P | AN14: Not in 6P | AO14: Not in 6P | AP14: Not in 6P | AQ14: Not in 6P | AR14: Not in 6P | AS14: Not in 6P | AT14: Not in 6P | AU14: Not in 6P | AV14: Not in 6P | AW14: Not in 6P | AX14: Not in 6P | AY14: Not in 6P | AZ14: Not in 6P
C15: Replacement Shipments | D15: (units) | E15: =OFFSET(INDEX('[1]SHIPMENTS - TOTAL'!$E$8:$BF$467,MATCH($C$12,'[1]SHIPMENTS - TOTAL'!$C$8:$C$25,0),MATCH(E$13,'[1]SHIPMENTS - TOTAL'!$E$7:$BF$7,0)),MATCH($C$9,'[1]SHIPMENTS - TOTAL'!$D$2:$D$467,0)-1,0) ->  | F15: =OFFSET(INDEX('[1]SHIPMENTS - TOTAL'!$E$8:$BF$467,MATCH($C$12,'[1]SHIPMENTS - TOTAL'!$C$8:$C$25,0),MATCH(F$13,'[1]SHIPMENTS - TOTAL'!$E$7:$BF$7,0)),MATCH($C$9,'[1]SHIPMENTS - TOTAL'!$D$2:$D$467,0)-1,0) ->  | G15: =OFFSET(INDEX('[1]SHIPMENTS - TOTAL'!$E$8:$BF$467,MATCH($C$12,'[1]SHIPMENTS - TOTAL'!$C$8:$C$25,0),MATCH(G$13,'[1]SHIPMENTS - TOTAL'!$E$7:$BF$7,0)),MATCH($C$9,'[1]SHIPMENTS - TOTAL'!$D$2:$D$467,0)-1,0) ->  | H15: =OFFSET(INDEX('[1]SHIPMENTS - TOTAL'!$E$8:$BF$467,MATCH($C$12,'[1]SHIPMENTS - TOTAL'!$C$8:$C$25,0),MATCH(H$13,'[1]SHIPMENTS - TOTAL'!$E$7:$BF$7,0)),MATCH($C$9,'[1]SHIPMENTS - TOTAL'!$D$2:$D$467,0)-1,0) ->  | I15: =OFFSET(INDEX('[1]SHIPMENTS - TOTAL'!$E$8:$BF$467,MATCH($C$12,'[1]SHIPMENTS - TOTAL'!$C$8:$C$25,0),MATCH(I$13,'[1]SHIPMENTS - TOTAL'!$E$7:$BF$7,0)),MATCH($C$9,'[1]SHIPMENTS - TOTAL'!$D$2:$D$467,0)-1,0) ->  | J15: =OFFSET(INDEX('[1]SHIPMENTS - TOTAL'!$E$8:$BF$467,MATCH($C$12,'[1]SHIPMENTS - TOTAL'!$C$8:$C$25,0),MATCH(J$13,'[1]SHIPMENTS - TOTAL'!$E$7:$BF$7,0)),MATCH($C$9,'[1]SHIPMENTS - TOTAL'!$D$2:$D$467,0)-1,0) ->  | K15: =OFFSET(INDEX('[1]SHIPMENTS - TOTAL'!$E$8:$BF$467,MATCH($C$12,'[1]SHIPMENTS - TOTAL'!$C$8:$C$25,0),MATCH(K$13,'[1]SHIPMENTS - TOTAL'!$E$7:$BF$7,0)),MATCH($C$9,'[1]SHIPMENTS - TOTAL'!$D$2:$D$467,0)-1,0) ->  | L15: =OFFSET(INDEX('[1]SHIPMENTS - TOTAL'!$E$8:$BF$467,MATCH($C$12,'[1]SHIPMENTS - TOTAL'!$C$8:$C$25,0),MATCH(L$13,'[1]SHIPMENTS - TOTAL'!$E$7:$BF$7,0)),MATCH($C$9,'[1]SHIPMENTS - TOTAL'!$D$2:$D$467,0)-1,0) ->  | M15: =OFFSET(INDEX('[1]SHIPMENTS - TOTAL'!$E$8:$BF$467,MATCH($C$12,'[1]SHIPMENTS - TOTAL'!$C$8:$C$25,0),MATCH(M$13,'[1]SHIPMENTS - TOTAL'!$E$7:$BF$7,0)),MATCH($C$9,'[1]SHIPMENTS - TOTAL'!$D$2:$D$467,0)-1,0) ->  | N15: =OFFSET(INDEX('[1]SHIPMENTS - TOTAL'!$E$8:$BF$467,MATCH($C$12,'[1]SHIPMENTS - TOTAL'!$C$8:$C$25,0),MATCH(N$13,'[1]SHIPMENTS - TOTAL'!$E$7:$BF$7,0)),MATCH($C$9,'[1]SHIPMENTS - TOTAL'!$D$2:$D$467,0)-1,0) ->  | O15: =OFFSET(INDEX('[1]SHIPMENTS - TOTAL'!$E$8:$BF$467,MATCH($C$12,'[1]SHIPMENTS - TOTAL'!$C$8:$C$25,0),MATCH(O$13,'[1]SHIPMENTS - TOTAL'!$E$7:$BF$7,0)),MATCH($C$9,'[1]SHIPMENTS - TOTAL'!$D$2:$D$467,0)-1,0) ->  | P15: =OFFSET(INDEX('[1]SHIPMENTS - TOTAL'!$E$8:$BF$467,MATCH($C$12,'[1]SHIPMENTS - TOTAL'!$C$8:$C$25,0),MATCH(P$13,'[1]SHIPMENTS - TOTAL'!$E$7:$BF$7,0)),MATCH($C$9,'[1]SHIPMENTS - TOTAL'!$D$2:$D$467,0)-1,0) ->  | Q15: =OFFSET(INDEX('[1]SHIPMENTS - TOTAL'!$E$8:$BF$467,MATCH($C$12,'[1]SHIPMENTS - TOTAL'!$C$8:$C$25,0),MATCH(Q$13,'[1]SHIPMENTS - TOTAL'!$E$7:$BF$7,0)),MATCH($C$9,'[1]SHIPMENTS - TOTAL'!$D$2:$D$467,0)-1,0) ->  | R15: =OFFSET(INDEX('[1]SHIPMENTS - TOTAL'!$E$8:$BF$467,MATCH($C$12,'[1]SHIPMENTS - TOTAL'!$C$8:$C$25,0),MATCH(R$13,'[1]SHIPMENTS - TOTAL'!$E$7:$BF$7,0)),MATCH($C$9,'[1]SHIPMENTS - TOTAL'!$D$2:$D$467,0)-1,0) ->  | S15: =OFFSET(INDEX('[1]SHIPMENTS - TOTAL'!$E$8:$BF$467,MATCH($C$12,'[1]SHIPMENTS - TOTAL'!$C$8:$C$25,0),MATCH(S$13,'[1]SHIPMENTS - TOTAL'!$E$7:$BF$7,0)),MATCH($C$9,'[1]SHIPMENTS - TOTAL'!$D$2:$D$467,0)-1,0) ->  | T15: =OFFSET(INDEX('[1]SHIPMENTS - TOTAL'!$E$8:$BF$467,MATCH($C$12,'[1]SHIPMENTS - TOTAL'!$C$8:$C$25,0),MATCH(T$13,'[1]SHIPMENTS - TOTAL'!$E$7:$BF$7,0)),MATCH($C$9,'[1]SHIPMENTS - TOTAL'!$D$2:$D$467,0)-1,0) ->  | U15: =OFFSET(INDEX('[1]SHIPMENTS - TOTAL'!$E$8:$BF$467,MATCH($C$12,'[1]SHIPMENTS - TOTAL'!$C$8:$C$25,0),MATCH(U$13,'[1]SHIPMENTS - TOTAL'!$E$7:$BF$7,0)),MATCH($C$9,'[1]SHIPMENTS - TOTAL'!$D$2:$D$467,0)-1,0) ->  | V15: =OFFSET(INDEX('[1]SHIPMENTS - TOTAL'!$E$8:$BF$467,MATCH($C$12,'[1]SHIPMENTS - TOTAL'!$C$8:$C$25,0),MATCH(V$13,'[1]SHIPMENTS - TOTAL'!$E$7:$BF$7,0)),MATCH($C$9,'[1]SHIPMENTS - TOTAL'!$D$2:$D$467,0)-1,0) ->  | W15: =OFFSET(INDEX('[1]SHIPMENTS - TOTAL'!$E$8:$BF$467,MATCH($C$12,'[1]SHIPMENTS - TOTAL'!$C$8:$C$25,0),MATCH(W$13,'[1]SHIPMENTS - TOTAL'!$E$7:$BF$7,0)),MATCH($C$9,'[1]SHIPMENTS - TOTAL'!$D$2:$D$467,0)-1,0) ->  | X15: =OFFSET(INDEX('[1]SHIPMENTS - TOTAL'!$E$8:$BF$467,MATCH($C$12,'[1]SHIPMENTS - TOTAL'!$C$8:$C$25,0),MATCH(X$13,'[1]SHIPMENTS - TOTAL'!$E$7:$BF$7,0)),MATCH($C$9,'[1]SHIPMENTS - TOTAL'!$D$2:$D$467,0)-1,0) ->  | Y15: =OFFSET(INDEX('[1]SHIPMENTS - TOTAL'!$E$8:$BF$467,MATCH($C$12,'[1]SHIPMENTS - TOTAL'!$C$8:$C$25,0),MATCH(Y$13,'[1]SHIPMENTS - TOTAL'!$E$7:$BF$7,0)),MATCH($C$9,'[1]SHIPMENTS - TOTAL'!$D$2:$D$467,0)-1,0) ->  | Z15: =OFFSET(INDEX('[1]SHIPMENTS - TOTAL'!$E$8:$BF$467,MATCH($C$12,'[1]SHIPMENTS - TOTAL'!$C$8:$C$25,0),MATCH(Z$13,'[1]SHIPMENTS - TOTAL'!$E$7:$BF$7,0)),MATCH($C$9,'[1]SHIPMENTS - TOTAL'!$D$2:$D$467,0)-1,0) ->  | AA15: =OFFSET(INDEX('[1]SHIPMENTS - TOTAL'!$E$8:$BF$467,MATCH($C$12,'[1]SHIPMENTS - TOTAL'!$C$8:$C$25,0),MATCH(AA$13,'[1]SHIPMENTS - TOTAL'!$E$7:$BF$7,0)),MATCH($C$9,'[1]SHIPMENTS - TOTAL'!$D$2:$D$467,0)-1,0) ->  | AB15: =OFFSET(INDEX('[1]SHIPMENTS - TOTAL'!$E$8:$BF$467,MATCH($C$12,'[1]SHIPMENTS - TOTAL'!$C$8:$C$25,0),MATCH(AB$13,'[1]SHIPMENTS - TOTAL'!$E$7:$BF$7,0)),MATCH($C$9,'[1]SHIPMENTS - TOTAL'!$D$2:$D$467,0)-1,0) ->  | AC15: =OFFSET(INDEX('[1]SHIPMENTS - TOTAL'!$E$8:$BF$467,MATCH($C$12,'[1]SHIPMENTS - TOTAL'!$C$8:$C$25,0),MATCH(AC$13,'[1]SHIPMENTS - TOTAL'!$E$7:$BF$7,0)),MATCH($C$9,'[1]SHIPMENTS - TOTAL'!$D$2:$D$467,0)-1,0) ->  | AD15: =OFFSET(INDEX('[1]SHIPMENTS - TOTAL'!$E$8:$BF$467,MATCH($C$12,'[1]SHIPMENTS - TOTAL'!$C$8:$C$25,0),MATCH(AD$13,'[1]SHIPMENTS - TOTAL'!$E$7:$BF$7,0)),MATCH($C$9,'[1]SHIPMENTS - TOTAL'!$D$2:$D$467,0)-1,0) ->  | AE15: =OFFSET(INDEX('[1]SHIPMENTS - TOTAL'!$E$8:$BF$467,MATCH($C$12,'[1]SHIPMENTS - TOTAL'!$C$8:$C$25,0),MATCH(AE$13,'[1]SHIPMENTS - TOTAL'!$E$7:$BF$7,0)),MATCH($C$9,'[1]SHIPMENTS - TOTAL'!$D$2:$D$467,0)-1,0) ->  | AF15: =OFFSET(INDEX('[1]SHIPMENTS - TOTAL'!$E$8:$BF$467,MATCH($C$12,'[1]SHIPMENTS - TOTAL'!$C$8:$C$25,0),MATCH(AF$13,'[1]SHIPMENTS - TOTAL'!$E$7:$BF$7,0)),MATCH($C$9,'[1]SHIPMENTS - TOTAL'!$D$2:$D$467,0)-1,0) ->  | AG15: =OFFSET(INDEX('[1]SHIPMENTS - TOTAL'!$E$8:$BF$467,MATCH($C$12,'[1]SHIPMENTS - TOTAL'!$C$8:$C$25,0),MATCH(AG$13,'[1]SHIPMENTS - TOTAL'!$E$7:$BF$7,0)),MATCH($C$9,'[1]SHIPMENTS - TOTAL'!$D$2:$D$467,0)-1,0) ->  | AH15: =OFFSET(INDEX('[1]SHIPMENTS - TOTAL'!$E$8:$BF$467,MATCH($C$12,'[1]SHIPMENTS - TOTAL'!$C$8:$C$25,0),MATCH(AH$13,'[1]SHIPMENTS - TOTAL'!$E$7:$BF$7,0)),MATCH($C$9,'[1]SHIPMENTS - TOTAL'!$D$2:$D$467,0)-1,0) ->  | AI15: =OFFSET(INDEX('[1]SHIPMENTS - TOTAL'!$E$8:$BF$467,MATCH($C$12,'[1]SHIPMENTS - TOTAL'!$C$8:$C$25,0),MATCH(AI$13,'[1]SHIPMENTS - TOTAL'!$E$7:$BF$7,0)),MATCH($C$9,'[1]SHIPMENTS - TOTAL'!$D$2:$D$467,0)-1,0) ->  | AJ15: =OFFSET(INDEX('[1]SHIPMENTS - TOTAL'!$E$8:$BF$467,MATCH($C$12,'[1]SHIPMENTS - TOTAL'!$C$8:$C$25,0),MATCH(AJ$13,'[1]SHIPMENTS - TOTAL'!$E$7:$BF$7,0)),MATCH($C$9,'[1]SHIPMENTS - TOTAL'!$D$2:$D$467,0)-1,0) ->  | AK15: =OFFSET(INDEX('[1]SHIPMENTS - TOTAL'!$E$8:$BF$467,MATCH($C$12,'[1]SHIPMENTS - TOTAL'!$C$8:$C$25,0),MATCH(AK$13,'[1]SHIPMENTS - TOTAL'!$E$7:$BF$7,0)),MATCH($C$9,'[1]SHIPMENTS - TOTAL'!$D$2:$D$467,0)-1,0) ->  | AL15: =OFFSET(INDEX('[1]SHIPMENTS - TOTAL'!$E$8:$BF$467,MATCH($C$12,'[1]SHIPMENTS - TOTAL'!$C$8:$C$25,0),MATCH(AL$13,'[1]SHIPMENTS - TOTAL'!$E$7:$BF$7,0)),MATCH($C$9,'[1]SHIPMENTS - TOTAL'!$D$2:$D$467,0)-1,0) ->  | AM15: =OFFSET(INDEX('[1]SHIPMENTS - TOTAL'!$E$8:$BF$467,MATCH($C$12,'[1]SHIPMENTS - TOTAL'!$C$8:$C$25,0),MATCH(AM$13,'[1]SHIPMENTS - TOTAL'!$E$7:$BF$7,0)),MATCH($C$9,'[1]SHIPMENTS - TOTAL'!$D$2:$D$467,0)-1,0) ->  | AN15: =OFFSET(INDEX('[1]SHIPMENTS - TOTAL'!$E$8:$BF$467,MATCH($C$12,'[1]SHIPMENTS - TOTAL'!$C$8:$C$25,0),MATCH(AN$13,'[1]SHIPMENTS - TOTAL'!$E$7:$BF$7,0)),MATCH($C$9,'[1]SHIPMENTS - TOTAL'!$D$2:$D$467,0)-1,0) ->  | AO15: =OFFSET(INDEX('[1]SHIPMENTS - TOTAL'!$E$8:$BF$467,MATCH($C$12,'[1]SHIPMENTS - TOTAL'!$C$8:$C$25,0),MATCH(AO$13,'[1]SHIPMENTS - TOTAL'!$E$7:$BF$7,0)),MATCH($C$9,'[1]SHIPMENTS - TOTAL'!$D$2:$D$467,0)-1,0) ->  | AP15: =OFFSET(INDEX('[1]SHIPMENTS - TOTAL'!$E$8:$BF$467,MATCH($C$12,'[1]SHIPMENTS - TOTAL'!$C$8:$C$25,0),MATCH(AP$13,'[1]SHIPMENTS - TOTAL'!$E$7:$BF$7,0)),MATCH($C$9,'[1]SHIPMENTS - TOTAL'!$D$2:$D$467,0)-1,0) ->  | AQ15: =OFFSET(INDEX('[1]SHIPMENTS - TOTAL'!$E$8:$BF$467,MATCH($C$12,'[1]SHIPMENTS - TOTAL'!$C$8:$C$25,0),MATCH(AQ$13,'[1]SHIPMENTS - TOTAL'!$E$7:$BF$7,0)),MATCH($C$9,'[1]SHIPMENTS - TOTAL'!$D$2:$D$467,0)-1,0) ->  | AR15: =OFFSET(INDEX('[1]SHIPMENTS - TOTAL'!$E$8:$BF$467,MATCH($C$12,'[1]SHIPMENTS - TOTAL'!$C$8:$C$25,0),MATCH(AR$13,'[1]SHIPMENTS - TOTAL'!$E$7:$BF$7,0)),MATCH($C$9,'[1]SHIPMENTS - TOTAL'!$D$2:$D$467,0)-1,0) ->  | AS15: =OFFSET(INDEX('[1]SHIPMENTS - TOTAL'!$E$8:$BF$467,MATCH($C$12,'[1]SHIPMENTS - TOTAL'!$C$8:$C$25,0),MATCH(AS$13,'[1]SHIPMENTS - TOTAL'!$E$7:$BF$7,0)),MATCH($C$9,'[1]SHIPMENTS - TOTAL'!$D$2:$D$467,0)-1,0) ->  | AT15: =OFFSET(INDEX('[1]SHIPMENTS - TOTAL'!$E$8:$BF$467,MATCH($C$12,'[1]SHIPMENTS - TOTAL'!$C$8:$C$25,0),MATCH(AT$13,'[1]SHIPMENTS - TOTAL'!$E$7:$BF$7,0)),MATCH($C$9,'[1]SHIPMENTS - TOTAL'!$D$2:$D$467,0)-1,0) ->  | AU15: =OFFSET(INDEX('[1]SHIPMENTS - TOTAL'!$E$8:$BF$467,MATCH($C$12,'[1]SHIPMENTS - TOTAL'!$C$8:$C$25,0),MATCH(AU$13,'[1]SHIPMENTS - TOTAL'!$E$7:$BF$7,0)),MATCH($C$9,'[1]SHIPMENTS - TOTAL'!$D$2:$D$467,0)-1,0) ->  | AV15: =OFFSET(INDEX('[1]SHIPMENTS - TOTAL'!$E$8:$BF$467,MATCH($C$12,'[1]SHIPMENTS - TOTAL'!$C$8:$C$25,0),MATCH(AV$13,'[1]SHIPMENTS - TOTAL'!$E$7:$BF$7,0)),MATCH($C$9,'[1]SHIPMENTS - TOTAL'!$D$2:$D$467,0)-1,0) ->  | AW15: =OFFSET(INDEX('[1]SHIPMENTS - TOTAL'!$E$8:$BF$467,MATCH($C$12,'[1]SHIPMENTS - TOTAL'!$C$8:$C$25,0),MATCH(AW$13,'[1]SHIPMENTS - TOTAL'!$E$7:$BF$7,0)),MATCH($C$9,'[1]SHIPMENTS - TOTAL'!$D$2:$D$467,0)-1,0) ->  | AX15: =OFFSET(INDEX('[1]SHIPMENTS - TOTAL'!$E$8:$BF$467,MATCH($C$12,'[1]SHIPMENTS - TOTAL'!$C$8:$C$25,0),MATCH(AX$13,'[1]SHIPMENTS - TOTAL'!$E$7:$BF$7,0)),MATCH($C$9,'[1]SHIPMENTS - TOTAL'!$D$2:$D$467,0)-1,0) ->  | AY15: =OFFSET(INDEX('[1]SHIPMENTS - TOTAL'!$E$8:$BF$467,MATCH($C$12,'[1]SHIPMENTS - TOTAL'!$C$8:$C$25,0),MATCH(AY$13,'[1]SHIPMENTS - TOTAL'!$E$7:$BF$7,0)),MATCH($C$9,'[1]SHIPMENTS - TOTAL'!$D$2:$D$467,0)-1,0) ->  | AZ15: =OFFSET(INDEX('[1]SHIPMENTS - TOTAL'!$E$8:$BF$467,MATCH($C$12,'[1]SHIPMENTS - TOTAL'!$C$8:$C$25,0),MATCH(AZ$13,'[1]SHIPMENTS - TOTAL'!$E$7:$BF$7,0)),MATCH($C$9,'[1]SHIPMENTS - TOTAL'!$D$2:$D$467,0)-1,0) -> 
C16: Net New Shipments | D16: (units) | E16: =OFFSET(INDEX('[1]SHIPMENTS - TOTAL'!$E$8:$BF$467,MATCH($C$12,'[1]SHIPMENTS - TOTAL'!$C$8:$C$25,0),MATCH(E$13,'[1]SHIPMENTS - TOTAL'!$E$7:$BF$7,0)),MATCH($C$9,'[1]SHIPMENTS - TOTAL'!$D$2:$D$467,0)-1+1,0) ->  | F16: =OFFSET(INDEX('[1]SHIPMENTS - TOTAL'!$E$8:$BF$467,MATCH($C$12,'[1]SHIPMENTS - TOTAL'!$C$8:$C$25,0),MATCH(F$13,'[1]SHIPMENTS - TOTAL'!$E$7:$BF$7,0)),MATCH($C$9,'[1]SHIPMENTS - TOTAL'!$D$2:$D$467,0)-1+1,0) ->  | G16: =OFFSET(INDEX('[1]SHIPMENTS - TOTAL'!$E$8:$BF$467,MATCH($C$12,'[1]SHIPMENTS - TOTAL'!$C$8:$C$25,0),MATCH(G$13,'[1]SHIPMENTS - TOTAL'!$E$7:$BF$7,0)),MATCH($C$9,'[1]SHIPMENTS - TOTAL'!$D$2:$D$467,0)-1+1,0) ->  | H16: =OFFSET(INDEX('[1]SHIPMENTS - TOTAL'!$E$8:$BF$467,MATCH($C$12,'[1]SHIPMENTS - TOTAL'!$C$8:$C$25,0),MATCH(H$13,'[1]SHIPMENTS - TOTAL'!$E$7:$BF$7,0)),MATCH($C$9,'[1]SHIPMENTS - TOTAL'!$D$2:$D$467,0)-1+1,0) ->  | I16: =OFFSET(INDEX('[1]SHIPMENTS - TOTAL'!$E$8:$BF$467,MATCH($C$12,'[1]SHIPMENTS - TOTAL'!$C$8:$C$25,0),MATCH(I$13,'[1]SHIPMENTS - TOTAL'!$E$7:$BF$7,0)),MATCH($C$9,'[1]SHIPMENTS - TOTAL'!$D$2:$D$467,0)-1+1,0) ->  | J16: =OFFSET(INDEX('[1]SHIPMENTS - TOTAL'!$E$8:$BF$467,MATCH($C$12,'[1]SHIPMENTS - TOTAL'!$C$8:$C$25,0),MATCH(J$13,'[1]SHIPMENTS - TOTAL'!$E$7:$BF$7,0)),MATCH($C$9,'[1]SHIPMENTS - TOTAL'!$D$2:$D$467,0)-1+1,0) ->  | K16: =OFFSET(INDEX('[1]SHIPMENTS - TOTAL'!$E$8:$BF$467,MATCH($C$12,'[1]SHIPMENTS - TOTAL'!$C$8:$C$25,0),MATCH(K$13,'[1]SHIPMENTS - TOTAL'!$E$7:$BF$7,0)),MATCH($C$9,'[1]SHIPMENTS - TOTAL'!$D$2:$D$467,0)-1+1,0) ->  | L16: =OFFSET(INDEX('[1]SHIPMENTS - TOTAL'!$E$8:$BF$467,MATCH($C$12,'[1]SHIPMENTS - TOTAL'!$C$8:$C$25,0),MATCH(L$13,'[1]SHIPMENTS - TOTAL'!$E$7:$BF$7,0)),MATCH($C$9,'[1]SHIPMENTS - TOTAL'!$D$2:$D$467,0)-1+1,0) ->  | M16: =OFFSET(INDEX('[1]SHIPMENTS - TOTAL'!$E$8:$BF$467,MATCH($C$12,'[1]SHIPMENTS - TOTAL'!$C$8:$C$25,0),MATCH(M$13,'[1]SHIPMENTS - TOTAL'!$E$7:$BF$7,0)),MATCH($C$9,'[1]SHIPMENTS - TOTAL'!$D$2:$D$467,0)-1+1,0) ->  | N16: =OFFSET(INDEX('[1]SHIPMENTS - TOTAL'!$E$8:$BF$467,MATCH($C$12,'[1]SHIPMENTS - TOTAL'!$C$8:$C$25,0),MATCH(N$13,'[1]SHIPMENTS - TOTAL'!$E$7:$BF$7,0)),MATCH($C$9,'[1]SHIPMENTS - TOTAL'!$D$2:$D$467,0)-1+1,0) ->  | O16: =OFFSET(INDEX('[1]SHIPMENTS - TOTAL'!$E$8:$BF$467,MATCH($C$12,'[1]SHIPMENTS - TOTAL'!$C$8:$C$25,0),MATCH(O$13,'[1]SHIPMENTS - TOTAL'!$E$7:$BF$7,0)),MATCH($C$9,'[1]SHIPMENTS - TOTAL'!$D$2:$D$467,0)-1+1,0) ->  | P16: =OFFSET(INDEX('[1]SHIPMENTS - TOTAL'!$E$8:$BF$467,MATCH($C$12,'[1]SHIPMENTS - TOTAL'!$C$8:$C$25,0),MATCH(P$13,'[1]SHIPMENTS - TOTAL'!$E$7:$BF$7,0)),MATCH($C$9,'[1]SHIPMENTS - TOTAL'!$D$2:$D$467,0)-1+1,0) ->  | Q16: =OFFSET(INDEX('[1]SHIPMENTS - TOTAL'!$E$8:$BF$467,MATCH($C$12,'[1]SHIPMENTS - TOTAL'!$C$8:$C$25,0),MATCH(Q$13,'[1]SHIPMENTS - TOTAL'!$E$7:$BF$7,0)),MATCH($C$9,'[1]SHIPMENTS - TOTAL'!$D$2:$D$467,0)-1+1,0) ->  | R16: =OFFSET(INDEX('[1]SHIPMENTS - TOTAL'!$E$8:$BF$467,MATCH($C$12,'[1]SHIPMENTS - TOTAL'!$C$8:$C$25,0),MATCH(R$13,'[1]SHIPMENTS - TOTAL'!$E$7:$BF$7,0)),MATCH($C$9,'[1]SHIPMENTS - TOTAL'!$D$2:$D$467,0)-1+1,0) ->  | S16: =OFFSET(INDEX('[1]SHIPMENTS - TOTAL'!$E$8:$BF$467,MATCH($C$12,'[1]SHIPMENTS - TOTAL'!$C$8:$C$25,0),MATCH(S$13,'[1]SHIPMENTS - TOTAL'!$E$7:$BF$7,0)),MATCH($C$9,'[1]SHIPMENTS - TOTAL'!$D$2:$D$467,0)-1+1,0) ->  | T16: =OFFSET(INDEX('[1]SHIPMENTS - TOTAL'!$E$8:$BF$467,MATCH($C$12,'[1]SHIPMENTS - TOTAL'!$C$8:$C$25,0),MATCH(T$13,'[1]SHIPMENTS - TOTAL'!$E$7:$BF$7,0)),MATCH($C$9,'[1]SHIPMENTS - TOTAL'!$D$2:$D$467,0)-1+1,0) ->  | U16: =OFFSET(INDEX('[1]SHIPMENTS - TOTAL'!$E$8:$BF$467,MATCH($C$12,'[1]SHIPMENTS - TOTAL'!$C$8:$C$25,0),MATCH(U$13,'[1]SHIPMENTS - TOTAL'!$E$7:$BF$7,0)),MATCH($C$9,'[1]SHIPMENTS - TOTAL'!$D$2:$D$467,0)-1+1,0) ->  | V16: =OFFSET(INDEX('[1]SHIPMENTS - TOTAL'!$E$8:$BF$467,MATCH($C$12,'[1]SHIPMENTS - TOTAL'!$C$8:$C$25,0),MATCH(V$13,'[1]SHIPMENTS - TOTAL'!$E$7:$BF$7,0)),MATCH($C$9,'[1]SHIPMENTS - TOTAL'!$D$2:$D$467,0)-1+1,0) ->  | W16: =OFFSET(INDEX('[1]SHIPMENTS - TOTAL'!$E$8:$BF$467,MATCH($C$12,'[1]SHIPMENTS - TOTAL'!$C$8:$C$25,0),MATCH(W$13,'[1]SHIPMENTS - TOTAL'!$E$7:$BF$7,0)),MATCH($C$9,'[1]SHIPMENTS - TOTAL'!$D$2:$D$467,0)-1+1,0) ->  | X16: =OFFSET(INDEX('[1]SHIPMENTS - TOTAL'!$E$8:$BF$467,MATCH($C$12,'[1]SHIPMENTS - TOTAL'!$C$8:$C$25,0),MATCH(X$13,'[1]SHIPMENTS - TOTAL'!$E$7:$BF$7,0)),MATCH($C$9,'[1]SHIPMENTS - TOTAL'!$D$2:$D$467,0)-1+1,0) ->  | Y16: =OFFSET(INDEX('[1]SHIPMENTS - TOTAL'!$E$8:$BF$467,MATCH($C$12,'[1]SHIPMENTS - TOTAL'!$C$8:$C$25,0),MATCH(Y$13,'[1]SHIPMENTS - TOTAL'!$E$7:$BF$7,0)),MATCH($C$9,'[1]SHIPMENTS - TOTAL'!$D$2:$D$467,0)-1+1,0) ->  | Z16: =OFFSET(INDEX('[1]SHIPMENTS - TOTAL'!$E$8:$BF$467,MATCH($C$12,'[1]SHIPMENTS - TOTAL'!$C$8:$C$25,0),MATCH(Z$13,'[1]SHIPMENTS - TOTAL'!$E$7:$BF$7,0)),MATCH($C$9,'[1]SHIPMENTS - TOTAL'!$D$2:$D$467,0)-1+1,0) ->  | AA16: =OFFSET(INDEX('[1]SHIPMENTS - TOTAL'!$E$8:$BF$467,MATCH($C$12,'[1]SHIPMENTS - TOTAL'!$C$8:$C$25,0),MATCH(AA$13,'[1]SHIPMENTS - TOTAL'!$E$7:$BF$7,0)),MATCH($C$9,'[1]SHIPMENTS - TOTAL'!$D$2:$D$467,0)-1+1,0) ->  | AB16: =OFFSET(INDEX('[1]SHIPMENTS - TOTAL'!$E$8:$BF$467,MATCH($C$12,'[1]SHIPMENTS - TOTAL'!$C$8:$C$25,0),MATCH(AB$13,'[1]SHIPMENTS - TOTAL'!$E$7:$BF$7,0)),MATCH($C$9,'[1]SHIPMENTS - TOTAL'!$D$2:$D$467,0)-1+1,0) ->  | AC16: =OFFSET(INDEX('[1]SHIPMENTS - TOTAL'!$E$8:$BF$467,MATCH($C$12,'[1]SHIPMENTS - TOTAL'!$C$8:$C$25,0),MATCH(AC$13,'[1]SHIPMENTS - TOTAL'!$E$7:$BF$7,0)),MATCH($C$9,'[1]SHIPMENTS - TOTAL'!$D$2:$D$467,0)-1+1,0) ->  | AD16: =OFFSET(INDEX('[1]SHIPMENTS - TOTAL'!$E$8:$BF$467,MATCH($C$12,'[1]SHIPMENTS - TOTAL'!$C$8:$C$25,0),MATCH(AD$13,'[1]SHIPMENTS - TOTAL'!$E$7:$BF$7,0)),MATCH($C$9,'[1]SHIPMENTS - TOTAL'!$D$2:$D$467,0)-1+1,0) ->  | AE16: =OFFSET(INDEX('[1]SHIPMENTS - TOTAL'!$E$8:$BF$467,MATCH($C$12,'[1]SHIPMENTS - TOTAL'!$C$8:$C$25,0),MATCH(AE$13,'[1]SHIPMENTS - TOTAL'!$E$7:$BF$7,0)),MATCH($C$9,'[1]SHIPMENTS - TOTAL'!$D$2:$D$467,0)-1+1,0) ->  | AF16: =OFFSET(INDEX('[1]SHIPMENTS - TOTAL'!$E$8:$BF$467,MATCH($C$12,'[1]SHIPMENTS - TOTAL'!$C$8:$C$25,0),MATCH(AF$13,'[1]SHIPMENTS - TOTAL'!$E$7:$BF$7,0)),MATCH($C$9,'[1]SHIPMENTS - TOTAL'!$D$2:$D$467,0)-1+1,0) ->  | AG16: =OFFSET(INDEX('[1]SHIPMENTS - TOTAL'!$E$8:$BF$467,MATCH($C$12,'[1]SHIPMENTS - TOTAL'!$C$8:$C$25,0),MATCH(AG$13,'[1]SHIPMENTS - TOTAL'!$E$7:$BF$7,0)),MATCH($C$9,'[1]SHIPMENTS - TOTAL'!$D$2:$D$467,0)-1+1,0) ->  | AH16: =OFFSET(INDEX('[1]SHIPMENTS - TOTAL'!$E$8:$BF$467,MATCH($C$12,'[1]SHIPMENTS - TOTAL'!$C$8:$C$25,0),MATCH(AH$13,'[1]SHIPMENTS - TOTAL'!$E$7:$BF$7,0)),MATCH($C$9,'[1]SHIPMENTS - TOTAL'!$D$2:$D$467,0)-1+1,0) ->  | AI16: =OFFSET(INDEX('[1]SHIPMENTS - TOTAL'!$E$8:$BF$467,MATCH($C$12,'[1]SHIPMENTS - TOTAL'!$C$8:$C$25,0),MATCH(AI$13,'[1]SHIPMENTS - TOTAL'!$E$7:$BF$7,0)),MATCH($C$9,'[1]SHIPMENTS - TOTAL'!$D$2:$D$467,0)-1+1,0) ->  | AJ16: =OFFSET(INDEX('[1]SHIPMENTS - TOTAL'!$E$8:$BF$467,MATCH($C$12,'[1]SHIPMENTS - TOTAL'!$C$8:$C$25,0),MATCH(AJ$13,'[1]SHIPMENTS - TOTAL'!$E$7:$BF$7,0)),MATCH($C$9,'[1]SHIPMENTS - TOTAL'!$D$2:$D$467,0)-1+1,0) ->  | AK16: =OFFSET(INDEX('[1]SHIPMENTS - TOTAL'!$E$8:$BF$467,MATCH($C$12,'[1]SHIPMENTS - TOTAL'!$C$8:$C$25,0),MATCH(AK$13,'[1]SHIPMENTS - TOTAL'!$E$7:$BF$7,0)),MATCH($C$9,'[1]SHIPMENTS - TOTAL'!$D$2:$D$467,0)-1+1,0) ->  | AL16: =OFFSET(INDEX('[1]SHIPMENTS - TOTAL'!$E$8:$BF$467,MATCH($C$12,'[1]SHIPMENTS - TOTAL'!$C$8:$C$25,0),MATCH(AL$13,'[1]SHIPMENTS - TOTAL'!$E$7:$BF$7,0)),MATCH($C$9,'[1]SHIPMENTS - TOTAL'!$D$2:$D$467,0)-1+1,0) ->  | AM16: =OFFSET(INDEX('[1]SHIPMENTS - TOTAL'!$E$8:$BF$467,MATCH($C$12,'[1]SHIPMENTS - TOTAL'!$C$8:$C$25,0),MATCH(AM$13,'[1]SHIPMENTS - TOTAL'!$E$7:$BF$7,0)),MATCH($C$9,'[1]SHIPMENTS - TOTAL'!$D$2:$D$467,0)-1+1,0) ->  | AN16: =OFFSET(INDEX('[1]SHIPMENTS - TOTAL'!$E$8:$BF$467,MATCH($C$12,'[1]SHIPMENTS - TOTAL'!$C$8:$C$25,0),MATCH(AN$13,'[1]SHIPMENTS - TOTAL'!$E$7:$BF$7,0)),MATCH($C$9,'[1]SHIPMENTS - TOTAL'!$D$2:$D$467,0)-1+1,0) ->  | AO16: =OFFSET(INDEX('[1]SHIPMENTS - TOTAL'!$E$8:$BF$467,MATCH($C$12,'[1]SHIPMENTS - TOTAL'!$C$8:$C$25,0),MATCH(AO$13,'[1]SHIPMENTS - TOTAL'!$E$7:$BF$7,0)),MATCH($C$9,'[1]SHIPMENTS - TOTAL'!$D$2:$D$467,0)-1+1,0) ->  | AP16: =OFFSET(INDEX('[1]SHIPMENTS - TOTAL'!$E$8:$BF$467,MATCH($C$12,'[1]SHIPMENTS - TOTAL'!$C$8:$C$25,0),MATCH(AP$13,'[1]SHIPMENTS - TOTAL'!$E$7:$BF$7,0)),MATCH($C$9,'[1]SHIPMENTS - TOTAL'!$D$2:$D$467,0)-1+1,0) ->  | AQ16: =OFFSET(INDEX('[1]SHIPMENTS - TOTAL'!$E$8:$BF$467,MATCH($C$12,'[1]SHIPMENTS - TOTAL'!$C$8:$C$25,0),MATCH(AQ$13,'[1]SHIPMENTS - TOTAL'!$E$7:$BF$7,0)),MATCH($C$9,'[1]SHIPMENTS - TOTAL'!$D$2:$D$467,0)-1+1,0) ->  | AR16: =OFFSET(INDEX('[1]SHIPMENTS - TOTAL'!$E$8:$BF$467,MATCH($C$12,'[1]SHIPMENTS - TOTAL'!$C$8:$C$25,0),MATCH(AR$13,'[1]SHIPMENTS - TOTAL'!$E$7:$BF$7,0)),MATCH($C$9,'[1]SHIPMENTS - TOTAL'!$D$2:$D$467,0)-1+1,0) ->  | AS16: =OFFSET(INDEX('[1]SHIPMENTS - TOTAL'!$E$8:$BF$467,MATCH($C$12,'[1]SHIPMENTS - TOTAL'!$C$8:$C$25,0),MATCH(AS$13,'[1]SHIPMENTS - TOTAL'!$E$7:$BF$7,0)),MATCH($C$9,'[1]SHIPMENTS - TOTAL'!$D$2:$D$467,0)-1+1,0) ->  | AT16: =OFFSET(INDEX('[1]SHIPMENTS - TOTAL'!$E$8:$BF$467,MATCH($C$12,'[1]SHIPMENTS - TOTAL'!$C$8:$C$25,0),MATCH(AT$13,'[1]SHIPMENTS - TOTAL'!$E$7:$BF$7,0)),MATCH($C$9,'[1]SHIPMENTS - TOTAL'!$D$2:$D$467,0)-1+1,0) ->  | AU16: =OFFSET(INDEX('[1]SHIPMENTS - TOTAL'!$E$8:$BF$467,MATCH($C$12,'[1]SHIPMENTS - TOTAL'!$C$8:$C$25,0),MATCH(AU$13,'[1]SHIPMENTS - TOTAL'!$E$7:$BF$7,0)),MATCH($C$9,'[1]SHIPMENTS - TOTAL'!$D$2:$D$467,0)-1+1,0) ->  | AV16: =OFFSET(INDEX('[1]SHIPMENTS - TOTAL'!$E$8:$BF$467,MATCH($C$12,'[1]SHIPMENTS - TOTAL'!$C$8:$C$25,0),MATCH(AV$13,'[1]SHIPMENTS - TOTAL'!$E$7:$BF$7,0)),MATCH($C$9,'[1]SHIPMENTS - TOTAL'!$D$2:$D$467,0)-1+1,0) ->  | AW16: =OFFSET(INDEX('[1]SHIPMENTS - TOTAL'!$E$8:$BF$467,MATCH($C$12,'[1]SHIPMENTS - TOTAL'!$C$8:$C$25,0),MATCH(AW$13,'[1]SHIPMENTS - TOTAL'!$E$7:$BF$7,0)),MATCH($C$9,'[1]SHIPMENTS - TOTAL'!$D$2:$D$467,0)-1+1,0) ->  | AX16: =OFFSET(INDEX('[1]SHIPMENTS - TOTAL'!$E$8:$BF$467,MATCH($C$12,'[1]SHIPMENTS - TOTAL'!$C$8:$C$25,0),MATCH(AX$13,'[1]SHIPMENTS - TOTAL'!$E$7:$BF$7,0)),MATCH($C$9,'[1]SHIPMENTS - TOTAL'!$D$2:$D$467,0)-1+1,0) ->  | AY16: =OFFSET(INDEX('[1]SHIPMENTS - TOTAL'!$E$8:$BF$467,MATCH($C$12,'[1]SHIPMENTS - TOTAL'!$C$8:$C$25,0),MATCH(AY$13,'[1]SHIPMENTS - TOTAL'!$E$7:$BF$7,0)),MATCH($C$9,'[1]SHIPMENTS - TOTAL'!$D$2:$D$467,0)-1+1,0) ->  | AZ16: =OFFSET(INDEX('[1]SHIPMENTS - TOTAL'!$E$8:$BF$467,MATCH($C$12,'[1]SHIPMENTS - TOTAL'!$C$8:$C$25,0),MATCH(AZ$13,'[1]SHIPMENTS - TOTAL'!$E$7:$BF$7,0)),MATCH($C$9,'[1]SHIPMENTS - TOTAL'!$D$2:$D$467,0)-1+1,0) -> 
C17: Total Model Shipments | D17: (units) | E17: =SUM(E15:E16) -> 
C18: Model Installed Stock | D18: (units) | E18: =OFFSET(INDEX('[1]STOCK - TOTAL'!$E$8:$BF$305,MATCH($C$12,'[1]STOCK - TOTAL'!$C$8:$C$16,0),MATCH(E$13,'[1]STOCK - TOTAL'!$E$7:$BF$7,0)),MATCH($C$9,'[1]STOCK - TOTAL'!$D:$D,0)-2,0) ->  | F18: =OFFSET(INDEX('[1]STOCK - TOTAL'!$E$8:$BF$305,MATCH($C$12,'[1]STOCK - TOTAL'!$C$8:$C$16,0),MATCH(F$13,'[1]STOCK - TOTAL'!$E$7:$BF$7,0)),MATCH($C$9,'[1]STOCK - TOTAL'!$D:$D,0)-2,0) ->  | G18: =OFFSET(INDEX('[1]STOCK - TOTAL'!$E$8:$BF$305,MATCH($C$12,'[1]STOCK - TOTAL'!$C$8:$C$16,0),MATCH(G$13,'[1]STOCK - TOTAL'!$E$7:$BF$7,0)),MATCH($C$9,'[1]STOCK - TOTAL'!$D:$D,0)-2,0) ->  | H18: =OFFSET(INDEX('[1]STOCK - TOTAL'!$E$8:$BF$305,MATCH($C$12,'[1]STOCK - TOTAL'!$C$8:$C$16,0),MATCH(H$13,'[1]STOCK - TOTAL'!$E$7:$BF$7,0)),MATCH($C$9,'[1]STOCK - TOTAL'!$D:$D,0)-2,0) ->  | I18: =OFFSET(INDEX('[1]STOCK - TOTAL'!$E$8:$BF$305,MATCH($C$12,'[1]STOCK - TOTAL'!$C$8:$C$16,0),MATCH(I$13,'[1]STOCK - TOTAL'!$E$7:$BF$7,0)),MATCH($C$9,'[1]STOCK - TOTAL'!$D:$D,0)-2,0) ->  | J18: =OFFSET(INDEX('[1]STOCK - TOTAL'!$E$8:$BF$305,MATCH($C$12,'[1]STOCK - TOTAL'!$C$8:$C$16,0),MATCH(J$13,'[1]STOCK - TOTAL'!$E$7:$BF$7,0)),MATCH($C$9,'[1]STOCK - TOTAL'!$D:$D,0)-2,0) ->  | K18: =OFFSET(INDEX('[1]STOCK - TOTAL'!$E$8:$BF$305,MATCH($C$12,'[1]STOCK - TOTAL'!$C$8:$C$16,0),MATCH(K$13,'[1]STOCK - TOTAL'!$E$7:$BF$7,0)),MATCH($C$9,'[1]STOCK - TOTAL'!$D:$D,0)-2,0) ->  | L18: =OFFSET(INDEX('[1]STOCK - TOTAL'!$E$8:$BF$305,MATCH($C$12,'[1]STOCK - TOTAL'!$C$8:$C$16,0),MATCH(L$13,'[1]STOCK - TOTAL'!$E$7:$BF$7,0)),MATCH($C$9,'[1]STOCK - TOTAL'!$D:$D,0)-2,0) ->  | M18: =OFFSET(INDEX('[1]STOCK - TOTAL'!$E$8:$BF$305,MATCH($C$12,'[1]STOCK - TOTAL'!$C$8:$C$16,0),MATCH(M$13,'[1]STOCK - TOTAL'!$E$7:$BF$7,0)),MATCH($C$9,'[1]STOCK - TOTAL'!$D:$D,0)-2,0) ->  | N18: =OFFSET(INDEX('[1]STOCK - TOTAL'!$E$8:$BF$305,MATCH($C$12,'[1]STOCK - TOTAL'!$C$8:$C$16,0),MATCH(N$13,'[1]STOCK - TOTAL'!$E$7:$BF$7,0)),MATCH($C$9,'[1]STOCK - TOTAL'!$D:$D,0)-2,0) ->  | O18: =OFFSET(INDEX('[1]STOCK - TOTAL'!$E$8:$BF$305,MATCH($C$12,'[1]STOCK - TOTAL'!$C$8:$C$16,0),MATCH(O$13,'[1]STOCK - TOTAL'!$E$7:$BF$7,0)),MATCH($C$9,'[1]STOCK - TOTAL'!$D:$D,0)-2,0) ->  | P18: =OFFSET(INDEX('[1]STOCK - TOTAL'!$E$8:$BF$305,MATCH($C$12,'[1]STOCK - TOTAL'!$C$8:$C$16,0),MATCH(P$13,'[1]STOCK - TOTAL'!$E$7:$BF$7,0)),MATCH($C$9,'[1]STOCK - TOTAL'!$D:$D,0)-2,0) ->  | Q18: =OFFSET(INDEX('[1]STOCK - TOTAL'!$E$8:$BF$305,MATCH($C$12,'[1]STOCK - TOTAL'!$C$8:$C$16,0),MATCH(Q$13,'[1]STOCK - TOTAL'!$E$7:$BF$7,0)),MATCH($C$9,'[1]STOCK - TOTAL'!$D:$D,0)-2,0) ->  | R18: =OFFSET(INDEX('[1]STOCK - TOTAL'!$E$8:$BF$305,MATCH($C$12,'[1]STOCK - TOTAL'!$C$8:$C$16,0),MATCH(R$13,'[1]STOCK - TOTAL'!$E$7:$BF$7,0)),MATCH($C$9,'[1]STOCK - TOTAL'!$D:$D,0)-2,0) ->  | S18: =OFFSET(INDEX('[1]STOCK - TOTAL'!$E$8:$BF$305,MATCH($C$12,'[1]STOCK - TOTAL'!$C$8:$C$16,0),MATCH(S$13,'[1]STOCK - TOTAL'!$E$7:$BF$7,0)),MATCH($C$9,'[1]STOCK - TOTAL'!$D:$D,0)-2,0) ->  | T18: =OFFSET(INDEX('[1]STOCK - TOTAL'!$E$8:$BF$305,MATCH($C$12,'[1]STOCK - TOTAL'!$C$8:$C$16,0),MATCH(T$13,'[1]STOCK - TOTAL'!$E$7:$BF$7,0)),MATCH($C$9,'[1]STOCK - TOTAL'!$D:$D,0)-2,0) ->  | U18: =OFFSET(INDEX('[1]STOCK - TOTAL'!$E$8:$BF$305,MATCH($C$12,'[1]STOCK - TOTAL'!$C$8:$C$16,0),MATCH(U$13,'[1]STOCK - TOTAL'!$E$7:$BF$7,0)),MATCH($C$9,'[1]STOCK - TOTAL'!$D:$D,0)-2,0) ->  | V18: =OFFSET(INDEX('[1]STOCK - TOTAL'!$E$8:$BF$305,MATCH($C$12,'[1]STOCK - TOTAL'!$C$8:$C$16,0),MATCH(V$13,'[1]STOCK - TOTAL'!$E$7:$BF$7,0)),MATCH($C$9,'[1]STOCK - TOTAL'!$D:$D,0)-2,0) ->  | W18: =OFFSET(INDEX('[1]STOCK - TOTAL'!$E$8:$BF$305,MATCH($C$12,'[1]STOCK - TOTAL'!$C$8:$C$16,0),MATCH(W$13,'[1]STOCK - TOTAL'!$E$7:$BF$7,0)),MATCH($C$9,'[1]STOCK - TOTAL'!$D:$D,0)-2,0) ->  | X18: =OFFSET(INDEX('[1]STOCK - TOTAL'!$E$8:$BF$305,MATCH($C$12,'[1]STOCK - TOTAL'!$C$8:$C$16,0),MATCH(X$13,'[1]STOCK - TOTAL'!$E$7:$BF$7,0)),MATCH($C$9,'[1]STOCK - TOTAL'!$D:$D,0)-2,0) ->  | Y18: =OFFSET(INDEX('[1]STOCK - TOTAL'!$E$8:$BF$305,MATCH($C$12,'[1]STOCK - TOTAL'!$C$8:$C$16,0),MATCH(Y$13,'[1]STOCK - TOTAL'!$E$7:$BF$7,0)),MATCH($C$9,'[1]STOCK - TOTAL'!$D:$D,0)-2,0) ->  | Z18: =OFFSET(INDEX('[1]STOCK - TOTAL'!$E$8:$BF$305,MATCH($C$12,'[1]STOCK - TOTAL'!$C$8:$C$16,0),MATCH(Z$13,'[1]STOCK - TOTAL'!$E$7:$BF$7,0)),MATCH($C$9,'[1]STOCK - TOTAL'!$D:$D,0)-2,0) ->  | AA18: =OFFSET(INDEX('[1]STOCK - TOTAL'!$E$8:$BF$305,MATCH($C$12,'[1]STOCK - TOTAL'!$C$8:$C$16,0),MATCH(AA$13,'[1]STOCK - TOTAL'!$E$7:$BF$7,0)),MATCH($C$9,'[1]STOCK - TOTAL'!$D:$D,0)-2,0) ->  | AB18: =OFFSET(INDEX('[1]STOCK - TOTAL'!$E$8:$BF$305,MATCH($C$12,'[1]STOCK - TOTAL'!$C$8:$C$16,0),MATCH(AB$13,'[1]STOCK - TOTAL'!$E$7:$BF$7,0)),MATCH($C$9,'[1]STOCK - TOTAL'!$D:$D,0)-2,0) ->  | AC18: =OFFSET(INDEX('[1]STOCK - TOTAL'!$E$8:$BF$305,MATCH($C$12,'[1]STOCK - TOTAL'!$C$8:$C$16,0),MATCH(AC$13,'[1]STOCK - TOTAL'!$E$7:$BF$7,0)),MATCH($C$9,'[1]STOCK - TOTAL'!$D:$D,0)-2,0) ->  | AD18: =OFFSET(INDEX('[1]STOCK - TOTAL'!$E$8:$BF$305,MATCH($C$12,'[1]STOCK - TOTAL'!$C$8:$C$16,0),MATCH(AD$13,'[1]STOCK - TOTAL'!$E$7:$BF$7,0)),MATCH($C$9,'[1]STOCK - TOTAL'!$D:$D,0)-2,0) ->  | AE18: =OFFSET(INDEX('[1]STOCK - TOTAL'!$E$8:$BF$305,MATCH($C$12,'[1]STOCK - TOTAL'!$C$8:$C$16,0),MATCH(AE$13,'[1]STOCK - TOTAL'!$E$7:$BF$7,0)),MATCH($C$9,'[1]STOCK - TOTAL'!$D:$D,0)-2,0) ->  | AF18: =OFFSET(INDEX('[1]STOCK - TOTAL'!$E$8:$BF$305,MATCH($C$12,'[1]STOCK - TOTAL'!$C$8:$C$16,0),MATCH(AF$13,'[1]STOCK - TOTAL'!$E$7:$BF$7,0)),MATCH($C$9,'[1]STOCK - TOTAL'!$D:$D,0)-2,0) ->  | AG18: =OFFSET(INDEX('[1]STOCK - TOTAL'!$E$8:$BF$305,MATCH($C$12,'[1]STOCK - TOTAL'!$C$8:$C$16,0),MATCH(AG$13,'[1]STOCK - TOTAL'!$E$7:$BF$7,0)),MATCH($C$9,'[1]STOCK - TOTAL'!$D:$D,0)-2,0) ->  | AH18: =OFFSET(INDEX('[1]STOCK - TOTAL'!$E$8:$BF$305,MATCH($C$12,'[1]STOCK - TOTAL'!$C$8:$C$16,0),MATCH(AH$13,'[1]STOCK - TOTAL'!$E$7:$BF$7,0)),MATCH($C$9,'[1]STOCK - TOTAL'!$D:$D,0)-2,0) ->  | AI18: =OFFSET(INDEX('[1]STOCK - TOTAL'!$E$8:$BF$305,MATCH($C$12,'[1]STOCK - TOTAL'!$C$8:$C$16,0),MATCH(AI$13,'[1]STOCK - TOTAL'!$E$7:$BF$7,0)),MATCH($C$9,'[1]STOCK - TOTAL'!$D:$D,0)-2,0) ->  | AJ18: =OFFSET(INDEX('[1]STOCK - TOTAL'!$E$8:$BF$305,MATCH($C$12,'[1]STOCK - TOTAL'!$C$8:$C$16,0),MATCH(AJ$13,'[1]STOCK - TOTAL'!$E$7:$BF$7,0)),MATCH($C$9,'[1]STOCK - TOTAL'!$D:$D,0)-2,0) ->  | AK18: =OFFSET(INDEX('[1]STOCK - TOTAL'!$E$8:$BF$305,MATCH($C$12,'[1]STOCK - TOTAL'!$C$8:$C$16,0),MATCH(AK$13,'[1]STOCK - TOTAL'!$E$7:$BF$7,0)),MATCH($C$9,'[1]STOCK - TOTAL'!$D:$D,0)-2,0) ->  | AL18: =OFFSET(INDEX('[1]STOCK - TOTAL'!$E$8:$BF$305,MATCH($C$12,'[1]STOCK - TOTAL'!$C$8:$C$16,0),MATCH(AL$13,'[1]STOCK - TOTAL'!$E$7:$BF$7,0)),MATCH($C$9,'[1]STOCK - TOTAL'!$D:$D,0)-2,0) ->  | AM18: =OFFSET(INDEX('[1]STOCK - TOTAL'!$E$8:$BF$305,MATCH($C$12,'[1]STOCK - TOTAL'!$C$8:$C$16,0),MATCH(AM$13,'[1]STOCK - TOTAL'!$E$7:$BF$7,0)),MATCH($C$9,'[1]STOCK - TOTAL'!$D:$D,0)-2,0) ->  | AN18: =OFFSET(INDEX('[1]STOCK - TOTAL'!$E$8:$BF$305,MATCH($C$12,'[1]STOCK - TOTAL'!$C$8:$C$16,0),MATCH(AN$13,'[1]STOCK - TOTAL'!$E$7:$BF$7,0)),MATCH($C$9,'[1]STOCK - TOTAL'!$D:$D,0)-2,0) ->  | AO18: =OFFSET(INDEX('[1]STOCK - TOTAL'!$E$8:$BF$305,MATCH($C$12,'[1]STOCK - TOTAL'!$C$8:$C$16,0),MATCH(AO$13,'[1]STOCK - TOTAL'!$E$7:$BF$7,0)),MATCH($C$9,'[1]STOCK - TOTAL'!$D:$D,0)-2,0) ->  | AP18: =OFFSET(INDEX('[1]STOCK - TOTAL'!$E$8:$BF$305,MATCH($C$12,'[1]STOCK - TOTAL'!$C$8:$C$16,0),MATCH(AP$13,'[1]STOCK - TOTAL'!$E$7:$BF$7,0)),MATCH($C$9,'[1]STOCK - TOTAL'!$D:$D,0)-2,0) ->  | AQ18: =OFFSET(INDEX('[1]STOCK - TOTAL'!$E$8:$BF$305,MATCH($C$12,'[1]STOCK - TOTAL'!$C$8:$C$16,0),MATCH(AQ$13,'[1]STOCK - TOTAL'!$E$7:$BF$7,0)),MATCH($C$9,'[1]STOCK - TOTAL'!$D:$D,0)-2,0) ->  | AR18: =OFFSET(INDEX('[1]STOCK - TOTAL'!$E$8:$BF$305,MATCH($C$12,'[1]STOCK - TOTAL'!$C$8:$C$16,0),MATCH(AR$13,'[1]STOCK - TOTAL'!$E$7:$BF$7,0)),MATCH($C$9,'[1]STOCK - TOTAL'!$D:$D,0)-2,0) ->  | AS18: =OFFSET(INDEX('[1]STOCK - TOTAL'!$E$8:$BF$305,MATCH($C$12,'[1]STOCK - TOTAL'!$C$8:$C$16,0),MATCH(AS$13,'[1]STOCK - TOTAL'!$E$7:$BF$7,0)),MATCH($C$9,'[1]STOCK - TOTAL'!$D:$D,0)-2,0) ->  | AT18: =OFFSET(INDEX('[1]STOCK - TOTAL'!$E$8:$BF$305,MATCH($C$12,'[1]STOCK - TOTAL'!$C$8:$C$16,0),MATCH(AT$13,'[1]STOCK - TOTAL'!$E$7:$BF$7,0)),MATCH($C$9,'[1]STOCK - TOTAL'!$D:$D,0)-2,0) ->  | AU18: =OFFSET(INDEX('[1]STOCK - TOTAL'!$E$8:$BF$305,MATCH($C$12,'[1]STOCK - TOTAL'!$C$8:$C$16,0),MATCH(AU$13,'[1]STOCK - TOTAL'!$E$7:$BF$7,0)),MATCH($C$9,'[1]STOCK - TOTAL'!$D:$D,0)-2,0) ->  | AV18: =OFFSET(INDEX('[1]STOCK - TOTAL'!$E$8:$BF$305,MATCH($C$12,'[1]STOCK - TOTAL'!$C$8:$C$16,0),MATCH(AV$13,'[1]STOCK - TOTAL'!$E$7:$BF$7,0)),MATCH($C$9,'[1]STOCK - TOTAL'!$D:$D,0)-2,0) ->  | AW18: =OFFSET(INDEX('[1]STOCK - TOTAL'!$E$8:$BF$305,MATCH($C$12,'[1]STOCK - TOTAL'!$C$8:$C$16,0),MATCH(AW$13,'[1]STOCK - TOTAL'!$E$7:$BF$7,0)),MATCH($C$9,'[1]STOCK - TOTAL'!$D:$D,0)-2,0) ->  | AX18: =OFFSET(INDEX('[1]STOCK - TOTAL'!$E$8:$BF$305,MATCH($C$12,'[1]STOCK - TOTAL'!$C$8:$C$16,0),MATCH(AX$13,'[1]STOCK - TOTAL'!$E$7:$BF$7,0)),MATCH($C$9,'[1]STOCK - TOTAL'!$D:$D,0)-2,0) ->  | AY18: =OFFSET(INDEX('[1]STOCK - TOTAL'!$E$8:$BF$305,MATCH($C$12,'[1]STOCK - TOTAL'!$C$8:$C$16,0),MATCH(AY$13,'[1]STOCK - TOTAL'!$E$7:$BF$7,0)),MATCH($C$9,'[1]STOCK - TOTAL'!$D:$D,0)-2,0) ->  | AZ18: =OFFSET(INDEX('[1]STOCK - TOTAL'!$E$8:$BF$305,MATCH($C$12,'[1]STOCK - TOTAL'!$C$8:$C$16,0),MATCH(AZ$13,'[1]STOCK - TOTAL'!$E$7:$BF$7,0)),MATCH($C$9,'[1]STOCK - TOTAL'!$D:$D,0)-2,0) -> 

Sheet Shipments and Stock - System
C2: Shipments and Stock - System
C4: =Navigation!$C$15 -> NAVIGATION
C6: COMMENTS
C8: Building Type
C9: =RESULTS!C9 -> TOTAL
C12: Walk_In_Coolers_Freezers_Systems
E13: 1987 | F13: 1988 | G13: 1989 | H13: 1990 | I13: 1991 | J13: 1992 | K13: 1993 | L13: 1994 | M13: 1995 | N13: 1996 | O13: 1997 | P13: 1998 | Q13: 1999 | R13: 2000 | S13: 2001 | T13: 2002 | U13: 2003 | V13: 2004 | W13: 2005 | X13: 2006 | Y13: 2007 | Z13: 2008 | AA13: 2009 | AB13: 2010 | AC13: 2011 | AD13: 2012 | AE13: 2013 | AF13: 2014 | AG13: 2015 | AH13: 2016 | AI13: 2017 | AJ13: 2018 | AK13: 2019 | AL13: 2020 | AM13: 2021 | AN13: 2022 | AO13: 2023 | AP13: 2024 | AQ13: 2025 | AR13: 2026 | AS13: 2027 | AT13: 2028 | AU13: 2029 | AV13: 2030 | AW13: 2031 | AX13: 2032 | AY13: 2033 | AZ13: 2034
C14: 6P Shipments | D14: (units) | E14: Not in 6P | F14: Not in 6P | G14: Not in 6P | H14: Not in 6P | I14: Not in 6P | J14: Not in 6P | K14: Not in 6P | L14: Not in 6P | M14: Not in 6P | N14: Not in 6P | O14: Not in 6P | P14: Not in 6P | Q14: Not in 6P | R14: Not in 6P | S14: Not in 6P | T14: Not in 6P | U14: Not in 6P | V14: Not in 6P | W14: Not in 6P | X14: Not in 6P | Y14: Not in 6P | Z14: Not in 6P | AA14: Not in 6P | AB14: Not in 6P | AC14: Not in 6P | AD14: Not in 6P | AE14: Not in 6P | AF14: Not in 6P | AG14: Not in 6P | AH14: Not in 6P | AI14: Not in 6P | AJ14: Not in 6P | AK14: Not in 6P | AL14: Not in 6P | AM14: Not in 6P | AN14: Not in 6P | AO14: Not in 6P | AP14: Not in 6P | AQ14: Not in 6P | AR14: Not in 6P | AS14: Not in 6P | AT14: Not in 6P | AU14: Not in 6P | AV14: Not in 6P | AW14: Not in 6P | AX14: Not in 6P | AY14: Not in 6P | AZ14: Not in 6P
